Workbook

Sheet Preface

Sheet Financial Definitions
A1: Annual Technology Baseline Goals - Develop consistent and normalized technology cost and performance assumptions - Mature the tracking and sourcing of input assumptions - Enable consistency in assumptions across analysis projects (and modeling). - Reduce the lead time for validating the consistency of analysis projects. - Expand beyond the initial electric sector focus.
B2: Electricity Generation Technology LCOE equation for Standard Scenarios – ReEDS Model Inputs and Annual Technology Baseline presentation of technology assumptions.
B3: Note: Costs associated with a given year are for systems that come online in that year. For example, the overnight capital cost (OCC) for a technology in 2020 represents the OCC of a system that came online in 2020.
B5: Levelized Cost of Energy ($/MWh) | C5: LCOE = ((FCR * CAPEX + FOM)*1000/(CF * 8760)) + VOM + Fuel
C6: LCOE = ((CRF * ProFinFactor * ConFinFactor * (OCC * CapRegMult + GCC) + FOM) * 1000 / (CF * 8760)) + VOM + Fuel
B8: Fixed Charge Rate | C8: FCR = CRF * ProFinFactor | D8: Amount of revenue per dollar of investment required that must be collected annually from customers to pay the carrying charges on that investment.
B10: CAPEX | C10: CAPEX = ConFinFActor * (OCC * CapRegMult + GCC) | D10: Capital expenditures required to achieve commercial operation of the generation plant
B12: Capital Recovery Factor | C12: CRF = WACC / (1 - (1 / (1 + WACC)^t)) note: WACC real | D12: *ReEDS uses: CRF = (WACC - 1) / (1 - (1 / WACC)^t)
C13: WACC = ((1+((1-DF)*((1+RROE)*(1+i)-1)) + (DF*((1+IR)*(1+i)-1)*(1-TR))) / (1+i)) - 1 | D13: but uses a WACC that is equal to 1 + the WACC rate, and returns a CRF that is 1+CRF
C14: DF = debt fraction | D14: *ReEDS uses: WACC = (1 + ((1 - DF)*(RROE*i - 1)) + (DF*(IR*i - 1)*(1-TR))) / i
C15: RROE = rate of return on equity (real) = 10.24% | D15: but uses RROE, i, and IR that are equal to 1 + the rates, and returns a WACC that is 1+WACC
C16: i = inflation rate = 2.5%
C17: IR = interest rate (real) = 5.4%
B19: Project Finance factor | C19: ProFinFactor = (1 - TR * PVD) / (1 - TR)
C20: TR = combined state/federal tax rate
C21: PVD = present value of depreciation = summation from y=1 to y=M+1 of (FDy * fy)
C22: M = # years in MACRS depreciation schedule
C23: FDy = fraction of capital depreciated in year y
C24: fy = depreciation factor in year y | D24: fy = 1/dy
C25: d = nominal discount rate (8.9%) | D25: d = WACC * i
C26: i = inflation rate
B28: Construction Finance Factor | C28: ConFinFactor = summation from y=0 to y=C-1 of (FCy * AIy)
C29: FCy = fraction of capital spent in year y
C30: AIy =1 + (1 - TR) * ((1 + IDC)(year+0.5) - 1) | D30: *ReEDS uses: AIy =1 + (1 - TR) * (IDC(year+0.5) - 1)
C31: IDC = interest during construction | D31: but uses an IDC that is equal to 1 + the interest rate
C32: y = year index, starting at 0
C33: C = construction duration (years)
B35: Overnight Capital Cost | C35: OCC = input in $/kW
B37: Capital Regional Multiplier | C37: CapRegMult = 1 for ATB | D37: CapRegMult = 1 for ATB
B39: Grid Connection Costs | C39: GCC = GF + OnSpurCost + Off SpurCost
C40: GF | D40: grid feature = 0 for ATB
C41: OnSpurCost | D41: Onshore Spur Line Costs = 0 for ATB
C42: Off SpurCost | D42: Offshore (underwater) Spur Line Costs, represent distance of 30 km for ATB
B44: Fixed Operating Expenses | C44: FOM = input in $/kW
B46: * 1000 | C46: conversion factor from $/kW inputs to $/MWh output
B48: Capacity Factor | C48: CF = input as %
B50: * 8760 | C50: conversion factor for hours per year
B52: Variable Operating Expenses | C52: VOM = input in $/MWh
B54: Fuel | C54: Fuel = input in $/MWh
B56: Overnight LCOE | C56: =((OCC*CRF*(1-TR*PVD))/(8760*CF*(1-TR))+FOM/(8760*CF))*1000)+VOM | D56: This is similar to the LCOE used in the TCDB (Transparent Cost database)
B58: Definitions:
B59: AI | C59: Accumulated Interest | D59: Accumulated interest is a function of the interest during construction and the tax rate.
B60: C | C60: Construction Duration | D60: Number of years in construction period
B61: CapRegMult | C61: Capital Regional Multiplier | D61: Capital cost multipliers to account for regional variations that affect plant costs, e.g. labor rates, etc. Separate multipliers are applied to land-based and offshore wind plants, PV, CSP, coal, gas, nuclear, etc. No multipliers for geothermal or hydropower due to site specific nature of plant cost estimates.
B62: CF | C62: Capacity Factor (%) | D62: Generally defined as the ratio of actual annual output to output at rated capacity for an entire year.
B63: ConFinFactor | C63: Construction Finance Factor | D63: Portion of all-in capital cost associated with construction period financing. ConFinFactor is a function of C, FC, and IDC.
B64: CRF | C64: Capital Recovery Factor | D64: The ratio of a constant annuity to the present value of receiving that annuity for a given length of time. (Default in ReEDS is 8.89% real); CRF is a function of WACC and t.
B65: d | C65: nominal discount rate (8.9%) | D65: The discount rate is a function of the WACC and inflation.
B66: DF | C66: Debt Fraction | D66: Fraction of capital financed with debt. 1-DF is assumed financed with equity. (50% for all technologies in ReEDS)
B67: f | C67: Depreciation Factor | D67: The depreciation factor is a function of the discount rate.
B68: FC | C68: Capital Fraction | D68: Fraction of capital spent in each year of construction, 1 to C.
B69: FD | C69: Depreciation Fraction | D69: Fraction of capital depreciated in each year, 1 to M.
B70: FOM | C70: Fixed Operation and Maintenance Expenses ($/MW-year) | D70: Annual expenditures to operate and maintain equipment that are not incurred on a per-unit-energy basis.
B71: Fuel | C71: fuel cost ($/MWh) | D71: Fuel costs are converted to $/MWh from various units.
B72: GCC | C72: Grid Connection Costs | D72: Distance-based costs of spur lines over land, offshore wind plant export cable costs and construction-period transit costs
B73: GF | C73: Grid Feature | D73: Point of interconnection at the high voltage transmission network, including substation, transmission lines, load center, or BA center. (Default in ReEDS is $0/kW for substation and load center and $14/kW for others)
B74: i | C74: Inflation Rate | D74: Assumed inflation rate based on historical data. (2.5% in ReEDS)
B75: ICC | C75: Installed Capital Cost ($/MW) | D75: Total capital expenditure to achieve commercial operation up to the plant gate. This intermediate value is used only in presentation of technology cost assumptions with historic market data. It is not required to calculate LCOE.
B76: IDC | C76: Interest During Construction | D76: Interest rate for financing project during construction period.
B77: IR | C77: Interest Rate (real) | D77: Assumed interest rate on debt. (5.4% for all technologies in ReEDS, 8% nominal)
B78: M | C78: Depreciation period (years) | D78: Number of years in MACRS depreciation schedule.
B79: OCC | C79: Overnight Capital Cost ($/MW) | D79: Capital expenditures excluding construction period financing. Includes onsite electrical equipment (e.g., switchyard), a nominal-distance spur line (<1 mi), and necessary upgrades at a transmission substation.
B80: OffDist | C80: Offshore Distance | D80: Total offshore distance covered by the offshore export cables
B81: OffSpurCost | C81: Offshore (underwater) Spur Line Costs | D81: Cost for offshore (underwater) export cables from the offshore turbines to land including incremental construction-period transit costs; OffSpurCost is a function of OffDist and OffDistFactor.
B82: OffDistFactor | C82: Offshore Distance Factor | D82: Incremental capital expenditure for offshore wind plant export cable length between landfall and offshore wind plant site and construction-period transit costs between port and offshore wind plant site. Assumed HVAC for cables that are <70 km and HVDC otherwise. ($8.10/kW-km for AC cables and $13.49/kW-km for DC cables)
B83: OnDist | C83: Onshore Distance | D83: Total onshore distance covered by the onshore transmission spur lines
B84: OnRegTransMult | C84: Onshore Regional Transmission Multiplier | D84: Transmission cost multipliers to account for regional variations that affect onshore transmission line costs, e.g. labor rates, terrain, siting, etc.
B85: OnSpurCost | C85: Onshore Spur Line Costs | D85: Cost for onshore transmission lines from the plant gate to the grid feature; OnSpurCost is a function of OnDist, OnTransCost, and OnRegTransMult.
B86: OnTransCost | C86: Onshore Transmission Costs (for spur line) | D86: Base onshore transmission line costs (Default in ReEDS is $3922/MW-mile)
B87: ProFinFactor | C87: Project Finance factor | D87: Technology-specific financial multiplier to account for any applicable differences in depreciation schedule, and tax policies. ProFinFactor is a function of TR, WACC, i, M, and FD
B88: PVD | C88: Present Value of Depreciation | D88: PVD is a function of FD, f and y.
B89: RROE | C89: Rate of Return on Equity (real) | D89: Assumed rate of return on the share of assets financed with equity. (10% for all technologies in ReEDS, 13% nominal)
B90: t | C90: Economic Lifetime (years) | D90: Length of time for paying off assets (20 years for all technologies in ReEDS)
B91: TR | C91: Tax Rate | D91: Combined state and federal tax rate (40%)
B92: VOM | C92: Variable Operation and Maintenance Expenses ($/MWh) | D92: Operating and maintenance costs incurred on a per-unit-energy basis.
B93: WACC | C93: Weighted Average Cost of Capital (real) | D93: The average expected rate that is paid to finance assets. (Default in ReEDS is 6.2% real); WACC is a function of DF, RROE, IR, i, and TR.
B94: y | C94: year index, starting at 0
B96: Notes:
B97: CapRegMult = 1 | C97: ATB assumes that all plants represent typical equipment costs and do not include regionally specific labor or material cost increments.
B98: GCC = 0 | C98: ATB assumes that base plant cost includes small spur line to connect with grid for all technologies in overnight capital cost. An exception is made for offshore wind plants where the export cable and construction-period transit costs based on a 30 km distance from shore are represented in GCC. Specific transmission lines based on geographically determined distances between ReEDS regions and existing transmission features for wind and solar are not included in ATB.
B99: Inputs in ATB are in $/kW, in ReEDS they are $/MW

Sheet Land-Based Wind
A1: Land-Based Wind Inputs
T3: Inputs
J4: Take me to: | T4: Calculated
B10: X | G10: Current Costs
H12: Techno-Economic Cost and Performance Parameters | J12: Net Capacity Factor (%) | K12: TRG 1 | L12: 0.5115685106 | O12: Basis Year: | Q12: 2014
K13: TRG 2 | L13: 0.49139785
K14: TRG 3 | L14: 0.4795542 | O14: Land-Based Wind Techno-Resource Groups (TRG)
K15: TRG 4 | L15: 0.46660555 | O15: Techno-Resource Group (TRG) | P15: Wind Speed Range (m/s) | Q15: Weighted Average Wind Speed (m/s) | R15: Potential Wind Plant Capacity (GW) | S15: Potential Wind Plant Energy (TWh)
K16: TRG 5 | L16: 0.4502895
K17: TRG 6 | L17: 0.4030543731 | O17: TRG1 | P17: 7.7 - 13.5 | Q17: 8.777456721 | R17: 99.93138 | S17: 410.956222
K18: TRG 7 | L18: 0.3338992409 | O18: TRG2 | P18: 7.5 - 10.4 | Q18: 8.315292533 | R18: 200.02224 | S18: 808.7352999
K19: TRG 8 | L19: 0.2608018167 | O19: TRG3 | P19: 7.3 - 10.5 | Q19: 8.117664106 | R19: 399.85986 | S19: 1610.159457
K20: TRG 9 | L20: 0.1981602571 | O20: TRG4 | P20: 7.1 - 10.1 | Q20: 7.899663945 | R20: 799.92822 | S20: 3199.197144
K21: TRG 10 | L21: 0.12280647 | O21: TRG5 | P21: 6.8 - 9.5 | Q21: 7.516193608 | R21: 1600.12788 | S21: 6238.324932
O22: TRG6 | P22: 61. - 9.4 | Q22: 6.923363571 | R22: 1600.11114 | S22: 5567.317739
J23: Annual Energy Production (kWh/kW) | K23: TRG 1 | L23: =(L12)*8760 -> 4481.340153 | O23: TRG7 | P23: 5.3 - 8.3 | Q23: 6.186284985 | R23: 1600.01448 | S23: 4561.284427
K24: TRG 2 | L24: =(L13)*8760 -> 4304.645166 | O24: TRG8 | P24: 4.7 - 6.6 | Q24: 5.465252941 | R24: 1599.9396 | S24: 3513.319426
K25: TRG 3 | L25: 4200.894792 | O25: TRG9 | P25: 4.1 - 5.7 | Q25: 4.801668562 | R25: 1600.03128 | S25: 2597.320527
K26: TRG 4 | L26: 4087.464618 | O26: TRG10 | P26: 1.6 - 5.1 | Q26: 4.018725022 | R26: 1140.1134 | S26: 1099.083594
K27: TRG 5 | L27: 3944.53602 | O27: Total | R27: 10640.07948 | S27: 29605.69877
K28: TRG 6 | L28: 3530.756308
K29: TRG 7 | L29: 2924.95735 | O29: Financial Assumptions:
K30: TRG 8 | L30: 2284.623914 | O30: Inflation Rate | S30: 0.025
K31: TRG 9 | L31: 1735.883853 | O31: Economic Lifetime (Years) | S31: 20
K32: TRG 10 | L32: 1075.784677 | O32: Interest Rate - Nominal | S32: 0.08
O33: Calculated Interest Rate - Real | S33: =(1+S32)/(1+S30)-1 -> 0.05365853659
J34: CAPEX ($/kW) | K34: TRG 1 | L34: =$S$42 * (L56 + L102) -> 1736.822093 | O34: Interest During Construction - Nominal | S34: 0.08
K35: TRG 2 | L35: =$S$42 * (L57 + L103) -> 1774.689833 | O35: Rate of Return on Equity - Nominal | S35: 0.13
K36: TRG 3 | L36: =$S$42 * (L58 + L104) -> 1778.075243 | O36: Calculated Rate of Return on Equity - Real | S36: =(1+S35)/(1+S30) - 1 -> 0.1024390244
K37: TRG 4 | L37: 1782.724135 | O37: Debt Fraction | S37: 0.6
K38: TRG 5 | L38: 1832.714782 | O38: Tax Rate (Federal and State) | S38: 0.4
K39: TRG 6 | L39: 1866.648153 | O39: WACC - Nominal | S39: =IF(S38>0,S37*S32*(1-S38)+(1-S37)*S35,S37*S32+(1-S37)*S35) -> 0.0808
K40: TRG 7 | L40: 1895.366644 | O40: WACC - Real | S40: =((1+((1-S37)*((1+S36)*(1+S30)-1)) + (S37*((1+S33)*(1+S30)-1)*(1-S38))) / (1+S30)) - 1 -> 0.05443902439
K41: TRG 8 | L41: 1929.596772 | O41: Depreciation Period | S41: 5
K42: TRG 9 | L42: 1998.51039 | O42: Construction Finance Factor | S42: =SUMPRODUCT(P51:P53,Q51:Q53) -> 1.038902274
K43: TRG 10 | L43: 2109.372306 | O43: Present Value of Depreciation | S43: =SUMPRODUCT(O56:T56,O58:T58) -> 0.8097434573
O44: Project Finance Factor | S44: =(1 - S38 * S43) / (1 - S38) -> 1.126837695
J45: Construction Financing Cost ($/kW) | K45: TRG 1 | L45: =(L56+L102)*($S$42-1) -> 65.03627049 | O45: Capital Recovery Factor (CRF) - Nominal | S45: =S39 / (1 - (1 / (1 + S39)^S31)) -> 0.1024593157
K46: TRG 2 | L46: =(L57+L103)*($S$42-1) -> 66.45424908 | O46: Capital Recovery Factor (CRF) - Real | S46: =S40 / (1 - (1 / (1 + S40)^S31)) -> 0.08329029943
K47: TRG 3 | L47: =(L58+L104)*($S$42-1) -> 66.58101767
K48: TRG 4 | L48: 66.75509801 | O48: Construction Duration yrs | Q48: 3
K49: TRG 5 | L49: 68.62702561 | O49: Year | P49: Capital | Q49: Accumulated
K50: TRG 6 | L50: 69.89767962 | O50: Index | P50: Fraction | Q50: Interest
K51: TRG 7 | L51: 70.97305949 | O51: 0 | P51: 0.8 | Q51: =1+(1-S38)*((1+S34)^(O51+0.5)-1) -> 1.023538291
K52: TRG 8 | L52: 72.25482569 | O52: 1 | P52: 0.1 | Q52: =1+(1-S38)*((1+S34)^(O52+0.5)-1) -> 1.073421354
K53: TRG 9 | L53: 74.8353345 | O53: 2 | P53: 0.1 | Q53: =1+(1-S38)*((1+S34)^(O53+0.5)-1) -> 1.127295062
K54: TRG 10 | L54: 78.98662066
N55: MACRS yr | O55: 1 | P55: 2 | Q55: 3 | R55: 4 | S55: 5 | T55: 6
J56: Overnight Capital Cost (OCC) ($/kW) | K56: TRG 1 | L56: 1671.785823 | N56: Depreciation | O56: 0.2 | P56: 0.32 | Q56: 0.192 | R56: 0.1152 | S56: 0.1152 | T56: 0.0576
K57: TRG 2 | L57: 1708.235584 | N57: Fraction
K58: TRG 3 | L58: 1711.494226 | N58: Depreciation | O58: =1/((1+S40)*(1+S30))^O55 -> 0.9252405625 | P58: =1/((1+S40)*(1+S30))^P55 -> 0.8560700986 | Q58: =1/((1+S40)*(1+S30))^Q55 -> 0.7920707796 | R58: =1/((1+S40)*(1+S30))^R55 -> 0.7328560137 | S58: =1/((1+S40)*(1+S30))^S55 -> 0.6780681104 | T58: =1/((1+S40)*(1+S30))^T55 -> 0.6273761199
K59: TRG 4 | L59: 1715.969037 | N59: Factor
K60: TRG 5 | L60: 1764.087756
K61: TRG 6 | L61: 1796.750474 | O61: Investment Tax Credit (ITC)* | S61: 0
K62: TRG 7 | L62: 1824.393585 | O62: Production Tax Credit (PTC)* | S62: 0
K63: TRG 8 | L63: 1857.341946 | O63: * not currently included in LCOE calculation
K64: TRG 9 | L64: 1923.675056
K65: TRG 10 | L65: 2030.385685
J67: Fixed Operation and Maintenance Expenses ($/kW-year) | K67: TRG 1 | L67: 51.27242931
K68: TRG 2 | L68: 51.27242931
K69: TRG 3 | L69: 51.27242931
K70: TRG 4 | L70: 51.27242931
K71: TRG 5 | L71: 51.27242931
K72: TRG 6 | L72: 51.27242931
K73: TRG 7 | L73: 51.27242931
K74: TRG 8 | L74: 51.27242931
K75: TRG 9 | L75: 51.27242931
K76: TRG 10 | L76: 51.27242931
J78: Variable Operation and Maintenance Expenses ($/MWh) | K78: TRG 1 | L78: 0
K79: TRG 2 | L79: 0
K80: TRG 3 | L80: 0
K81: TRG 4 | L81: 0
K82: TRG 5 | L82: 0
K83: TRG 6 | L83: 0
K84: TRG 7 | L84: 0
K85: TRG 8 | L85: 0
K86: TRG 9 | L86: 0
K87: TRG 10 | L87: 0
H90: Finance | J90: Weighted Average Cost of Capital (WACC) (Nominal) (%) | K90: TRG 1 | L90: =$S$39 -> 0.0808
K91: TRG 2 | L91: =$S$39 -> 0.0808
K92: TRG 3 | L92: 0.0808
K93: TRG 4 | L93: 0.0808
K94: TRG 5 | L94: 0.0808
K95: TRG 6 | L95: 0.0808
K96: TRG 7 | L96: 0.0808
K97: TRG 8 | L97: 0.0808
K98: TRG 9 | L98: 0.0808
K99: TRG 10 | L99: 0.0808
H102: Grid Connection Costs | J102: Grid Connection Costs (GCC) ($/kW) | K102: TRG 1 | L102: =L113+L124 -> 0
K103: TRG 2 | L103: =L114+L125 -> 0
K104: TRG 3 | L104: 0
K105: TRG 4 | L105: 0
K106: TRG 5 | L106: 0
K107: TRG 6 | L107: 0
K108: TRG 7 | L108: 0
K109: TRG 8 | L109: 0
K110: TRG 9 | L110: 0
K111: TRG 10 | L111: 0
J113: Grid Feature Costs ($/kW) | K113: TRG 1 | L113: 0
K114: TRG 2 | L114: 0
K115: TRG 3 | L115: 0
K116: TRG 4 | L116: 0
K117: TRG 5 | L117: 0
K118: TRG 6 | L118: 0
K119: TRG 7 | L119: 0
K120: TRG 8 | L120: 0
K121: TRG 9 | L121: 0
K122: TRG 10 | L122: 0
J124: Onshore Spur Line Costs ($/kW) | K124: TRG 1 | L124: 0
K125: TRG 2 | L125: 0
K126: TRG 3 | L126: 0
K127: TRG 4 | L127: 0
K128: TRG 5 | L128: 0
K129: TRG 6 | L129: 0
K130: TRG 7 | L130: 0
K131: TRG 8 | L131: 0
K132: TRG 9 | L132: 0
K133: TRG 10 | L133: 0
H136: LCOE | J136: Levelized Cost of Energy ($/MWh) | K136: TRG 1 | L136: =(($S$46 * $S$44 * $S$42 * (L56 * 1 + L102) +L67) * 1000 / (L12 * 8760)) + L78 + 0 -> 47.81633395
K137: TRG 2 | L137: 50.6047101
K138: TRG 3 | L138: 51.93014061
K139: TRG 4 | L139: 53.47798642
K140: TRG 5 | L140: 56.60519533
K141: TRG 6 | L141: 64.1409423
K142: TRG 7 | L142: 78.34692033
K143: TRG 8 | L143: 101.7121705
K144: TRG 9 | L144: 137.590957
K145: TRG 10 | L145: 231.6883964
J147: Overnight Levelized Cost of Energy ($/MWh) | K147: TRG 1 | L147: =(((L56*$S$46*(1-$S$38*$S$43))/(8760*L12*(1-$S$38))+L67/(8760*L12))*1000)+L78 -> 46.45425115 | M147: * this is similar to the LCOE used in the TCDB (Transparent Cost Database)
K148: TRG 2 | L148: 49.15580084
K149: TRG 3 | L149: 50.44261513
K150: TRG 4 | L150: 51.94518384
K151: TRG 5 | L151: 54.97231244
K152: TRG 6 | L152: 62.2829205
K153: TRG 7 | L153: 76.06957034
K154: TRG 8 | L154: 98.74386958
K155: TRG 9 | L155: 133.5448084
K156: TRG 10 | L156: 224.7973691
H159: ***Note: For future projections, low, mid, and high refer to the resulting low, mid, and high LCOE projections.
D162: X | G162: Future Projections
L163: Basis Year
L164: 2014 | M164: 2015 | N164: 2016 | O164: 2017 | P164: 2018 | Q164: 2019 | R164: 2020 | S164: 2021 | T164: 2022 | U164: 2023 | V164: 2024 | W164: 2025 | X164: 2026 | Y164: 2027 | Z164: 2028 | AA164: 2029 | AB164: 2030 | AC164: 2031 | AD164: 2032 | AE164: 2033 | AF164: 2034 | AG164: 2035 | AH164: 2036 | AI164: 2037 | AJ164: 2038 | AK164: 2039 | AL164: 2040 | AM164: 2041 | AN164: 2042 | AO164: 2043 | AP164: 2044 | AQ164: 2045 | AR164: 2046 | AS164: 2047 | AT164: 2048 | AU164: 2049 | AV164: 2050
H165: Techno-Economic Cost and Performance Parameters | J165: Net Capacity Factor (%) | K165: TRG 1 - Low | L165: 0.5115685106 | M165: 0.5172027296 | N165: 0.5222968549 | O165: 0.5322968549 | P165: 0.5422968549 | Q165: 0.5497968549 | R165: 0.5572968549 | S165: 0.5632968549 | T165: 0.5682968549 | U165: 0.5732968549 | V165: 0.5782968549 | W165: 0.5832968549 | X165: 0.5882968549 | Y165: 0.5932968549 | Z165: 0.5982968549 | AA165: 0.6032968549 | AB165: 0.6082968549 | AC165: 0.6119353822 | AD165: 0.6131265594 | AE165: 0.6139208787 | AF165: 0.614991468 | AG165: 0.6157964078 | AH165: 0.6169970228 | AI165: 0.6180284596 | AJ165: 0.6189229399 | AK165: 0.6197031603 | AL165: 0.6203819864 | AM165: 0.6211080514 | AN165: 0.6217286251 | AO165: 0.6222256438 | AP165: 0.6225703873 | AQ165: 0.6227235739 | AR165: 0.6235188373 | AS165: 0.624013973 | AT165: 0.624137448 | AU165: 0.624137448 | AV165: 0.624137448
K166: TRG 1 - Mid | L166: 0.5115685106 | M166: 0.5172027296 | N166: 0.5222968549 | O166: 0.5268446293 | P166: 0.5308441509 | Q166: 0.5342977438 | R166: 0.5377756232 | S166: 0.5397756232 | T166: 0.5417756232 | U166: 0.5437756232 | V166: 0.5457756232 | W166: 0.5477756232 | X166: 0.5497756232 | Y166: 0.5517756232 | Z166: 0.5537756232 | AA166: 0.5557756232 | AB166: 0.5577756232 | AC166: 0.5595256232 | AD166: 0.5612756232 | AE166: 0.5630256232 | AF166: 0.5647756232 | AG166: 0.5665256232 | AH166: 0.5682756232 | AI166: 0.5700256232 | AJ166: 0.5717756232 | AK166: 0.5735256232 | AL166: 0.5752756232 | AM166: 0.5767756232 | AN166: 0.5782756232 | AO166: 0.5797756232 | AP166: 0.5812756232 | AQ166: 0.5827756232 | AR166: 0.5842756232 | AS166: 0.5857756232 | AT166: 0.5872756232 | AU166: 0.5887756232 | AV166: 0.5902756232
K167: TRG 1 - High | L167: 0.5115685106 | M167: 0.5172027296 | N167: 0.5222968549 | O167: 0.5222968549 | P167: 0.5222968549 | Q167: 0.5222968549 | R167: 0.5222968549 | S167: 0.5222968549 | T167: 0.5222968549 | U167: 0.5222968549 | V167: 0.5222968549 | W167: 0.5222968549 | X167: 0.5222968549 | Y167: 0.5222968549 | Z167: 0.5222968549 | AA167: 0.5222968549 | AB167: 0.5222968549 | AC167: 0.5222968549 | AD167: 0.5222968549 | AE167: 0.5222968549 | AF167: 0.5222968549 | AG167: 0.5222968549 | AH167: 0.5222968549 | AI167: 0.5222968549 | AJ167: 0.5222968549 | AK167: 0.5222968549 | AL167: 0.5222968549 | AM167: 0.5222968549 | AN167: 0.5222968549 | AO167: 0.5222968549 | AP167: 0.5222968549 | AQ167: 0.5222968549 | AR167: 0.5222968549 | AS167: 0.5222968549 | AT167: 0.5222968549 | AU167: 0.5222968549 | AV167: 0.5222968549
K168: TRG 2 - Low | L168: 0.49139785 | M168: 0.50139785 | N168: 0.50539785 | O168: 0.51539785 | P168: 0.52539785 | Q168: 0.53289785 | R168: 0.54039785 | S168: 0.54339785 | T168: 0.54639785 | U168: 0.54939785 | V168: 0.55239785 | W168: 0.55539785 | X168: 0.55839785 | Y168: 0.56139785 | Z168: 0.56439785 | AA168: 0.56739785 | AB168: 0.57039785 | AC168: 0.57189785 | AD168: 0.57339785 | AE168: 0.57489785 | AF168: 0.57639785 | AG168: 0.57789785 | AH168: 0.57939785 | AI168: 0.58089785 | AJ168: 0.58239785 | AK168: 0.58389785 | AL168: 0.58539785 | AM168: 0.58614785 | AN168: 0.58689785 | AO168: 0.58764785 | AP168: 0.58839785 | AQ168: 0.58914785 | AR168: 0.58989785 | AS168: 0.59064785 | AT168: 0.59139785 | AU168: 0.59214785 | AV168: 0.59289785
K169: TRG 2 - Mid | L169: 0.49139785 | M169: 0.49639785 | N169: 0.50139785 | O169: 0.50639785 | P169: 0.51139785 | Q169: 0.51639785 | R169: 0.52139785 | S169: 0.52314785 | T169: 0.52489785 | U169: 0.52664785 | V169: 0.52839785 | W169: 0.53014785 | X169: 0.53189785 | Y169: 0.53364785 | Z169: 0.53539785 | AA169: 0.53714785 | AB169: 0.53889785 | AC169: 0.54039785 | AD169: 0.54189785 | AE169: 0.54339785 | AF169: 0.54489785 | AG169: 0.54639785 | AH169: 0.54789785 | AI169: 0.54939785 | AJ169: 0.55089785 | AK169: 0.55239785 | AL169: 0.55389785 | AM169: 0.55489785 | AN169: 0.55589785 | AO169: 0.55689785 | AP169: 0.55789785 | AQ169: 0.55889785 | AR169: 0.55989785 | AS169: 0.56089785 | AT169: 0.56189785 | AU169: 0.56289785 | AV169: 0.56389785
K170: TRG 2 - High | L170: 0.49139785 | M170: 0.50139785 | N170: 0.50539785 | O170: 0.50539785 | P170: 0.50539785 | Q170: 0.50539785 | R170: 0.50539785 | S170: 0.50539785 | T170: 0.50539785 | U170: 0.50539785 | V170: 0.50539785 | W170: 0.50539785 | X170: 0.50539785 | Y170: 0.50539785 | Z170: 0.50539785 | AA170: 0.50539785 | AB170: 0.50539785 | AC170: 0.50539785 | AD170: 0.50539785 | AE170: 0.50539785 | AF170: 0.50539785 | AG170: 0.50539785 | AH170: 0.50539785 | AI170: 0.50539785 | AJ170: 0.50539785 | AK170: 0.50539785 | AL170: 0.50539785 | AM170: 0.50539785 | AN170: 0.50539785 | AO170: 0.50539785 | AP170: 0.50539785 | AQ170: 0.50539785 | AR170: 0.50539785 | AS170: 0.50539785 | AT170: 0.50539785 | AU170: 0.50539785 | AV170: 0.50539785
K171: TRG 3 - Low | L171: 0.4795542 | M171: 0.4870542 | N171: 0.4905542 | O171: 0.4980542 | P171: 0.5055542 | Q171: 0.5130542 | R171: 0.5205542 | S171: 0.5233042 | T171: 0.5260542 | U171: 0.5288042 | V171: 0.5315542 | W171: 0.5343042 | X171: 0.5370542 | Y171: 0.5398042 | Z171: 0.5425542 | AA171: 0.5453042 | AB171: 0.5480542 | AC171: 0.5495542 | AD171: 0.5510542 | AE171: 0.5525542 | AF171: 0.5540542 | AG171: 0.5555542 | AH171: 0.5570542 | AI171: 0.5585542 | AJ171: 0.5600542 | AK171: 0.5615542 | AL171: 0.5630542 | AM171: 0.5640542 | AN171: 0.5650542 | AO171: 0.5660542 | AP171: 0.5670542 | AQ171: 0.5680542 | AR171: 0.5690542 | AS171: 0.5700542 | AT171: 0.5710542 | AU171: 0.5720542 | AV171: 0.5730542
K172: TRG 3 - Mid | L172: 0.4795542 | M172: 0.4835542 | N172: 0.4875542 | O172: 0.4915542 | P172: 0.4955542 | Q172: 0.4995542 | R172: 0.5035542 | S172: 0.5053042 | T172: 0.5070542 | U172: 0.5088042 | V172: 0.5105542 | W172: 0.5123042 | X172: 0.5140542 | Y172: 0.5158042 | Z172: 0.5175542 | AA172: 0.5193042 | AB172: 0.5210542 | AC172: 0.5225542 | AD172: 0.5240542 | AE172: 0.5255542 | AF172: 0.5270542 | AG172: 0.5285542 | AH172: 0.5300542 | AI172: 0.5315542 | AJ172: 0.5330542 | AK172: 0.5345542 | AL172: 0.5360542 | AM172: 0.5370542 | AN172: 0.5380542 | AO172: 0.5390542 | AP172: 0.5400542 | AQ172: 0.5410542 | AR172: 0.5420542 | AS172: 0.5430542 | AT172: 0.5440542 | AU172: 0.5450542 | AV172: 0.5460542
K173: TRG 3 - High | L173: 0.4795542 | M173: 0.4870542 | N173: 0.4905542 | O173: 0.4905542 | P173: 0.4905542 | Q173: 0.4905542 | R173: 0.4905542 | S173: 0.4905542 | T173: 0.4905542 | U173: 0.4905542 | V173: 0.4905542 | W173: 0.4905542 | X173: 0.4905542 | Y173: 0.4905542 | Z173: 0.4905542 | AA173: 0.4905542 | AB173: 0.4905542 | AC173: 0.4905542 | AD173: 0.4905542 | AE173: 0.4905542 | AF173: 0.4905542 | AG173: 0.4905542 | AH173: 0.4905542 | AI173: 0.4905542 | AJ173: 0.4905542 | AK173: 0.4905542 | AL173: 0.4905542 | AM173: 0.4905542 | AN173: 0.4905542 | AO173: 0.4905542 | AP173: 0.4905542 | AQ173: 0.4905542 | AR173: 0.4905542 | AS173: 0.4905542 | AT173: 0.4905542 | AU173: 0.4905542 | AV173: 0.4905542
K174: TRG 4 - Low | L174: 0.46660555 | M174: 0.47660555 | N174: 0.47910555 | O174: 0.48660555 | P174: 0.49410555 | Q174: 0.50160555 | R174: 0.50910555 | S174: 0.51410555 | T174: 0.51910555 | U174: 0.52410555 | V174: 0.52610555 | W174: 0.52810555 | X174: 0.53010555 | Y174: 0.53210555 | Z174: 0.53410555 | AA174: 0.53610555 | AB174: 0.53810555 | AC174: 0.53960555 | AD174: 0.54110555 | AE174: 0.54260555 | AF174: 0.54410555 | AG174: 0.54560555 | AH174: 0.54710555 | AI174: 0.54860555 | AJ174: 0.55010555 | AK174: 0.55160555 | AL174: 0.55310555 | AM174: 0.55410555 | AN174: 0.55510555 | AO174: 0.55610555 | AP174: 0.55710555 | AQ174: 0.55810555 | AR174: 0.55910555 | AS174: 0.56010555 | AT174: 0.56110555 | AU174: 0.56210555 | AV174: 0.56310555
K175: TRG 4 - Mid | L175: 0.46660555 | M175: 0.46910555 | N175: 0.47160555 | O175: 0.47410555 | P175: 0.47660555 | Q175: 0.47910555 | R175: 0.48160555 | S175: 0.48335555 | T175: 0.48510555 | U175: 0.48685555 | V175: 0.48860555 | W175: 0.49035555 | X175: 0.49210555 | Y175: 0.49385555 | Z175: 0.49560555 | AA175: 0.49735555 | AB175: 0.49910555 | AC175: 0.50060555 | AD175: 0.50210555 | AE175: 0.50360555 | AF175: 0.50510555 | AG175: 0.50660555 | AH175: 0.50810555 | AI175: 0.50960555 | AJ175: 0.51110555 | AK175: 0.51260555 | AL175: 0.51410555 | AM175: 0.51510555 | AN175: 0.51610555 | AO175: 0.51710555 | AP175: 0.51810555 | AQ175: 0.51910555 | AR175: 0.52010555 | AS175: 0.52110555 | AT175: 0.52210555 | AU175: 0.52310555 | AV175: 0.52410555
K176: TRG 4 - High | L176: 0.46660555 | M176: 0.47660555 | N176: 0.47910555 | O176: 0.47910555 | P176: 0.47910555 | Q176: 0.47910555 | R176: 0.47910555 | S176: 0.47910555 | T176: 0.47910555 | U176: 0.47910555 | V176: 0.47910555 | W176: 0.47910555 | X176: 0.47910555 | Y176: 0.47910555 | Z176: 0.47910555 | AA176: 0.47910555 | AB176: 0.47910555 | AC176: 0.47910555 | AD176: 0.47910555 | AE176: 0.47910555 | AF176: 0.47910555 | AG176: 0.47910555 | AH176: 0.47910555 | AI176: 0.47910555 | AJ176: 0.47910555 | AK176: 0.47910555 | AL176: 0.47910555 | AM176: 0.47910555 | AN176: 0.47910555 | AO176: 0.47910555 | AP176: 0.47910555 | AQ176: 0.47910555 | AR176: 0.47910555 | AS176: 0.47910555 | AT176: 0.47910555 | AU176: 0.47910555 | AV176: 0.47910555
K177: TRG 5 - Low | L177: 0.4502895 | M177: 0.4527895 | N177: 0.4552895 | O177: 0.4622895 | P177: 0.4692895 | Q177: 0.4762895 | R177: 0.4832895 | S177: 0.4882895 | T177: 0.4932895 | U177: 0.4982895 | V177: 0.5032895 | W177: 0.5082895 | X177: 0.5132895 | Y177: 0.5182895 | Z177: 0.5232895 | AA177: 0.5282895 | AB177: 0.5332895 | AC177: 0.5347895 | AD177: 0.5362895 | AE177: 0.5377895 | AF177: 0.5392895 | AG177: 0.5407895 | AH177: 0.5422895 | AI177: 0.5437895 | AJ177: 0.5452895 | AK177: 0.5467895 | AL177: 0.5482895 | AM177: 0.5492895 | AN177: 0.5502895 | AO177: 0.5512895 | AP177: 0.5522895 | AQ177: 0.5532895 | AR177: 0.5542895 | AS177: 0.5552895 | AT177: 0.5562895 | AU177: 0.5572895 | AV177: 0.5582895
K178: TRG 5 - Mid | L178: 0.4502895 | M178: 0.4527895 | N178: 0.4552895 | O178: 0.4577895 | P178: 0.4602895 | Q178: 0.4627895 | R178: 0.4652895 | S178: 0.4670395 | T178: 0.4687895 | U178: 0.4705395 | V178: 0.4722895 | W178: 0.4740395 | X178: 0.4757895 | Y178: 0.4775395 | Z178: 0.4792895 | AA178: 0.4810395 | AB178: 0.4827895 | AC178: 0.4842895 | AD178: 0.4857895 | AE178: 0.4872895 | AF178: 0.4887895 | AG178: 0.4902895 | AH178: 0.4917895 | AI178: 0.4932895 | AJ178: 0.4947895 | AK178: 0.4962895 | AL178: 0.4977895 | AM178: 0.4987895 | AN178: 0.4997895 | AO178: 0.5007895 | AP178: 0.5017895 | AQ178: 0.5027895 | AR178: 0.5037895 | AS178: 0.5047895 | AT178: 0.5057895 | AU178: 0.5067895 | AV178: 0.5077895
K179: TRG 5 - High | L179: 0.4502895 | M179: 0.4527895 | N179: 0.4552895 | O179: 0.4552895 | P179: 0.4552895 | Q179: 0.4552895 | R179: 0.4552895 | S179: 0.4552895 | T179: 0.4552895 | U179: 0.4552895 | V179: 0.4552895 | W179: 0.4552895 | X179: 0.4552895 | Y179: 0.4552895 | Z179: 0.4552895 | AA179: 0.4552895 | AB179: 0.4552895 | AC179: 0.4552895 | AD179: 0.4552895 | AE179: 0.4552895 | AF179: 0.4552895 | AG179: 0.4552895 | AH179: 0.4552895 | AI179: 0.4552895 | AJ179: 0.4552895 | AK179: 0.4552895 | AL179: 0.4552895 | AM179: 0.4552895 | AN179: 0.4552895 | AO179: 0.4552895 | AP179: 0.4552895 | AQ179: 0.4552895 | AR179: 0.4552895 | AS179: 0.4552895 | AT179: 0.4552895 | AU179: 0.4552895 | AV179: 0.4552895
K180: TRG 6 - Low | L180: 0.4030543731 | M180: 0.4058630346 | N180: 0.4086716962 | O180: 0.4253383628 | P180: 0.4378383628 | Q180: 0.4482550295 | R180: 0.4565883628 | S180: 0.4647133628 | T180: 0.4726300295 | U180: 0.4803383628 | V180: 0.4878383628 | W180: 0.4951300295 | X180: 0.5022133628 | Y180: 0.5090883628 | Z180: 0.5110446022 | AA180: 0.5130446022 | AB180: 0.5137946022 | AC180: 0.5145446022 | AD180: 0.5152946022 | AE180: 0.5160446022 | AF180: 0.5167946022 | AG180: 0.5175446022 | AH180: 0.5180446022 | AI180: 0.5185446022 | AJ180: 0.5190446022 | AK180: 0.5195446022 | AL180: 0.5200446022 | AM180: 0.5205446022 | AN180: 0.5210446022 | AO180: 0.5215446022 | AP180: 0.5220446022 | AQ180: 0.5225446022 | AR180: 0.5230446022 | AS180: 0.5235446022 | AT180: 0.5240446022 | AU180: 0.5245446022 | AV180: 0.5250446022
K181: TRG 6 - Mid | L181: 0.4030543731 | M181: 0.4058630346 | N181: 0.4086716962 | O181: 0.4114803577 | P181: 0.4142890192 | Q181: 0.4170976808 | R181: 0.4199063423 | S181: 0.4227150038 | T181: 0.4255236654 | U181: 0.4283323269 | V181: 0.4311409885 | W181: 0.43394965 | X181: 0.43524675 | Y181: 0.43654385 | Z181: 0.43784095 | AA181: 0.43913805 | AB181: 0.44043515 | AC181: 0.44173225 | AD181: 0.44302935 | AE181: 0.44432645 | AF181: 0.44562645 | AG181: 0.44692645 | AH181: 0.44822645 | AI181: 0.44952645 | AJ181: 0.45082645 | AK181: 0.45212645 | AL181: 0.45342645 | AM181: 0.45472645 | AN181: 0.45602645 | AO181: 0.45732645 | AP181: 0.45862645 | AQ181: 0.45992645 | AR181: 0.46122645 | AS181: 0.46252645 | AT181: 0.46382645 | AU181: 0.46512645 | AV181: 0.46642645
K182: TRG 6 - High | L182: 0.4030543731 | M182: 0.4058630346 | N182: 0.4086716962 | O182: 0.4086716962 | P182: 0.4086716962 | Q182: 0.4086716962 | R182: 0.4086716962 | S182: 0.4086716962 | T182: 0.4086716962 | U182: 0.4086716962 | V182: 0.4086716962 | W182: 0.4086716962 | X182: 0.4086716962 | Y182: 0.4086716962 | Z182: 0.4086716962 | AA182: 0.4086716962 | AB182: 0.4086716962 | AC182: 0.4086716962 | AD182: 0.4086716962 | AE182: 0.4086716962 | AF182: 0.4086716962 | AG182: 0.4086716962 | AH182: 0.4086716962 | AI182: 0.4086716962 | AJ182: 0.4086716962 | AK182: 0.4086716962 | AL182: 0.4086716962 | AM182: 0.4086716962 | AN182: 0.4086716962 | AO182: 0.4086716962 | AP182: 0.4086716962 | AQ182: 0.4086716962 | AR182: 0.4086716962 | AS182: 0.4086716962 | AT182: 0.4086716962 | AU182: 0.4086716962 | AV182: 0.4086716962
K183: TRG 7 - Low | L183: 0.3338992409 | M183: 0.3380887364 | N183: 0.3422782318 | O183: 0.3602782318 | P183: 0.3702782318 | Q183: 0.3782782318 | R183: 0.3862782318 | S183: 0.3942782318 | T183: 0.4017782318 | U183: 0.4092782318 | V183: 0.4167782318 | W183: 0.4242782318 | X183: 0.4300171649 | Y183: 0.4320171649 | Z183: 0.4340171649 | AA183: 0.4350171649 | AB183: 0.4360171649 | AC183: 0.4367671649 | AD183: 0.4375171649 | AE183: 0.4382671649 | AF183: 0.4390171649 | AG183: 0.4397671649 | AH183: 0.4405171649 | AI183: 0.4412671649 | AJ183: 0.4420171649 | AK183: 0.4427671649 | AL183: 0.4435171649 | AM183: 0.4440171649 | AN183: 0.4445171649 | AO183: 0.4450171649 | AP183: 0.4455171649 | AQ183: 0.4460171649 | AR183: 0.4465171649 | AS183: 0.4470171649 | AT183: 0.4475171649 | AU183: 0.4480171649 | AV183: 0.4485171649
K184: TRG 7 - Mid | L184: 0.3338992409 | M184: 0.3380887364 | N184: 0.3422782318 | O184: 0.3464677273 | P184: 0.3506572227 | Q184: 0.3548467182 | R184: 0.3590362136 | S184: 0.3632257091 | T184: 0.3674152045 | U184: 0.3716047 | V184: 0.3753993125 | W184: 0.379193925 | X184: 0.3829885375 | Y184: 0.38678315 | Z184: 0.3905777625 | AA184: 0.394372375 | AB184: 0.3981669875 | AC184: 0.4019616 | AD184: 0.4029616 | AE184: 0.4039616 | AF184: 0.4049616 | AG184: 0.4059616 | AH184: 0.4061416 | AI184: 0.4063216 | AJ184: 0.4065016 | AK184: 0.4066816 | AL184: 0.4068616 | AM184: 0.4070416 | AN184: 0.4072216 | AO184: 0.4074016 | AP184: 0.4075816 | AQ184: 0.4077616 | AR184: 0.4079416 | AS184: 0.4081216 | AT184: 0.4083016 | AU184: 0.4084816 | AV184: 0.4086616
K185: TRG 7 - High | L185: 0.3338992409 | M185: 0.3380887364 | N185: 0.3422782318 | O185: 0.3422782318 | P185: 0.3422782318 | Q185: 0.3422782318 | R185: 0.3422782318 | S185: 0.3422782318 | T185: 0.3422782318 | U185: 0.3422782318 | V185: 0.3422782318 | W185: 0.3422782318 | X185: 0.3422782318 | Y185: 0.3422782318 | Z185: 0.3422782318 | AA185: 0.3422782318 | AB185: 0.3422782318 | AC185: 0.3422782318 | AD185: 0.3422782318 | AE185: 0.3422782318 | AF185: 0.3422782318 | AG185: 0.3422782318 | AH185: 0.3422782318 | AI185: 0.3422782318 | AJ185: 0.3422782318 | AK185: 0.3422782318 | AL185: 0.3422782318 | AM185: 0.3422782318 | AN185: 0.3422782318 | AO185: 0.3422782318 | AP185: 0.3422782318 | AQ185: 0.3422782318 | AR185: 0.3422782318 | AS185: 0.3422782318 | AT185: 0.3422782318 | AU185: 0.3422782318 | AV185: 0.3422782318
K186: TRG 8 - Low | L186: 0.2608018167 | M186: 0.26577375 | N186: 0.2707456833 | O186: 0.2913706833 | P186: 0.3007456833 | Q186: 0.3094956833 | R186: 0.3176206833 | S186: 0.3257456833 | T186: 0.3332456833 | U186: 0.3419956833 | V186: 0.3489897276 | W186: 0.3554897276 | X186: 0.3604897276 | Y186: 0.3654897276 | Z186: 0.3679897276 | AA186: 0.3704897276 | AB186: 0.3729897276 | AC186: 0.3749897276 | AD186: 0.3769897276 | AE186: 0.3789897276 | AF186: 0.3809897276 | AG186: 0.3829897276 | AH186: 0.3839897276 | AI186: 0.3849897276 | AJ186: 0.3859897276 | AK186: 0.3869897276 | AL186: 0.3879897276 | AM186: 0.3884897276 | AN186: 0.3889897276 | AO186: 0.3894897276 | AP186: 0.3899897276 | AQ186: 0.3904897276 | AR186: 0.3909897276 | AS186: 0.3914897276 | AT186: 0.3919897276 | AU186: 0.3924897276 | AV186: 0.3929897276
K187: TRG 8 - Mid | L187: 0.2608018167 | M187: 0.26577375 | N187: 0.2707456833 | O187: 0.2757176167 | P187: 0.28068955 | Q187: 0.2856614833 | R187: 0.2906334167 | S187: 0.29560535 | T187: 0.29957825 | U187: 0.30355115 | V187: 0.30752405 | W187: 0.31149695 | X187: 0.31546985 | Y187: 0.31944275 | Z187: 0.32341565 | AA187: 0.32738855 | AB187: 0.32838855 | AC187: 0.32938855 | AD187: 0.33038855 | AE187: 0.33138855 | AF187: 0.33238855 | AG187: 0.33338855 | AH187: 0.33356855 | AI187: 0.33374855 | AJ187: 0.33392855 | AK187: 0.33410855 | AL187: 0.33428855 | AM187: 0.33446855 | AN187: 0.33464855 | AO187: 0.33482855 | AP187: 0.33500855 | AQ187: 0.33518855 | AR187: 0.33536855 | AS187: 0.33554855 | AT187: 0.33572855 | AU187: 0.33590855 | AV187: 0.33608855
K188: TRG 8 - High | L188: 0.2608018167 | M188: 0.26577375 | N188: 0.2707456833 | O188: 0.2707456833 | P188: 0.2707456833 | Q188: 0.2707456833 | R188: 0.2707456833 | S188: 0.2707456833 | T188: 0.2707456833 | U188: 0.2707456833 | V188: 0.2707456833 | W188: 0.2707456833 | X188: 0.2707456833 | Y188: 0.2707456833 | Z188: 0.2707456833 | AA188: 0.2707456833 | AB188: 0.2707456833 | AC188: 0.2707456833 | AD188: 0.2707456833 | AE188: 0.2707456833 | AF188: 0.2707456833 | AG188: 0.2707456833 | AH188: 0.2707456833 | AI188: 0.2707456833 | AJ188: 0.2707456833 | AK188: 0.2707456833 | AL188: 0.2707456833 | AM188: 0.2707456833 | AN188: 0.2707456833 | AO188: 0.2707456833 | AP188: 0.2707456833 | AQ188: 0.2707456833 | AR188: 0.2707456833 | AS188: 0.2707456833 | AT188: 0.2707456833 | AU188: 0.2707456833 | AV188: 0.2707456833
K189: TRG 9 - Low | L189: 0.1981602571 | M189: 0.2042571857 | N189: 0.2103541143 | O189: 0.227020781 | P189: 0.235770781 | Q189: 0.2441041143 | R189: 0.253270781 | S189: 0.2599374476 | T189: 0.2679622903 | U189: 0.2754622903 | V189: 0.2824622903 | W189: 0.2889622903 | X189: 0.2939622903 | Y189: 0.2969622903 | Z189: 0.2994622903 | AA189: 0.3019622903 | AB189: 0.3044622903 | AC189: 0.3064622903 | AD189: 0.3084622903 | AE189: 0.3104622903 | AF189: 0.3124622903 | AG189: 0.3144622903 | AH189: 0.3154622903 | AI189: 0.3164622903 | AJ189: 0.3174622903 | AK189: 0.3184622903 | AL189: 0.3194622903 | AM189: 0.3199622903 | AN189: 0.3204622903 | AO189: 0.3209622903 | AP189: 0.3214622903 | AQ189: 0.3219622903 | AR189: 0.3222122903 | AS189: 0.3224622903 | AT189: 0.3227122903 | AU189: 0.3229622903 | AV189: 0.3232122903
K190: TRG 9 - Mid | L190: 0.1981602571 | M190: 0.2042571857 | N190: 0.2103541143 | O190: 0.2164510429 | P190: 0.2225479714 | Q190: 0.2286449 | R190: 0.2327476375 | S190: 0.236850375 | T190: 0.2409531125 | U190: 0.24505585 | V190: 0.2491585875 | W190: 0.253261325 | X190: 0.2573640625 | Y190: 0.2614668 | Z190: 0.2624668 | AA190: 0.2634668 | AB190: 0.2644668 | AC190: 0.2654668 | AD190: 0.2664668 | AE190: 0.2674668 | AF190: 0.2684668 | AG190: 0.2694668 | AH190: 0.2696468 | AI190: 0.2698268 | AJ190: 0.2700068 | AK190: 0.2701868 | AL190: 0.2703668 | AM190: 0.2705468 | AN190: 0.2707268 | AO190: 0.2709068 | AP190: 0.2710868 | AQ190: 0.2712668 | AR190: 0.2714468 | AS190: 0.2716268 | AT190: 0.2718068 | AU190: 0.2719868 | AV190: 0.2721668
K191: TRG 9 - High | L191: 0.1981602571 | M191: 0.2042571857 | N191: 0.2103541143 | O191: 0.2103541143 | P191: 0.2103541143 | Q191: 0.2103541143 | R191: 0.2103541143 | S191: 0.2103541143 | T191: 0.2103541143 | U191: 0.2103541143 | V191: 0.2103541143 | W191: 0.2103541143 | X191: 0.2103541143 | Y191: 0.2103541143 | Z191: 0.2103541143 | AA191: 0.2103541143 | AB191: 0.2103541143 | AC191: 0.2103541143 | AD191: 0.2103541143 | AE191: 0.2103541143 | AF191: 0.2103541143 | AG191: 0.2103541143 | AH191: 0.2103541143 | AI191: 0.2103541143 | AJ191: 0.2103541143 | AK191: 0.2103541143 | AL191: 0.2103541143 | AM191: 0.2103541143 | AN191: 0.2103541143 | AO191: 0.2103541143 | AP191: 0.2103541143 | AQ191: 0.2103541143 | AR191: 0.2103541143 | AS191: 0.2103541143 | AT191: 0.2103541143 | AU191: 0.2103541143 | AV191: 0.2103541143
K192: TRG 10 - Low | L192: 0.12280647 | M192: 0.12852748 | N192: 0.13424849 | O192: 0.14549849 | P192: 0.15174849 | Q192: 0.15799849 | R192: 0.16432625 | S192: 0.16932625 | T192: 0.17432625 | U192: 0.17932625 | V192: 0.18432625 | W192: 0.18932625 | X192: 0.19132625 | Y192: 0.19332625 | Z192: 0.19532625 | AA192: 0.19732625 | AB192: 0.19932625 | AC192: 0.20032625 | AD192: 0.20132625 | AE192: 0.20232625 | AF192: 0.20332625 | AG192: 0.20432625 | AH192: 0.20482625 | AI192: 0.20532625 | AJ192: 0.20582625 | AK192: 0.20632625 | AL192: 0.20682625 | AM192: 0.20732625 | AN192: 0.20782625 | AO192: 0.20832625 | AP192: 0.20882625 | AQ192: 0.20932625 | AR192: 0.20982625 | AS192: 0.21032625 | AT192: 0.21082625 | AU192: 0.21132625 | AV192: 0.21182625
K193: TRG 10 - Mid | L193: 0.12280647 | M193: 0.12852748 | N193: 0.13424849 | O193: 0.1399695 | P193: 0.1430140937 | Q193: 0.1460586875 | R193: 0.1491032812 | S193: 0.152147875 | T193: 0.1551924687 | U193: 0.1582370625 | V193: 0.1612816562 | W193: 0.16432625 | X193: 0.16562625 | Y193: 0.16692625 | Z193: 0.16822625 | AA193: 0.16952625 | AB193: 0.17082625 | AC193: 0.17152625 | AD193: 0.17222625 | AE193: 0.17292625 | AF193: 0.17362625 | AG193: 0.17432625 | AH193: 0.17502625 | AI193: 0.17572625 | AJ193: 0.17642625 | AK193: 0.17712625 | AL193: 0.17782625 | AM193: 0.17852625 | AN193: 0.17922625 | AO193: 0.17992625 | AP193: 0.18062625 | AQ193: 0.18132625 | AR193: 0.18202625 | AS193: 0.18272625 | AT193: 0.18342625 | AU193: 0.18412625 | AV193: 0.18482625
K194: TRG 10 - High | L194: 0.12280647 | M194: 0.12852748 | N194: 0.13424849 | O194: 0.13424849 | P194: 0.13424849 | Q194: 0.13424849 | R194: 0.13424849 | S194: 0.13424849 | T194: 0.13424849 | U194: 0.13424849 | V194: 0.13424849 | W194: 0.13424849 | X194: 0.13424849 | Y194: 0.13424849 | Z194: 0.13424849 | AA194: 0.13424849 | AB194: 0.13424849 | AC194: 0.13424849 | AD194: 0.13424849 | AE194: 0.13424849 | AF194: 0.13424849 | AG194: 0.13424849 | AH194: 0.13424849 | AI194: 0.13424849 | AJ194: 0.13424849 | AK194: 0.13424849 | AL194: 0.13424849 | AM194: 0.13424849 | AN194: 0.13424849 | AO194: 0.13424849 | AP194: 0.13424849 | AQ194: 0.13424849 | AR194: 0.13424849 | AS194: 0.13424849 | AT194: 0.13424849 | AU194: 0.13424849 | AV194: 0.13424849
L196: 2014 | M196: 2015 | N196: 2016 | O196: 2017 | P196: 2018 | Q196: 2019 | R196: 2020 | S196: 2021 | T196: 2022 | U196: 2023 | V196: 2024 | W196: 2025 | X196: 2026 | Y196: 2027 | Z196: 2028 | AA196: 2029 | AB196: 2030 | AC196: 2031 | AD196: 2032 | AE196: 2033 | AF196: 2034 | AG196: 2035 | AH196: 2036 | AI196: 2037 | AJ196: 2038 | AK196: 2039 | AL196: 2040 | AM196: 2041 | AN196: 2042 | AO196: 2043 | AP196: 2044 | AQ196: 2045 | AR196: 2046 | AS196: 2047 | AT196: 2048 | AU196: 2049 | AV196: 2050
J197: Annual Energy Production (kWh/kW) | K197: TRG 1 - Low | L197: =(L165)*8760 -> 4481.340153 | M197: 4530.695911 | N197: 4575.320449 | O197: 4662.920449 | P197: 4750.520449 | Q197: 4816.220449 | R197: 4881.920449 | S197: 4934.480449 | T197: 4978.280449 | U197: 5022.080449 | V197: 5065.880449 | W197: 5109.680449 | X197: 5153.480449 | Y197: 5197.280449 | Z197: 5241.080449 | AA197: 5284.880449 | AB197: 5328.680449 | AC197: 5360.553948 | AD197: 5370.98866 | AE197: 5377.946897 | AF197: 5387.32526 | AG197: 5394.376533 | AH197: 5404.89392 | AI197: 5413.929306 | AJ197: 5421.764953 | AK197: 5428.599684 | AL197: 5434.546201 | AM197: 5440.906531 | AN197: 5446.342756 | AO197: 5450.69664 | AP197: 5453.716593 | AQ197: 5455.058507 | AR197: 5462.025015 | AS197: 5466.362404 | AT197: 5467.444045 | AU197: 5467.444045 | AV197: 5467.444045
K198: TRG 1 - Mid | L198: 4481.340153 | M198: 4530.695911 | N198: 4575.320449 | O198: 4615.158953 | P198: 4650.194762 | Q198: 4680.448236 | R198: 4710.914459 | S198: 4728.434459 | T198: 4745.954459 | U198: 4763.474459 | V198: 4780.994459 | W198: 4798.514459 | X198: 4816.034459 | Y198: 4833.554459 | Z198: 4851.074459 | AA198: 4868.594459 | AB198: 4886.114459 | AC198: 4901.444459 | AD198: 4916.774459 | AE198: 4932.104459 | AF198: 4947.434459 | AG198: 4962.764459 | AH198: 4978.094459 | AI198: 4993.424459 | AJ198: 5008.754459 | AK198: 5024.084459 | AL198: 5039.414459 | AM198: 5052.554459 | AN198: 5065.694459 | AO198: 5078.834459 | AP198: 5091.974459 | AQ198: 5105.114459 | AR198: 5118.254459 | AS198: 5131.394459 | AT198: 5144.534459 | AU198: 5157.674459 | AV198: 5170.814459
K199: TRG 1 - High | L199: 4481.340153 | M199: 4530.695911 | N199: 4575.320449 | O199: 4575.320449 | P199: 4575.320449 | Q199: 4575.320449 | R199: 4575.320449 | S199: 4575.320449 | T199: 4575.320449 | U199: 4575.320449 | V199: 4575.320449 | W199: 4575.320449 | X199: 4575.320449 | Y199: 4575.320449 | Z199: 4575.320449 | AA199: 4575.320449 | AB199: 4575.320449 | AC199: 4575.320449 | AD199: 4575.320449 | AE199: 4575.320449 | AF199: 4575.320449 | AG199: 4575.320449 | AH199: 4575.320449 | AI199: 4575.320449 | AJ199: 4575.320449 | AK199: 4575.320449 | AL199: 4575.320449 | AM199: 4575.320449 | AN199: 4575.320449 | AO199: 4575.320449 | AP199: 4575.320449 | AQ199: 4575.320449 | AR199: 4575.320449 | AS199: 4575.320449 | AT199: 4575.320449 | AU199: 4575.320449 | AV199: 4575.320449
K200: TRG 2 - Low | L200: 4304.645166 | M200: 4392.245166 | N200: 4427.285166 | O200: 4514.885166 | P200: 4602.485166 | Q200: 4668.185166 | R200: 4733.885166 | S200: 4760.165166 | T200: 4786.445166 | U200: 4812.725166 | V200: 4839.005166 | W200: 4865.285166 | X200: 4891.565166 | Y200: 4917.845166 | Z200: 4944.125166 | AA200: 4970.405166 | AB200: 4996.685166 | AC200: 5009.825166 | AD200: 5022.965166 | AE200: 5036.105166 | AF200: 5049.245166 | AG200: 5062.385166 | AH200: 5075.525166 | AI200: 5088.665166 | AJ200: 5101.805166 | AK200: 5114.945166 | AL200: 5128.085166 | AM200: 5134.655166 | AN200: 5141.225166 | AO200: 5147.795166 | AP200: 5154.365166 | AQ200: 5160.935166 | AR200: 5167.505166 | AS200: 5174.075166 | AT200: 5180.645166 | AU200: 5187.215166 | AV200: 5193.785166
K201: TRG 2 - Mid | L201: 4304.645166 | M201: 4348.445166 | N201: 4392.245166 | O201: 4436.045166 | P201: 4479.845166 | Q201: 4523.645166 | R201: 4567.445166 | S201: 4582.775166 | T201: 4598.105166 | U201: 4613.435166 | V201: 4628.765166 | W201: 4644.095166 | X201: 4659.425166 | Y201: 4674.755166 | Z201: 4690.085166 | AA201: 4705.415166 | AB201: 4720.745166 | AC201: 4733.885166 | AD201: 4747.025166 | AE201: 4760.165166 | AF201: 4773.305166 | AG201: 4786.445166 | AH201: 4799.585166 | AI201: 4812.725166 | AJ201: 4825.865166 | AK201: 4839.005166 | AL201: 4852.145166 | AM201: 4860.905166 | AN201: 4869.665166 | AO201: 4878.425166 | AP201: 4887.185166 | AQ201: 4895.945166 | AR201: 4904.705166 | AS201: 4913.465166 | AT201: 4922.225166 | AU201: 4930.985166 | AV201: 4939.745166
K202: TRG 2 - High | L202: 4304.645166 | M202: 4392.245166 | N202: 4427.285166 | O202: 4427.285166 | P202: 4427.285166 | Q202: 4427.285166 | R202: 4427.285166 | S202: 4427.285166 | T202: 4427.285166 | U202: 4427.285166 | V202: 4427.285166 | W202: 4427.285166 | X202: 4427.285166 | Y202: 4427.285166 | Z202: 4427.285166 | AA202: 4427.285166 | AB202: 4427.285166 | AC202: 4427.285166 | AD202: 4427.285166 | AE202: 4427.285166 | AF202: 4427.285166 | AG202: 4427.285166 | AH202: 4427.285166 | AI202: 4427.285166 | AJ202: 4427.285166 | AK202: 4427.285166 | AL202: 4427.285166 | AM202: 4427.285166 | AN202: 4427.285166 | AO202: 4427.285166 | AP202: 4427.285166 | AQ202: 4427.285166 | AR202: 4427.285166 | AS202: 4427.285166 | AT202: 4427.285166 | AU202: 4427.285166 | AV202: 4427.285166
K203: TRG 3 - Low | L203: 4200.894792 | M203: 4266.594792 | N203: 4297.254792 | O203: 4362.954792 | P203: 4428.654792 | Q203: 4494.354792 | R203: 4560.054792 | S203: 4584.144792 | T203: 4608.234792 | U203: 4632.324792 | V203: 4656.414792 | W203: 4680.504792 | X203: 4704.594792 | Y203: 4728.684792 | Z203: 4752.774792 | AA203: 4776.864792 | AB203: 4800.954792 | AC203: 4814.094792 | AD203: 4827.234792 | AE203: 4840.374792 | AF203: 4853.514792 | AG203: 4866.654792 | AH203: 4879.794792 | AI203: 4892.934792 | AJ203: 4906.074792 | AK203: 4919.214792 | AL203: 4932.354792 | AM203: 4941.114792 | AN203: 4949.874792 | AO203: 4958.634792 | AP203: 4967.394792 | AQ203: 4976.154792 | AR203: 4984.914792 | AS203: =(AS171)*8760 -> 4993.674792 | AT203: 5002.434792 | AU203: 5011.194792 | AV203: 5019.954792
K204: TRG 3 - Mid | L204: =(L172)*8760 -> 4200.894792 | M204: 4235.934792 | N204: 4270.974792 | O204: 4306.014792 | P204: 4341.054792 | Q204: 4376.094792 | R204: 4411.134792 | S204: 4426.464792 | T204: 4441.794792 | U204: 4457.124792 | V204: 4472.454792 | W204: 4487.784792 | X204: 4503.114792 | Y204: 4518.444792 | Z204: 4533.774792 | AA204: 4549.104792 | AB204: 4564.434792 | AC204: 4577.574792 | AD204: 4590.714792 | AE204: 4603.854792 | AF204: 4616.994792 | AG204: 4630.134792 | AH204: 4643.274792 | AI204: 4656.414792 | AJ204: 4669.554792 | AK204: 4682.694792 | AL204: 4695.834792 | AM204: 4704.594792 | AN204: 4713.354792 | AO204: 4722.114792 | AP204: 4730.874792 | AQ204: 4739.634792 | AR204: 4748.394792 | AS204: 4757.154792 | AT204: 4765.914792 | AU204: 4774.674792 | AV204: 4783.434792
K205: TRG 3 - High | L205: 4200.894792 | M205: 4266.594792 | N205: 4297.254792 | O205: 4297.254792 | P205: 4297.254792 | Q205: 4297.254792 | R205: 4297.254792 | S205: 4297.254792 | T205: 4297.254792 | U205: 4297.254792 | V205: 4297.254792 | W205: 4297.254792 | X205: 4297.254792 | Y205: 4297.254792 | Z205: 4297.254792 | AA205: 4297.254792 | AB205: 4297.254792 | AC205: 4297.254792 | AD205: 4297.254792 | AE205: 4297.254792 | AF205: 4297.254792 | AG205: 4297.254792 | AH205: 4297.254792 | AI205: 4297.254792 | AJ205: 4297.254792 | AK205: 4297.254792 | AL205: 4297.254792 | AM205: 4297.254792 | AN205: 4297.254792 | AO205: 4297.254792 | AP205: 4297.254792 | AQ205: 4297.254792 | AR205: 4297.254792 | AS205: 4297.254792 | AT205: 4297.254792 | AU205: 4297.254792 | AV205: 4297.254792
K206: TRG 4 - Low | L206: 4087.464618 | M206: 4175.064618 | N206: 4196.964618 | O206: 4262.664618 | P206: 4328.364618 | Q206: 4394.064618 | R206: 4459.764618 | S206: 4503.564618 | T206: 4547.364618 | U206: 4591.164618 | V206: 4608.684618 | W206: 4626.204618 | X206: 4643.724618 | Y206: 4661.244618 | Z206: 4678.764618 | AA206: 4696.284618 | AB206: 4713.804618 | AC206: 4726.944618 | AD206: 4740.084618 | AE206: 4753.224618 | AF206: 4766.364618 | AG206: 4779.504618 | AH206: 4792.644618 | AI206: 4805.784618 | AJ206: 4818.924618 | AK206: 4832.064618 | AL206: 4845.204618 | AM206: 4853.964618 | AN206: 4862.724618 | AO206: 4871.484618 | AP206: 4880.244618 | AQ206: 4889.004618 | AR206: 4897.764618 | AS206: 4906.524618 | AT206: 4915.284618 | AU206: 4924.044618 | AV206: 4932.804618
K207: TRG 4 - Mid | L207: 4087.464618 | M207: 4109.364618 | N207: 4131.264618 | O207: 4153.164618 | P207: 4175.064618 | Q207: 4196.964618 | R207: 4218.864618 | S207: 4234.194618 | T207: 4249.524618 | U207: 4264.854618 | V207: 4280.184618 | W207: 4295.514618 | X207: 4310.844618 | Y207: 4326.174618 | Z207: 4341.504618 | AA207: 4356.834618 | AB207: 4372.164618 | AC207: 4385.304618 | AD207: 4398.444618 | AE207: 4411.584618 | AF207: 4424.724618 | AG207: 4437.864618 | AH207: 4451.004618 | AI207: 4464.144618 | AJ207: 4477.284618 | AK207: 4490.424618 | AL207: 4503.564618 | AM207: 4512.324618 | AN207: 4521.084618 | AO207: 4529.844618 | AP207: 4538.604618 | AQ207: 4547.364618 | AR207: 4556.124618 | AS207: 4564.884618 | AT207: 4573.644618 | AU207: 4582.404618 | AV207: 4591.164618
K208: TRG 4 - High | L208: 4087.464618 | M208: 4175.064618 | N208: 4196.964618 | O208: 4196.964618 | P208: 4196.964618 | Q208: 4196.964618 | R208: 4196.964618 | S208: 4196.964618 | T208: 4196.964618 | U208: 4196.964618 | V208: 4196.964618 | W208: 4196.964618 | X208: 4196.964618 | Y208: 4196.964618 | Z208: 4196.964618 | AA208: 4196.964618 | AB208: 4196.964618 | AC208: 4196.964618 | AD208: 4196.964618 | AE208: 4196.964618 | AF208: 4196.964618 | AG208: 4196.964618 | AH208: 4196.964618 | AI208: 4196.964618 | AJ208: 4196.964618 | AK208: 4196.964618 | AL208: 4196.964618 | AM208: 4196.964618 | AN208: 4196.964618 | AO208: 4196.964618 | AP208: 4196.964618 | AQ208: 4196.964618 | AR208: 4196.964618 | AS208: 4196.964618 | AT208: 4196.964618 | AU208: 4196.964618 | AV208: 4196.964618
K209: TRG 5 - Low | L209: 3944.53602 | M209: 3966.43602 | N209: 3988.33602 | O209: 4049.65602 | P209: 4110.97602 | Q209: 4172.29602 | R209: 4233.61602 | S209: 4277.41602 | T209: 4321.21602 | U209: 4365.01602 | V209: 4408.81602 | W209: 4452.61602 | X209: 4496.41602 | Y209: 4540.21602 | Z209: 4584.01602 | AA209: 4627.81602 | AB209: 4671.61602 | AC209: 4684.75602 | AD209: 4697.89602 | AE209: 4711.03602 | AF209: 4724.17602 | AG209: 4737.31602 | AH209: 4750.45602 | AI209: 4763.59602 | AJ209: 4776.73602 | AK209: 4789.87602 | AL209: 4803.01602 | AM209: 4811.77602 | AN209: 4820.53602 | AO209: 4829.29602 | AP209: 4838.05602 | AQ209: 4846.81602 | AR209: 4855.57602 | AS209: 4864.33602 | AT209: 4873.09602 | AU209: 4881.85602 | AV209: 4890.61602
K210: TRG 5 - Mid | L210: 3944.53602 | M210: 3966.43602 | N210: 3988.33602 | O210: 4010.23602 | P210: 4032.13602 | Q210: 4054.03602 | R210: 4075.93602 | S210: 4091.26602 | T210: 4106.59602 | U210: 4121.92602 | V210: 4137.25602 | W210: 4152.58602 | X210: 4167.91602 | Y210: 4183.24602 | Z210: 4198.57602 | AA210: 4213.90602 | AB210: 4229.23602 | AC210: 4242.37602 | AD210: 4255.51602 | AE210: 4268.65602 | AF210: 4281.79602 | AG210: 4294.93602 | AH210: 4308.07602 | AI210: 4321.21602 | AJ210: 4334.35602 | AK210: 4347.49602 | AL210: 4360.63602 | AM210: 4369.39602 | AN210: 4378.15602 | AO210: 4386.91602 | AP210: 4395.67602 | AQ210: 4404.43602 | AR210: 4413.19602 | AS210: 4421.95602 | AT210: 4430.71602 | AU210: 4439.47602 | AV210: 4448.23602
K211: TRG 5 - High | L211: 3944.53602 | M211: 3966.43602 | N211: 3988.33602 | O211: 3988.33602 | P211: 3988.33602 | Q211: 3988.33602 | R211: 3988.33602 | S211: 3988.33602 | T211: 3988.33602 | U211: 3988.33602 | V211: 3988.33602 | W211: 3988.33602 | X211: 3988.33602 | Y211: 3988.33602 | Z211: 3988.33602 | AA211: 3988.33602 | AB211: 3988.33602 | AC211: 3988.33602 | AD211: 3988.33602 | AE211: 3988.33602 | AF211: 3988.33602 | AG211: 3988.33602 | AH211: 3988.33602 | AI211: 3988.33602 | AJ211: =(AJ179)*8760 -> 3988.33602 | AK211: 3988.33602 | AL211: 3988.33602 | AM211: 3988.33602 | AN211: 3988.33602 | AO211: 3988.33602 | AP211: 3988.33602 | AQ211: 3988.33602 | AR211: 3988.33602 | AS211: 3988.33602 | AT211: 3988.33602 | AU211: 3988.33602 | AV211: 3988.33602
K212: TRG 6 - Low | L212: =(L180)*8760 -> 3530.756308 | M212: 3555.360183 | N212: 3579.964058 | O212: 3725.964058 | P212: 3835.464058 | Q212: 3926.714058 | R212: 3999.714058 | S212: 4070.889058 | T212: 4140.239058 | U212: 4207.764058 | V212: 4273.464058 | W212: 4337.339058 | X212: 4399.389058 | Y212: 4459.614058 | Z212: 4476.750716 | AA212: 4494.270716 | AB212: 4500.840716 | AC212: 4507.410716 | AD212: 4513.980716 | AE212: 4520.550716 | AF212: 4527.120716 | AG212: 4533.690716 | AH212: 4538.070716 | AI212: 4542.450716 | AJ212: 4546.830716 | AK212: 4551.210716 | AL212: 4555.590716 | AM212: 4559.970716 | AN212: 4564.350716 | AO212: 4568.730716 | AP212: 4573.110716 | AQ212: 4577.490716 | AR212: 4581.870716 | AS212: 4586.250716 | AT212: 4590.630716 | AU212: 4595.010716 | AV212: 4599.390716
K213: TRG 6 - Mid | L213: 3530.756308 | M213: 3555.360183 | N213: 3579.964058 | O213: 3604.567933 | P213: 3629.171808 | Q213: 3653.775684 | R213: 3678.379559 | S213: 3702.983434 | T213: 3727.587309 | U213: 3752.191184 | V213: 3776.795059 | W213: 3801.398934 | X213: 3812.76153 | Y213: 3824.124126 | Z213: 3835.486722 | AA213: 3846.849318 | AB213: 3858.211914 | AC213: 3869.57451 | AD213: 3880.937106 | AE213: 3892.299702 | AF213: 3903.687702 | AG213: 3915.075702 | AH213: 3926.463702 | AI213: 3937.851702 | AJ213: 3949.239702 | AK213: 3960.627702 | AL213: 3972.015702 | AM213: 3983.403702 | AN213: 3994.791702 | AO213: 4006.179702 | AP213: 4017.567702 | AQ213: 4028.955702 | AR213: 4040.343702 | AS213: 4051.731702 | AT213: 4063.119702 | AU213: 4074.507702 | AV213: 4085.895702
K214: TRG 6 - High | L214: 3530.756308 | M214: 3555.360183 | N214: 3579.964058 | O214: 3579.964058 | P214: 3579.964058 | Q214: 3579.964058 | R214: 3579.964058 | S214: 3579.964058 | T214: 3579.964058 | U214: 3579.964058 | V214: 3579.964058 | W214: 3579.964058 | X214: 3579.964058 | Y214: 3579.964058 | Z214: 3579.964058 | AA214: 3579.964058 | AB214: 3579.964058 | AC214: 3579.964058 | AD214: 3579.964058 | AE214: 3579.964058 | AF214: 3579.964058 | AG214: 3579.964058 | AH214: 3579.964058 | AI214: 3579.964058 | AJ214: 3579.964058 | AK214: 3579.964058 | AL214: 3579.964058 | AM214: 3579.964058 | AN214: 3579.964058 | AO214: 3579.964058 | AP214: 3579.964058 | AQ214: 3579.964058 | AR214: 3579.964058 | AS214: 3579.964058 | AT214: 3579.964058 | AU214: 3579.964058 | AV214: 3579.964058
K215: TRG 7 - Low | L215: 2924.95735 | M215: 2961.657331 | N215: 2998.357311 | O215: 3156.037311 | P215: 3243.637311 | Q215: 3313.717311 | R215: 3383.797311 | S215: 3453.877311 | T215: 3519.577311 | U215: 3585.277311 | V215: 3650.977311 | W215: 3716.677311 | X215: 3766.950365 | Y215: 3784.470365 | Z215: 3801.990365 | AA215: 3810.750365 | AB215: 3819.510365 | AC215: 3826.080365 | AD215: 3832.650365 | AE215: 3839.220365 | AF215: 3845.790365 | AG215: 3852.360365 | AH215: 3858.930365 | AI215: 3865.500365 | AJ215: 3872.070365 | AK215: 3878.640365 | AL215: 3885.210365 | AM215: 3889.590365 | AN215: 3893.970365 | AO215: 3898.350365 | AP215: 3902.730365 | AQ215: 3907.110365 | AR215: 3911.490365 | AS215: 3915.870365 | AT215: 3920.250365 | AU215: 3924.630365 | AV215: 3929.010365
K216: TRG 7 - Mid | L216: 2924.95735 | M216: 2961.657331 | N216: 2998.357311 | O216: 3035.057291 | P216: 3071.757271 | Q216: 3108.457251 | R216: 3145.157231 | S216: 3181.857212 | T216: 3218.557192 | U216: 3255.257172 | V216: 3288.497978 | W216: 3321.738783 | X216: 3354.979589 | Y216: 3388.220394 | Z216: 3421.4612 | AA216: 3454.702005 | AB216: 3487.942811 | AC216: 3521.183616 | AD216: 3529.943616 | AE216: 3538.703616 | AF216: 3547.463616 | AG216: 3556.223616 | AH216: 3557.800416 | AI216: 3559.377216 | AJ216: 3560.954016 | AK216: 3562.530816 | AL216: 3564.107616 | AM216: 3565.684416 | AN216: 3567.261216 | AO216: 3568.838016 | AP216: 3570.414816 | AQ216: 3571.991616 | AR216: 3573.568416 | AS216: 3575.145216 | AT216: 3576.722016 | AU216: 3578.298816 | AV216: 3579.875616
K217: TRG 7 - High | L217: 2924.95735 | M217: 2961.657331 | N217: 2998.357311 | O217: 2998.357311 | P217: 2998.357311 | Q217: 2998.357311 | R217: 2998.357311 | S217: 2998.357311 | T217: 2998.357311 | U217: 2998.357311 | V217: 2998.357311 | W217: 2998.357311 | X217: 2998.357311 | Y217: 2998.357311 | Z217: 2998.357311 | AA217: 2998.357311 | AB217: 2998.357311 | AC217: 2998.357311 | AD217: 2998.357311 | AE217: 2998.357311 | AF217: 2998.357311 | AG217: 2998.357311 | AH217: 2998.357311 | AI217: 2998.357311 | AJ217: 2998.357311 | AK217: 2998.357311 | AL217: 2998.357311 | AM217: 2998.357311 | AN217: 2998.357311 | AO217: 2998.357311 | AP217: 2998.357311 | AQ217: 2998.357311 | AR217: 2998.357311 | AS217: 2998.357311 | AT217: 2998.357311 | AU217: 2998.357311 | AV217: 2998.357311
K218: TRG 8 - Low | L218: 2284.623914 | M218: 2328.17805 | N218: 2371.732186 | O218: 2552.407186 | P218: 2634.532186 | Q218: 2711.182186 | R218: 2782.357186 | S218: 2853.532186 | T218: 2919.232186 | U218: 2995.882186 | V218: 3057.150014 | W218: 3114.090014 | X218: 3157.890014 | Y218: 3201.690014 | Z218: 3223.590014 | AA218: 3245.490014 | AB218: 3267.390014 | AC218: 3284.910014 | AD218: 3302.430014 | AE218: 3319.950014 | AF218: 3337.470014 | AG218: 3354.990014 | AH218: 3363.750014 | AI218: 3372.510014 | AJ218: 3381.270014 | AK218: 3390.030014 | AL218: 3398.790014 | AM218: 3403.170014 | AN218: 3407.550014 | AO218: 3411.930014 | AP218: 3416.310014 | AQ218: 3420.690014 | AR218: 3425.070014 | AS218: 3429.450014 | AT218: 3433.830014 | AU218: 3438.210014 | AV218: 3442.590014
K219: TRG 8 - Mid | L219: 2284.623914 | M219: 2328.17805 | N219: 2371.732186 | O219: 2415.286322 | P219: 2458.840458 | Q219: 2502.394594 | R219: 2545.94873 | S219: 2589.502866 | T219: 2624.30547 | U219: 2659.108074 | V219: 2693.910678 | W219: 2728.713282 | X219: 2763.515886 | Y219: 2798.31849 | Z219: 2833.121094 | AA219: 2867.923698 | AB219: 2876.683698 | AC219: 2885.443698 | AD219: 2894.203698 | AE219: 2902.963698 | AF219: 2911.723698 | AG219: 2920.483698 | AH219: 2922.060498 | AI219: 2923.637298 | AJ219: =(AJ187)*8760 -> 2925.214098 | AK219: 2926.790898 | AL219: 2928.367698 | AM219: 2929.944498 | AN219: 2931.521298 | AO219: 2933.098098 | AP219: 2934.674898 | AQ219: 2936.251698 | AR219: 2937.828498 | AS219: 2939.405298 | AT219: 2940.982098 | AU219: 2942.558898 | AV219: 2944.135698
K220: TRG 8 - High | L220: =(L188)*8760 -> 2284.623914 | M220: 2328.17805 | N220: 2371.732186 | O220: 2371.732186 | P220: 2371.732186 | Q220: 2371.732186 | R220: 2371.732186 | S220: 2371.732186 | T220: 2371.732186 | U220: 2371.732186 | V220: 2371.732186 | W220: 2371.732186 | X220: 2371.732186 | Y220: 2371.732186 | Z220: 2371.732186 | AA220: 2371.732186 | AB220: 2371.732186 | AC220: 2371.732186 | AD220: 2371.732186 | AE220: 2371.732186 | AF220: 2371.732186 | AG220: 2371.732186 | AH220: 2371.732186 | AI220: 2371.732186 | AJ220: 2371.732186 | AK220: 2371.732186 | AL220: 2371.732186 | AM220: 2371.732186 | AN220: 2371.732186 | AO220: 2371.732186 | AP220: 2371.732186 | AQ220: 2371.732186 | AR220: 2371.732186 | AS220: 2371.732186 | AT220: 2371.732186 | AU220: 2371.732186 | AV220: 2371.732186
K221: TRG 9 - Low | L221: 1735.883853 | M221: 1789.292947 | N221: 1842.702041 | O221: 1988.702041 | P221: 2065.352041 | Q221: 2138.352041 | R221: 2218.652041 | S221: 2277.052041 | T221: 2347.349663 | U221: 2413.049663 | V221: 2474.369663 | W221: 2531.309663 | X221: 2575.109663 | Y221: 2601.389663 | Z221: 2623.289663 | AA221: 2645.189663 | AB221: 2667.089663 | AC221: 2684.609663 | AD221: 2702.129663 | AE221: 2719.649663 | AF221: 2737.169663 | AG221: 2754.689663 | AH221: 2763.449663 | AI221: 2772.209663 | AJ221: 2780.969663 | AK221: 2789.729663 | AL221: 2798.489663 | AM221: 2802.869663 | AN221: 2807.249663 | AO221: 2811.629663 | AP221: 2816.009663 | AQ221: 2820.389663 | AR221: 2822.579663 | AS221: 2824.769663 | AT221: 2826.959663 | AU221: 2829.149663 | AV221: 2831.339663
K222: TRG 9 - Mid | L222: 1735.883853 | M222: 1789.292947 | N222: 1842.702041 | O222: 1896.111135 | P222: 1949.52023 | Q222: 2002.929324 | R222: 2038.869305 | S222: 2074.809285 | T222: 2110.749266 | U222: 2146.689246 | V222: 2182.629227 | W222: 2218.569207 | X222: 2254.509188 | Y222: 2290.449168 | Z222: 2299.209168 | AA222: 2307.969168 | AB222: 2316.729168 | AC222: 2325.489168 | AD222: 2334.249168 | AE222: 2343.009168 | AF222: 2351.769168 | AG222: 2360.529168 | AH222: 2362.105968 | AI222: 2363.682768 | AJ222: 2365.259568 | AK222: 2366.836368 | AL222: 2368.413168 | AM222: 2369.989968 | AN222: 2371.566768 | AO222: 2373.143568 | AP222: 2374.720368 | AQ222: 2376.297168 | AR222: 2377.873968 | AS222: 2379.450768 | AT222: 2381.027568 | AU222: 2382.604368 | AV222: 2384.181168
K223: TRG 9 - High | L223: 1735.883853 | M223: 1789.292947 | N223: 1842.702041 | O223: 1842.702041 | P223: 1842.702041 | Q223: 1842.702041 | R223: 1842.702041 | S223: 1842.702041 | T223: 1842.702041 | U223: 1842.702041 | V223: 1842.702041 | W223: 1842.702041 | X223: 1842.702041 | Y223: 1842.702041 | Z223: 1842.702041 | AA223: 1842.702041 | AB223: 1842.702041 | AC223: 1842.702041 | AD223: 1842.702041 | AE223: 1842.702041 | AF223: 1842.702041 | AG223: 1842.702041 | AH223: 1842.702041 | AI223: 1842.702041 | AJ223: 1842.702041 | AK223: 1842.702041 | AL223: 1842.702041 | AM223: 1842.702041 | AN223: 1842.702041 | AO223: 1842.702041 | AP223: 1842.702041 | AQ223: 1842.702041 | AR223: 1842.702041 | AS223: 1842.702041 | AT223: 1842.702041 | AU223: 1842.702041 | AV223: 1842.702041
... 270 more rows

Sheet Offshore Wind
A1: Offshore Wind Inputs
T3: Inputs
J4: Take me to: | T4: Calculated
B10: X | G10: Current Costs
H12: Techno-Economic Cost and Performance Parameters | J12: Net Capacity Factor (%) | K12: TRG 1 - shallow | L12: 0.4742589507 | O12: Basis Year: | Q12: 2014
K13: TRG 2 - shallow | L13: 0.4348072162
K14: TRG 3 - shallow | L14: 0.3974024451 | O14: Offshore Wind Techno-Resource Groups (TRG)
K15: TRG 4 - shallow | L15: 0.3375478885 | Q15: Weighted | S15: Available | T15: Available
K16: TRG 5 - mid-depth | L16: 0.4695454636 | Q16: Average | S16: Capacity | T16: Generation
K17: TRG 6 - mid-depth | L17: 0.4414415648 | Q17: Wind Speed (m/s) | S17: (GW) | T17: (GWh)
K18: TRG 7 - mid-depth | L18: 0.4206148437 | O18: Offshore shallow TRG1 | Q18: 9.1 | S18: 11 | T18: 46000
K19: TRG 8 - deep | L19: 0.4943628499 | O19: Offshore shallow TRG2 | Q19: 8.5 | S19: 61 | T19: 231000
K20: TRG 9 - deep | L20: 0.4697377137 | O20: Offshore shallow TRG3 | Q20: 8 | S20: 191 | T20: 674000
K21: TRG 10 - deep | L21: 0.4358787639 | O21: Offshore shallow TRG4 | Q21: 7.3 | S21: 165 | T21: 500000
O22: Offshore mid TRG5 | Q22: 9.1 | S22: 48 | T22: 197000
J23: Annual Energy Production (kWh/kW) | K23: TRG 1 - shallow | L23: =(L12)*8760 -> 4154.508408 | O23: Offshore mid TRG6 | Q23: 8.6 | S23: 87 | T23: 338000
K24: TRG 2 - shallow | L24: =(L13)*8760 -> 3808.911214 | O24: Offshore mid TRG7 | Q24: 8.4 | S24: 181 | T24: 661000
K25: TRG 3 - shallow | L25: 3481.245419 | O25: Offshore deep TRG8 | Q25: 9.5 | S25: 82 | T25: 355000
K26: TRG 4 - shallow | L26: 2956.919503 | O26: Offshore deep TRG9 | Q26: 9 | S26: 184 | T26: 756000
K27: TRG 5 - mid-depth | L27: 4113.218261 | O27: Offshore deep TRG10 | Q27: 8.6 | S27: 549 | T27: 2078000
K28: TRG 6 - mid-depth | L28: 3867.028108
K29: TRG 7 - mid-depth | L29: 3684.586031 | O29: Financial Assumptions:
K30: TRG 8 - deep | L30: 4330.618565 | O30: Inflation Rate | S30: 0.025
K31: TRG 9 - deep | L31: 4114.902372 | O31: Economic Lifetime (Years) | S31: 20
K32: TRG 10 - deep | L32: 3818.297972 | O32: Interest Rate - Nominal | S32: 0.08
O33: Calculated Interest Rate - Real | S33: =(1+S32)/(1+S30)-1 -> 0.05365853659
J34: CAPEX ($/kW) | K34: TRG 1 - shallow | L34: =$S$42 * (L56 + L102) -> 5857.747242 | O34: Interest During Construction - Nominal | S34: 0.08
K35: TRG 2 - shallow | L35: =$S$42 * (L57 + L103) -> 5857.747242 | O35: Rate of Return on Equity - Nominal | S35: 0.13
K36: TRG 3 - shallow | L36: =$S$42 * (L58 + L104) -> 5857.747242 | O36: Calculated Rate of Return on Equity - Real | S36: =(1+S35)/(1+S30) - 1 -> 0.1024390244
K37: TRG 4 - shallow | L37: 5857.747242 | O37: Debt Fraction | S37: 0.6
K38: TRG 5 - mid-depth | L38: 6441.434399 | O38: Tax Rate (Federal and State) | S38: 0.4
K39: TRG 6 - mid-depth | L39: 6441.434399 | O39: WACC - Nominal | S39: =IF(S38>0,S37*S32*(1-S38)+(1-S37)*S35,S37*S32+(1-S37)*S35) -> 0.0808
K40: TRG 7 - mid-depth | L40: 6441.434399 | O40: WACC - Real | S40: =((1+((1-S37)*((1+S36)*(1+S30)-1)) + (S37*((1+S33)*(1+S30)-1)*(1-S38))) / (1+S30)) - 1 -> 0.05443902439
K41: TRG 8 - deep | L41: 7496.355224 | O41: Depreciation Period | S41: 5
K42: TRG 9 - deep | L42: 7496.355224 | O42: Construction Finance Factor | S42: =SUMPRODUCT(P51:P53,Q51:Q53) -> 1.038902274
K43: TRG 10 - deep | L43: 7496.355224 | O43: Present Value of Depreciation | S43: =SUMPRODUCT(O56:T56,O58:T58) -> 0.8097434573
O44: Project Finance Factor | S44: =(1 - S38 * S43) / (1 - S38) -> 1.126837695
J45: Construction Financing Cost ($/kW) | K45: TRG 1 - shallow | L45: =(L56+L102)*($S$42-1) -> 219.3466076 | O45: Capital Recovery Factor (CRF) - Nominal | S45: =S39 / (1 - (1 / (1 + S39)^S31)) -> 0.1024593157
K46: TRG 2 - shallow | L46: =(L57+L103)*($S$42-1) -> 219.3466076 | O46: Capital Recovery Factor (CRF) - Real | S46: =S40 / (1 - (1 / (1 + S40)^S31)) -> 0.08329029943
K47: TRG 3 - shallow | L47: =(L58+L104)*($S$42-1) -> 219.3466076
K48: TRG 4 - shallow | L48: 219.3466076 | O48: Construction Duration yrs | Q48: 3
K49: TRG 5 - mid-depth | L49: 241.2030982 | O49: Year | P49: Capital | Q49: Accumulated
K50: TRG 6 - mid-depth | L50: 241.2030982 | O50: Index | P50: Fraction | Q50: Interest
K51: TRG 7 - mid-depth | L51: 241.2030982 | O51: 0 | P51: 0.8 | Q51: =1+(1-S38)*((1+S34)^(O51+0.5)-1) -> 1.023538291
K52: TRG 8 - deep | L52: 280.705196 | O52: 1 | P52: 0.1 | Q52: =1+(1-S38)*((1+S34)^(O52+0.5)-1) -> 1.073421354
K53: TRG 9 - deep | L53: 280.705196 | O53: 2 | P53: 0.1 | Q53: =1+(1-S38)*((1+S34)^(O53+0.5)-1) -> 1.127295062
K54: TRG 10 - deep | L54: 280.705196
N55: MACRS yr | O55: 1 | P55: 2 | Q55: 3 | R55: 4 | S55: 5 | T55: 6
J56: Overnight Capital Cost (OCC) ($/kW) | K56: TRG 1 - shallow | L56: 5391.512634 | N56: Depreciation | O56: 0.2 | P56: 0.32 | Q56: 0.192 | R56: 0.1152 | S56: 0.1152 | T56: 0.0576
K57: TRG 2 - shallow | L57: 5391.512634 | N57: Fraction
K58: TRG 3 - shallow | L58: 5391.512634 | N58: Depreciation | O58: =1/((1+S40)*(1+S30))^O55 -> 0.9252405625 | P58: =1/((1+S40)*(1+S30))^P55 -> 0.8560700986 | Q58: =1/((1+S40)*(1+S30))^Q55 -> 0.7920707796 | R58: =1/((1+S40)*(1+S30))^R55 -> 0.7328560137 | S58: =1/((1+S40)*(1+S30))^S55 -> 0.6780681104 | T58: =1/((1+S40)*(1+S30))^T55 -> 0.6273761199
K59: TRG 4 - shallow | L59: 5391.512634 | N59: Factor
K60: TRG 5 - mid-depth | L60: 5953.343301
K61: TRG 6 - mid-depth | L61: 5953.343301 | O61: Investment Tax Credit (ITC)* | S61: 0
K62: TRG 7 - mid-depth | L62: 5953.343301 | O62: Production Tax Credit (PTC)* | S62: 0
K63: TRG 8 - deep | L63: 6968.762028 | O63: * not currently included in LCOE calculation
K64: TRG 9 - deep | L64: 6968.762028
K65: TRG 10 - deep | L65: 6968.762028
J67: Fixed Operation and Maintenance Expenses ($/kW-year) | K67: TRG 1 - shallow | L67: 134.0146544
K68: TRG 2 - shallow | L68: 134.0146544
K69: TRG 3 - shallow | L69: 134.0146544
K70: TRG 4 - shallow | L70: 134.0146544
K71: TRG 5 - mid-depth | L71: 134.0146544
K72: TRG 6 - mid-depth | L72: 134.0146544
K73: TRG 7 - mid-depth | L73: 134.0146544
K74: TRG 8 - deep | L74: 164.9411131
K75: TRG 9 - deep | L75: 164.9411131
K76: TRG 10 - deep | L76: 164.9411131
J78: Variable Operation and Maintenance Expenses ($/MWh) | K78: TRG 1 - shallow | L78: 0
K79: TRG 2 - shallow | L79: 0
K80: TRG 3 - shallow | L80: 0
K81: TRG 4 - shallow | L81: 0
K82: TRG 5 - mid-depth | L82: 0
K83: TRG 6 - mid-depth | L83: 0
K84: TRG 7 - mid-depth | L84: 0
K85: TRG 8 - deep | L85: 0
K86: TRG 9 - deep | L86: 0
K87: TRG 10 - deep | L87: 0
H90: Finance | J90: Weighted Average Cost of Capital (WACC) (Nominal) (%) | K90: TRG 1 - shallow | L90: =$S$39 -> 0.0808
K91: TRG 2 - shallow | L91: =$S$39 -> 0.0808
K92: TRG 3 - shallow | L92: 0.0808
K93: TRG 4 - shallow | L93: 0.0808
K94: TRG 5 - mid-depth | L94: 0.0808
K95: TRG 6 - mid-depth | L95: 0.0808
K96: TRG 7 - mid-depth | L96: 0.0808
K97: TRG 8 - deep | L97: 0.0808
K98: TRG 9 - deep | L98: 0.0808
K99: TRG 10 - deep | L99: 0.0808
H102: Grid Connection Costs | J102: Grid Connection Costs (GCC) ($/kW) | K102: TRG 1 - shallow | L102: =L113+L124+L135 -> 246.888
K103: TRG 2 - shallow | L103: =L114+L125+L136 -> 246.888
K104: TRG 3 - shallow | L104: 246.888
K105: TRG 4 - shallow | L105: 246.888
K106: TRG 5 - mid-depth | L106: 246.888
K107: TRG 6 - mid-depth | L107: 246.888
K108: TRG 7 - mid-depth | L108: 246.888
K109: TRG 8 - deep | L109: 246.888
K110: TRG 9 - deep | L110: 246.888
K111: TRG 10 - deep | L111: =L122+L133+L144 -> 246.888
J113: Grid Feature Costs ($/kW) | K113: TRG 1 - shallow | L113: 0
K114: TRG 2 - shallow | L114: 0
K115: TRG 3 - shallow | L115: 0
K116: TRG 4 - shallow | L116: 0
K117: TRG 5 - mid-depth | L117: 0
K118: TRG 6 - mid-depth | L118: 0
K119: TRG 7 - mid-depth | L119: 0
K120: TRG 8 - deep | L120: 0
K121: TRG 9 - deep | L121: 0
K122: TRG 10 - deep | L122: 0
J124: Onshore Spur Line Costs ($/kW) | K124: TRG 1 - shallow | L124: 0
K125: TRG 2 - shallow | L125: 0
K126: TRG 3 - shallow | L126: 0
K127: TRG 4 - shallow | L127: 0
K128: TRG 5 - mid-depth | L128: 0
K129: TRG 6 - mid-depth | L129: 0
K130: TRG 7 - mid-depth | L130: 0
K131: TRG 8 - deep | L131: 0
K132: TRG 9 - deep | L132: 0
K133: TRG 10 - deep | L133: 0
J135: Offshore Spur Line Costs ($/kW) | K135: TRG 1 - shallow | L135: 246.888
K136: TRG 2 - shallow | L136: 246.888
K137: TRG 3 - shallow | L137: 246.888
K138: TRG 4 - shallow | L138: 246.888
K139: TRG 5 - mid-depth | L139: 246.888
K140: TRG 6 - mid-depth | L140: 246.888
K141: TRG 7 - mid-depth | L141: 246.888
K142: TRG 8 - deep | L142: 246.888
K143: TRG 9 - deep | L143: 246.888
K144: TRG 10 - deep | L144: 246.888
H148: LCOE | J148: Levelized Cost of Energy ($/MWh) | K148: TRG 1 - shallow | L148: =(($S$46 * $S$44 * $S$42 * (L56 * 1 + L102) +L67) * 1000 / (L12 * 8760)) + L78 + 0 -> 164.5902232
K149: TRG 2 - shallow | L149: =(($S$46 * $S$44 * $S$42 * (L57 * 1 + L103) +L68) * 1000 / (L13 * 8760)) + L79 + 0 -> 179.5241284
K150: TRG 3 - shallow | L150: 196.4215054
K151: TRG 4 - shallow | L151: 231.2512956
K152: TRG 5 - mid-depth | L152: 179.5609113
K153: TRG 6 - mid-depth | L153: 190.9924621
K154: TRG 7 - mid-depth | L154: 200.4494434
K155: TRG 8 - deep | L155: 200.5507732
K156: TRG 9 - deep | L156: =(($S$46 * $S$44 * $S$42 * (L64 * 1 + L110) +L75) * 1000 / (L20 * 8760)) + L86 + 0 -> 211.0642789
K157: TRG 10 - deep | L157: 227.4596975
J159: Overnight Levelized Cost of Energy ($/MWh) | K159: TRG 1 - shallow | L159: =(((L56*$S$46*(1-$S$38*$S$43))/(8760*L12*(1-$S$38))+L67/(8760*L12))*1000)+L78 -> 154.0575003 | M159: * this is similar to the LCOE used in the TCDB (Transparent Cost Database)
K160: TRG 2 - shallow | L160: =(((L57*$S$46*(1-$S$38*$S$43))/(8760*L13*(1-$S$38))+L68/(8760*L13))*1000)+L79 -> 168.0357311
K161: TRG 3 - shallow | L161: 183.8517839
K162: TRG 4 - shallow | L162: 216.45269
K163: TRG 5 - mid-depth | L163: =(((L60*$S$46*(1-$S$38*$S$43))/(8760*L16*(1-$S$38))+L71/(8760*L16))*1000)+L82 -> 168.4237394
K164: TRG 6 - mid-depth | L164: 179.1462542
K165: TRG 7 - mid-depth | L165: 188.0166712
K166: TRG 8 - deep | L166: 189.1165927
K167: TRG 9 - deep | L167: 199.0306825
K168: TRG 10 - deep | L168: 214.4913345
H171: ***Note: For future projections, low, mid, and high refer to the resulting low, mid, and high LCOE projections.
D174: X | G174: Future Projections
L175: Basis Year
L176: 2014 | M176: 2015 | N176: 2016 | O176: 2017 | P176: 2018 | Q176: 2019 | R176: 2020 | S176: 2021 | T176: 2022 | U176: 2023 | V176: 2024 | W176: 2025 | X176: 2026 | Y176: 2027 | Z176: 2028 | AA176: 2029 | AB176: 2030 | AC176: 2031 | AD176: 2032 | AE176: 2033 | AF176: 2034 | AG176: 2035 | AH176: 2036 | AI176: 2037 | AJ176: 2038 | AK176: 2039 | AL176: 2040 | AM176: 2041 | AN176: 2042 | AO176: 2043 | AP176: 2044 | AQ176: 2045 | AR176: 2046 | AS176: 2047 | AT176: 2048 | AU176: 2049 | AV176: 2050
H177: Techno-Economic Cost and Performance Parameters | J177: Net Capacity Factor (%) | K177: TRG 1 - Low | L177: =$L$12 -> 0.4742589507 | M177: 0.4746920501 | N177: 0.475103944 | O177: 0.4777340728 | P177: 0.4803642537 | Q177: 0.4829944914 | R177: 0.4856247916 | S177: 0.50149013 | T177: 0.5173556276 | U177: 0.5332213042 | V177: 0.5336328337 | W177: 0.5340443765 | X177: 0.5344559332 | Y177: 0.5348675042 | Z177: 0.5352790904 | AA177: 0.5356906923 | AB177: 0.5361023105 | AC177: 0.5363801906 | AD177: 0.5366580749 | AE177: 0.5369359636 | AF177: 0.5372138567 | AG177: 0.5374917543 | AH177: 0.5377696566 | AI177: 0.5380475636 | AJ177: 0.5383254755 | AK177: 0.5386033923 | AL177: 0.5388813142 | AM177: 0.5399845262 | AN177: 0.541087743 | AO177: 0.5421909648 | AP177: 0.5432941918 | AQ177: 0.5443974239 | AR177: 0.5455006615 | AS177: 0.5466039044 | AT177: 0.547707153 | AU177: 0.5488104072 | AV177: 0.5499136672
K178: TRG 1 - Mid | L178: =$L$12 -> 0.4742589507 | M178: 0.4742807311 | N178: 0.4742811652 | O178: 0.4769610531 | P178: 0.4796409848 | Q178: 0.4823209641 | R178: 0.4850009955 | S178: 0.4954967143 | T178: 0.5059925475 | U178: 0.5164885088 | V178: 0.51692873 | W178: 0.5173689537 | X178: 0.5178091798 | Y178: 0.5182494085 | Z178: 0.5186896398 | AA178: 0.5191298736 | AB178: 0.5195701102 | AC178: 0.5201775499 | AD178: 0.5207849902 | AE178: 0.5213924311 | AF178: 0.5219998725 | AG178: 0.5226073145 | AH178: 0.5232147571 | AI178: 0.5238222002 | AJ178: 0.5244296439 | AK178: 0.5250370882 | AL178: 0.5256445331 | AM178: 0.5262251162 | AN178: 0.5268057001 | AO178: 0.5273862846 | AP178: 0.5279668699 | AQ178: 0.528547456 | AR178: 0.5291280428 | AS178: 0.5297086304 | AT178: 0.5302892188 | AU178: 0.5308698079 | AV178: 0.5314503978
K179: TRG 1 - High | L179: 0.4742589507 | M179: =L179 -> 0.4742589507 | N179: =M179 -> 0.4742589507 | O179: 0.4742589507 | P179: 0.4742589507 | Q179: 0.4742589507 | R179: 0.4742589507 | S179: 0.4742589507 | T179: 0.4742589507 | U179: 0.4742589507 | V179: 0.4742589507 | W179: 0.4742589507 | X179: 0.4742589507 | Y179: 0.4742589507 | Z179: 0.4742589507 | AA179: 0.4742589507 | AB179: 0.4742589507 | AC179: 0.4742589507 | AD179: 0.4742589507 | AE179: 0.4742589507 | AF179: 0.4742589507 | AG179: 0.4742589507 | AH179: 0.4742589507 | AI179: 0.4742589507 | AJ179: 0.4742589507 | AK179: 0.4742589507 | AL179: 0.4742589507 | AM179: 0.4742589507 | AN179: 0.4742589507 | AO179: 0.4742589507 | AP179: 0.4742589507 | AQ179: 0.4742589507 | AR179: 0.4742589507 | AS179: 0.4742589507 | AT179: 0.4742589507 | AU179: 0.4742589507 | AV179: 0.4742589507
K180: TRG 2 - Low | L180: =$L$13 -> 0.4348072162 | M180: 0.4352042878 | N180: 0.4355819178 | O180: 0.4379932567 | P180: 0.4404046431 | Q180: 0.4428160817 | R180: 0.4452275776 | S180: 0.4597731409 | T180: 0.4743188503 | U180: 0.4888647238 | V180: 0.4892420197 | W180: 0.4896193279 | X180: 0.4899966488 | Y180: 0.4903739829 | Z180: 0.4907513308 | AA180: 0.4911286932 | AB180: 0.4915060705 | AC180: 0.4917608348 | AD180: 0.492015603 | AE180: 0.4922703752 | AF180: 0.4925251515 | AG180: 0.492779932 | AH180: 0.4930347166 | AI180: 0.4932895057 | AJ180: 0.4935442992 | AK180: 0.4937990972 | AL180: 0.4940538999 | AM180: 0.4950653399 | AN180: 0.4960767845 | AO180: 0.4970882336 | AP180: 0.4980996875 | AQ180: 0.4991111461 | AR180: 0.5001226097 | AS180: 0.5011340782 | AT180: 0.5021455518 | AU180: 0.5031570306 | AV180: 0.5041685148
K181: TRG 2 - Mid | L181: =$L$13 -> 0.4348072162 | M181: 0.4348271848 | N181: 0.4348275828 | O181: 0.4372845414 | P181: 0.4397415401 | Q181: 0.4421985825 | R181: 0.4446556727 | S181: 0.4542782939 | T181: 0.4639010201 | U181: 0.4735238637 | V181: 0.4739274646 | W181: 0.4743310679 | X181: 0.4747346733 | Y181: 0.4751382811 | Z181: 0.4755418913 | AA181: 0.4759455038 | AB181: 0.4763491188 | AC181: 0.476906028 | AD181: 0.4774629378 | AE181: 0.478019848 | AF181: 0.4785767588 | AG181: 0.4791336701 | AH181: 0.4796905819 | AI181: 0.4802474942 | AJ181: 0.4808044071 | AK181: 0.4813613205 | AL181: 0.4819182345 | AM181: 0.4824505211 | AN181: 0.4829828085 | AO181: 0.4835150965 | AP181: 0.4840473852 | AQ181: 0.4845796746 | AR181: 0.4851119647 | AS181: 0.4856442555 | AT181: 0.486176547 | AU181: 0.4867088392 | AV181: 0.4872411321
K182: TRG 2 - High | L182: 0.4348072162 | M182: =L182 -> 0.4348072162 | N182: =M182 -> 0.4348072162 | O182: 0.4348072162 | P182: 0.4348072162 | Q182: 0.4348072162 | R182: 0.4348072162 | S182: 0.4348072162 | T182: 0.4348072162 | U182: 0.4348072162 | V182: 0.4348072162 | W182: 0.4348072162 | X182: 0.4348072162 | Y182: 0.4348072162 | Z182: 0.4348072162 | AA182: 0.4348072162 | AB182: 0.4348072162 | AC182: 0.4348072162 | AD182: 0.4348072162 | AE182: 0.4348072162 | AF182: 0.4348072162 | AG182: 0.4348072162 | AH182: 0.4348072162 | AI182: 0.4348072162 | AJ182: 0.4348072162 | AK182: 0.4348072162 | AL182: 0.4348072162 | AM182: 0.4348072162 | AN182: 0.4348072162 | AO182: 0.4348072162 | AP182: 0.4348072162 | AQ182: 0.4348072162 | AR182: 0.4348072162 | AS182: 0.4348072162 | AT182: 0.4348072162 | AU182: 0.4348072162 | AV182: 0.4348072162
K183: TRG 3 - Low | L183: =$L$14 -> 0.3974024451 | M183: 0.3977653582 | N183: 0.3981105022 | O183: 0.4003144029 | P183: 0.4025183471 | Q183: 0.4047223391 | R183: 0.4069263834 | S183: 0.4202206486 | T183: 0.4335150472 | U183: 0.4468095958 | V183: 0.4471544345 | W183: 0.4474992843 | X183: 0.4478441458 | Y183: 0.4481890193 | Z183: 0.4485339054 | AA183: 0.4488788047 | AB183: 0.4492237178 | AC183: 0.4494565657 | AD183: 0.4496894172 | AE183: 0.4499222724 | AF183: 0.4501551312 | AG183: 0.4503879939 | AH183: 0.4506208605 | AI183: 0.450853731 | AJ183: 0.4510866056 | AK183: 0.4513194843 | AL183: 0.4515523673 | AM183: 0.4524767971 | AN183: 0.453401231 | AO183: 0.4543256692 | AP183: 0.4552501116 | AQ183: 0.4561745584 | AR183: 0.4570990096 | AS183: 0.4580234655 | AT183: 0.458947926 | AU183: 0.4598723912 | AV183: 0.4607968613
K184: TRG 3 - Mid | L184: =$L$14 -> 0.3974024451 | M184: 0.3974206959 | N184: 0.3974210596 | O184: 0.3996666556 | P184: 0.4019122883 | Q184: 0.4041579609 | R184: 0.4064036772 | S184: 0.4151985018 | T184: 0.4239934223 | U184: 0.4327884502 | V184: 0.4331573309 | W184: 0.4335262137 | X184: 0.4338950986 | Y184: 0.4342639856 | Z184: 0.4346328747 | AA184: 0.4350017661 | AB184: 0.4353706596 | AC184: 0.4358796601 | AD184: 0.4363886611 | AE184: 0.4368976625 | AF184: 0.4374066644 | AG184: 0.4379156668 | AH184: 0.4384246696 | AI184: 0.438933673 | AJ184: 0.4394426768 | AK184: 0.4399516811 | AL184: 0.4404606859 | AM184: 0.4409471821 | AN184: 0.4414336788 | AO184: 0.4419201762 | AP184: 0.4424066741 | AQ184: 0.4428931728 | AR184: 0.443379672 | AS184: 0.4438661719 | AT184: 0.4443526724 | AU184: 0.4448391736 | AV184: 0.4453256754
K185: TRG 3 - High | L185: 0.3974024451 | M185: =L185 -> 0.3974024451 | N185: =M185 -> 0.3974024451 | O185: 0.3974024451 | P185: 0.3974024451 | Q185: 0.3974024451 | R185: 0.3974024451 | S185: 0.3974024451 | T185: 0.3974024451 | U185: 0.3974024451 | V185: 0.3974024451 | W185: 0.3974024451 | X185: 0.3974024451 | Y185: 0.3974024451 | Z185: 0.3974024451 | AA185: 0.3974024451 | AB185: 0.3974024451 | AC185: 0.3974024451 | AD185: 0.3974024451 | AE185: 0.3974024451 | AF185: 0.3974024451 | AG185: 0.3974024451 | AH185: 0.3974024451 | AI185: 0.3974024451 | AJ185: 0.3974024451 | AK185: 0.3974024451 | AL185: 0.3974024451 | AM185: 0.3974024451 | AN185: 0.3974024451 | AO185: 0.3974024451 | AP185: 0.3974024451 | AQ185: 0.3974024451 | AR185: 0.3974024451 | AS185: 0.3974024451 | AT185: 0.3974024451 | AU185: 0.3974024451 | AV185: 0.3974024451
K186: TRG 4 - Low | L186: =$L$15 -> 0.3375478885 | M186: 0.3378561416 | N186: 0.3381493019 | O186: 0.3400212633 | P186: 0.3418932617 | Q186: 0.3437653006 | R186: 0.3456373839 | S186: 0.3569293404 | T186: 0.3682214103 | U186: 0.3795136076 | V186: 0.3798065086 | W186: 0.3800994191 | X186: 0.3803923394 | Y186: 0.38068527 | Z186: 0.3809782113 | AA186: 0.3812711638 | AB186: 0.3815641279 | AC186: 0.3817619056 | AD186: 0.3819596863 | AE186: 0.3821574701 | AF186: 0.382355257 | AG186: 0.3825530472 | AH186: 0.3827508407 | AI186: 0.3829486375 | AJ186: 0.3831464379 | AK186: 0.3833442417 | AL186: 0.3835420491 | AM186: 0.3843272465 | AN186: 0.3851124473 | AO186: 0.3858976516 | AP186: 0.3866828596 | AQ186: 0.3874680714 | AR186: 0.3882532869 | AS186: 0.3890385063 | AT186: 0.3898237297 | AU186: 0.3906089571 | AV186: 0.3913941886
K187: TRG 4 - Mid | L187: =$L$15 -> 0.3375478885 | M187: 0.3375633904 | N187: 0.3375636994 | O187: 0.3394710762 | P187: 0.3413784841 | Q187: 0.3432859259 | R187: 0.3451934048 | S187: 0.3526636016 | T187: 0.3601338799 | U187: 0.3676042493 | V187: 0.3679175713 | W187: 0.368230895 | X187: 0.3685442205 | Y187: 0.3688575478 | Z187: 0.3691708769 | AA187: 0.3694842078 | AB187: 0.3697975407 | AC187: 0.3702298783 | AD187: 0.3706622164 | AE187: 0.3710945548 | AF187: 0.3715268937 | AG187: 0.3719592329 | AH187: 0.3723915726 | AI187: 0.3728239127 | AJ187: 0.3732562532 | AK187: 0.3736885941 | AL187: 0.3741209354 | AM187: 0.3745341582 | AN187: 0.3749473815 | AO187: 0.3753606053 | AP187: 0.3757738297 | AQ187: 0.3761870545 | AR187: 0.37660028 | AS187: 0.3770135059 | AT187: 0.3774267324 | AU187: 0.3778399595 | AV187: 0.3782531871
K188: TRG 4 - High | L188: 0.3375478885 | M188: =L188 -> 0.3375478885 | N188: =M188 -> 0.3375478885 | O188: 0.3375478885 | P188: 0.3375478885 | Q188: 0.3375478885 | R188: 0.3375478885 | S188: 0.3375478885 | T188: 0.3375478885 | U188: 0.3375478885 | V188: 0.3375478885 | W188: 0.3375478885 | X188: 0.3375478885 | Y188: 0.3375478885 | Z188: 0.3375478885 | AA188: 0.3375478885 | AB188: 0.3375478885 | AC188: 0.3375478885 | AD188: 0.3375478885 | AE188: 0.3375478885 | AF188: 0.3375478885 | AG188: 0.3375478885 | AH188: 0.3375478885 | AI188: 0.3375478885 | AJ188: 0.3375478885 | AK188: 0.3375478885 | AL188: 0.3375478885 | AM188: 0.3375478885 | AN188: 0.3375478885 | AO188: 0.3375478885 | AP188: 0.3375478885 | AQ188: 0.3375478885 | AR188: 0.3375478885 | AS188: 0.3375478885 | AT188: 0.3375478885 | AU188: 0.3375478885 | AV188: 0.3375478885
K189: TRG 5 - Low | L189: =$L$16 -> 0.4695454636 | M189: 0.4697869613 | N189: 0.4699857274 | O189: 0.4724956717 | P189: 0.474999012 | Q189: 0.4774951235 | R189: 0.4799833005 | S189: 0.4954099261 | T189: 0.5107997615 | U189: 0.526148241 | V189: 0.5264883188 | W189: 0.5268265077 | X189: 0.5271627293 | Y189: 0.5274969009 | Z189: 0.5278289351 | AA189: 0.5281587395 | AB189: 0.5284862163 | AC189: 0.5287133358 | AD189: 0.5289397323 | AE189: 0.5291653901 | AF189: 0.5293902928 | AG189: 0.5296144236 | AH189: 0.5298377653 | AI189: 0.5300603001 | AJ189: 0.5302820097 | AK189: 0.530502875 | AL189: 0.5307228768 | AM189: 0.5317513659 | AN189: 0.5327788338 | AO189: 0.5338052596 | AP189: 0.5348306217 | AQ189: 0.5358548981 | AR189: 0.536878066 | AS189: 0.5379001021 | AT189: 0.5389209823 | AU189: 0.539940682 | AV189: 0.5409591757
K190: TRG 5 - Mid | L190: =$L$16 -> 0.4695454636 | M190: 0.4695909697 | N190: 0.4696180056 | O190: 0.4721980498 | P190: 0.4747730266 | Q190: 0.4773424819 | R190: 0.4799059061 | S190: 0.4901383881 | T190: 0.5003526299 | U190: 0.5105464697 | V190: 0.5109874954 | W190: 0.5114286032 | X190: 0.5118697946 | Y190: 0.5123110711 | Z190: 0.5127524342 | AA190: 0.5131938855 | AB190: 0.5136354266 | AC190: 0.5142218274 | AD190: 0.5148081272 | AE190: 0.5153943252 | AF190: 0.5159804206 | AG190: 0.5165664129 | AH190: 0.5171523011 | AI190: 0.5177380845 | AJ190: 0.5183237623 | AK190: 0.5189093338 | AL190: 0.5194947982 | AM190: 0.5200510479 | AN190: 0.5206071606 | AO190: 0.5211631351 | AP190: 0.5217189702 | AQ190: 0.5222746647 | AR190: 0.5228302173 | AS190: 0.523385627 | AT190: 0.5239408924 | AU190: 0.5244960123 | AV190: 0.5250509854
K191: TRG 5 - High | L191: 0.4695454636 | M191: =L191 -> 0.4695454636 | N191: =M191 -> 0.4695454636 | O191: 0.4695454636 | P191: 0.4695454636 | Q191: 0.4695454636 | R191: 0.4695454636 | S191: 0.4695454636 | T191: 0.4695454636 | U191: 0.4695454636 | V191: 0.4695454636 | W191: 0.4695454636 | X191: 0.4695454636 | Y191: 0.4695454636 | Z191: 0.4695454636 | AA191: 0.4695454636 | AB191: 0.4695454636 | AC191: 0.4695454636 | AD191: 0.4695454636 | AE191: 0.4695454636 | AF191: 0.4695454636 | AG191: 0.4695454636 | AH191: 0.4695454636 | AI191: 0.4695454636 | AJ191: 0.4695454636 | AK191: 0.4695454636 | AL191: 0.4695454636 | AM191: 0.4695454636 | AN191: 0.4695454636 | AO191: 0.4695454636 | AP191: 0.4695454636 | AQ191: 0.4695454636 | AR191: 0.4695454636 | AS191: 0.4695454636 | AT191: 0.4695454636 | AU191: 0.4695454636 | AV191: 0.4695454636
K192: TRG 6 - Low | L192: =$L$17 -> 0.4414415648 | M192: 0.441668608 | N192: 0.4418554772 | O192: 0.4442151929 | P192: 0.4465686997 | Q192: 0.4489154104 | R192: 0.4512546615 | S192: 0.4657579509 | T192: 0.4802266521 | U192: 0.4946564727 | V192: 0.4949761957 | W192: 0.4952941428 | X192: 0.4956102404 | Y192: 0.4959244107 | Z192: 0.4962365716 | AA192: 0.496546636 | AB192: 0.4968545122 | AC192: 0.4970680378 | AD192: 0.4972808838 | AE192: 0.4974930351 | AF192: 0.4977044766 | AG192: 0.4979151925 | AH192: 0.4981251664 | AI192: 0.4983343818 | AJ192: 0.4985428212 | AK192: 0.4987504671 | AL192: 0.4989573009 | AM192: 0.4999242315 | AN192: 0.5008902019 | AO192: 0.5018551926 | AP192: 0.5028191833 | AQ192: 0.5037821532 | AR192: 0.5047440811 | AS192: 0.5057049448 | AT192: 0.5066647219 | AU192: 0.5076233891 | AV192: 0.5085809225
K193: TRG 6 - Mid | L193: =$L$17 -> 0.4414415648 | M193: 0.4414843472 | N193: 0.4415097649 | O193: 0.4439353847 | P193: 0.4463562402 | Q193: 0.4487719049 | R193: 0.4511818995 | S193: 0.4608019325 | T193: 0.470404817 | U193: 0.4799885207 | V193: 0.4804031495 | W193: 0.4808178555 | X193: 0.4812326401 | Y193: 0.4816475046 | Z193: 0.4820624507 | AA193: 0.4824774796 | AB193: 0.482892593 | AC193: 0.4834438957 | AD193: 0.4839951034 | AE193: 0.4845462155 | AF193: 0.4850972311 | AG193: 0.4856481497 | AH193: 0.4861989705 | AI193: 0.4867496928 | AJ193: 0.4873003158 | AK193: 0.4878508388 | AL193: 0.4884012612 | AM193: 0.4889242175 | AN193: 0.4894470449 | AO193: 0.4899697425 | AP193: 0.4904923089 | AQ193: 0.4910147432 | AR193: 0.4915370441 | AS193: 0.4920592106 | AT193: 0.4925812415 | AU193: 0.4931031356 | AV193: 0.4936248917
K194: TRG 6 - High | L194: 0.4414415648 | M194: =L194 -> 0.4414415648 | N194: =M194 -> 0.4414415648 | O194: 0.4414415648 | P194: 0.4414415648 | Q194: 0.4414415648 | R194: 0.4414415648 | S194: 0.4414415648 | T194: 0.4414415648 | U194: 0.4414415648 | V194: 0.4414415648 | W194: 0.4414415648 | X194: 0.4414415648 | Y194: 0.4414415648 | Z194: 0.4414415648 | AA194: 0.4414415648 | AB194: 0.4414415648 | AC194: 0.4414415648 | AD194: 0.4414415648 | AE194: 0.4414415648 | AF194: 0.4414415648 | AG194: 0.4414415648 | AH194: 0.4414415648 | AI194: 0.4414415648 | AJ194: 0.4414415648 | AK194: 0.4414415648 | AL194: 0.4414415648 | AM194: 0.4414415648 | AN194: 0.4414415648 | AO194: 0.4414415648 | AP194: 0.4414415648 | AQ194: 0.4414415648 | AR194: 0.4414415648 | AS194: 0.4414415648 | AT194: 0.4414415648 | AU194: 0.4414415648 | AV194: 0.4414415648
K195: TRG 7 - Low | L195: =$L$18 -> 0.4206148437 | M195: 0.4208311753 | N195: 0.4210092282 | O195: 0.4232576151 | P195: 0.4255000861 | Q195: 0.4277360816 | R195: 0.4299649694 | S195: 0.4437840098 | T195: 0.4575700939 | U195: 0.4713191316 | V195: 0.4716237704 | W195: 0.4719267172 | X195: 0.4722279016 | Y195: 0.4725272497 | Z195: 0.4728246831 | AA195: 0.4731201191 | AB195: 0.47341347 | AC195: 0.4736169217 | AD195: 0.4738197258 | AE195: 0.4740218682 | AF195: 0.4742233341 | AG195: 0.4744241086 | AH195: 0.4746241762 | AI195: 0.474823521 | AJ195: 0.4750221265 | AK195: 0.4752199758 | AL195: 0.4754170515 | AM195: 0.4763383634 | AN195: 0.4772587604 | AO195: 0.4781782239 | AP195: 0.4790967346 | AQ195: 0.4800142727 | AR195: 0.4809308178 | AS195: 0.4818463491 | AT195: 0.4827608449 | AU195: 0.4836742833 | AV195: 0.4845866413
K196: TRG 7 - Mid | L196: =$L$18 -> 0.4206148437 | M196: 0.4206556077 | N196: 0.4206798262 | O196: 0.4229910079 | P196: 0.4252976503 | Q196: 0.4275993466 | R196: 0.4298956403 | S196: 0.4390618108 | T196: 0.4482116419 | U196: 0.4573431972 | V196: 0.4577382643 | W196: 0.4581334049 | X196: 0.4585286204 | Y196: 0.4589239121 | Z196: 0.4593192815 | AA196: 0.4597147298 | AB196: 0.4601102586 | AC196: 0.4606355515 | AD196: 0.4611607538 | AE196: 0.461685865 | AF196: 0.4622108844 | AG196: 0.4627358112 | AH196: 0.4632606449 | AI196: 0.4637853847 | AJ196: 0.46431003 | AK196: 0.4648345799 | AL196: 0.4653590339 | AM196: 0.4658573178 | AN196: 0.4663554788 | AO196: 0.466853516 | AP196: 0.4673514284 | AQ196: 0.4678492148 | AR196: 0.4683468742 | AS196: 0.4688444054 | AT196: 0.4693418074 | AU196: 0.4698390791 | AV196: 0.4703362194
K197: TRG 7 - High | L197: 0.4206148437 | M197: =L197 -> 0.4206148437 | N197: =M197 -> 0.4206148437 | O197: 0.4206148437 | P197: 0.4206148437 | Q197: 0.4206148437 | R197: 0.4206148437 | S197: 0.4206148437 | T197: 0.4206148437 | U197: 0.4206148437 | V197: 0.4206148437 | W197: 0.4206148437 | X197: 0.4206148437 | Y197: 0.4206148437 | Z197: 0.4206148437 | AA197: 0.4206148437 | AB197: 0.4206148437 | AC197: 0.4206148437 | AD197: 0.4206148437 | AE197: 0.4206148437 | AF197: 0.4206148437 | AG197: 0.4206148437 | AH197: 0.4206148437 | AI197: 0.4206148437 | AJ197: 0.4206148437 | AK197: 0.4206148437 | AL197: 0.4206148437 | AM197: 0.4206148437 | AN197: 0.4206148437 | AO197: 0.4206148437 | AP197: 0.4206148437 | AQ197: 0.4206148437 | AR197: 0.4206148437 | AS197: 0.4206148437 | AT197: 0.4206148437 | AU197: 0.4206148437 | AV197: 0.4206148437
K198: TRG 8 - Low | L198: =$L$19 -> 0.4943628499 | M198: 0.4946191629 | N198: 0.4948342914 | O198: 0.4974727806 | P198: 0.5001040152 | Q198: 0.5027273091 | R198: 0.5053418869 | S198: 0.5216324412 | T198: 0.5378913643 | U198: 0.5541147306 | V198: 0.5544735644 | W198: 0.5548304285 | X198: 0.5551852411 | Y198: 0.5555379161 | Z198: 0.5558883622 | AA198: 0.5562364831 | AB198: 0.5565821767 | AC198: 0.5568255088 | AD198: 0.5570681437 | AE198: 0.5573100662 | AF198: 0.5575512607 | AG198: 0.5577917109 | AH198: 0.5580314002 | AI198: 0.5582703114 | AJ198: 0.5585084269 | AK198: 0.5587457284 | AL198: 0.5589821971 | AM198: 0.560074736 | AN198: 0.5611663635 | AO198: 0.562257061 | AP198: 0.5633468093 | AQ198: 0.5644355886 | AR198: 0.5655233786 | AS198: 0.5666101585 | AT198: 0.567695907 | AU198: 0.5687806018 | AV198: 0.5698642205
K199: TRG 8 - Mid | L199: =$L$19 -> 0.4943628499 | M199: 0.4944565019 | N199: 0.4945358067 | O199: 0.4972035827 | P199: 0.4998626034 | Q199: 0.5025120847 | R199: 0.5051511457 | S199: 0.5159312498 | T199: 0.5266932755 | U199: 0.5374350804 | V199: 0.5378843093 | W199: 0.5383334205 | X199: 0.5387824121 | Y199: 0.5392312818 | Z199: 0.5396800274 | AA199: 0.5401286467 | AB199: 0.5405771373 | AC199: 0.5411958722 | AD199: 0.5418145121 | AE199: 0.5424330563 | AF199: 0.5430515041 | AG199: 0.5436698549 | AH199: 0.5442881078 | AI199: 0.5449062623 | AJ199: 0.5455243175 | AK199: 0.5461422727 | AL199: 0.5467601272 | AM199: 0.5473477496 | AN199: 0.5479352448 | AO199: 0.5485226117 | AP199: 0.5491098494 | AQ199: 0.5496969566 | AR199: 0.5502839323 | AS199: 0.5508707753 | AT199: 0.5514574845 | AU199: 0.5520440587 | AV199: 0.5526304967
K200: TRG 8 - High | L200: 0.4943628499 | M200: =L200 -> 0.4943628499 | N200: =M200 -> 0.4943628499 | O200: 0.4943628499 | P200: 0.4943628499 | Q200: 0.4943628499 | R200: 0.4943628499 | S200: 0.4943628499 | T200: 0.4943628499 | U200: 0.4943628499 | V200: 0.4943628499 | W200: 0.4943628499 | X200: 0.4943628499 | Y200: 0.4943628499 | Z200: 0.4943628499 | AA200: 0.4943628499 | AB200: 0.4943628499 | AC200: 0.4943628499 | AD200: 0.4943628499 | AE200: 0.4943628499 | AF200: 0.4943628499 | AG200: 0.4943628499 | AH200: 0.4943628499 | AI200: 0.4943628499 | AJ200: 0.4943628499 | AK200: 0.4943628499 | AL200: 0.4943628499 | AM200: 0.4943628499 | AN200: 0.4943628499 | AO200: 0.4943628499 | AP200: 0.4943628499 | AQ200: 0.4943628499 | AR200: 0.4943628499 | AS200: 0.4943628499 | AT200: 0.4943628499 | AU200: 0.4943628499 | AV200: 0.4943628499
K201: TRG 9 - Low | L201: =$L$20 -> 0.4697377137 | M201: 0.4699812592 | N201: 0.4701856718 | O201: 0.4726927329 | P201: 0.4751929008 | Q201: 0.4776855235 | R201: 0.4801698644 | S201: 0.4956489558 | T201: 0.5110979915 | U201: 0.5265132416 | V201: 0.5268542013 | W201: 0.5271932893 | X201: 0.527530428 | Y201: 0.5278655356 | Z201: 0.5281985253 | AA201: 0.5285293057 | AB201: 0.5288577797 | AC201: 0.5290889909 | AD201: 0.5293195397 | AE201: 0.5295494117 | AF201: 0.5297785918 | AG201: 0.5300070647 | AH201: 0.5302348147 | AI201: 0.5304618253 | AJ201: 0.5306880798 | AK201: 0.5309135608 | AL201: 0.5311382506 | AM201: 0.5321763681 | AN201: 0.5332136196 | AO201: 0.5342499874 | AP201: 0.5352854533 | AQ201: 0.5363199984 | AR201: 0.5373536036 | AS201: 0.538386249 | AT201: 0.5394179143 | AU201: 0.5404485785 | AV201: 0.54147822
K202: TRG 9 - Mid | L202: =$L$20 -> 0.4697377137 | M202: 0.4698267006 | N202: 0.4699020551 | O202: 0.4724369443 | P202: 0.4749635142 | Q202: 0.4774810199 | R202: 0.4799886243 | S202: 0.4902317513 | T202: 0.5004577004 | U202: 0.510664436 | V202: 0.5110912879 | W202: 0.5115180281 | X202: 0.5119446545 | Y202: 0.5123711652 | Z202: 0.512797558 | AA202: 0.5132238307 | AB202: 0.5136499812 | AC202: 0.5142378957 | AD202: 0.51482572 | AE202: 0.5154134533 | AF202: 0.5160010951 | AG202: 0.5165886447 | AH202: 0.5171761013 | AI202: 0.5177634644 | AJ202: 0.5183507331 | AK202: 0.5189379068 | AL202: 0.5195249848 | AM202: 0.5200833366 | AN202: 0.5206415676 | AO202: 0.5211996767 | AP202: 0.5217576629 | AQ202: 0.5223155252 | AR202: 0.5228732625 | AS202: 0.5234308738 | AT202: 0.5239883579 | AU202: 0.5245457138 | AV202: 0.5251029403
K203: TRG 9 - High | L203: 0.4697377137 | M203: =L203 -> 0.4697377137 | N203: =M203 -> 0.4697377137 | O203: 0.4697377137 | P203: 0.4697377137 | Q203: 0.4697377137 | R203: 0.4697377137 | S203: 0.4697377137 | T203: 0.4697377137 | U203: 0.4697377137 | V203: 0.4697377137 | W203: 0.4697377137 | X203: 0.4697377137 | Y203: 0.4697377137 | Z203: 0.4697377137 | AA203: 0.4697377137 | AB203: 0.4697377137 | AC203: 0.4697377137 | AD203: 0.4697377137 | AE203: 0.4697377137 | AF203: 0.4697377137 | AG203: 0.4697377137 | AH203: 0.4697377137 | AI203: 0.4697377137 | AJ203: 0.4697377137 | AK203: 0.4697377137 | AL203: 0.4697377137 | AM203: 0.4697377137 | AN203: 0.4697377137 | AO203: 0.4697377137 | AP203: 0.4697377137 | AQ203: 0.4697377137 | AR203: 0.4697377137 | AS203: 0.4697377137 | AT203: 0.4697377137 | AU203: 0.4697377137 | AV203: 0.4697377137
K204: TRG 10 - Low | L204: =$L$21 -> 0.4358787639 | M204: 0.4361047546 | N204: 0.436294433 | O204: 0.4386207838 | P204: 0.4409407382 | Q204: 0.4432536913 | R204: 0.4455589595 | S204: 0.4599223096 | T204: 0.4742577705 | U204: 0.488561881 | V204: 0.4888782641 | W204: 0.4891929104 | X204: 0.489505748 | Y204: 0.4898167008 | Z204: 0.4901256885 | AA204: 0.490432626 | AB204: 0.4907374235 | AC204: 0.4909519688 | AD204: 0.4911658996 | AE204: 0.4913792022 | AF204: 0.4915918629 | AG204: 0.4918038674 | AH204: 0.492015201 | AI204: 0.4922258486 | AJ204: 0.4924357945 | AK204: 0.4926450227 | AL204: 0.4928535167 | AM204: 0.4938168062 | AN204: 0.494779292 | AO204: 0.4957409579 | AP204: 0.4967017868 | AQ204: 0.4976617614 | AR204: 0.4986208638 | AS204: 0.4995790755 | AT204: 0.5005363778 | AU204: 0.5014927512 | AV204: 0.5024481756
K205: TRG 10 - Mid | L205: =$L$21 -> 0.4358787639 | M205: 0.4359613367 | N205: 0.4360312596 | O205: 0.4383834325 | P205: 0.4407278859 | Q205: 0.4430639284 | R205: 0.4453907834 | S205: 0.4548955802 | T205: 0.4643844374 | U205: 0.4738554659 | V205: 0.4742515501 | W205: 0.4746475306 | X205: 0.4750434056 | Y205: 0.4754391731 | Z205: 0.4758348312 | AA205: 0.476230378 | AB205: 0.4766258113 | AC205: 0.4771713486 | AD205: 0.4777168022 | AE205: 0.4782621715 | AF205: 0.4788074557 | AG205: 0.4793526544 | AH205: 0.4798977668 | AI205: 0.4804427924 | AJ205: 0.4809877305 | AK205: 0.4815325804 | AL205: 0.4820773415 | AM205: 0.482595447 | AN205: 0.4831134404 | AO205: 0.4836313207 | AP205: 0.484149087 | AQ205: 0.4846667382 | AR205: 0.4851842736 | AS205: 0.4857016919 | AT205: 0.4862189922 | AU205: 0.4867361736 | AV205: 0.4872532349
K206: TRG 10 - High | L206: 0.4358787639 | M206: =L206 -> 0.4358787639 | N206: =M206 -> 0.4358787639 | O206: 0.4358787639 | P206: 0.4358787639 | Q206: 0.4358787639 | R206: 0.4358787639 | S206: 0.4358787639 | T206: 0.4358787639 | U206: 0.4358787639 | V206: 0.4358787639 | W206: 0.4358787639 | X206: 0.4358787639 | Y206: 0.4358787639 | Z206: 0.4358787639 | AA206: 0.4358787639 | AB206: 0.4358787639 | AC206: 0.4358787639 | AD206: 0.4358787639 | AE206: 0.4358787639 | AF206: 0.4358787639 | AG206: 0.4358787639 | AH206: 0.4358787639 | AI206: 0.4358787639 | AJ206: 0.4358787639 | AK206: 0.4358787639 | AL206: 0.4358787639 | AM206: 0.4358787639 | AN206: 0.4358787639 | AO206: 0.4358787639 | AP206: 0.4358787639 | AQ206: 0.4358787639 | AR206: 0.4358787639 | AS206: 0.4358787639 | AT206: 0.4358787639 | AU206: 0.4358787639 | AV206: 0.4358787639
L208: 2014 | M208: 2015 | N208: 2016 | O208: 2017 | P208: 2018 | Q208: 2019 | R208: 2020 | S208: 2021 | T208: 2022 | U208: 2023 | V208: 2024 | W208: 2025 | X208: 2026 | Y208: 2027 | Z208: 2028 | AA208: 2029 | AB208: 2030 | AC208: 2031 | AD208: 2032 | AE208: 2033 | AF208: 2034 | AG208: 2035 | AH208: 2036 | AI208: 2037 | AJ208: 2038 | AK208: 2039 | AL208: 2040 | AM208: 2041 | AN208: 2042 | AO208: 2043 | AP208: 2044 | AQ208: 2045 | AR208: 2046 | AS208: 2047 | AT208: 2048 | AU208: 2049 | AV208: 2050
J209: Annual Energy Production (kWh/kW) | K209: TRG 1 - Low | L209: =(L177)*8760 -> 4154.508408 | M209: 4158.302359 | N209: 4161.910549 | O209: 4184.950478 | P209: 4207.990862 | Q209: 4231.031745 | R209: 4254.073174 | S209: 4393.053538 | T209: 4532.035298 | U209: 4671.018625 | V209: 4674.623623 | W209: 4678.228738 | X209: 4681.833974 | Y209: 4685.439337 | Z209: 4689.044832 | AA209: 4692.650464 | AB209: 4696.25624 | AC209: 4698.690469 | AD209: 4701.124736 | AE209: 4703.559041 | AF209: 4705.993384 | AG209: 4708.427768 | AH209: 4710.862192 | AI209: 4713.296657 | AJ209: 4715.731165 | AK209: 4718.165717 | AL209: 4720.600313 | AM209: 4730.264449 | AN209: 4739.928628 | AO209: 4749.592852 | AP209: 4759.25712 | AQ209: 4768.921434 | AR209: 4778.585794 | AS209: 4788.250203 | AT209: 4797.91466 | AU209: 4807.579167 | AV209: 4817.243724
K210: TRG 1 - Mid | L210: =(L178)*8760 -> 4154.508408 | M210: 4154.699204 | N210: 4154.703007 | O210: 4178.178825 | P210: 4201.655026 | Q210: 4225.131646 | R210: 4248.608721 | S210: 4340.551217 | T210: 4432.494716 | U210: 4524.439337 | V210: 4528.295675 | W210: 4532.152034 | X210: 4536.008415 | Y210: 4539.864819 | Z210: 4543.721244 | AA210: 4547.577693 | AB210: 4551.434165 | AC210: 4556.755337 | AD210: 4562.076514 | AE210: 4567.397696 | AF210: 4572.718883 | AG210: 4578.040075 | AH210: 4583.361272 | AI210: 4588.682474 | AJ210: 4594.003681 | AK210: 4599.324893 | AL210: 4604.64611 | AM210: 4609.732018 | AN210: 4614.817933 | AO210: 4619.903853 | AP210: 4624.989781 | AQ210: 4630.075715 | AR210: 4635.161655 | AS210: 4640.247602 | AT210: 4645.333556 | AU210: 4650.419517 | AV210: 4655.505485
K211: TRG 1 - High | L211: =(L179)*8760 -> 4154.508408 | M211: 4154.508408 | N211: 4154.508408 | O211: 4154.508408 | P211: 4154.508408 | Q211: 4154.508408 | R211: 4154.508408 | S211: 4154.508408 | T211: 4154.508408 | U211: 4154.508408 | V211: 4154.508408 | W211: 4154.508408 | X211: 4154.508408 | Y211: 4154.508408 | Z211: 4154.508408 | AA211: 4154.508408 | AB211: 4154.508408 | AC211: 4154.508408 | AD211: 4154.508408 | AE211: 4154.508408 | AF211: 4154.508408 | AG211: 4154.508408 | AH211: 4154.508408 | AI211: 4154.508408 | AJ211: 4154.508408 | AK211: 4154.508408 | AL211: 4154.508408 | AM211: 4154.508408 | AN211: 4154.508408 | AO211: 4154.508408 | AP211: 4154.508408 | AQ211: 4154.508408 | AR211: 4154.508408 | AS211: 4154.508408 | AT211: 4154.508408 | AU211: 4154.508408 | AV211: 4154.508408
K212: TRG 2 - Low | L212: =(L180)*8760 -> 3808.911214 | M212: 3812.389561 | N212: 3815.6976 | O212: 3836.820928 | P212: 3857.944674 | Q212: 3879.068876 | R212: 3900.19358 | S212: 4027.612715 | T212: 4155.033129 | U212: 4282.45498 | V212: 4285.760093 | W212: 4289.065313 | X212: 4292.370643 | Y212: 4295.67609 | Z212: 4298.981658 | AA212: 4302.287352 | AB212: 4305.593178 | AC212: 4307.824913 | AD212: 4310.056683 | AE212: 4312.288487 | AF212: 4314.520327 | AG212: 4316.752204 | AH212: 4318.984118 | AI212: 4321.21607 | AJ212: 4323.448061 | AK212: 4325.680091 | AL212: 4327.912163 | AM212: 4336.772378 | AN212: 4345.632632 | AO212: 4354.492927 | AP212: 4363.353262 | AQ212: 4372.21364 | AR212: 4381.074061 | AS212: 4389.934525 | AT212: 4398.795034 | AU212: 4407.655588 | AV212: 4416.51619
K213: TRG 2 - Mid | L213: =(L181)*8760 -> 3808.911214 | M213: 3809.086139 | N213: 3809.089625 | O213: 3830.612583 | P213: 3852.135891 | Q213: 3873.659583 | R213: 3895.183693 | S213: 3979.477855 | T213: 4063.772936 | U213: 4148.069046 | V213: 4151.60459 | W213: 4155.140154 | X213: 4158.675738 | Y213: 4162.211343 | Z213: 4165.746968 | AA213: 4169.282613 | AB213: 4172.818281 | AC213: 4177.696806 | AD213: 4182.575335 | AE213: 4187.453869 | AF213: 4192.332407 | AG213: 4197.21095 | AH213: 4202.089497 | AI213: 4206.968049 | AJ213: 4211.846606 | AK213: 4216.725168 | AL213: 4221.603734 | AM213: 4226.266565 | AN213: 4230.929402 | AO213: 4235.592245 | AP213: 4240.255094 | AQ213: 4244.917949 | AR213: 4249.580811 | AS213: 4254.243678 | AT213: 4258.906551 | AU213: 4263.569431 | AV213: 4268.232317
K214: TRG 2 - High | L214: =(L182)*8760 -> 3808.911214 | M214: 3808.911214 | N214: 3808.911214 | O214: 3808.911214 | P214: 3808.911214 | Q214: 3808.911214 | R214: 3808.911214 | S214: 3808.911214 | T214: 3808.911214 | U214: 3808.911214 | V214: 3808.911214 | W214: 3808.911214 | X214: 3808.911214 | Y214: 3808.911214 | Z214: 3808.911214 | AA214: 3808.911214 | AB214: 3808.911214 | AC214: 3808.911214 | AD214: 3808.911214 | AE214: 3808.911214 | AF214: 3808.911214 | AG214: 3808.911214 | AH214: 3808.911214 | AI214: 3808.911214 | AJ214: 3808.911214 | AK214: 3808.911214 | AL214: 3808.911214 | AM214: 3808.911214 | AN214: 3808.911214 | AO214: 3808.911214 | AP214: 3808.911214 | AQ214: 3808.911214 | AR214: 3808.911214 | AS214: 3808.911214 | AT214: 3808.911214 | AU214: 3808.911214 | AV214: 3808.911214
K215: TRG 3 - Low | L215: =(L183)*8760 -> 3481.245419 | M215: 3484.424538 | N215: 3487.447999 | O215: 3506.754169 | P215: 3526.060721 | Q215: 3545.36769 | R215: 3564.675118 | S215: 3681.132881 | T215: 3797.591813 | U215: 3914.052059 | V215: 3917.072846 | W215: 3920.093731 | X215: 3923.114717 | Y215: 3926.135809 | Z215: 3929.157012 | AA215: 3932.17833 | AB215: 3935.199768 | AC215: 3937.239516 | AD215: 3939.279295 | AE215: 3941.319106 | AF215: 3943.35895 | AG215: 3945.398827 | AH215: 3947.438738 | AI215: 3949.478683 | AJ215: 3951.518665 | AK215: 3953.558683 | AL215: 3955.598738 | AM215: 3963.696743 | AN215: 3971.794784 | AO215: 3979.892862 | AP215: 3987.990978 | AQ215: 3996.089131 | AR215: 4004.187325 | AS215: =(AS183)*8760 -> 4012.285558 | AT215: 4020.383831 | AU215: 4028.482147 | AV215: 4036.580505
K216: TRG 3 - Mid | L216: =(L184)*8760 -> 3481.245419 | M216: 3481.405296 | N216: 3481.408482 | O216: 3501.079903 | P216: 3520.751645 | Q216: 3540.423738 | R216: 3560.096212 | S216: 3637.138876 | T216: 3714.18238 | U216: 3791.226824 | V216: 3794.458219 | W216: 3797.689632 | X216: 3800.921064 | Y216: 3804.152514 | Z216: 3807.383983 | AA216: 3810.615471 | AB216: 3813.846978 | AC216: 3818.305823 | AD216: 3822.764671 | AE216: 3827.223523 | AF216: 3831.68238 | AG216: 3836.141241 | AH216: 3840.600106 | AI216: 3845.058975 | AJ216: 3849.517849 | AK216: 3853.976727 | AL216: 3858.435609 | AM216: 3862.697315 | AN216: 3866.959026 | AO216: 3871.220743 | AP216: 3875.482465 | AQ216: 3879.744193 | AR216: 3884.005927 | AS216: =(AS184)*8760 -> 3888.267666 | AT216: 3892.52941 | AU216: 3896.791161 | AV216: 3901.052917
K217: TRG 3 - High | L217: =(L185)*8760 -> 3481.245419 | M217: 3481.245419 | N217: 3481.245419 | O217: 3481.245419 | P217: 3481.245419 | Q217: 3481.245419 | R217: 3481.245419 | S217: 3481.245419 | T217: 3481.245419 | U217: 3481.245419 | V217: 3481.245419 | W217: 3481.245419 | X217: 3481.245419 | Y217: 3481.245419 | Z217: 3481.245419 | AA217: 3481.245419 | AB217: 3481.245419 | AC217: 3481.245419 | AD217: 3481.245419 | AE217: 3481.245419 | AF217: 3481.245419 | AG217: 3481.245419 | AH217: 3481.245419 | AI217: 3481.245419 | AJ217: 3481.245419 | AK217: 3481.245419 | AL217: 3481.245419 | AM217: 3481.245419 | AN217: 3481.245419 | AO217: 3481.245419 | AP217: 3481.245419 | AQ217: 3481.245419 | AR217: 3481.245419 | AS217: 3481.245419 | AT217: 3481.245419 | AU217: 3481.245419 | AV217: 3481.245419
K218: TRG 4 - Low | L218: =(L186)*8760 -> 2956.919503 | M218: 2959.6198 | N218: 2962.187885 | O218: 2978.586266 | P218: 2994.984972 | Q218: 3011.384033 | R218: 3027.783483 | S218: 3126.701022 | T218: 3225.619555 | U218: 3324.539203 | V218: 3327.105016 | W218: 3329.670911 | X218: 3332.236893 | Y218: 3334.802965 | Z218: 3337.369131 | AA218: 3339.935395 | AB218: 3342.501761 | AC218: 3344.234293 | AD218: 3345.966852 | AE218: 3347.699438 | AF218: 3349.432052 | AG218: 3351.164694 | AH218: 3352.897364 | AI218: 3354.630065 | AJ218: 3356.362796 | AK218: 3358.095557 | AL218: 3359.828351 | AM218: 3366.706679 | AN218: 3373.585038 | AO218: 3380.463428 | AP218: 3387.34185 | AQ218: 3394.220305 | AR218: 3401.098793 | AS218: 3407.977315 | AT218: 3414.855872 | AU218: 3421.734464 | AV218: 3428.613092
K219: TRG 4 - Mid | L219: =(L187)*8760 -> 2956.919503 | M219: 2957.0553 | N219: 2957.058007 | O219: 2973.766627 | P219: 2990.47552 | Q219: 3007.184711 | R219: 3023.894226 | S219: 3089.33315 | T219: 3154.772788 | U219: 3220.213224 | V219: 3222.957925 | W219: 3225.70264 | X219: 3228.447372 | Y219: 3231.192118 | Z219: 3233.936881 | AA219: 3236.681661 | AB219: 3239.426456 | AC219: 3243.213734 | AD219: 3247.001016 | AE219: 3250.7883 | AF219: 3254.575589 | AG219: 3258.362881 | AH219: 3262.150176 | AI219: 3265.937475 | AJ219: 3269.724778 | AK219: 3273.512084 | AL219: 3277.299394 | AM219: 3280.919226 | AN219: 3284.539062 | AO219: 3288.158902 | AP219: 3291.778748 | AQ219: 3295.398598 | AR219: 3299.018452 | AS219: 3302.638312 | AT219: 3306.258176 | AU219: 3309.878045 | AV219: 3313.497919
K220: TRG 4 - High | L220: =(L188)*8760 -> 2956.919503 | M220: 2956.919503 | N220: 2956.919503 | O220: 2956.919503 | P220: 2956.919503 | Q220: 2956.919503 | R220: 2956.919503 | S220: 2956.919503 | T220: 2956.919503 | U220: 2956.919503 | V220: 2956.919503 | W220: 2956.919503 | X220: 2956.919503 | Y220: 2956.919503 | Z220: 2956.919503 | AA220: 2956.919503 | AB220: 2956.919503 | AC220: 2956.919503 | AD220: 2956.919503 | AE220: 2956.919503 | AF220: 2956.919503 | AG220: 2956.919503 | AH220: 2956.919503 | AI220: 2956.919503 | AJ220: 2956.919503 | AK220: 2956.919503 | AL220: 2956.919503 | AM220: 2956.919503 | AN220: 2956.919503 | AO220: 2956.919503 | AP220: 2956.919503 | AQ220: 2956.919503 | AR220: 2956.919503 | AS220: 2956.919503 | AT220: 2956.919503 | AU220: 2956.919503 | AV220: 2956.919503
K221: TRG 5 - Low | L221: =(L189)*8760 -> 4113.218261 | M221: 4115.333781 | N221: 4117.074972 | O221: 4139.062084 | P221: 4160.991345 | Q221: 4182.857282 | R221: 4204.653712 | S221: 4339.790953 | T221: 4474.605911 | U221: 4609.058591 | V221: 4612.037673 | W221: 4615.000207 | X221: 4617.945508 | Y221: 4620.872852 | Z221: 4623.781472 | AA221: 4626.670558 | AB221: 4629.539254 | AC221: 4631.528821 | AD221: 4633.512055 | AE221: 4635.488817 | AF221: 4637.458965 | AG221: 4639.422351 | AH221: 4641.378824 | AI221: 4643.328229 | AJ221: 4645.270405 | AK221: 4647.205185 | AL221: 4649.132401 | AM221: 4658.141965 | AN221: 4667.142584 | AO221: 4676.134074 | AP221: 4685.116246 | AQ221: 4694.088907 | AR221: 4703.051858 | AS221: 4712.004894 | AT221: 4720.947805 | AU221: 4729.880374 | AV221: 4738.802379
K222: TRG 5 - Mid | L222: =(L190)*8760 -> 4113.218261 | M222: 4113.616895 | N222: 4113.853729 | O222: 4136.454916 | P222: 4159.011713 | Q222: 4181.520142 | R222: 4203.975738 | S222: 4293.61228 | T222: 4383.089038 | U222: 4472.387075 | V222: 4476.25046 | W222: 4480.114564 | X222: 4483.979401 | Y222: 4487.844982 | Z222: 4491.711323 | AA222: 4495.578437 | AB222: 4499.446337 | AC222: 4504.583208 | AD222: 4509.719194 | AE222: 4514.854288 | AF222: 4519.988485 | AG222: 4525.121777 | AH222: 4530.254157 | AI222: 4535.38562 | AJ222: 4540.516158 | AK222: 4545.645764 | AL222: 4550.774432 | AM222: 4555.64718 | AN222: 4560.518727 | AO222: 4565.389064 | AP222: 4570.258179 | AQ222: 4575.126062 | AR222: 4579.992704 | AS222: =(AS190)*8760 -> 4584.858092 | AT222: 4589.722217 | AU222: 4594.585068 | AV222: 4599.446632
K223: TRG 5 - High | L223: =(L191)*8760 -> 4113.218261 | M223: 4113.218261 | N223: 4113.218261 | O223: 4113.218261 | P223: 4113.218261 | Q223: 4113.218261 | R223: 4113.218261 | S223: 4113.218261 | T223: 4113.218261 | U223: 4113.218261 | V223: 4113.218261 | W223: 4113.218261 | X223: 4113.218261 | Y223: 4113.218261 | Z223: 4113.218261 | AA223: 4113.218261 | AB223: 4113.218261 | AC223: 4113.218261 | AD223: 4113.218261 | AE223: 4113.218261 | AF223: 4113.218261 | AG223: 4113.218261 | AH223: 4113.218261 | AI223: 4113.218261 | AJ223: 4113.218261 | AK223: 4113.218261 | AL223: 4113.218261 | AM223: 4113.218261 | AN223: 4113.218261 | AO223: 4113.218261 | AP223: 4113.218261 | AQ223: 4113.218261 | AR223: 4113.218261 | AS223: =(AS191)*8760 -> 4113.218261 | AT223: 4113.218261 | AU223: 4113.218261 | AV223: 4113.218261
K224: TRG 6 - Low | L224: =(L192)*8760 -> 3867.028108 | M224: 3869.017006 | N224: 3870.653981 | O224: 3891.32509 | P224: 3911.941809 | Q224: 3932.498995 | R224: 3952.990835 | S224: 4080.03965 | T224: 4206.785473 | U224: 4333.190701 | V224: 4335.991475 | W224: 4338.776691 | X224: 4341.545706 | Y224: 4344.297838 | Z224: 4347.032367 | AA224: 4349.748532 | AB224: 4352.445527 | AC224: 4354.316011 | AD224: 4356.180542 | AE224: 4358.038988 | AF224: 4359.891215 | AG224: 4361.737086 | AH224: 4363.576458 | AI224: 4365.409184 | AJ224: 4367.235114 | AK224: 4369.054091 | AL224: 4370.865956 | AM224: 4379.336268 | AN224: 4387.798169 | AO224: 4396.251487 | AP224: 4404.696046 | AQ224: 4413.131662 | AR224: 4421.55815 | AS224: 4429.975316 | AT224: 4438.382964 | AU224: 4446.780888 | AV224: 4455.168881
K225: TRG 6 - Mid | L225: =(L193)*8760 -> 3867.028108 | M225: 3867.402881 | N225: 3867.62554 | O225: 3888.87397 | P225: 3910.080665 | Q225: 3931.241887 | R225: 3952.353439 | S225: 4036.624928 | T225: 4120.746197 | U225: 4204.699441 | V225: 4208.33159 | W225: 4211.964414 | X225: 4215.597927 | Y225: 4219.232141 | Z225: 4222.867068 | AA225: 4226.502721 | AB225: 4230.139115 | AC225: 4234.968526 | AD225: 4239.797106 | AE225: 4244.624847 | AF225: 4249.451745 | AG225: 4254.277792 | AH225: 4259.102982 | AI225: 4263.927309 | AJ225: 4268.750766 | AK225: 4273.573348 | AL225: 4278.395048 | AM225: 4282.976145 | AN225: 4287.556114 | AO225: 4292.134944 | AP225: 4296.712626 | AQ225: 4301.28915 | AR225: 4305.864506 | AS225: 4310.438685 | AT225: 4315.011675 | AU225: 4319.583467 | AV225: 4324.154051
... 311 more rows

Sheet Solar - Utility PV
A1: Solar Utility PV Inputs
T3: Inputs
J4: Take me to: | T4: Calculated
B10: X | G10: Current Costs
H12: Techno-Economic Cost and Performance Parameters | J12: Net Capacity Factor (%) | K12: Utility PV - 14% | L12: 0.14 | O12: Basis Year: | Q12: 2014
K13: Utility PV - 20% | L13: 0.2
K14: Utility PV - 28% | L14: 0.28 | O14: Utility Scale Solar Photovoltaic
O15: Representative plant is Single Axis tracking with capacity of 100 MW
J16: Annual Energy Production (kWh/kW) | K16: Utility PV - 14% | L16: =L12*8760 -> 1226.4 | O16: Overnight Capital Cost, Fixed O&M, and Variable O&M costs represent $/kW DC;
K17: Utility PV - 20% | L17: =L13*8760 -> 1752 | O17: Capacity factor includes a conversion to AC. Therefore LCOE reflects $/MWh AC.
K18: Utility PV - 28% | L18: =L14*8760 -> 2452.8 | O18: Capacity factors chosen here to reflect range across the continental U.S. in ReEDS.
O19: PV Low, Mid, and High represent projections from 18 price projections from 10 separate institutions. | S19: Available | T19: Available
J20: CAPEX ($/kW) | K20: Utility PV - 14% | L20: =L24+L28 -> 2024.203135 | S20: Capacity | T20: Generation
K21: Utility PV - 20% | L21: =L25+L29 -> 2024.203135 | S21: (GW) | T21: (GWh)
K22: Utility PV - 28% | L22: 2024.203135 | S22: 176965
O23: Utility PV - 14% | Q23: ReEDS minimum CF 14%
J24: Construction Financing Cost ($/kW) | K24: Utility PV - 14% | L24: =(L28+L46)*($S$40-1) -> 46.55056123 | O24: Utility PV - 20% | Q24: ReEDS average CF 20%
K25: Utility PV - 20% | L25: =(L29+L47)*($S$40-1) -> 46.55056123 | O25: Utility PV - 28% | Q25: ReEDS maximum CF 28%
K26: Utility PV - 28% | L26: =(L30+L48)*($S$40-1) -> 46.55056123
O27: Financial Assumptions:
J28: Overnight Capital Cost ($/kW) | K28: Utility PV - 14% | L28: =L118 -> 1977.652573 | O28: Inflation Rate | S28: 0.025
K29: Utility PV - 20% | L29: =L119 -> 1977.652573 | O29: Economic Lifetime (Years) | S29: 20
K30: Utility PV - 28% | L30: =L120 -> 1977.652573 | O30: Interest Rate - Nominal | S30: 0.08
O31: Calculated Interest Rate - Real | S31: =(1+S30)/(1+S28)-1 -> 0.05365853659
J32: Fixed Operation and Maintenance Expenses ($/kW-yr) | K32: Utility PV - 14% | L32: =20*0.8333 -> 16.666 | O32: Interest During Construction - Nominal | S32: 0.08
K33: Utility PV - 20% | L33: =20*0.8333 -> 16.666 | O33: Rate of Return on Equity - Nominal | S33: 0.13
K34: Utility PV - 28% | L34: =20*0.8333 -> 16.666 | O34: Calculated Rate of Return on Equity - Real | S34: =(1+S33)/(1+S28) - 1 -> 0.1024390244
O35: Debt Fraction | S35: 0.6
J36: Variable Operation and Maintenance Expenses ($/MWh) | K36: Utility PV - 14% | L36: 0 | O36: Tax Rate (Federal and State) | S36: 0.4
K37: Utility PV - 20% | L37: 0 | O37: WACC - Nominal | S37: =IF(S36>0,S35*S30*(1-S36)+(1-S35)*S33,S35*S30+(1-S35)*S33) -> 0.0808
K38: Utility PV - 28% | L38: 0 | O38: WACC - Real | S38: =((1+((1-S35)*((1+S34)*(1+S28)-1)) + (S35*((1+S31)*(1+S28)-1)*(1-S36))) / (1+S28)) - 1 -> 0.05443902439
O39: Depreciation Period | S39: 5
O40: Construction Finance Factor | S40: =SUMPRODUCT(P49:P51,Q49:Q51) -> 1.023538291
H41: Finance | J41: Weighted Average Cost of Capital (WACC) (Nominal) (%) | K41: Utility PV - 14% | L41: =$S$37 -> 0.0808 | O41: Present Value of Depreciation | S41: =SUMPRODUCT(O54:T54,O56:T56) -> 0.8097434573
K42: Utility PV - 20% | L42: =$S$37 -> 0.0808 | O42: Project Finance Factor | S42: =(1 - S36 * S41) / (1 - S36) -> 1.126837695
K43: Utility PV - 28% | L43: =$S$37 -> 0.0808 | O43: Capital Recovery Factor (CRF) - Nominal | S43: =S37 / (1 - (1 / (1 + S37)^S29)) -> 0.1024593157
O44: Capital Recovery Factor (CRF) - Real | S44: =S38 / (1 - (1 / (1 + S38)^S29)) -> 0.08329029943
H46: Grid Connection Costs | J46: Grid Connection Costs (GCC) ($/kW) | K46: Utility PV - 14% | L46: =L50+L54 -> 0 | O46: Construction Duration yrs | Q46: 1
K47: Utility PV - 20% | L47: =L51+L55 -> 0 | O47: Year | P47: Capital | Q47: Accumulated
K48: Utility PV - 28% | L48: =L52+L56 -> 0 | O48: Index | P48: Fraction | Q48: Interest
O49: 0 | P49: 1 | Q49: =1+(1-S36)*((1+S32)^(O49+0.5)-1) -> 1.023538291
J50: Grid Feature Costs ($/kW) | K50: Utility PV - 14% | L50: 0 | O50: 1 | P50: 0 | Q50: =1+(1-S36)*((1+S32)^(O50+0.5)-1) -> 1.073421354
K51: Utility PV - 20% | L51: 0 | O51: 2 | P51: 0 | Q51: =1+(1-S36)*((1+S32)^(O51+0.5)-1) -> 1.127295062
K52: Utility PV - 28% | L52: 0
N53: MACRS yr | O53: 1 | P53: 2 | Q53: 3 | R53: 4 | S53: 5 | T53: 6
J54: Onshore Spur Line Costs ($/kW) | K54: Utility PV - 14% | L54: 0 | N54: Depreciation | O54: 0.2 | P54: 0.32 | Q54: 0.192 | R54: 0.1152 | S54: 0.1152 | T54: 0.0576
K55: Utility PV - 20% | L55: 0 | N55: Fraction
K56: Utility PV - 28% | L56: 0 | N56: Depreciation | O56: =1/((1+S38)*(1+S28))^O53 -> 0.9252405625 | P56: =1/((1+S38)*(1+S28))^P53 -> 0.8560700986 | Q56: =1/((1+S38)*(1+S28))^Q53 -> 0.7920707796 | R56: =1/((1+S38)*(1+S28))^R53 -> 0.7328560137 | S56: =1/((1+S38)*(1+S28))^S53 -> 0.6780681104 | T56: =1/((1+S38)*(1+S28))^T53 -> 0.6273761199
N57: Factor
H59: LCOE | J59: Levelized Cost of Energy ($/MWh) | K59: Utility PV - 14% | L59: =(($S$44 * $S$42 * $S$40 * (L28 * 1 + L46) +L32) * 1000 / (L12 * 8760)) + L36 + 0 -> 168.4987563 | O59: Investment Tax Credit (ITC)* | S59: 0
K60: Utility PV - 20% | L60: =(($S$44 * $S$42 * $S$40 * (L29 * 1 + L47) +L33) * 1000 / (L13 * 8760)) + L37 + 0 -> 117.9491294 | O60: Production Tax Credit (PTC)* | S60: 0
K61: Utility PV - 28% | L61: =(($S$44 * $S$42 * $S$40 * (L30 * 1 + L48) +L34) * 1000 / (L14 * 8760)) + L38 + 0 -> 84.24937817 | O61: * not currently included in LCOE calculation
J63: Overnight Levelized Cost of Energy ($/MWh) | K63: Utility PV - 14% | L63: =(((L28*$S$44*(1-$S$36*$S$41))/(8760*L12*(1-$S$36))+L32/(8760*L12))*1000)+L36 -> 164.9363081 | M63: * this is similar to the LCOE used in the TCDB (Transparent Cost Database)
K64: Utility PV - 20% | L64: =(((L29*$S$44*(1-$S$36*$S$41))/(8760*L13*(1-$S$36))+L33/(8760*L13))*1000)+L37 -> 115.4554156
K65: Utility PV - 28% | L65: =(((L30*$S$44*(1-$S$36*$S$41))/(8760*L14*(1-$S$36))+L34/(8760*L14))*1000)+L38 -> 82.46815403
H68: ***Note: For future projections, low, mid, and high refer to the resulting low, mid, and high LCOE projections.
D71: X | G71: Future Projections
L72: Basis Year
L73: 2014 | M73: 2015 | N73: 2016 | O73: 2017 | P73: 2018 | Q73: 2019 | R73: 2020 | S73: 2021 | T73: 2022 | U73: 2023 | V73: 2024 | W73: 2025 | X73: 2026 | Y73: 2027 | Z73: 2028 | AA73: 2029 | AB73: 2030 | AC73: 2031 | AD73: 2032 | AE73: 2033 | AF73: 2034 | AG73: 2035 | AH73: 2036 | AI73: 2037 | AJ73: 2038 | AK73: 2039 | AL73: 2040 | AM73: 2041 | AN73: 2042 | AO73: 2043 | AP73: 2044 | AQ73: 2045 | AR73: 2046 | AS73: 2047 | AT73: 2048 | AU73: 2049 | AV73: 2050
H74: Techno-Economic Cost and Performance Parameters | J74: Net Capacity Factor (%) | K74: Utility PV - 14% - Low | L74: 0.14 | M74: 0.14 | N74: 0.14 | O74: 0.14 | P74: 0.14 | Q74: 0.14 | R74: 0.14 | S74: 0.14 | T74: 0.14 | U74: 0.14 | V74: 0.14 | W74: 0.14 | X74: 0.14 | Y74: 0.14 | Z74: 0.14 | AA74: 0.14 | AB74: 0.14 | AC74: 0.14 | AD74: 0.14 | AE74: 0.14 | AF74: 0.14 | AG74: 0.14 | AH74: 0.14 | AI74: 0.14 | AJ74: 0.14 | AK74: 0.14 | AL74: 0.14 | AM74: 0.14 | AN74: 0.14 | AO74: 0.14 | AP74: 0.14 | AQ74: 0.14 | AR74: 0.14 | AS74: 0.14 | AT74: 0.14 | AU74: 0.14 | AV74: 0.14
K75: Utility PV - 14% - Mid | L75: 0.14 | M75: 0.14 | N75: 0.14 | O75: 0.14 | P75: 0.14 | Q75: 0.14 | R75: 0.14 | S75: 0.14 | T75: 0.14 | U75: 0.14 | V75: 0.14 | W75: 0.14 | X75: 0.14 | Y75: 0.14 | Z75: 0.14 | AA75: 0.14 | AB75: 0.14 | AC75: 0.14 | AD75: 0.14 | AE75: 0.14 | AF75: 0.14 | AG75: 0.14 | AH75: 0.14 | AI75: 0.14 | AJ75: 0.14 | AK75: 0.14 | AL75: 0.14 | AM75: 0.14 | AN75: 0.14 | AO75: 0.14 | AP75: 0.14 | AQ75: 0.14 | AR75: 0.14 | AS75: 0.14 | AT75: 0.14 | AU75: 0.14 | AV75: 0.14
K76: Utility PV - 14% - High | L76: 0.14 | M76: 0.14 | N76: 0.14 | O76: 0.14 | P76: 0.14 | Q76: 0.14 | R76: 0.14 | S76: 0.14 | T76: 0.14 | U76: 0.14 | V76: 0.14 | W76: 0.14 | X76: 0.14 | Y76: 0.14 | Z76: 0.14 | AA76: 0.14 | AB76: 0.14 | AC76: 0.14 | AD76: 0.14 | AE76: 0.14 | AF76: 0.14 | AG76: 0.14 | AH76: 0.14 | AI76: 0.14 | AJ76: 0.14 | AK76: 0.14 | AL76: 0.14 | AM76: 0.14 | AN76: 0.14 | AO76: 0.14 | AP76: 0.14 | AQ76: 0.14 | AR76: 0.14 | AS76: 0.14 | AT76: 0.14 | AU76: 0.14 | AV76: 0.14
K77: Utility PV - 20% - Low | L77: 0.2 | M77: 0.2 | N77: 0.2 | O77: 0.2 | P77: 0.2 | Q77: 0.2 | R77: 0.2 | S77: 0.2 | T77: 0.2 | U77: 0.2 | V77: 0.2 | W77: 0.2 | X77: 0.2 | Y77: 0.2 | Z77: 0.2 | AA77: 0.2 | AB77: 0.2 | AC77: 0.2 | AD77: 0.2 | AE77: 0.2 | AF77: 0.2 | AG77: 0.2 | AH77: 0.2 | AI77: 0.2 | AJ77: 0.2 | AK77: 0.2 | AL77: 0.2 | AM77: 0.2 | AN77: 0.2 | AO77: 0.2 | AP77: 0.2 | AQ77: 0.2 | AR77: 0.2 | AS77: 0.2 | AT77: 0.2 | AU77: 0.2 | AV77: 0.2
K78: Utility PV - 20% - Mid | L78: 0.2 | M78: 0.2 | N78: 0.2 | O78: 0.2 | P78: 0.2 | Q78: 0.2 | R78: 0.2 | S78: 0.2 | T78: 0.2 | U78: 0.2 | V78: 0.2 | W78: 0.2 | X78: 0.2 | Y78: 0.2 | Z78: 0.2 | AA78: 0.2 | AB78: 0.2 | AC78: 0.2 | AD78: 0.2 | AE78: 0.2 | AF78: 0.2 | AG78: 0.2 | AH78: 0.2 | AI78: 0.2 | AJ78: 0.2 | AK78: 0.2 | AL78: 0.2 | AM78: 0.2 | AN78: 0.2 | AO78: 0.2 | AP78: 0.2 | AQ78: 0.2 | AR78: 0.2 | AS78: 0.2 | AT78: 0.2 | AU78: 0.2 | AV78: 0.2
K79: Utility PV - 20% - High | L79: 0.2 | M79: 0.2 | N79: 0.2 | O79: 0.2 | P79: 0.2 | Q79: 0.2 | R79: 0.2 | S79: 0.2 | T79: 0.2 | U79: 0.2 | V79: 0.2 | W79: 0.2 | X79: 0.2 | Y79: 0.2 | Z79: 0.2 | AA79: 0.2 | AB79: 0.2 | AC79: 0.2 | AD79: 0.2 | AE79: 0.2 | AF79: 0.2 | AG79: 0.2 | AH79: 0.2 | AI79: 0.2 | AJ79: 0.2 | AK79: 0.2 | AL79: 0.2 | AM79: 0.2 | AN79: 0.2 | AO79: 0.2 | AP79: 0.2 | AQ79: 0.2 | AR79: 0.2 | AS79: 0.2 | AT79: 0.2 | AU79: 0.2 | AV79: 0.2
K80: Utility PV - 28% - Low | L80: 0.28 | M80: 0.28 | N80: 0.28 | O80: 0.28 | P80: 0.28 | Q80: 0.28 | R80: 0.28 | S80: 0.28 | T80: 0.28 | U80: 0.28 | V80: 0.28 | W80: 0.28 | X80: 0.28 | Y80: 0.28 | Z80: 0.28 | AA80: 0.28 | AB80: 0.28 | AC80: 0.28 | AD80: 0.28 | AE80: 0.28 | AF80: 0.28 | AG80: 0.28 | AH80: 0.28 | AI80: 0.28 | AJ80: 0.28 | AK80: 0.28 | AL80: 0.28 | AM80: 0.28 | AN80: 0.28 | AO80: 0.28 | AP80: 0.28 | AQ80: 0.28 | AR80: 0.28 | AS80: 0.28 | AT80: 0.28 | AU80: 0.28 | AV80: 0.28
K81: Utility PV - 28% - Mid | L81: 0.28 | M81: 0.28 | N81: 0.28 | O81: 0.28 | P81: 0.28 | Q81: 0.28 | R81: 0.28 | S81: 0.28 | T81: 0.28 | U81: 0.28 | V81: 0.28 | W81: 0.28 | X81: 0.28 | Y81: 0.28 | Z81: 0.28 | AA81: 0.28 | AB81: 0.28 | AC81: 0.28 | AD81: 0.28 | AE81: 0.28 | AF81: 0.28 | AG81: 0.28 | AH81: 0.28 | AI81: 0.28 | AJ81: 0.28 | AK81: 0.28 | AL81: 0.28 | AM81: 0.28 | AN81: 0.28 | AO81: 0.28 | AP81: 0.28 | AQ81: 0.28 | AR81: 0.28 | AS81: 0.28 | AT81: 0.28 | AU81: 0.28 | AV81: 0.28
K82: Utility PV - 28% - High | L82: 0.28 | M82: 0.28 | N82: 0.28 | O82: 0.28 | P82: 0.28 | Q82: 0.28 | R82: 0.28 | S82: 0.28 | T82: 0.28 | U82: 0.28 | V82: 0.28 | W82: 0.28 | X82: 0.28 | Y82: 0.28 | Z82: 0.28 | AA82: 0.28 | AB82: 0.28 | AC82: 0.28 | AD82: 0.28 | AE82: 0.28 | AF82: 0.28 | AG82: 0.28 | AH82: 0.28 | AI82: 0.28 | AJ82: 0.28 | AK82: 0.28 | AL82: 0.28 | AM82: 0.28 | AN82: 0.28 | AO82: 0.28 | AP82: 0.28 | AQ82: 0.28 | AR82: 0.28 | AS82: 0.28 | AT82: 0.28 | AU82: 0.28 | AV82: 0.28
L84: 2014 | M84: 2015 | N84: 2016 | O84: 2017 | P84: 2018 | Q84: 2019 | R84: 2020 | S84: 2021 | T84: 2022 | U84: 2023 | V84: 2024 | W84: 2025 | X84: 2026 | Y84: 2027 | Z84: 2028 | AA84: 2029 | AB84: 2030 | AC84: 2031 | AD84: 2032 | AE84: 2033 | AF84: 2034 | AG84: 2035 | AH84: 2036 | AI84: 2037 | AJ84: 2038 | AK84: 2039 | AL84: 2040 | AM84: 2041 | AN84: 2042 | AO84: 2043 | AP84: 2044 | AQ84: 2045 | AR84: 2046 | AS84: 2047 | AT84: 2048 | AU84: 2049 | AV84: 2050
J85: Annual Energy Production (kWh/kW) | K85: Utility PV - 14% - Low | L85: =L74*8760 -> 1226.4 | M85: 1226.4 | N85: 1226.4 | O85: 1226.4 | P85: 1226.4 | Q85: 1226.4 | R85: 1226.4 | S85: 1226.4 | T85: 1226.4 | U85: 1226.4 | V85: 1226.4 | W85: 1226.4 | X85: 1226.4 | Y85: 1226.4 | Z85: 1226.4 | AA85: 1226.4 | AB85: 1226.4 | AC85: 1226.4 | AD85: 1226.4 | AE85: 1226.4 | AF85: 1226.4 | AG85: 1226.4 | AH85: 1226.4 | AI85: 1226.4 | AJ85: 1226.4 | AK85: 1226.4 | AL85: 1226.4 | AM85: 1226.4 | AN85: 1226.4 | AO85: 1226.4 | AP85: 1226.4 | AQ85: 1226.4 | AR85: 1226.4 | AS85: 1226.4 | AT85: 1226.4 | AU85: 1226.4 | AV85: 1226.4
K86: Utility PV - 14% - Mid | L86: =L75*8760 -> 1226.4 | M86: 1226.4 | N86: 1226.4 | O86: 1226.4 | P86: 1226.4 | Q86: 1226.4 | R86: 1226.4 | S86: 1226.4 | T86: 1226.4 | U86: 1226.4 | V86: 1226.4 | W86: 1226.4 | X86: 1226.4 | Y86: 1226.4 | Z86: 1226.4 | AA86: 1226.4 | AB86: 1226.4 | AC86: 1226.4 | AD86: 1226.4 | AE86: 1226.4 | AF86: 1226.4 | AG86: 1226.4 | AH86: 1226.4 | AI86: 1226.4 | AJ86: 1226.4 | AK86: 1226.4 | AL86: 1226.4 | AM86: 1226.4 | AN86: 1226.4 | AO86: 1226.4 | AP86: 1226.4 | AQ86: 1226.4 | AR86: 1226.4 | AS86: 1226.4 | AT86: 1226.4 | AU86: 1226.4 | AV86: 1226.4
K87: Utility PV - 14% - High | L87: =L76*8760 -> 1226.4 | M87: 1226.4 | N87: 1226.4 | O87: 1226.4 | P87: 1226.4 | Q87: 1226.4 | R87: 1226.4 | S87: 1226.4 | T87: 1226.4 | U87: 1226.4 | V87: 1226.4 | W87: 1226.4 | X87: 1226.4 | Y87: 1226.4 | Z87: 1226.4 | AA87: 1226.4 | AB87: 1226.4 | AC87: 1226.4 | AD87: 1226.4 | AE87: 1226.4 | AF87: 1226.4 | AG87: 1226.4 | AH87: 1226.4 | AI87: 1226.4 | AJ87: 1226.4 | AK87: 1226.4 | AL87: 1226.4 | AM87: 1226.4 | AN87: 1226.4 | AO87: 1226.4 | AP87: 1226.4 | AQ87: 1226.4 | AR87: 1226.4 | AS87: 1226.4 | AT87: 1226.4 | AU87: 1226.4 | AV87: 1226.4
K88: Utility PV - 20% - Low | L88: =L77*8760 -> 1752 | M88: 1752 | N88: 1752 | O88: 1752 | P88: 1752 | Q88: 1752 | R88: 1752 | S88: 1752 | T88: 1752 | U88: 1752 | V88: 1752 | W88: 1752 | X88: 1752 | Y88: 1752 | Z88: 1752 | AA88: 1752 | AB88: 1752 | AC88: 1752 | AD88: 1752 | AE88: 1752 | AF88: 1752 | AG88: 1752 | AH88: 1752 | AI88: 1752 | AJ88: 1752 | AK88: 1752 | AL88: 1752 | AM88: 1752 | AN88: 1752 | AO88: 1752 | AP88: 1752 | AQ88: 1752 | AR88: 1752 | AS88: 1752 | AT88: 1752 | AU88: 1752 | AV88: 1752
K89: Utility PV - 20% - Mid | L89: =L78*8760 -> 1752 | M89: 1752 | N89: 1752 | O89: 1752 | P89: 1752 | Q89: 1752 | R89: 1752 | S89: 1752 | T89: 1752 | U89: 1752 | V89: 1752 | W89: 1752 | X89: 1752 | Y89: 1752 | Z89: 1752 | AA89: 1752 | AB89: 1752 | AC89: 1752 | AD89: 1752 | AE89: 1752 | AF89: 1752 | AG89: 1752 | AH89: 1752 | AI89: 1752 | AJ89: 1752 | AK89: 1752 | AL89: 1752 | AM89: 1752 | AN89: 1752 | AO89: 1752 | AP89: 1752 | AQ89: 1752 | AR89: 1752 | AS89: 1752 | AT89: 1752 | AU89: 1752 | AV89: 1752
K90: Utility PV - 20% - High | L90: =L79*8760 -> 1752 | M90: 1752 | N90: 1752 | O90: 1752 | P90: 1752 | Q90: 1752 | R90: 1752 | S90: 1752 | T90: 1752 | U90: 1752 | V90: 1752 | W90: 1752 | X90: 1752 | Y90: 1752 | Z90: 1752 | AA90: 1752 | AB90: 1752 | AC90: 1752 | AD90: 1752 | AE90: 1752 | AF90: 1752 | AG90: 1752 | AH90: 1752 | AI90: 1752 | AJ90: 1752 | AK90: 1752 | AL90: 1752 | AM90: 1752 | AN90: 1752 | AO90: 1752 | AP90: 1752 | AQ90: 1752 | AR90: 1752 | AS90: 1752 | AT90: 1752 | AU90: 1752 | AV90: 1752
K91: Utility PV - 28% - Low | L91: =L80*8760 -> 2452.8 | M91: 2452.8 | N91: 2452.8 | O91: 2452.8 | P91: 2452.8 | Q91: 2452.8 | R91: 2452.8 | S91: 2452.8 | T91: 2452.8 | U91: 2452.8 | V91: 2452.8 | W91: 2452.8 | X91: 2452.8 | Y91: 2452.8 | Z91: 2452.8 | AA91: 2452.8 | AB91: 2452.8 | AC91: 2452.8 | AD91: 2452.8 | AE91: 2452.8 | AF91: 2452.8 | AG91: 2452.8 | AH91: 2452.8 | AI91: 2452.8 | AJ91: 2452.8 | AK91: 2452.8 | AL91: 2452.8 | AM91: 2452.8 | AN91: 2452.8 | AO91: 2452.8 | AP91: 2452.8 | AQ91: 2452.8 | AR91: 2452.8 | AS91: =AS80*8760 -> 2452.8 | AT91: 2452.8 | AU91: 2452.8 | AV91: 2452.8
K92: Utility PV - 28% - Mid | L92: =L81*8760 -> 2452.8 | M92: 2452.8 | N92: 2452.8 | O92: 2452.8 | P92: 2452.8 | Q92: 2452.8 | R92: 2452.8 | S92: 2452.8 | T92: 2452.8 | U92: 2452.8 | V92: 2452.8 | W92: 2452.8 | X92: 2452.8 | Y92: 2452.8 | Z92: 2452.8 | AA92: 2452.8 | AB92: 2452.8 | AC92: 2452.8 | AD92: 2452.8 | AE92: 2452.8 | AF92: 2452.8 | AG92: 2452.8 | AH92: 2452.8 | AI92: 2452.8 | AJ92: 2452.8 | AK92: 2452.8 | AL92: 2452.8 | AM92: 2452.8 | AN92: 2452.8 | AO92: 2452.8 | AP92: 2452.8 | AQ92: 2452.8 | AR92: 2452.8 | AS92: =AS81*8760 -> 2452.8 | AT92: 2452.8 | AU92: 2452.8 | AV92: 2452.8
K93: Utility PV - 28% - High | L93: =L82*8760 -> 2452.8 | M93: 2452.8 | N93: 2452.8 | O93: 2452.8 | P93: 2452.8 | Q93: 2452.8 | R93: 2452.8 | S93: 2452.8 | T93: 2452.8 | U93: 2452.8 | V93: 2452.8 | W93: 2452.8 | X93: 2452.8 | Y93: 2452.8 | Z93: 2452.8 | AA93: 2452.8 | AB93: 2452.8 | AC93: 2452.8 | AD93: 2452.8 | AE93: 2452.8 | AF93: 2452.8 | AG93: 2452.8 | AH93: 2452.8 | AI93: 2452.8 | AJ93: 2452.8 | AK93: 2452.8 | AL93: 2452.8 | AM93: 2452.8 | AN93: 2452.8 | AO93: 2452.8 | AP93: 2452.8 | AQ93: 2452.8 | AR93: 2452.8 | AS93: 2452.8 | AT93: 2452.8 | AU93: 2452.8 | AV93: 2452.8
L95: 2014 | M95: 2015 | N95: 2016 | O95: 2017 | P95: 2018 | Q95: 2019 | R95: 2020 | S95: 2021 | T95: 2022 | U95: 2023 | V95: 2024 | W95: 2025 | X95: 2026 | Y95: 2027 | Z95: 2028 | AA95: 2029 | AB95: 2030 | AC95: 2031 | AD95: 2032 | AE95: 2033 | AF95: 2034 | AG95: 2035 | AH95: 2036 | AI95: 2037 | AJ95: 2038 | AK95: 2039 | AL95: 2040 | AM95: 2041 | AN95: 2042 | AO95: 2043 | AP95: 2044 | AQ95: 2045 | AR95: 2046 | AS95: 2047 | AT95: 2048 | AU95: 2049 | AV95: 2050
J96: CAPEX ($/kW) | K96: Utility PV - 14% - Low | L96: =$S$40*(L118+L164) -> 2024.203135 | M96: =$S$40*(M118+M164) -> 1942.417149 | N96: 1780.885661 | O96: 1619.354172 | P96: 1457.822683 | Q96: 1296.291195 | R96: 1134.759706 | S96: 1079.250429 | T96: 1023.741151 | U96: 968.2318735 | V96: 912.722596 | W96: 857.2133185 | X96: 829.0660155 | Y96: 800.9187125 | Z96: 772.7714095 | AA96: 744.6241065 | AB96: 716.4768035 | AC96: 701.2550012 | AD96: 686.0331989 | AE96: 670.8113966 | AF96: 655.5895943 | AG96: 640.3677921 | AH96: 625.1459898 | AI96: 609.9241875 | AJ96: 594.7023852 | AK96: 579.4805829 | AL96: 564.2587806 | AM96: 551.1282885 | AN96: 537.9977964 | AO96: 524.8673043 | AP96: 511.7368122 | AQ96: 498.6063201 | AR96: 485.475828 | AS96: 472.3453359 | AT96: 459.2148438 | AU96: 446.0843517 | AV96: 432.9538595
K97: Utility PV - 14% - Mid | L97: =$S$40*(L119+L165) -> 2024.203135 | M97: 1942.417149 | N97: 1843.70592 | O97: 1744.99469 | P97: 1646.28346 | Q97: 1547.572231 | R97: 1448.861001 | S97: 1379.918497 | T97: 1310.975994 | U97: 1242.03349 | V97: 1173.090987 | W97: 1104.148483 | X97: 1091.438942 | Y97: 1078.7294 | Z97: 1066.019859 | AA97: 1053.310318 | AB97: 1040.600777 | AC97: 1030.355164 | AD97: 1020.109552 | AE97: 1009.86394 | AF97: 999.6183281 | AG97: 989.3727159 | AH97: 979.1271038 | AI97: 968.8814917 | AJ97: 958.6358795 | AK97: 948.3902674 | AL97: 938.1446552 | AM97: 929.4994444 | AN97: 920.8542336 | AO97: 912.2090228 | AP97: 903.5638119 | AQ97: 894.9186011 | AR97: 886.2733903 | AS97: 877.6281795 | AT97: 868.9829686 | AU97: 860.3377578 | AV97: 851.692547
K98: Utility PV - 14% - High | L98: =$S$40*(L120+L166) -> 2024.203135 | M98: =$S$40*(M120+M166) -> 1942.417149 | N98: 1942.417149 | O98: 1942.417149 | P98: 1942.417149 | Q98: 1942.417149 | R98: 1942.417149 | S98: 1942.417149 | T98: 1942.417149 | U98: 1942.417149 | V98: 1942.417149 | W98: 1942.417149 | X98: 1942.417149 | Y98: 1942.417149 | Z98: 1942.417149 | AA98: 1942.417149 | AB98: 1942.417149 | AC98: 1942.417149 | AD98: 1942.417149 | AE98: 1942.417149 | AF98: 1942.417149 | AG98: 1942.417149 | AH98: 1942.417149 | AI98: 1942.417149 | AJ98: 1942.417149 | AK98: 1942.417149 | AL98: 1942.417149 | AM98: 1942.417149 | AN98: 1942.417149 | AO98: 1942.417149 | AP98: 1942.417149 | AQ98: 1942.417149 | AR98: 1942.417149 | AS98: 1942.417149 | AT98: 1942.417149 | AU98: 1942.417149 | AV98: 1942.417149
K99: Utility PV - 20% - Low | L99: =$S$40*(L121+L167) -> 2024.203135 | M99: 1942.417149 | N99: 1780.885661 | O99: 1619.354172 | P99: 1457.822683 | Q99: 1296.291195 | R99: 1134.759706 | S99: 1079.250429 | T99: 1023.741151 | U99: 968.2318735 | V99: 912.722596 | W99: 857.2133185 | X99: 829.0660155 | Y99: 800.9187125 | Z99: 772.7714095 | AA99: 744.6241065 | AB99: 716.4768035 | AC99: 701.2550012 | AD99: 686.0331989 | AE99: 670.8113966 | AF99: 655.5895943 | AG99: 640.3677921 | AH99: 625.1459898 | AI99: 609.9241875 | AJ99: 594.7023852 | AK99: 579.4805829 | AL99: 564.2587806 | AM99: 551.1282885 | AN99: 537.9977964 | AO99: 524.8673043 | AP99: 511.7368122 | AQ99: 498.6063201 | AR99: 485.475828 | AS99: 472.3453359 | AT99: 459.2148438 | AU99: 446.0843517 | AV99: 432.9538595
K100: Utility PV - 20% - Mid | L100: =$S$40*(L122+L168) -> 2024.203135 | M100: 1942.417149 | N100: 1843.70592 | O100: 1744.99469 | P100: 1646.28346 | Q100: 1547.572231 | R100: 1448.861001 | S100: 1379.918497 | T100: 1310.975994 | U100: 1242.03349 | V100: 1173.090987 | W100: 1104.148483 | X100: 1091.438942 | Y100: 1078.7294 | Z100: 1066.019859 | AA100: 1053.310318 | AB100: 1040.600777 | AC100: 1030.355164 | AD100: 1020.109552 | AE100: 1009.86394 | AF100: 999.6183281 | AG100: 989.3727159 | AH100: 979.1271038 | AI100: 968.8814917 | AJ100: 958.6358795 | AK100: 948.3902674 | AL100: 938.1446552 | AM100: 929.4994444 | AN100: 920.8542336 | AO100: 912.2090228 | AP100: 903.5638119 | AQ100: 894.9186011 | AR100: 886.2733903 | AS100: 877.6281795 | AT100: 868.9829686 | AU100: 860.3377578 | AV100: 851.692547
K101: Utility PV - 20% - High | L101: =$S$40*(L123+L169) -> 2024.203135 | M101: 1942.417149 | N101: 1942.417149 | O101: 1942.417149 | P101: 1942.417149 | Q101: 1942.417149 | R101: 1942.417149 | S101: 1942.417149 | T101: 1942.417149 | U101: 1942.417149 | V101: 1942.417149 | W101: 1942.417149 | X101: 1942.417149 | Y101: 1942.417149 | Z101: 1942.417149 | AA101: 1942.417149 | AB101: 1942.417149 | AC101: 1942.417149 | AD101: 1942.417149 | AE101: 1942.417149 | AF101: 1942.417149 | AG101: 1942.417149 | AH101: 1942.417149 | AI101: 1942.417149 | AJ101: 1942.417149 | AK101: 1942.417149 | AL101: 1942.417149 | AM101: 1942.417149 | AN101: 1942.417149 | AO101: 1942.417149 | AP101: 1942.417149 | AQ101: 1942.417149 | AR101: 1942.417149 | AS101: 1942.417149 | AT101: 1942.417149 | AU101: 1942.417149 | AV101: 1942.417149
K102: Utility PV - 28% - Low | L102: =$S$40*(L124+L170) -> 2024.203135 | M102: 1942.417149 | N102: 1780.885661 | O102: 1619.354172 | P102: 1457.822683 | Q102: 1296.291195 | R102: 1134.759706 | S102: 1079.250429 | T102: 1023.741151 | U102: 968.2318735 | V102: 912.722596 | W102: 857.2133185 | X102: 829.0660155 | Y102: 800.9187125 | Z102: 772.7714095 | AA102: 744.6241065 | AB102: 716.4768035 | AC102: 701.2550012 | AD102: 686.0331989 | AE102: 670.8113966 | AF102: 655.5895943 | AG102: 640.3677921 | AH102: 625.1459898 | AI102: 609.9241875 | AJ102: 594.7023852 | AK102: 579.4805829 | AL102: 564.2587806 | AM102: 551.1282885 | AN102: 537.9977964 | AO102: 524.8673043 | AP102: 511.7368122 | AQ102: 498.6063201 | AR102: 485.475828 | AS102: =$S$40*(AS124+AS170) -> 472.3453359 | AT102: 459.2148438 | AU102: 446.0843517 | AV102: 432.9538595
K103: Utility PV - 28% - Mid | L103: =$S$40*(L125+L171) -> 2024.203135 | M103: 1942.417149 | N103: 1843.70592 | O103: 1744.99469 | P103: 1646.28346 | Q103: 1547.572231 | R103: 1448.861001 | S103: 1379.918497 | T103: 1310.975994 | U103: 1242.03349 | V103: 1173.090987 | W103: 1104.148483 | X103: 1091.438942 | Y103: 1078.7294 | Z103: 1066.019859 | AA103: 1053.310318 | AB103: 1040.600777 | AC103: 1030.355164 | AD103: 1020.109552 | AE103: 1009.86394 | AF103: 999.6183281 | AG103: 989.3727159 | AH103: 979.1271038 | AI103: 968.8814917 | AJ103: 958.6358795 | AK103: 948.3902674 | AL103: 938.1446552 | AM103: 929.4994444 | AN103: 920.8542336 | AO103: 912.2090228 | AP103: 903.5638119 | AQ103: 894.9186011 | AR103: 886.2733903 | AS103: =$S$40*(AS125+AS171) -> 877.6281795 | AT103: 868.9829686 | AU103: 860.3377578 | AV103: 851.692547
K104: Utility PV - 28% - High | L104: =$S$40*(L126+L172) -> 2024.203135 | M104: 1942.417149 | N104: 1942.417149 | O104: 1942.417149 | P104: 1942.417149 | Q104: 1942.417149 | R104: 1942.417149 | S104: 1942.417149 | T104: 1942.417149 | U104: 1942.417149 | V104: 1942.417149 | W104: 1942.417149 | X104: 1942.417149 | Y104: 1942.417149 | Z104: 1942.417149 | AA104: 1942.417149 | AB104: 1942.417149 | AC104: 1942.417149 | AD104: 1942.417149 | AE104: 1942.417149 | AF104: 1942.417149 | AG104: 1942.417149 | AH104: 1942.417149 | AI104: 1942.417149 | AJ104: 1942.417149 | AK104: 1942.417149 | AL104: 1942.417149 | AM104: 1942.417149 | AN104: 1942.417149 | AO104: 1942.417149 | AP104: 1942.417149 | AQ104: 1942.417149 | AR104: 1942.417149 | AS104: 1942.417149 | AT104: 1942.417149 | AU104: 1942.417149 | AV104: 1942.417149
L106: 2014 | M106: 2015 | N106: 2016 | O106: 2017 | P106: 2018 | Q106: 2019 | R106: 2020 | S106: 2021 | T106: 2022 | U106: 2023 | V106: 2024 | W106: 2025 | X106: 2026 | Y106: 2027 | Z106: 2028 | AA106: 2029 | AB106: 2030 | AC106: 2031 | AD106: 2032 | AE106: 2033 | AF106: 2034 | AG106: 2035 | AH106: 2036 | AI106: 2037 | AJ106: 2038 | AK106: 2039 | AL106: 2040 | AM106: 2041 | AN106: 2042 | AO106: 2043 | AP106: 2044 | AQ106: 2045 | AR106: 2046 | AS106: 2047 | AT106: 2048 | AU106: 2049 | AV106: 2050
J107: Construction Financing Cost ($/kW) | K107: Utility PV - 14% - Low | L107: =(L118+L164)*($S$40-1) -> 46.55056123 | M107: =(M118+M164)*($S$40-1) -> 44.66973047 | N107: 40.95499388 | O107: 37.24025729 | P107: 33.5255207 | Q107: 29.8107841 | R107: 26.09604751 | S107: 24.81950171 | T107: 23.5429559 | U107: 22.26641009 | V107: 20.98986429 | W107: 19.71331848 | X107: 19.06601549 | Y107: 18.41871249 | Z107: 17.7714095 | AA107: 17.1241065 | AB107: 16.47680351 | AC107: 16.12674801 | AD107: 15.77669251 | AE107: 15.42663701 | AF107: 15.07658151 | AG107: 14.72652601 | AH107: 14.37647051 | AI107: 14.02641501 | AJ107: 13.67635951 | AK107: 13.32630401 | AL107: 12.97624851 | AM107: 12.67428683 | AN107: 12.37232515 | AO107: 12.07036348 | AP107: 11.7684018 | AQ107: 11.46644012 | AR107: 11.16447844 | AS107: 10.86251676 | AT107: 10.56055508 | AU107: 10.2585934 | AV107: 9.956631724
K108: Utility PV - 14% - Mid | L108: =(L119+L165)*($S$40-1) -> 46.55056123 | M108: 44.66973047 | N108: 42.39967019 | O108: 40.1296099 | P108: 37.85954962 | Q108: 35.58948934 | R108: 33.31942905 | S108: 31.7339596 | T108: 30.14849015 | U108: 28.5630207 | V108: 26.97755124 | W108: 25.39208179 | X108: 25.09980071 | Y108: 24.80751963 | Z108: 24.51523855 | AA108: 24.22295747 | AB108: 23.93067639 | AC108: 23.69505824 | AD108: 23.45944009 | AE108: 23.22382194 | AF108: 22.9882038 | AG108: 22.75258565 | AH108: 22.5169675 | AI108: 22.28134935 | AJ108: 22.0457312 | AK108: 21.81011305 | AL108: 21.5744949 | AM108: 21.37568115 | AN108: 21.1768674 | AO108: 20.97805365 | AP108: 20.7792399 | AQ108: 20.58042615 | AR108: 20.3816124 | AS108: 20.18279865 | AT108: 19.9839849 | AU108: 19.78517115 | AV108: 19.5863574
K109: Utility PV - 14% - High | L109: =(L120+L166)*($S$40-1) -> 46.55056123 | M109: =(M120+M166)*($S$40-1) -> 44.66973047 | N109: 44.66973047 | O109: 44.66973047 | P109: 44.66973047 | Q109: 44.66973047 | R109: 44.66973047 | S109: 44.66973047 | T109: 44.66973047 | U109: 44.66973047 | V109: 44.66973047 | W109: 44.66973047 | X109: 44.66973047 | Y109: 44.66973047 | Z109: 44.66973047 | AA109: 44.66973047 | AB109: 44.66973047 | AC109: 44.66973047 | AD109: 44.66973047 | AE109: 44.66973047 | AF109: 44.66973047 | AG109: 44.66973047 | AH109: 44.66973047 | AI109: 44.66973047 | AJ109: 44.66973047 | AK109: 44.66973047 | AL109: 44.66973047 | AM109: 44.66973047 | AN109: 44.66973047 | AO109: 44.66973047 | AP109: 44.66973047 | AQ109: 44.66973047 | AR109: 44.66973047 | AS109: 44.66973047 | AT109: 44.66973047 | AU109: 44.66973047 | AV109: 44.66973047
K110: Utility PV - 20% - Low | L110: =(L121+L167)*($S$40-1) -> 46.55056123 | M110: 44.66973047 | N110: 40.95499388 | O110: 37.24025729 | P110: 33.5255207 | Q110: 29.8107841 | R110: 26.09604751 | S110: 24.81950171 | T110: 23.5429559 | U110: 22.26641009 | V110: 20.98986429 | W110: 19.71331848 | X110: 19.06601549 | Y110: 18.41871249 | Z110: 17.7714095 | AA110: 17.1241065 | AB110: 16.47680351 | AC110: 16.12674801 | AD110: 15.77669251 | AE110: 15.42663701 | AF110: 15.07658151 | AG110: 14.72652601 | AH110: 14.37647051 | AI110: 14.02641501 | AJ110: 13.67635951 | AK110: 13.32630401 | AL110: 12.97624851 | AM110: 12.67428683 | AN110: 12.37232515 | AO110: 12.07036348 | AP110: 11.7684018 | AQ110: 11.46644012 | AR110: 11.16447844 | AS110: 10.86251676 | AT110: 10.56055508 | AU110: 10.2585934 | AV110: 9.956631724
K111: Utility PV - 20% - Mid | L111: =(L122+L168)*($S$40-1) -> 46.55056123 | M111: 44.66973047 | N111: 42.39967019 | O111: 40.1296099 | P111: 37.85954962 | Q111: 35.58948934 | R111: 33.31942905 | S111: 31.7339596 | T111: 30.14849015 | U111: 28.5630207 | V111: 26.97755124 | W111: 25.39208179 | X111: 25.09980071 | Y111: 24.80751963 | Z111: 24.51523855 | AA111: 24.22295747 | AB111: 23.93067639 | AC111: 23.69505824 | AD111: 23.45944009 | AE111: 23.22382194 | AF111: 22.9882038 | AG111: 22.75258565 | AH111: 22.5169675 | AI111: 22.28134935 | AJ111: 22.0457312 | AK111: 21.81011305 | AL111: 21.5744949 | AM111: 21.37568115 | AN111: 21.1768674 | AO111: 20.97805365 | AP111: 20.7792399 | AQ111: 20.58042615 | AR111: 20.3816124 | AS111: 20.18279865 | AT111: 19.9839849 | AU111: 19.78517115 | AV111: 19.5863574
K112: Utility PV - 20% - High | L112: =(L123+L169)*($S$40-1) -> 46.55056123 | M112: 44.66973047 | N112: 44.66973047 | O112: 44.66973047 | P112: 44.66973047 | Q112: 44.66973047 | R112: 44.66973047 | S112: 44.66973047 | T112: 44.66973047 | U112: 44.66973047 | V112: 44.66973047 | W112: 44.66973047 | X112: 44.66973047 | Y112: 44.66973047 | Z112: 44.66973047 | AA112: 44.66973047 | AB112: 44.66973047 | AC112: 44.66973047 | AD112: 44.66973047 | AE112: 44.66973047 | AF112: 44.66973047 | AG112: 44.66973047 | AH112: 44.66973047 | AI112: 44.66973047 | AJ112: 44.66973047 | AK112: 44.66973047 | AL112: 44.66973047 | AM112: 44.66973047 | AN112: 44.66973047 | AO112: 44.66973047 | AP112: 44.66973047 | AQ112: 44.66973047 | AR112: 44.66973047 | AS112: 44.66973047 | AT112: 44.66973047 | AU112: 44.66973047 | AV112: 44.66973047
K113: Utility PV - 28% - Low | L113: =(L124+L170)*($S$40-1) -> 46.55056123 | M113: 44.66973047 | N113: 40.95499388 | O113: 37.24025729 | P113: 33.5255207 | Q113: 29.8107841 | R113: 26.09604751 | S113: 24.81950171 | T113: 23.5429559 | U113: 22.26641009 | V113: 20.98986429 | W113: 19.71331848 | X113: 19.06601549 | Y113: 18.41871249 | Z113: 17.7714095 | AA113: 17.1241065 | AB113: 16.47680351 | AC113: 16.12674801 | AD113: 15.77669251 | AE113: 15.42663701 | AF113: 15.07658151 | AG113: 14.72652601 | AH113: 14.37647051 | AI113: 14.02641501 | AJ113: 13.67635951 | AK113: 13.32630401 | AL113: 12.97624851 | AM113: 12.67428683 | AN113: 12.37232515 | AO113: 12.07036348 | AP113: 11.7684018 | AQ113: 11.46644012 | AR113: 11.16447844 | AS113: =(AS124+AS170)*($S$40-1) -> 10.86251676 | AT113: 10.56055508 | AU113: 10.2585934 | AV113: 9.956631724
K114: Utility PV - 28% - Mid | L114: =(L125+L171)*($S$40-1) -> 46.55056123 | M114: 44.66973047 | N114: 42.39967019 | O114: 40.1296099 | P114: 37.85954962 | Q114: 35.58948934 | R114: 33.31942905 | S114: 31.7339596 | T114: 30.14849015 | U114: 28.5630207 | V114: 26.97755124 | W114: 25.39208179 | X114: 25.09980071 | Y114: 24.80751963 | Z114: 24.51523855 | AA114: 24.22295747 | AB114: 23.93067639 | AC114: 23.69505824 | AD114: 23.45944009 | AE114: 23.22382194 | AF114: 22.9882038 | AG114: 22.75258565 | AH114: 22.5169675 | AI114: 22.28134935 | AJ114: 22.0457312 | AK114: 21.81011305 | AL114: 21.5744949 | AM114: 21.37568115 | AN114: 21.1768674 | AO114: 20.97805365 | AP114: 20.7792399 | AQ114: 20.58042615 | AR114: 20.3816124 | AS114: =(AS125+AS171)*($S$40-1) -> 20.18279865 | AT114: 19.9839849 | AU114: 19.78517115 | AV114: 19.5863574
K115: Utility PV - 28% - High | L115: =(L126+L172)*($S$40-1) -> 46.55056123 | M115: 44.66973047 | N115: 44.66973047 | O115: 44.66973047 | P115: 44.66973047 | Q115: 44.66973047 | R115: 44.66973047 | S115: 44.66973047 | T115: 44.66973047 | U115: 44.66973047 | V115: 44.66973047 | W115: 44.66973047 | X115: 44.66973047 | Y115: 44.66973047 | Z115: 44.66973047 | AA115: 44.66973047 | AB115: 44.66973047 | AC115: 44.66973047 | AD115: 44.66973047 | AE115: 44.66973047 | AF115: 44.66973047 | AG115: 44.66973047 | AH115: 44.66973047 | AI115: 44.66973047 | AJ115: 44.66973047 | AK115: 44.66973047 | AL115: 44.66973047 | AM115: 44.66973047 | AN115: 44.66973047 | AO115: 44.66973047 | AP115: 44.66973047 | AQ115: 44.66973047 | AR115: 44.66973047 | AS115: 44.66973047 | AT115: 44.66973047 | AU115: 44.66973047 | AV115: 44.66973047
L117: 2014 | M117: 2015 | N117: 2016 | O117: 2017 | P117: 2018 | Q117: 2019 | R117: 2020 | S117: 2021 | T117: 2022 | U117: 2023 | V117: 2024 | W117: 2025 | X117: 2026 | Y117: 2027 | Z117: 2028 | AA117: 2029 | AB117: 2030 | AC117: 2031 | AD117: 2032 | AE117: 2033 | AF117: 2034 | AG117: 2035 | AH117: 2036 | AI117: 2037 | AJ117: 2038 | AK117: 2039 | AL117: 2040 | AM117: 2041 | AN117: 2042 | AO117: 2043 | AP117: 2044 | AQ117: 2045 | AR117: 2046 | AS117: 2047 | AT117: 2048 | AU117: 2049 | AV117: 2050
J118: Overnight Capital Cost ($/kW) | K118: Utility PV - 14% - Low | L118: 1977.652573 | M118: 1897.747419 | N118: 1739.930667 | O118: 1582.113915 | P118: 1424.297163 | Q118: 1266.480411 | R118: 1108.663659 | S118: 1054.430927 | T118: 1000.198195 | U118: 945.9654634 | V118: 891.7327317 | W118: 837.5 | X118: 810 | Y118: 782.5 | Z118: 755 | AA118: 727.5 | AB118: 700 | AC118: 685.1282532 | AD118: 670.2565064 | AE118: 655.3847596 | AF118: 640.5130128 | AG118: 625.6412661 | AH118: 610.7695193 | AI118: 595.8977725 | AJ118: 581.0260257 | AK118: 566.1542789 | AL118: 551.2825321 | AM118: 538.4540017 | AN118: 525.6254712 | AO118: 512.7969408 | AP118: 499.9684104 | AQ118: 487.13988 | AR118: 474.3113495 | AS118: 461.4828191 | AT118: 448.6542887 | AU118: 435.8257583 | AV118: 422.9972278
K119: Utility PV - 14% - Mid | L119: 1977.652573 | M119: 1897.747419 | N119: 1801.30625 | O119: 1704.86508 | P119: 1608.423911 | Q119: 1511.982741 | R119: 1415.541572 | S119: 1348.184538 | T119: 1280.827504 | U119: 1213.470469 | V119: 1146.113435 | W119: 1078.756401 | X119: 1066.339141 | Y119: 1053.921881 | Z119: 1041.504621 | AA119: 1029.08736 | AB119: 1016.6701 | AC119: 1006.660106 | AD119: 996.6501123 | AE119: 986.6401183 | AF119: 976.6301243 | AG119: 966.6201303 | AH119: 956.6101363 | AI119: 946.6001423 | AJ119: 936.5901483 | AK119: 926.5801543 | AL119: 916.5701603 | AM119: 908.1237633 | AN119: 899.6773662 | AO119: 891.2309691 | AP119: 882.784572 | AQ119: 874.338175 | AR119: 865.8917779 | AS119: 857.4453808 | AT119: 848.9989837 | AU119: 840.5525867 | AV119: 832.1061896
K120: Utility PV - 14% - High | L120: 1977.652573 | M120: 1897.747419 | N120: 1897.747419 | O120: 1897.747419 | P120: 1897.747419 | Q120: 1897.747419 | R120: 1897.747419 | S120: 1897.747419 | T120: 1897.747419 | U120: 1897.747419 | V120: 1897.747419 | W120: 1897.747419 | X120: 1897.747419 | Y120: 1897.747419 | Z120: 1897.747419 | AA120: 1897.747419 | AB120: 1897.747419 | AC120: 1897.747419 | AD120: 1897.747419 | AE120: 1897.747419 | AF120: 1897.747419 | AG120: 1897.747419 | AH120: 1897.747419 | AI120: 1897.747419 | AJ120: 1897.747419 | AK120: 1897.747419 | AL120: 1897.747419 | AM120: 1897.747419 | AN120: 1897.747419 | AO120: 1897.747419 | AP120: 1897.747419 | AQ120: 1897.747419 | AR120: 1897.747419 | AS120: 1897.747419 | AT120: 1897.747419 | AU120: 1897.747419 | AV120: 1897.747419
K121: Utility PV - 20% - Low | L121: 1977.652573 | M121: 1897.747419 | N121: 1739.930667 | O121: 1582.113915 | P121: 1424.297163 | Q121: 1266.480411 | R121: 1108.663659 | S121: 1054.430927 | T121: 1000.198195 | U121: 945.9654634 | V121: 891.7327317 | W121: 837.5 | X121: 810 | Y121: 782.5 | Z121: 755 | AA121: 727.5 | AB121: 700 | AC121: 685.1282532 | AD121: 670.2565064 | AE121: 655.3847596 | AF121: 640.5130128 | AG121: 625.6412661 | AH121: 610.7695193 | AI121: 595.8977725 | AJ121: 581.0260257 | AK121: 566.1542789 | AL121: 551.2825321 | AM121: 538.4540017 | AN121: 525.6254712 | AO121: 512.7969408 | AP121: 499.9684104 | AQ121: 487.13988 | AR121: 474.3113495 | AS121: 461.4828191 | AT121: 448.6542887 | AU121: 435.8257583 | AV121: 422.9972278
K122: Utility PV - 20% - Mid | L122: 1977.652573 | M122: 1897.747419 | N122: 1801.30625 | O122: 1704.86508 | P122: 1608.423911 | Q122: 1511.982741 | R122: 1415.541572 | S122: 1348.184538 | T122: 1280.827504 | U122: 1213.470469 | V122: 1146.113435 | W122: 1078.756401 | X122: 1066.339141 | Y122: 1053.921881 | Z122: 1041.504621 | AA122: 1029.08736 | AB122: 1016.6701 | AC122: 1006.660106 | AD122: 996.6501123 | AE122: 986.6401183 | AF122: 976.6301243 | AG122: 966.6201303 | AH122: 956.6101363 | AI122: 946.6001423 | AJ122: 936.5901483 | AK122: 926.5801543 | AL122: 916.5701603 | AM122: 908.1237633 | AN122: 899.6773662 | AO122: 891.2309691 | AP122: 882.784572 | AQ122: 874.338175 | AR122: 865.8917779 | AS122: 857.4453808 | AT122: 848.9989837 | AU122: 840.5525867 | AV122: 832.1061896
K123: Utility PV - 20% - High | L123: =L120 -> 1977.652573 | M123: 1897.747419 | N123: 1897.747419 | O123: 1897.747419 | P123: 1897.747419 | Q123: 1897.747419 | R123: 1897.747419 | S123: 1897.747419 | T123: 1897.747419 | U123: 1897.747419 | V123: 1897.747419 | W123: 1897.747419 | X123: 1897.747419 | Y123: 1897.747419 | Z123: 1897.747419 | AA123: 1897.747419 | AB123: 1897.747419 | AC123: 1897.747419 | AD123: 1897.747419 | AE123: 1897.747419 | AF123: 1897.747419 | AG123: 1897.747419 | AH123: 1897.747419 | AI123: 1897.747419 | AJ123: 1897.747419 | AK123: 1897.747419 | AL123: 1897.747419 | AM123: 1897.747419 | AN123: 1897.747419 | AO123: 1897.747419 | AP123: 1897.747419 | AQ123: 1897.747419 | AR123: 1897.747419 | AS123: 1897.747419 | AT123: 1897.747419 | AU123: 1897.747419 | AV123: 1897.747419
K124: Utility PV - 28% - Low | L124: 1977.652573 | M124: 1897.747419 | N124: 1739.930667 | O124: 1582.113915 | P124: 1424.297163 | Q124: 1266.480411 | R124: 1108.663659 | S124: 1054.430927 | T124: 1000.198195 | U124: 945.9654634 | V124: 891.7327317 | W124: 837.5 | X124: 810 | Y124: 782.5 | Z124: 755 | AA124: 727.5 | AB124: 700 | AC124: 685.1282532 | AD124: 670.2565064 | AE124: 655.3847596 | AF124: 640.5130128 | AG124: 625.6412661 | AH124: 610.7695193 | AI124: 595.8977725 | AJ124: 581.0260257 | AK124: 566.1542789 | AL124: 551.2825321 | AM124: 538.4540017 | AN124: 525.6254712 | AO124: 512.7969408 | AP124: 499.9684104 | AQ124: 487.13988 | AR124: 474.3113495 | AS124: 461.4828191 | AT124: 448.6542887 | AU124: 435.8257583 | AV124: 422.9972278
K125: Utility PV - 28% - Mid | L125: 1977.652573 | M125: 1897.747419 | N125: 1801.30625 | O125: 1704.86508 | P125: 1608.423911 | Q125: 1511.982741 | R125: 1415.541572 | S125: 1348.184538 | T125: 1280.827504 | U125: 1213.470469 | V125: 1146.113435 | W125: 1078.756401 | X125: 1066.339141 | Y125: 1053.921881 | Z125: 1041.504621 | AA125: 1029.08736 | AB125: 1016.6701 | AC125: 1006.660106 | AD125: 996.6501123 | AE125: 986.6401183 | AF125: 976.6301243 | AG125: 966.6201303 | AH125: 956.6101363 | AI125: 946.6001423 | AJ125: 936.5901483 | AK125: 926.5801543 | AL125: 916.5701603 | AM125: 908.1237633 | AN125: 899.6773662 | AO125: 891.2309691 | AP125: 882.784572 | AQ125: 874.338175 | AR125: 865.8917779 | AS125: 857.4453808 | AT125: 848.9989837 | AU125: 840.5525867 | AV125: 832.1061896
K126: Utility PV - 28% - High | L126: 1977.652573 | M126: 1897.747419 | N126: 1897.747419 | O126: 1897.747419 | P126: 1897.747419 | Q126: 1897.747419 | R126: 1897.747419 | S126: 1897.747419 | T126: 1897.747419 | U126: 1897.747419 | V126: 1897.747419 | W126: 1897.747419 | X126: 1897.747419 | Y126: 1897.747419 | Z126: 1897.747419 | AA126: 1897.747419 | AB126: 1897.747419 | AC126: 1897.747419 | AD126: 1897.747419 | AE126: 1897.747419 | AF126: 1897.747419 | AG126: 1897.747419 | AH126: 1897.747419 | AI126: 1897.747419 | AJ126: 1897.747419 | AK126: 1897.747419 | AL126: 1897.747419 | AM126: 1897.747419 | AN126: 1897.747419 | AO126: 1897.747419 | AP126: 1897.747419 | AQ126: 1897.747419 | AR126: 1897.747419 | AS126: 1897.747419 | AT126: 1897.747419 | AU126: 1897.747419 | AV126: 1897.747419
L128: 2014 | M128: 2015 | N128: 2016 | O128: 2017 | P128: 2018 | Q128: 2019 | R128: 2020 | S128: 2021 | T128: 2022 | U128: 2023 | V128: 2024 | W128: 2025 | X128: 2026 | Y128: 2027 | Z128: 2028 | AA128: 2029 | AB128: 2030 | AC128: 2031 | AD128: 2032 | AE128: 2033 | AF128: 2034 | AG128: 2035 | AH128: 2036 | AI128: 2037 | AJ128: 2038 | AK128: 2039 | AL128: 2040 | AM128: 2041 | AN128: 2042 | AO128: 2043 | AP128: 2044 | AQ128: 2045 | AR128: 2046 | AS128: 2047 | AT128: 2048 | AU128: 2049 | AV128: 2050
J129: Fixed Operation and Maintenance Expenses ($/kW-yr) | K129: Utility PV - 14% - Low | L129: 17 | M129: 16 | N129: 15 | O129: 13 | P129: 11 | Q129: 9 | R129: 8 | S129: 8 | T129: 8 | U129: 8 | V129: 8 | W129: 8 | X129: 8 | Y129: 8 | Z129: 8 | AA129: 8 | AB129: 8 | AC129: 8 | AD129: 8 | AE129: 8 | AF129: 8 | AG129: 8 | AH129: 8 | AI129: 8 | AJ129: 8 | AK129: 8 | AL129: 8 | AM129: 8 | AN129: 8 | AO129: 8 | AP129: 8 | AQ129: 8 | AR129: 8 | AS129: 8 | AT129: 8 | AU129: 8 | AV129: 8
K130: Utility PV - 14% - Mid | L130: 17 | M130: 16 | N130: 15.2 | O130: 14.4 | P130: 13.6 | Q130: 12.8 | R130: 12 | S130: 11.2 | T130: 10.4 | U130: 9.6 | V130: 8.8 | W130: 8 | X130: 8 | Y130: 8 | Z130: 8 | AA130: 8 | AB130: 8 | AC130: 8 | AD130: 8 | AE130: 8 | AF130: 8 | AG130: 8 | AH130: 8 | AI130: 8 | AJ130: 8 | AK130: 8 | AL130: 8 | AM130: 8 | AN130: 8 | AO130: 8 | AP130: 8 | AQ130: 8 | AR130: 8 | AS130: 8 | AT130: 8 | AU130: 8 | AV130: 8
K131: Utility PV - 14% - High | L131: 17 | M131: 17 | N131: 17 | O131: 17 | P131: 17 | Q131: 17 | R131: 17 | S131: 17 | T131: 17 | U131: 17 | V131: 17 | W131: 17 | X131: 17 | Y131: 17 | Z131: 17 | AA131: 17 | AB131: 17 | AC131: 17 | AD131: 17 | AE131: 17 | AF131: 17 | AG131: 17 | AH131: 17 | AI131: 17 | AJ131: 17 | AK131: 17 | AL131: 17 | AM131: 17 | AN131: 17 | AO131: 17 | AP131: 17 | AQ131: 17 | AR131: 17 | AS131: 17 | AT131: 17 | AU131: 17 | AV131: 17
K132: Utility PV - 20% - Low | L132: 17 | M132: 16 | N132: 15 | O132: 13 | P132: 11 | Q132: 9 | R132: 8 | S132: 8 | T132: 8 | U132: 8 | V132: 8 | W132: 8 | X132: 8 | Y132: 8 | Z132: 8 | AA132: 8 | AB132: 8 | AC132: 8 | AD132: 8 | AE132: 8 | AF132: 8 | AG132: 8 | AH132: 8 | AI132: 8 | AJ132: 8 | AK132: 8 | AL132: 8 | AM132: 8 | AN132: 8 | AO132: 8 | AP132: 8 | AQ132: 8 | AR132: 8 | AS132: 8 | AT132: 8 | AU132: 8 | AV132: 8
K133: Utility PV - 20% - Mid | L133: 17 | M133: 16 | N133: =M133-($M$133-$W$133)/10 -> 15.2 | O133: =N133-($M$133-$W$133)/10 -> 14.4 | P133: 13.6 | Q133: 12.8 | R133: 12 | S133: 11.2 | T133: 10.4 | U133: 9.6 | V133: 8.8 | W133: 8 | X133: 8 | Y133: 8 | Z133: 8 | AA133: 8 | AB133: 8 | AC133: 8 | AD133: 8 | AE133: 8 | AF133: 8 | AG133: 8 | AH133: 8 | AI133: 8 | AJ133: 8 | AK133: 8 | AL133: 8 | AM133: 8 | AN133: 8 | AO133: 8 | AP133: 8 | AQ133: 8 | AR133: 8 | AS133: 8 | AT133: 8 | AU133: 8 | AV133: 8
K134: Utility PV - 20% - High | L134: 17 | M134: 17 | N134: 17 | O134: 17 | P134: 17 | Q134: 17 | R134: 17 | S134: 17 | T134: 17 | U134: 17 | V134: 17 | W134: 17 | X134: 17 | Y134: 17 | Z134: 17 | AA134: 17 | AB134: 17 | AC134: 17 | AD134: 17 | AE134: 17 | AF134: 17 | AG134: 17 | AH134: 17 | AI134: 17 | AJ134: 17 | AK134: 17 | AL134: 17 | AM134: 17 | AN134: 17 | AO134: 17 | AP134: 17 | AQ134: 17 | AR134: 17 | AS134: 17 | AT134: 17 | AU134: 17 | AV134: 17
K135: Utility PV - 28% - Low | L135: 17 | M135: 16 | N135: 15 | O135: 13 | P135: 11 | Q135: 9 | R135: 8 | S135: 8 | T135: 8 | U135: 8 | V135: 8 | W135: 8 | X135: 8 | Y135: 8 | Z135: 8 | AA135: 8 | AB135: 8 | AC135: 8 | AD135: 8 | AE135: 8 | AF135: 8 | AG135: 8 | AH135: 8 | AI135: 8 | AJ135: 8 | AK135: 8 | AL135: 8 | AM135: 8 | AN135: 8 | AO135: 8 | AP135: 8 | AQ135: 8 | AR135: 8 | AS135: 8 | AT135: 8 | AU135: 8 | AV135: 8
K136: Utility PV - 28% - Mid | L136: 17 | M136: 16 | N136: 15.2 | O136: 14.4 | P136: 13.6 | Q136: 12.8 | R136: 12 | S136: 11.2 | T136: 10.4 | U136: 9.6 | V136: 8.8 | W136: 8 | X136: 8 | Y136: 8 | Z136: 8 | AA136: 8 | AB136: 8 | AC136: 8 | AD136: 8 | AE136: 8 | AF136: 8 | AG136: 8 | AH136: 8 | AI136: 8 | AJ136: 8 | AK136: 8 | AL136: 8 | AM136: 8 | AN136: 8 | AO136: 8 | AP136: 8 | AQ136: 8 | AR136: 8 | AS136: 8 | AT136: 8 | AU136: 8 | AV136: 8
K137: Utility PV - 28% - High | L137: 17 | M137: 17 | N137: 17 | O137: 17 | P137: 17 | Q137: 17 | R137: 17 | S137: 17 | T137: 17 | U137: 17 | V137: 17 | W137: 17 | X137: 17 | Y137: 17 | Z137: 17 | AA137: 17 | AB137: 17 | AC137: 17 | AD137: 17 | AE137: 17 | AF137: 17 | AG137: 17 | AH137: 17 | AI137: 17 | AJ137: 17 | AK137: 17 | AL137: 17 | AM137: 17 | AN137: 17 | AO137: 17 | AP137: 17 | AQ137: 17 | AR137: 17 | AS137: 17 | AT137: 17 | AU137: 17 | AV137: 17
L139: 2014 | M139: 2015 | N139: 2016 | O139: 2017 | P139: 2018 | Q139: 2019 | R139: 2020 | S139: 2021 | T139: 2022 | U139: 2023 | V139: 2024 | W139: 2025 | X139: 2026 | Y139: 2027 | Z139: 2028 | AA139: 2029 | AB139: 2030 | AC139: 2031 | AD139: 2032 | AE139: 2033 | AF139: 2034 | AG139: 2035 | AH139: 2036 | AI139: 2037 | AJ139: 2038 | AK139: 2039 | AL139: 2040 | AM139: 2041 | AN139: 2042 | AO139: 2043 | AP139: 2044 | AQ139: 2045 | AR139: 2046 | AS139: 2047 | AT139: 2048 | AU139: 2049 | AV139: 2050
J140: Variable Operation and Maintenance Expenses ($/MWh) | K140: Utility PV - 14% - Low | L140: 0 | M140: 0 | N140: 0 | O140: 0 | P140: 0 | Q140: 0 | R140: 0 | S140: 0 | T140: 0 | U140: 0 | V140: 0 | W140: 0 | X140: 0 | Y140: 0 | Z140: 0 | AA140: 0 | AB140: 0 | AC140: 0 | AD140: 0 | AE140: 0 | AF140: 0 | AG140: 0 | AH140: 0 | AI140: 0 | AJ140: 0 | AK140: 0 | AL140: 0 | AM140: 0 | AN140: 0 | AO140: 0 | AP140: 0 | AQ140: 0 | AR140: 0 | AS140: 0 | AT140: 0 | AU140: 0 | AV140: 0
K141: Utility PV - 14% - Mid | L141: 0 | M141: 0 | N141: 0 | O141: 0 | P141: 0 | Q141: 0 | R141: 0 | S141: 0 | T141: 0 | U141: 0 | V141: 0 | W141: 0 | X141: 0 | Y141: 0 | Z141: 0 | AA141: 0 | AB141: 0 | AC141: 0 | AD141: 0 | AE141: 0 | AF141: 0 | AG141: 0 | AH141: 0 | AI141: 0 | AJ141: 0 | AK141: 0 | AL141: 0 | AM141: 0 | AN141: 0 | AO141: 0 | AP141: 0 | AQ141: 0 | AR141: 0 | AS141: 0 | AT141: 0 | AU141: 0 | AV141: 0
K142: Utility PV - 14% - High | L142: 0 | M142: 0 | N142: 0 | O142: 0 | P142: 0 | Q142: 0 | R142: 0 | S142: 0 | T142: 0 | U142: 0 | V142: 0 | W142: 0 | X142: 0 | Y142: 0 | Z142: 0 | AA142: 0 | AB142: 0 | AC142: 0 | AD142: 0 | AE142: 0 | AF142: 0 | AG142: 0 | AH142: 0 | AI142: 0 | AJ142: 0 | AK142: 0 | AL142: 0 | AM142: 0 | AN142: 0 | AO142: 0 | AP142: 0 | AQ142: 0 | AR142: 0 | AS142: 0 | AT142: 0 | AU142: 0 | AV142: 0
K143: Utility PV - 20% - Low | L143: 0 | M143: 0 | N143: 0 | O143: 0 | P143: 0 | Q143: 0 | R143: 0 | S143: 0 | T143: 0 | U143: 0 | V143: 0 | W143: 0 | X143: 0 | Y143: 0 | Z143: 0 | AA143: 0 | AB143: 0 | AC143: 0 | AD143: 0 | AE143: 0 | AF143: 0 | AG143: 0 | AH143: 0 | AI143: 0 | AJ143: 0 | AK143: 0 | AL143: 0 | AM143: 0 | AN143: 0 | AO143: 0 | AP143: 0 | AQ143: 0 | AR143: 0 | AS143: 0 | AT143: 0 | AU143: 0 | AV143: 0
K144: Utility PV - 20% - Mid | L144: 0 | M144: 0 | N144: 0 | O144: 0 | P144: 0 | Q144: 0 | R144: 0 | S144: 0 | T144: 0 | U144: 0 | V144: 0 | W144: 0 | X144: 0 | Y144: 0 | Z144: 0 | AA144: 0 | AB144: 0 | AC144: 0 | AD144: 0 | AE144: 0 | AF144: 0 | AG144: 0 | AH144: 0 | AI144: 0 | AJ144: 0 | AK144: 0 | AL144: 0 | AM144: 0 | AN144: 0 | AO144: 0 | AP144: 0 | AQ144: 0 | AR144: 0 | AS144: 0 | AT144: 0 | AU144: 0 | AV144: 0
K145: Utility PV - 20% - High | L145: 0 | M145: 0 | N145: 0 | O145: 0 | P145: 0 | Q145: 0 | R145: 0 | S145: 0 | T145: 0 | U145: 0 | V145: 0 | W145: 0 | X145: 0 | Y145: 0 | Z145: 0 | AA145: 0 | AB145: 0 | AC145: 0 | AD145: 0 | AE145: 0 | AF145: 0 | AG145: 0 | AH145: 0 | AI145: 0 | AJ145: 0 | AK145: 0 | AL145: 0 | AM145: 0 | AN145: 0 | AO145: 0 | AP145: 0 | AQ145: 0 | AR145: 0 | AS145: 0 | AT145: 0 | AU145: 0 | AV145: 0
K146: Utility PV - 28% - Low | L146: 0 | M146: 0 | N146: 0 | O146: 0 | P146: 0 | Q146: 0 | R146: 0 | S146: 0 | T146: 0 | U146: 0 | V146: 0 | W146: 0 | X146: 0 | Y146: 0 | Z146: 0 | AA146: 0 | AB146: 0 | AC146: 0 | AD146: 0 | AE146: 0 | AF146: 0 | AG146: 0 | AH146: 0 | AI146: 0 | AJ146: 0 | AK146: 0 | AL146: 0 | AM146: 0 | AN146: 0 | AO146: 0 | AP146: 0 | AQ146: 0 | AR146: 0 | AS146: 0 | AT146: 0 | AU146: 0 | AV146: 0
K147: Utility PV - 28% - Mid | L147: 0 | M147: 0 | N147: 0 | O147: 0 | P147: 0 | Q147: 0 | R147: 0 | S147: 0 | T147: 0 | U147: 0 | V147: 0 | W147: 0 | X147: 0 | Y147: 0 | Z147: 0 | AA147: 0 | AB147: 0 | AC147: 0 | AD147: 0 | AE147: 0 | AF147: 0 | AG147: 0 | AH147: 0 | AI147: 0 | AJ147: 0 | AK147: 0 | AL147: 0 | AM147: 0 | AN147: 0 | AO147: 0 | AP147: 0 | AQ147: 0 | AR147: 0 | AS147: 0 | AT147: 0 | AU147: 0 | AV147: 0
K148: Utility PV - 28% - High | L148: 0 | M148: 0 | N148: 0 | O148: 0 | P148: 0 | Q148: 0 | R148: 0 | S148: 0 | T148: 0 | U148: 0 | V148: 0 | W148: 0 | X148: 0 | Y148: 0 | Z148: 0 | AA148: 0 | AB148: 0 | AC148: 0 | AD148: 0 | AE148: 0 | AF148: 0 | AG148: 0 | AH148: 0 | AI148: 0 | AJ148: 0 | AK148: 0 | AL148: 0 | AM148: 0 | AN148: 0 | AO148: 0 | AP148: 0 | AQ148: 0 | AR148: 0 | AS148: 0 | AT148: 0 | AU148: 0 | AV148: 0
L151: 2014 | M151: 2015 | N151: 2016 | O151: 2017 | P151: 2018 | Q151: 2019 | R151: 2020 | S151: 2021 | T151: 2022 | U151: 2023 | V151: 2024 | W151: 2025 | X151: 2026 | Y151: 2027 | Z151: 2028 | AA151: 2029 | AB151: 2030 | AC151: 2031 | AD151: 2032 | AE151: 2033 | AF151: 2034 | AG151: 2035 | AH151: 2036 | AI151: 2037 | AJ151: 2038 | AK151: 2039 | AL151: 2040 | AM151: 2041 | AN151: 2042 | AO151: 2043 | AP151: 2044 | AQ151: 2045 | AR151: 2046 | AS151: 2047 | AT151: 2048 | AU151: 2049 | AV151: 2050
H152: Finance | J152: Weighted Average Cost of Capital (WACC) (Nominal) (%) | K152: Utility PV - 14% - Low | L152: =$S$37 -> 0.0808 | M152: 0.0808 | N152: 0.0808 | O152: 0.0808 | P152: 0.0808 | Q152: 0.0808 | R152: 0.0808 | S152: 0.0808 | T152: 0.0808 | U152: 0.0808 | V152: 0.0808 | W152: 0.0808 | X152: 0.0808 | Y152: 0.0808 | Z152: 0.0808 | AA152: 0.0808 | AB152: =$S$37 -> 0.0808 | AC152: 0.0808 | AD152: 0.0808 | AE152: 0.0808 | AF152: 0.0808 | AG152: 0.0808 | AH152: 0.0808 | AI152: 0.0808 | AJ152: 0.0808 | AK152: 0.0808 | AL152: 0.0808 | AM152: 0.0808 | AN152: 0.0808 | AO152: 0.0808 | AP152: 0.0808 | AQ152: 0.0808 | AR152: =$S$37 -> 0.0808 | AS152: 0.0808 | AT152: 0.0808 | AU152: 0.0808 | AV152: 0.0808
K153: Utility PV - 14% - Mid | L153: 0.0808 | M153: 0.0808 | N153: 0.0808 | O153: 0.0808 | P153: 0.0808 | Q153: 0.0808 | R153: 0.0808 | S153: 0.0808 | T153: 0.0808 | U153: 0.0808 | V153: 0.0808 | W153: 0.0808 | X153: 0.0808 | Y153: 0.0808 | Z153: 0.0808 | AA153: 0.0808 | AB153: 0.0808 | AC153: 0.0808 | AD153: 0.0808 | AE153: 0.0808 | AF153: 0.0808 | AG153: 0.0808 | AH153: 0.0808 | AI153: 0.0808 | AJ153: 0.0808 | AK153: 0.0808 | AL153: 0.0808 | AM153: 0.0808 | AN153: 0.0808 | AO153: 0.0808 | AP153: 0.0808 | AQ153: 0.0808 | AR153: 0.0808 | AS153: 0.0808 | AT153: 0.0808 | AU153: 0.0808 | AV153: 0.0808
K154: Utility PV - 14% - High | L154: 0.0808 | M154: 0.0808 | N154: 0.0808 | O154: 0.0808 | P154: 0.0808 | Q154: 0.0808 | R154: 0.0808 | S154: 0.0808 | T154: 0.0808 | U154: 0.0808 | V154: 0.0808 | W154: 0.0808 | X154: 0.0808 | Y154: 0.0808 | Z154: 0.0808 | AA154: 0.0808 | AB154: 0.0808 | AC154: 0.0808 | AD154: 0.0808 | AE154: 0.0808 | AF154: 0.0808 | AG154: 0.0808 | AH154: 0.0808 | AI154: 0.0808 | AJ154: 0.0808 | AK154: 0.0808 | AL154: 0.0808 | AM154: 0.0808 | AN154: 0.0808 | AO154: 0.0808 | AP154: 0.0808 | AQ154: 0.0808 | AR154: 0.0808 | AS154: 0.0808 | AT154: 0.0808 | AU154: 0.0808 | AV154: 0.0808
K155: Utility PV - 20% - Low | L155: 0.0808 | M155: 0.0808 | N155: 0.0808 | O155: 0.0808 | P155: 0.0808 | Q155: 0.0808 | R155: 0.0808 | S155: 0.0808 | T155: 0.0808 | U155: 0.0808 | V155: 0.0808 | W155: 0.0808 | X155: 0.0808 | Y155: 0.0808 | Z155: 0.0808 | AA155: 0.0808 | AB155: 0.0808 | AC155: 0.0808 | AD155: 0.0808 | AE155: 0.0808 | AF155: 0.0808 | AG155: 0.0808 | AH155: 0.0808 | AI155: 0.0808 | AJ155: 0.0808 | AK155: 0.0808 | AL155: 0.0808 | AM155: 0.0808 | AN155: 0.0808 | AO155: 0.0808 | AP155: 0.0808 | AQ155: 0.0808 | AR155: 0.0808 | AS155: 0.0808 | AT155: 0.0808 | AU155: 0.0808 | AV155: 0.0808
K156: Utility PV - 20% - Mid | L156: 0.0808 | M156: 0.0808 | N156: 0.0808 | O156: 0.0808 | P156: 0.0808 | Q156: 0.0808 | R156: 0.0808 | S156: 0.0808 | T156: 0.0808 | U156: 0.0808 | V156: 0.0808 | W156: 0.0808 | X156: 0.0808 | Y156: 0.0808 | Z156: 0.0808 | AA156: 0.0808 | AB156: 0.0808 | AC156: 0.0808 | AD156: 0.0808 | AE156: 0.0808 | AF156: 0.0808 | AG156: 0.0808 | AH156: 0.0808 | AI156: 0.0808 | AJ156: 0.0808 | AK156: 0.0808 | AL156: 0.0808 | AM156: 0.0808 | AN156: 0.0808 | AO156: 0.0808 | AP156: 0.0808 | AQ156: 0.0808 | AR156: 0.0808 | AS156: 0.0808 | AT156: 0.0808 | AU156: 0.0808 | AV156: 0.0808
K157: Utility PV - 20% - High | L157: 0.0808 | M157: 0.0808 | N157: 0.0808 | O157: 0.0808 | P157: 0.0808 | Q157: 0.0808 | R157: 0.0808 | S157: 0.0808 | T157: 0.0808 | U157: 0.0808 | V157: 0.0808 | W157: 0.0808 | X157: 0.0808 | Y157: 0.0808 | Z157: 0.0808 | AA157: 0.0808 | AB157: 0.0808 | AC157: 0.0808 | AD157: 0.0808 | AE157: 0.0808 | AF157: 0.0808 | AG157: 0.0808 | AH157: 0.0808 | AI157: 0.0808 | AJ157: 0.0808 | AK157: 0.0808 | AL157: 0.0808 | AM157: 0.0808 | AN157: 0.0808 | AO157: 0.0808 | AP157: 0.0808 | AQ157: 0.0808 | AR157: 0.0808 | AS157: 0.0808 | AT157: 0.0808 | AU157: 0.0808 | AV157: 0.0808
K158: Utility PV - 28% - Low | L158: 0.0808 | M158: 0.0808 | N158: 0.0808 | O158: 0.0808 | P158: 0.0808 | Q158: 0.0808 | R158: 0.0808 | S158: 0.0808 | T158: 0.0808 | U158: 0.0808 | V158: 0.0808 | W158: 0.0808 | X158: 0.0808 | Y158: 0.0808 | Z158: 0.0808 | AA158: 0.0808 | AB158: 0.0808 | AC158: 0.0808 | AD158: 0.0808 | AE158: 0.0808 | AF158: 0.0808 | AG158: 0.0808 | AH158: 0.0808 | AI158: 0.0808 | AJ158: 0.0808 | AK158: 0.0808 | AL158: 0.0808 | AM158: 0.0808 | AN158: 0.0808 | AO158: 0.0808 | AP158: 0.0808 | AQ158: 0.0808 | AR158: 0.0808 | AS158: 0.0808 | AT158: 0.0808 | AU158: 0.0808 | AV158: 0.0808
K159: Utility PV - 28% - Mid | L159: 0.0808 | M159: 0.0808 | N159: 0.0808 | O159: 0.0808 | P159: 0.0808 | Q159: 0.0808 | R159: 0.0808 | S159: 0.0808 | T159: 0.0808 | U159: 0.0808 | V159: 0.0808 | W159: 0.0808 | X159: 0.0808 | Y159: 0.0808 | Z159: 0.0808 | AA159: 0.0808 | AB159: 0.0808 | AC159: 0.0808 | AD159: 0.0808 | AE159: 0.0808 | AF159: 0.0808 | AG159: 0.0808 | AH159: 0.0808 | AI159: 0.0808 | AJ159: 0.0808 | AK159: 0.0808 | AL159: 0.0808 | AM159: 0.0808 | AN159: 0.0808 | AO159: 0.0808 | AP159: 0.0808 | AQ159: 0.0808 | AR159: 0.0808 | AS159: 0.0808 | AT159: 0.0808 | AU159: 0.0808 | AV159: 0.0808
K160: Utility PV - 28% - High | L160: 0.0808 | M160: 0.0808 | N160: 0.0808 | O160: 0.0808 | P160: 0.0808 | Q160: 0.0808 | R160: 0.0808 | S160: 0.0808 | T160: 0.0808 | U160: 0.0808 | V160: 0.0808 | W160: 0.0808 | X160: 0.0808 | Y160: 0.0808 | Z160: 0.0808 | AA160: 0.0808 | AB160: 0.0808 | AC160: 0.0808 | AD160: 0.0808 | AE160: 0.0808 | AF160: 0.0808 | AG160: 0.0808 | AH160: 0.0808 | AI160: 0.0808 | AJ160: 0.0808 | AK160: 0.0808 | AL160: 0.0808 | AM160: 0.0808 | AN160: 0.0808 | AO160: 0.0808 | AP160: 0.0808 | AQ160: 0.0808 | AR160: 0.0808 | AS160: 0.0808 | AT160: 0.0808 | AU160: 0.0808 | AV160: 0.0808
L163: 2014 | M163: 2015 | N163: 2016 | O163: 2017 | P163: 2018 | Q163: 2019 | R163: 2020 | S163: 2021 | T163: 2022 | U163: 2023 | V163: 2024 | W163: 2025 | X163: 2026 | Y163: 2027 | Z163: 2028 | AA163: 2029 | AB163: 2030 | AC163: 2031 | AD163: 2032 | AE163: 2033 | AF163: 2034 | AG163: 2035 | AH163: 2036 | AI163: 2037 | AJ163: 2038 | AK163: 2039 | AL163: 2040 | AM163: 2041 | AN163: 2042 | AO163: 2043 | AP163: 2044 | AQ163: 2045 | AR163: 2046 | AS163: 2047 | AT163: 2048 | AU163: 2049 | AV163: 2050
H164: Grid Connection Costs | J164: Grid Connection Costs (GCC) ($/kW) | K164: Utility PV - 14% - Low | L164: 0 | M164: 0 | N164: 0 | O164: 0 | P164: 0 | Q164: 0 | R164: 0 | S164: 0 | T164: 0 | U164: 0 | V164: 0 | W164: 0 | X164: 0 | Y164: 0 | Z164: 0 | AA164: 0 | AB164: 0 | AC164: 0 | AD164: 0 | AE164: 0 | AF164: 0 | AG164: 0 | AH164: 0 | AI164: 0 | AJ164: 0 | AK164: 0 | AL164: 0 | AM164: 0 | AN164: 0 | AO164: 0 | AP164: 0 | AQ164: 0 | AR164: 0 | AS164: 0 | AT164: 0 | AU164: 0 | AV164: 0
K165: Utility PV - 14% - Mid | L165: 0 | M165: 0 | N165: 0 | O165: 0 | P165: 0 | Q165: 0 | R165: 0 | S165: 0 | T165: 0 | U165: 0 | V165: 0 | W165: 0 | X165: 0 | Y165: 0 | Z165: 0 | AA165: 0 | AB165: 0 | AC165: 0 | AD165: 0 | AE165: 0 | AF165: 0 | AG165: 0 | AH165: 0 | AI165: 0 | AJ165: 0 | AK165: 0 | AL165: 0 | AM165: 0 | AN165: 0 | AO165: 0 | AP165: 0 | AQ165: 0 | AR165: 0 | AS165: 0 | AT165: 0 | AU165: 0 | AV165: 0
K166: Utility PV - 14% - High | L166: 0 | M166: 0 | N166: 0 | O166: 0 | P166: 0 | Q166: 0 | R166: 0 | S166: 0 | T166: 0 | U166: 0 | V166: 0 | W166: 0 | X166: 0 | Y166: 0 | Z166: 0 | AA166: 0 | AB166: 0 | AC166: 0 | AD166: 0 | AE166: 0 | AF166: 0 | AG166: 0 | AH166: 0 | AI166: 0 | AJ166: 0 | AK166: 0 | AL166: 0 | AM166: 0 | AN166: 0 | AO166: 0 | AP166: 0 | AQ166: 0 | AR166: 0 | AS166: 0 | AT166: 0 | AU166: 0 | AV166: 0
K167: Utility PV - 20% - Low | L167: 0 | M167: 0 | N167: 0 | O167: 0 | P167: 0 | Q167: 0 | R167: 0 | S167: 0 | T167: 0 | U167: 0 | V167: 0 | W167: 0 | X167: 0 | Y167: 0 | Z167: 0 | AA167: 0 | AB167: 0 | AC167: 0 | AD167: 0 | AE167: 0 | AF167: 0 | AG167: 0 | AH167: 0 | AI167: 0 | AJ167: 0 | AK167: 0 | AL167: 0 | AM167: 0 | AN167: 0 | AO167: 0 | AP167: 0 | AQ167: 0 | AR167: 0 | AS167: 0 | AT167: 0 | AU167: 0 | AV167: 0
K168: Utility PV - 20% - Mid | L168: 0 | M168: 0 | N168: 0 | O168: 0 | P168: 0 | Q168: 0 | R168: 0 | S168: 0 | T168: 0 | U168: 0 | V168: 0 | W168: 0 | X168: 0 | Y168: 0 | Z168: 0 | AA168: 0 | AB168: 0 | AC168: 0 | AD168: 0 | AE168: 0 | AF168: 0 | AG168: 0 | AH168: 0 | AI168: 0 | AJ168: 0 | AK168: 0 | AL168: 0 | AM168: 0 | AN168: 0 | AO168: 0 | AP168: 0 | AQ168: 0 | AR168: 0 | AS168: 0 | AT168: 0 | AU168: 0 | AV168: 0
K169: Utility PV - 20% - High | L169: 0 | M169: 0 | N169: 0 | O169: 0 | P169: 0 | Q169: 0 | R169: 0 | S169: 0 | T169: 0 | U169: 0 | V169: 0 | W169: 0 | X169: 0 | Y169: 0 | Z169: 0 | AA169: 0 | AB169: 0 | AC169: 0 | AD169: 0 | AE169: 0 | AF169: 0 | AG169: 0 | AH169: 0 | AI169: 0 | AJ169: 0 | AK169: 0 | AL169: 0 | AM169: 0 | AN169: 0 | AO169: 0 | AP169: 0 | AQ169: 0 | AR169: 0 | AS169: 0 | AT169: 0 | AU169: 0 | AV169: 0
K170: Utility PV - 28% - Low | L170: 0 | M170: 0 | N170: 0 | O170: 0 | P170: 0 | Q170: 0 | R170: 0 | S170: 0 | T170: 0 | U170: 0 | V170: 0 | W170: 0 | X170: 0 | Y170: 0 | Z170: 0 | AA170: 0 | AB170: 0 | AC170: 0 | AD170: 0 | AE170: 0 | AF170: 0 | AG170: 0 | AH170: 0 | AI170: 0 | AJ170: 0 | AK170: 0 | AL170: 0 | AM170: 0 | AN170: 0 | AO170: 0 | AP170: 0 | AQ170: 0 | AR170: 0 | AS170: 0 | AT170: 0 | AU170: 0 | AV170: 0
K171: Utility PV - 28% - Mid | L171: 0 | M171: 0 | N171: 0 | O171: 0 | P171: 0 | Q171: 0 | R171: 0 | S171: 0 | T171: 0 | U171: 0 | V171: 0 | W171: 0 | X171: 0 | Y171: 0 | Z171: 0 | AA171: 0 | AB171: 0 | AC171: 0 | AD171: 0 | AE171: 0 | AF171: 0 | AG171: 0 | AH171: 0 | AI171: 0 | AJ171: 0 | AK171: 0 | AL171: 0 | AM171: 0 | AN171: 0 | AO171: 0 | AP171: 0 | AQ171: 0 | AR171: 0 | AS171: 0 | AT171: 0 | AU171: 0 | AV171: 0
K172: Utility PV - 28% - High | L172: 0 | M172: 0 | N172: 0 | O172: 0 | P172: 0 | Q172: 0 | R172: 0 | S172: 0 | T172: 0 | U172: 0 | V172: 0 | W172: 0 | X172: 0 | Y172: 0 | Z172: 0 | AA172: 0 | AB172: 0 | AC172: 0 | AD172: 0 | AE172: 0 | AF172: 0 | AG172: 0 | AH172: 0 | AI172: 0 | AJ172: 0 | AK172: 0 | AL172: 0 | AM172: 0 | AN172: 0 | AO172: 0 | AP172: 0 | AQ172: 0 | AR172: 0 | AS172: 0 | AT172: 0 | AU172: 0 | AV172: 0
L175: 2014 | M175: 2015 | N175: 2016 | O175: 2017 | P175: 2018 | Q175: 2019 | R175: 2020 | S175: 2021 | T175: 2022 | U175: 2023 | V175: 2024 | W175: 2025 | X175: 2026 | Y175: 2027 | Z175: 2028 | AA175: 2029 | AB175: 2030 | AC175: 2031 | AD175: 2032 | AE175: 2033 | AF175: 2034 | AG175: 2035 | AH175: 2036 | AI175: 2037 | AJ175: 2038 | AK175: 2039 | AL175: 2040 | AM175: 2041 | AN175: 2042 | AO175: 2043 | AP175: 2044 | AQ175: 2045 | AR175: 2046 | AS175: 2047 | AT175: 2048 | AU175: 2049 | AV175: 2050
H176: LCOE | J176: Levelized Cost of Energy ($/MWh) | K176: Utility PV - 14% - Low | L176: =(($S$44 * $S$42 * $S$40 * (L118 * 1 + L164) +L129) * 1000 / (L74 * 8760)) + L140 + 0 -> 168.7710982 | M176: =(($S$44 * $S$42 * $S$40 * (M118 * 1 + M164) +M129) * 1000 / (M74 * 8760)) + M140 + 0 -> 161.6967383 | N176: 148.5195684 | O176: 134.5270038 | P176: 120.5344393 | Q176: 106.5418747 | R176: 93.36470479 | S176: 89.11665868 | T176: 84.86861256 | U176: 80.62056644 | V176: 76.37252032 | W176: 72.1244742 | X176: 69.9704011 | Y176: 67.81632801 | Z176: 65.66225491 | AA176: 63.50818182 | AB176: 61.35410872 | AC176: 60.18920583 | AD176: 59.02430293 | AE176: 57.85940003 | AF176: 56.69449714 | AG176: 55.52959424 | AH176: 54.36469135 | AI176: 53.19978845 | AJ176: 52.03488555 | AK176: 50.86998266 | AL176: 49.70507976 | AM176: 48.70022186 | AN176: 47.69536396 | AO176: 46.69050606 | AP176: 45.68564816 | AQ176: 44.68079026 | AR176: 43.67593236 | AS176: 42.67107446 | AT176: 41.66621656 | AU176: 40.66135866 | AV176: 39.65650076
K177: Utility PV - 14% - Mid | L177: =(($S$44 * $S$42 * $S$40 * (L119 * 1 + L165) +L130) * 1000 / (L75 * 8760)) + L141 + 0 -> 168.7710982 | M177: =(($S$44 * $S$42 * $S$40 * (M119 * 1 + M165) +M130) * 1000 / (M75 * 8760)) + M141 + 0 -> 161.6967383 | N177: 153.4901925 | O177: 145.2836466 | P177: 137.0771008 | Q177: 128.8705549 | R177: 120.6640091 | S177: 114.7356216 | T177: 108.807234 | U177: 102.8788465 | V177: 96.95045893 | W177: 91.02207139 | X177: 90.04942826 | Y177: 89.07678513 | Z177: 88.104142 | AA177: 87.13149887 | AB177: 86.15885574 | AC177: 85.3747736 | AD177: 84.59069147 | AE177: 83.80660933 | AF177: 83.02252719 | AG177: 82.23844506 | AH177: 81.45436292 | AI177: 80.67028079 | AJ177: 79.88619865 | AK177: 79.10211652 | AL177: 78.31803438 | AM177: 77.65642868 | AN177: 76.99482298 | AO177: 76.33321729 | AP177: 75.67161159 | AQ177: 75.01000589 | AR177: 74.34840019 | AS177: 73.68679449 | AT177: 73.0251888 | AU177: 72.3635831 | AV177: 71.7019774
K178: Utility PV - 14% - High | L178: =(($S$44 * $S$42 * $S$40 * (L120 * 1 + L166) +L131) * 1000 / (L76 * 8760)) + L142 + 0 -> 168.7710982 | M178: =(($S$44 * $S$42 * $S$40 * (M120 * 1 + M166) +M131) * 1000 / (M76 * 8760)) + M142 + 0 -> 162.5121329 | N178: 162.5121329 | O178: 162.5121329 | P178: 162.5121329 | Q178: 162.5121329 | R178: 162.5121329 | S178: 162.5121329 | T178: 162.5121329 | U178: 162.5121329 | V178: 162.5121329 | W178: 162.5121329 | X178: 162.5121329 | Y178: 162.5121329 | Z178: 162.5121329 | AA178: 162.5121329 | AB178: 162.5121329 | AC178: 162.5121329 | AD178: 162.5121329 | AE178: 162.5121329 | AF178: 162.5121329 | AG178: 162.5121329 | AH178: 162.5121329 | AI178: 162.5121329 | AJ178: 162.5121329 | AK178: 162.5121329 | AL178: 162.5121329 | AM178: 162.5121329 | AN178: 162.5121329 | AO178: 162.5121329 | AP178: 162.5121329 | AQ178: 162.5121329 | AR178: 162.5121329 | AS178: 162.5121329 | AT178: 162.5121329 | AU178: 162.5121329 | AV178: 162.5121329
K179: Utility PV - 20% - Low | L179: =(($S$44 * $S$42 * $S$40 * (L121 * 1 + L167) +L132) * 1000 / (L77 * 8760)) + L143 + 0 -> 118.1397687 | M179: =(($S$44 * $S$42 * $S$40 * (M121 * 1 + M167) +M132) * 1000 / (M77 * 8760)) + M143 + 0 -> 113.1877168 | N179: 103.9636979 | O179: 94.16890268 | P179: 84.37410748 | Q179: 74.57931229 | R179: 65.35529336 | S179: 62.38166107 | T179: 59.40802879 | U179: 56.43439651 | V179: 53.46076422 | W179: 50.48713194 | X179: 48.97928077 | Y179: 47.4714296 | Z179: 45.96357844 | AA179: 44.45572727 | AB179: 42.94787611 | AC179: 42.13244408 | AD179: 41.31701205 | AE179: 40.50158002 | AF179: 39.686148 | AG179: 38.87071597 | AH179: 38.05528394 | AI179: 37.23985191 | AJ179: 36.42441989 | AK179: 35.60898786 | AL179: 34.79355583 | AM179: 34.0901553 | AN179: 33.38675477 | AO179: 32.68335424 | AP179: 31.97995371 | AQ179: 31.27655318 | AR179: 30.57315265 | AS179: 29.86975212 | AT179: 29.16635159 | AU179: 28.46295106 | AV179: 27.75955053
K180: Utility PV - 20% - Mid | L180: 118.1397687 | M180: =(($S$44 * $S$42 * $S$40 * (M122 * 1 + M168) +M133) * 1000 / (M78 * 8760)) + M144 + 0 -> 113.1877168 | N180: 107.4431347 | O180: 101.6985526 | P180: 95.95397054 | Q180: 90.20938845 | R180: 84.46480637 | S180: 80.31493509 | T180: 76.16506381 | U180: 72.01519253 | V180: 67.86532125 | W180: 63.71544997 | X180: 63.03459978 | Y180: 62.35374959 | Z180: 61.6728994 | AA180: 60.99204921 | AB180: 60.31119902 | AC180: 59.76234152 | AD180: 59.21348403 | AE180: 58.66462653 | AF180: 58.11576904 | AG180: 57.56691154 | AH180: 57.01805405 | AI180: 56.46919655 | AJ180: 55.92033906 | AK180: 55.37148156 | AL180: 54.82262407 | AM180: 54.35950008 | AN180: 53.89637609 | AO180: 53.4332521 | AP180: 52.97012811 | AQ180: 52.50700412 | AR180: 52.04388013 | AS180: 51.58075615 | AT180: 51.11763216 | AU180: 50.65450817 | AV180: 50.19138418
K181: Utility PV - 20% - High | L181: 118.1397687 | M181: =(($S$44 * $S$42 * $S$40 * (M123 * 1 + M169) +M134) * 1000 / (M79 * 8760)) + M145 + 0 -> 113.7584931 | N181: 113.7584931 | O181: 113.7584931 | P181: 113.7584931 | Q181: 113.7584931 | R181: 113.7584931 | S181: 113.7584931 | T181: 113.7584931 | U181: 113.7584931 | V181: 113.7584931 | W181: 113.7584931 | X181: 113.7584931 | Y181: 113.7584931 | Z181: 113.7584931 | AA181: 113.7584931 | AB181: 113.7584931 | AC181: 113.7584931 | AD181: 113.7584931 | AE181: 113.7584931 | AF181: 113.7584931 | AG181: 113.7584931 | AH181: 113.7584931 | AI181: 113.7584931 | AJ181: 113.7584931 | AK181: 113.7584931 | AL181: 113.7584931 | AM181: 113.7584931 | AN181: 113.7584931 | AO181: 113.7584931 | AP181: 113.7584931 | AQ181: 113.7584931 | AR181: 113.7584931 | AS181: 113.7584931 | AT181: 113.7584931 | AU181: 113.7584931 | AV181: 113.7584931
K182: Utility PV - 28% - Low | L182: 84.38554908 | M182: =(($S$44 * $S$42 * $S$40 * (M124 * 1 + M170) +M135) * 1000 / (M80 * 8760)) + M146 + 0 -> 80.84836915 | N182: 74.25978419 | O182: 67.26350191 | P182: 60.26721963 | Q182: 53.27093735 | R182: 46.6823524 | S182: 44.55832934 | T182: 42.43430628 | U182: 40.31028322 | V182: 38.18626016 | W182: 36.0622371 | X182: 34.98520055 | Y182: 33.908164 | Z182: 32.83112746 | AA182: 31.75409091 | AB182: 30.67705436 | AC182: 30.09460291 | AD182: 29.51215146 | AE182: 28.92970002 | AF182: 28.34724857 | AG182: 27.76479712 | AH182: 27.18234567 | AI182: 26.59989422 | AJ182: 26.01744278 | AK182: 25.43499133 | AL182: 24.85253988 | AM182: 24.35011093 | AN182: 23.84768198 | AO182: 23.34525303 | AP182: 22.84282408 | AQ182: 22.34039513 | AR182: 21.83796618 | AS182: 21.33553723 | AT182: 20.83310828 | AU182: 20.33067933 | AV182: 19.82825038
K183: Utility PV - 28% - Mid | L183: 84.38554908 | M183: =(($S$44 * $S$42 * $S$40 * (M125 * 1 + M171) +M136) * 1000 / (M81 * 8760)) + M147 + 0 -> 80.84836915 | N183: 76.74509623 | O183: 72.64182331 | P183: 68.53855039 | Q183: 64.43527747 | R183: 60.33200455 | S183: 57.36781078 | T183: 54.40361701 | U183: 51.43942323 | V183: 48.47522946 | W183: 45.51103569 | X183: 45.02471413 | Y183: 44.53839256 | Z183: 44.052071 | AA183: 43.56574943 | AB183: 43.07942787 | AC183: 42.6873868 | AD183: 42.29534573 | AE183: 41.90330467 | AF183: 41.5112636 | AG183: 41.11922253 | AH183: 40.72718146 | AI183: 40.33514039 | AJ183: 39.94309933 | AK183: 39.55105826 | AL183: 39.15901719 | AM183: 38.82821434 | AN183: 38.49741149 | AO183: 38.16660864 | AP183: 37.83580579 | AQ183: 37.50500295 | AR183: 37.1742001 | AS183: =(($S$44 * $S$42 * $S$40 * (AS125 * 1 + AS171) +AS136) * 1000 / (AS81 * 8760)) + AS147 + 0 -> 36.84339725 | AT183: 36.5125944 | AU183: 36.18179155 | AV183: 35.8509887
K184: Utility PV - 28% - High | L184: =(($S$44 * $S$42 * $S$40 * (L126 * 1 + L172) +L137) * 1000 / (L82 * 8760)) + L148 + 0 -> 84.38554908 | M184: 81.25606647 | N184: 81.25606647 | O184: 81.25606647 | P184: 81.25606647 | Q184: 81.25606647 | R184: 81.25606647 | S184: 81.25606647 | T184: 81.25606647 | U184: 81.25606647 | V184: 81.25606647 | W184: 81.25606647 | X184: 81.25606647 | Y184: 81.25606647 | Z184: 81.25606647 | AA184: 81.25606647 | AB184: 81.25606647 | AC184: 81.25606647 | AD184: 81.25606647 | AE184: 81.25606647 | AF184: 81.25606647 | AG184: 81.25606647 | AH184: 81.25606647 | AI184: 81.25606647 | AJ184: 81.25606647 | AK184: 81.25606647 | AL184: 81.25606647 | AM184: 81.25606647 | AN184: 81.25606647 | AO184: 81.25606647 | AP184: 81.25606647 | AQ184: 81.25606647 | AR184: 81.25606647 | AS184: 81.25606647 | AT184: 81.25606647 | AU184: 81.25606647 | AV184: 81.25606647
E189: X | G189: Graphics
AB381: x
C403: X | G403: Data Sources for Default Inputs
H405: Current Costs:
H406: Available Capacity (GW) | M406: U.S. Renewable Energy Technical Potentials - A GIS-Based Analysis 2012
H407: Net Capacity Factor (%) | M407: National Renewable Energy Laboratory. Regional Energy Deployment System (ReEDS). Representative of national range of capacity factors.
H408: Overnight Capital Cost ($/kW) | M408: Feldman et al (2015) Photovoltaic System Pricing Trends: 2015 Edition. NREL/PR-6A20-64898
H409: Fixed Operating Expenses ($/kW-yr) | M409: Bolinger, M.; Seel, J. (2015). Utility-Scale Solar 2014: An Empirical Analysis of Project Cost, Performance, and Pricing Trends in the United States. Berkeley, CA: Lawrence Berkeley National Laboratory.
H410: Variable Operating Expenses ($/MWh) | M410: US Department of Energy. SunShot Vision Study: February 2012. NREL Report No. BK5200-47927.
H411: Grid Feature Cost ($/kW) | M411: N/A
H412: Spur Line Cost ($/kW) | M412: N/A
H414: Future Projections Costs:
H415: Net Capacity Factor (%) | M415: National Renewable Energy Laboratory. Regional Energy Deployment System (ReEDS). Representative of national range of capacity factors.
H416: Overnight Capital Cost ($/kW) | M416: Literature review of UPV capital cost projections. See accompanying ATB presentation for more information.
H417: Fixed Operating Expenses ($/kW-yr) | M417: US Department of Energy. SunShot Vision Study: February 2012. NREL Report No. BK5200-47927.
H418: Variable Operating Expenses ($/MWh) | M418: US Department of Energy. SunShot Vision Study: February 2012. NREL Report No. BK5200-47927.
H419: Grid Connection Cost ($/kW) | M419: N/A

Sheet Solar - PV Dist. Res
A1: Solar Distributed Residential PV Inputs
T3: Inputs
J4: Take me to: | T4: Calculated
B10: X | G10: Current Costs
H12: Techno-Economic Cost and Performance Parameters | J12: Net Capacity Factor (%) | K12: Res PV - 12.5% | L12: 0.125 | O12: Basis Year: | Q12: 2014
K13: Res PV - 16.1% | L13: 0.161
K14: Res PV - 20.7% | L14: 0.207 | O14: Residential Solar Photovoltaic
O15: Representative Dist. Res system is fixed-tilt roof mounted with capacity of 5 kW
J16: Annual Energy Production (kWh/kW) | K16: Res PV - 12.5% | L16: =L12*8760 -> 1095 | O16: Overnight Capital Cost, Fixed O&M, and Variable O&M costs represent $/kW DC;
K17: Res PV - 16.1% | L17: =L13*8760 -> 1410.36 | O17: Capacity factor includes a conversion to AC. Therefore LCOE reflects $/MWh AC.
K18: Res PV - 20.7% | L18: =L14*8760 -> 1813.32 | O18: Capacity factors chosen here to reflect range of across the continental U.S. using NREL PVWATTS
O19: PV Low, Mid, and High represent projections from 10 price projections from 5 separate institutions. | S19: Available | T19: Available
J20: CAPEX ($/kW) | K20: Res PV - 12.5% | L20: =$S$40 * (L28 + L46) -> 3284.981095 | S20: Capacity | T20: Generation
K21: Res PV - 16.1% | L21: =$S$40 * (L29 + L47) -> 3284.981095 | S21: (GW) | T21: (GWh)
K22: Res PV - 20.7% | L22: =$S$40 * (L30 + L48) -> 3284.981095 | S22: 731 | T22: 926000
O23: Residential PV - 12.5% | Q23: dSolar minimum CF 12.5%
J24: Construction Financing Cost ($/kW) | K24: Res PV - 12.5% | L24: =(L28+L46)*($S$40-1) -> 0 | O24: Residential PV - 16.1% | Q24: dSolar average CF 16.1%
K25: Res PV - 16.1% | L25: =(L29+L47)*($S$40-1) -> 0 | O25: Residential PV - 20.7% | Q25: dSolar maximum CF 20.7%
K26: Res PV - 20.7% | L26: =(L30+L48)*($S$40-1) -> 0
O27: Financial Assumptions:
J28: Overnight Capital Cost ($/kW) | K28: Res PV - 12.5% | L28: =L110 -> 3284.981095 | O28: Inflation Rate | S28: 0.025
K29: Res PV - 16.1% | L29: =L111 -> 3284.981095 | O29: Economic Lifetime (Years) | S29: 20
K30: Res PV - 20.7% | L30: =L112 -> 3284.981095 | O30: Interest Rate - Nominal | S30: 0.08
O31: Calculated Interest Rate - Real | S31: =(1+S30)/(1+S28)-1 -> 0.05365853659
J32: Fixed Operation and Maintenance Expenses ($/kW/yr) | K32: Res PV - 12.5% | L32: 20 | O32: Interest During Construction - Nominal | S32: 0.08
K33: Res PV - 16.1% | L33: 20 | O33: Customer Equity Discount Rate - Nominal | S33: 0.13
K34: Res PV - 20.7% | L34: 20 | O34: Calculated Equity Discount Rate - Real | S34: =(1+S33)/(1+S28) - 1 -> 0.1024390244
O35: Debt Fraction | S35: 0.6
J36: Variable Operation and Maintenance Expenses ($/MWh) | K36: Res PV - 12.5% | L36: 0 | O36: Tax Rate (Federal and State) | S36: 0.4
K37: Res PV - 16.1% | L37: 0 | O37: WACC - Nominal | S37: =IF(S36>0,S35*S30*(1-S36)+(1-S35)*S33,S35*S30+(1-S35)*S33) -> 0.0808
K38: Res PV - 20.7% | L38: 0 | O38: WACC - Real | S38: =((1+((1-S35)*((1+S34)*(1+S28)-1)) + (S35*((1+S31)*(1+S28)-1)*(1-S36))) / (1+S28)) - 1 -> 0.05443902439
O39: Depreciation Period | S39: 5
O40: Construction Finance Factor | S40: 1
H41: Finance | J41: Weighted Average Cost of Capital (WACC) (Nominal) (%) | K41: Res PV - 12.5% | L41: =$S$37 -> 0.0808 | O41: Present Value of Depreciation | S41: =SUMPRODUCT(O54:T54,O56:T56) -> 0.8097434573
K42: Res PV - 16.1% | L42: =$S$37 -> 0.0808 | O42: Project Finance Factor | S42: =(1 - S36 * S41) / (1 - S36) -> 1.126837695
K43: Res PV - 20.7% | L43: =$S$37 -> 0.0808 | O43: Capital Recovery Factor (CRF) - Nominal | S43: =S37 / (1 - (1 / (1 + S37)^S29)) -> 0.1024593157
O44: Capital Recovery Factor (CRF) - Real | S44: =S38 / (1 - (1 / (1 + S38)^S29)) -> 0.08329029943
H46: Grid Connection Costs | J46: Grid Connection Costs (GCC) ($/kW) | K46: Res PV - 12.5% | L46: =L50+L54 -> 0 | O46: Construction Duration yrs | Q46: 0
K47: Res PV - 16.1% | L47: =L51+L55 -> 0 | O47: Year | P47: Capital | Q47: Accumulated
K48: Res PV - 20.7% | L48: =L52+L56 -> 0 | O48: Index | P48: Fraction | Q48: Interest
O49: 0 | P49: 1 | Q49: =1+(1-S36)*((1+S32)^(O49+0.5)-1) -> 1.023538291
J50: Grid Feature Costs ($/kW) | K50: Res PV - 12.5% | L50: 0 | O50: 1 | P50: 0 | Q50: =1+(1-S36)*((1+S32)^(O50+0.5)-1) -> 1.073421354
K51: Res PV - 16.1% | L51: 0 | O51: 2 | P51: 0 | Q51: =1+(1-S36)*((1+S32)^(O51+0.5)-1) -> 1.127295062
K52: Res PV - 20.7% | L52: 0
N53: MACRS yr | O53: 1 | P53: 2 | Q53: 3 | R53: 4 | S53: 5 | T53: 6
J54: Onshore Spur Line Costs ($/kW) | K54: Res PV - 12.5% | L54: 0 | N54: Depreciation | O54: 0.2 | P54: 0.32 | Q54: 0.192 | R54: 0.1152 | S54: 0.1152 | T54: 0.0576
K55: Res PV - 16.1% | L55: 0 | N55: Fraction
K56: Res PV - 20.7% | L56: 0 | N56: Depreciation | O56: =1/((1+$S$38)*(1+$S$28))^O53 -> 0.9252405625 | P56: =1/((1+$S$38)*(1+$S$28))^P53 -> 0.8560700986 | Q56: 0.7920707796 | R56: 0.7328560137 | S56: 0.6780681104 | T56: 0.6273761199
N57: Factor
H59: LCOE | J59: Levelized Cost of Energy ($/MWh) | K59: Res PV - 12.5% | L59: =(($S$44 * $S$42 * $S$40 * (L28 * 1 + L46) +L32) * 1000 / (L12 * 8760)) + L36 + 0 -> 299.8271669 | O59: Investment Tax Credit (ITC)* | S59: 0
K60: Res PV - 16.1% | L60: =(($S$44 * $S$42 * $S$40 * (L29 * 1 + L47) +L33) * 1000 / (L13 * 8760)) + L37 + 0 -> 232.7850675 | O60: Production Tax Credit (PTC)* | S60: 0
K61: Res PV - 20.7% | L61: =(($S$44 * $S$42 * $S$40 * (L30 * 1 + L48) +L34) * 1000 / (L14 * 8760)) + L38 + 0 -> 181.0550525 | O61: * not currently included in LCOE calculation
J63: Overnight Levelized Cost of Energy ($/MWh) | K63: Res PV - 12.5% | L63: =(((L28*$S$44*(1-$S$36*$S$41))/(8760*L12*(1-$S$36))+L32/(8760*L12))*1000)+L36 -> 299.8271669
K64: Res PV - 16.1% | L64: =(((L29*$S$44*(1-$S$36*$S$41))/(8760*L13*(1-$S$36))+L33/(8760*L13))*1000)+L37 -> 232.7850675
K65: Res PV - 20.7% | L65: =(((L30*$S$44*(1-$S$36*$S$41))/(8760*L14*(1-$S$36))+L34/(8760*L14))*1000)+L38 -> 181.0550525
H68: ***Note: For future projections, low, mid, and high refer to the resulting low, mid, and high LCOE projections.
D71: X | G71: Future Projections
L72: Basis Year
L73: 2014 | M73: 2015 | N73: 2016 | O73: 2017 | P73: 2018 | Q73: 2019 | R73: 2020 | S73: 2021 | T73: 2022 | U73: 2023 | V73: 2024 | W73: 2025 | X73: 2026 | Y73: 2027 | Z73: 2028 | AA73: 2029 | AB73: 2030 | AC73: 2031 | AD73: 2032 | AE73: 2033 | AF73: 2034 | AG73: 2035 | AH73: 2036 | AI73: 2037 | AJ73: 2038 | AK73: 2039 | AL73: 2040 | AM73: 2041 | AN73: 2042 | AO73: 2043 | AP73: 2044 | AQ73: 2045 | AR73: 2046 | AS73: 2047 | AT73: 2048 | AU73: 2049 | AV73: 2050
H74: Techno-Economic Cost and Performance Parameters | J74: Net Capacity Factor (%) | K74: Res PV - 12.5% - Low | L74: =$L$12 -> 0.125 | M74: =$L$12 -> 0.125 | N74: 0.125 | O74: 0.125 | P74: 0.125 | Q74: 0.125 | R74: 0.125 | S74: 0.125 | T74: 0.125 | U74: 0.125 | V74: 0.125 | W74: 0.125 | X74: 0.125 | Y74: 0.125 | Z74: 0.125 | AA74: 0.125 | AB74: 0.125 | AC74: 0.125 | AD74: 0.125 | AE74: 0.125 | AF74: 0.125 | AG74: 0.125 | AH74: 0.125 | AI74: 0.125 | AJ74: 0.125 | AK74: 0.125 | AL74: 0.125 | AM74: 0.125 | AN74: 0.125 | AO74: 0.125 | AP74: 0.125 | AQ74: 0.125 | AR74: 0.125 | AS74: 0.125 | AT74: 0.125 | AU74: 0.125 | AV74: 0.125
K75: Res PV - 12.5% - Mid | L75: =$L$12 -> 0.125 | M75: 0.125 | N75: 0.125 | O75: 0.125 | P75: 0.125 | Q75: 0.125 | R75: 0.125 | S75: 0.125 | T75: 0.125 | U75: 0.125 | V75: 0.125 | W75: 0.125 | X75: 0.125 | Y75: 0.125 | Z75: 0.125 | AA75: 0.125 | AB75: 0.125 | AC75: 0.125 | AD75: 0.125 | AE75: 0.125 | AF75: 0.125 | AG75: 0.125 | AH75: 0.125 | AI75: 0.125 | AJ75: 0.125 | AK75: 0.125 | AL75: 0.125 | AM75: 0.125 | AN75: 0.125 | AO75: 0.125 | AP75: 0.125 | AQ75: 0.125 | AR75: 0.125 | AS75: 0.125 | AT75: 0.125 | AU75: 0.125 | AV75: 0.125
K76: Res PV - 12.5% - High | L76: =$L$12 -> 0.125 | M76: 0.125 | N76: 0.125 | O76: 0.125 | P76: 0.125 | Q76: 0.125 | R76: 0.125 | S76: 0.125 | T76: 0.125 | U76: 0.125 | V76: 0.125 | W76: 0.125 | X76: 0.125 | Y76: 0.125 | Z76: 0.125 | AA76: 0.125 | AB76: 0.125 | AC76: 0.125 | AD76: 0.125 | AE76: 0.125 | AF76: 0.125 | AG76: 0.125 | AH76: 0.125 | AI76: 0.125 | AJ76: 0.125 | AK76: 0.125 | AL76: 0.125 | AM76: 0.125 | AN76: 0.125 | AO76: 0.125 | AP76: 0.125 | AQ76: 0.125 | AR76: 0.125 | AS76: 0.125 | AT76: 0.125 | AU76: 0.125 | AV76: 0.125
K77: Res PV - 16.1% - Low | L77: =$L$13 -> 0.161 | M77: =$L$13 -> 0.161 | N77: 0.161 | O77: 0.161 | P77: 0.161 | Q77: 0.161 | R77: 0.161 | S77: 0.161 | T77: 0.161 | U77: 0.161 | V77: 0.161 | W77: 0.161 | X77: 0.161 | Y77: 0.161 | Z77: 0.161 | AA77: 0.161 | AB77: 0.161 | AC77: 0.161 | AD77: 0.161 | AE77: 0.161 | AF77: 0.161 | AG77: 0.161 | AH77: 0.161 | AI77: 0.161 | AJ77: 0.161 | AK77: 0.161 | AL77: 0.161 | AM77: 0.161 | AN77: 0.161 | AO77: 0.161 | AP77: 0.161 | AQ77: 0.161 | AR77: 0.161 | AS77: 0.161 | AT77: 0.161 | AU77: 0.161 | AV77: 0.161
K78: Res PV - 16.1% - Mid | L78: =$L$13 -> 0.161 | M78: 0.161 | N78: 0.161 | O78: 0.161 | P78: 0.161 | Q78: 0.161 | R78: 0.161 | S78: 0.161 | T78: 0.161 | U78: 0.161 | V78: 0.161 | W78: 0.161 | X78: 0.161 | Y78: 0.161 | Z78: 0.161 | AA78: 0.161 | AB78: 0.161 | AC78: 0.161 | AD78: 0.161 | AE78: 0.161 | AF78: 0.161 | AG78: 0.161 | AH78: 0.161 | AI78: 0.161 | AJ78: 0.161 | AK78: 0.161 | AL78: 0.161 | AM78: 0.161 | AN78: 0.161 | AO78: 0.161 | AP78: 0.161 | AQ78: 0.161 | AR78: 0.161 | AS78: 0.161 | AT78: 0.161 | AU78: 0.161 | AV78: 0.161
K79: Res PV - 16.1% - High | L79: =$L$13 -> 0.161 | M79: 0.161 | N79: 0.161 | O79: 0.161 | P79: 0.161 | Q79: 0.161 | R79: 0.161 | S79: 0.161 | T79: 0.161 | U79: 0.161 | V79: 0.161 | W79: 0.161 | X79: 0.161 | Y79: 0.161 | Z79: 0.161 | AA79: 0.161 | AB79: 0.161 | AC79: 0.161 | AD79: 0.161 | AE79: 0.161 | AF79: 0.161 | AG79: 0.161 | AH79: 0.161 | AI79: 0.161 | AJ79: 0.161 | AK79: 0.161 | AL79: 0.161 | AM79: 0.161 | AN79: 0.161 | AO79: 0.161 | AP79: 0.161 | AQ79: 0.161 | AR79: 0.161 | AS79: 0.161 | AT79: 0.161 | AU79: 0.161 | AV79: 0.161
K80: Res PV - 20.7% - Low | L80: =$L$14 -> 0.207 | M80: =$L$14 -> 0.207 | N80: 0.207 | O80: 0.207 | P80: 0.207 | Q80: 0.207 | R80: 0.207 | S80: 0.207 | T80: 0.207 | U80: 0.207 | V80: 0.207 | W80: 0.207 | X80: 0.207 | Y80: 0.207 | Z80: 0.207 | AA80: 0.207 | AB80: 0.207 | AC80: 0.207 | AD80: 0.207 | AE80: 0.207 | AF80: 0.207 | AG80: 0.207 | AH80: 0.207 | AI80: 0.207 | AJ80: 0.207 | AK80: 0.207 | AL80: 0.207 | AM80: 0.207 | AN80: 0.207 | AO80: 0.207 | AP80: 0.207 | AQ80: 0.207 | AR80: 0.207 | AS80: 0.207 | AT80: 0.207 | AU80: 0.207 | AV80: 0.207
K81: Res PV - 20.7% - Mid | L81: =$L$14 -> 0.207 | M81: 0.207 | N81: 0.207 | O81: 0.207 | P81: 0.207 | Q81: 0.207 | R81: 0.207 | S81: 0.207 | T81: 0.207 | U81: 0.207 | V81: 0.207 | W81: 0.207 | X81: 0.207 | Y81: 0.207 | Z81: 0.207 | AA81: 0.207 | AB81: 0.207 | AC81: 0.207 | AD81: 0.207 | AE81: 0.207 | AF81: 0.207 | AG81: 0.207 | AH81: 0.207 | AI81: 0.207 | AJ81: 0.207 | AK81: 0.207 | AL81: 0.207 | AM81: 0.207 | AN81: 0.207 | AO81: 0.207 | AP81: 0.207 | AQ81: 0.207 | AR81: 0.207 | AS81: 0.207 | AT81: 0.207 | AU81: 0.207 | AV81: 0.207
K82: Res PV - 20.7% - High | L82: =$L$14 -> 0.207 | M82: 0.207 | N82: 0.207 | O82: 0.207 | P82: 0.207 | Q82: 0.207 | R82: 0.207 | S82: 0.207 | T82: 0.207 | U82: 0.207 | V82: 0.207 | W82: 0.207 | X82: 0.207 | Y82: 0.207 | Z82: 0.207 | AA82: 0.207 | AB82: 0.207 | AC82: 0.207 | AD82: 0.207 | AE82: 0.207 | AF82: 0.207 | AG82: 0.207 | AH82: 0.207 | AI82: 0.207 | AJ82: 0.207 | AK82: 0.207 | AL82: 0.207 | AM82: 0.207 | AN82: 0.207 | AO82: 0.207 | AP82: 0.207 | AQ82: 0.207 | AR82: 0.207 | AS82: 0.207 | AT82: 0.207 | AU82: 0.207 | AV82: 0.207
L84: 2014 | M84: 2015 | N84: 2016 | O84: 2017 | P84: 2018 | Q84: 2019 | R84: 2020 | S84: 2021 | T84: 2022 | U84: 2023 | V84: 2024 | W84: 2025 | X84: 2026 | Y84: 2027 | Z84: 2028 | AA84: 2029 | AB84: 2030 | AC84: 2031 | AD84: 2032 | AE84: 2033 | AF84: 2034 | AG84: 2035 | AH84: 2036 | AI84: 2037 | AJ84: 2038 | AK84: 2039 | AL84: 2040 | AM84: 2041 | AN84: 2042 | AO84: 2043 | AP84: 2044 | AQ84: 2045 | AR84: 2046 | AS84: 2047 | AT84: 2048 | AU84: 2049 | AV84: 2050
J85: Annual Energy Production (kWh/kW) | K85: Res PV - 12.5% - Low | L85: =L74*8760 -> 1095 | M85: 1095 | N85: 1095 | O85: 1095 | P85: 1095 | Q85: 1095 | R85: 1095 | S85: 1095 | T85: 1095 | U85: 1095 | V85: 1095 | W85: 1095 | X85: 1095 | Y85: 1095 | Z85: 1095 | AA85: 1095 | AB85: 1095 | AC85: 1095 | AD85: 1095 | AE85: 1095 | AF85: 1095 | AG85: 1095 | AH85: 1095 | AI85: 1095 | AJ85: 1095 | AK85: 1095 | AL85: 1095 | AM85: 1095 | AN85: 1095 | AO85: 1095 | AP85: 1095 | AQ85: 1095 | AR85: 1095 | AS85: 1095 | AT85: 1095 | AU85: 1095 | AV85: 1095
K86: Res PV - 12.5% - Mid | L86: =L75*8760 -> 1095 | M86: 1095 | N86: 1095 | O86: 1095 | P86: 1095 | Q86: 1095 | R86: 1095 | S86: 1095 | T86: 1095 | U86: 1095 | V86: 1095 | W86: 1095 | X86: 1095 | Y86: 1095 | Z86: 1095 | AA86: 1095 | AB86: 1095 | AC86: 1095 | AD86: 1095 | AE86: 1095 | AF86: 1095 | AG86: 1095 | AH86: 1095 | AI86: 1095 | AJ86: 1095 | AK86: 1095 | AL86: 1095 | AM86: 1095 | AN86: 1095 | AO86: 1095 | AP86: 1095 | AQ86: 1095 | AR86: 1095 | AS86: 1095 | AT86: 1095 | AU86: 1095 | AV86: 1095
K87: Res PV - 12.5% - High | L87: =L76*8760 -> 1095 | M87: 1095 | N87: 1095 | O87: 1095 | P87: 1095 | Q87: 1095 | R87: 1095 | S87: 1095 | T87: 1095 | U87: 1095 | V87: 1095 | W87: 1095 | X87: 1095 | Y87: 1095 | Z87: 1095 | AA87: 1095 | AB87: 1095 | AC87: 1095 | AD87: 1095 | AE87: 1095 | AF87: 1095 | AG87: 1095 | AH87: 1095 | AI87: 1095 | AJ87: 1095 | AK87: 1095 | AL87: 1095 | AM87: 1095 | AN87: 1095 | AO87: 1095 | AP87: 1095 | AQ87: 1095 | AR87: 1095 | AS87: 1095 | AT87: 1095 | AU87: 1095 | AV87: 1095
K88: Res PV - 16.1% - Low | L88: =L77*8760 -> 1410.36 | M88: 1410.36 | N88: 1410.36 | O88: 1410.36 | P88: 1410.36 | Q88: 1410.36 | R88: 1410.36 | S88: 1410.36 | T88: 1410.36 | U88: 1410.36 | V88: 1410.36 | W88: 1410.36 | X88: 1410.36 | Y88: 1410.36 | Z88: 1410.36 | AA88: 1410.36 | AB88: 1410.36 | AC88: 1410.36 | AD88: 1410.36 | AE88: 1410.36 | AF88: 1410.36 | AG88: 1410.36 | AH88: 1410.36 | AI88: 1410.36 | AJ88: 1410.36 | AK88: 1410.36 | AL88: 1410.36 | AM88: 1410.36 | AN88: 1410.36 | AO88: 1410.36 | AP88: 1410.36 | AQ88: 1410.36 | AR88: 1410.36 | AS88: 1410.36 | AT88: 1410.36 | AU88: 1410.36 | AV88: 1410.36
K89: Res PV - 16.1% - Mid | L89: =L78*8760 -> 1410.36 | M89: 1410.36 | N89: 1410.36 | O89: 1410.36 | P89: 1410.36 | Q89: 1410.36 | R89: 1410.36 | S89: 1410.36 | T89: 1410.36 | U89: 1410.36 | V89: 1410.36 | W89: 1410.36 | X89: 1410.36 | Y89: 1410.36 | Z89: 1410.36 | AA89: 1410.36 | AB89: 1410.36 | AC89: 1410.36 | AD89: 1410.36 | AE89: 1410.36 | AF89: 1410.36 | AG89: 1410.36 | AH89: 1410.36 | AI89: 1410.36 | AJ89: 1410.36 | AK89: 1410.36 | AL89: 1410.36 | AM89: 1410.36 | AN89: 1410.36 | AO89: 1410.36 | AP89: 1410.36 | AQ89: 1410.36 | AR89: 1410.36 | AS89: 1410.36 | AT89: 1410.36 | AU89: 1410.36 | AV89: 1410.36
K90: Res PV - 16.1% - High | L90: =L79*8760 -> 1410.36 | M90: 1410.36 | N90: 1410.36 | O90: 1410.36 | P90: 1410.36 | Q90: 1410.36 | R90: 1410.36 | S90: 1410.36 | T90: 1410.36 | U90: 1410.36 | V90: 1410.36 | W90: 1410.36 | X90: 1410.36 | Y90: 1410.36 | Z90: 1410.36 | AA90: 1410.36 | AB90: 1410.36 | AC90: 1410.36 | AD90: 1410.36 | AE90: 1410.36 | AF90: 1410.36 | AG90: 1410.36 | AH90: 1410.36 | AI90: 1410.36 | AJ90: 1410.36 | AK90: 1410.36 | AL90: 1410.36 | AM90: 1410.36 | AN90: 1410.36 | AO90: 1410.36 | AP90: 1410.36 | AQ90: 1410.36 | AR90: 1410.36 | AS90: 1410.36 | AT90: 1410.36 | AU90: 1410.36 | AV90: 1410.36
K91: Res PV - 20.7% - Low | L91: =L80*8760 -> 1813.32 | M91: 1813.32 | N91: 1813.32 | O91: 1813.32 | P91: 1813.32 | Q91: 1813.32 | R91: 1813.32 | S91: 1813.32 | T91: 1813.32 | U91: 1813.32 | V91: 1813.32 | W91: 1813.32 | X91: 1813.32 | Y91: 1813.32 | Z91: 1813.32 | AA91: 1813.32 | AB91: 1813.32 | AC91: 1813.32 | AD91: 1813.32 | AE91: 1813.32 | AF91: 1813.32 | AG91: 1813.32 | AH91: 1813.32 | AI91: 1813.32 | AJ91: 1813.32 | AK91: 1813.32 | AL91: 1813.32 | AM91: 1813.32 | AN91: 1813.32 | AO91: 1813.32 | AP91: 1813.32 | AQ91: 1813.32 | AR91: 1813.32 | AS91: 1813.32 | AT91: =AT80*8760 -> 1813.32 | AU91: 1813.32 | AV91: 1813.32
K92: Res PV - 20.7% - Mid | L92: =L81*8760 -> 1813.32 | M92: 1813.32 | N92: 1813.32 | O92: 1813.32 | P92: 1813.32 | Q92: 1813.32 | R92: 1813.32 | S92: 1813.32 | T92: 1813.32 | U92: 1813.32 | V92: 1813.32 | W92: 1813.32 | X92: 1813.32 | Y92: 1813.32 | Z92: 1813.32 | AA92: 1813.32 | AB92: 1813.32 | AC92: 1813.32 | AD92: 1813.32 | AE92: 1813.32 | AF92: 1813.32 | AG92: 1813.32 | AH92: 1813.32 | AI92: 1813.32 | AJ92: 1813.32 | AK92: 1813.32 | AL92: 1813.32 | AM92: 1813.32 | AN92: 1813.32 | AO92: 1813.32 | AP92: 1813.32 | AQ92: 1813.32 | AR92: 1813.32 | AS92: 1813.32 | AT92: =AT81*8760 -> 1813.32 | AU92: 1813.32 | AV92: 1813.32
K93: Res PV - 20.7% - High | L93: =L82*8760 -> 1813.32 | M93: 1813.32 | N93: 1813.32 | O93: 1813.32 | P93: 1813.32 | Q93: 1813.32 | R93: 1813.32 | S93: 1813.32 | T93: 1813.32 | U93: 1813.32 | V93: 1813.32 | W93: 1813.32 | X93: 1813.32 | Y93: 1813.32 | Z93: 1813.32 | AA93: 1813.32 | AB93: 1813.32 | AC93: 1813.32 | AD93: 1813.32 | AE93: 1813.32 | AF93: 1813.32 | AG93: 1813.32 | AH93: 1813.32 | AI93: 1813.32 | AJ93: 1813.32 | AK93: 1813.32 | AL93: 1813.32 | AM93: 1813.32 | AN93: 1813.32 | AO93: 1813.32 | AP93: 1813.32 | AQ93: 1813.32 | AR93: 1813.32 | AS93: 1813.32 | AT93: 1813.32 | AU93: 1813.32 | AV93: 1813.32
L95: 2014 | M95: 2015 | N95: 2016 | O95: 2017 | P95: 2018 | Q95: 2019 | R95: 2020 | S95: 2021 | T95: 2022 | U95: 2023 | V95: 2024 | W95: 2025 | X95: 2026 | Y95: 2027 | Z95: 2028 | AA95: 2029 | AB95: 2030 | AC95: 2031 | AD95: 2032 | AE95: 2033 | AF95: 2034 | AG95: 2035 | AH95: 2036 | AI95: 2037 | AJ95: 2038 | AK95: 2039 | AL95: 2040 | AM95: 2041 | AN95: 2042 | AO95: 2043 | AP95: 2044 | AQ95: 2045 | AR95: 2046 | AS95: 2047 | AT95: 2048 | AU95: 2049 | AV95: 2050
J96: CAPEX ($/kW) | K96: Res PV - 12.5% - Low | L96: =$S$40*(L107+L152) -> 3284.981095 | M96: 3096.324736 | N96: 2809.707105 | O96: 2523.089473 | P96: 2236.471841 | Q96: 1949.85421 | R96: 1663.236578 | S96: 1559.239185 | T96: 1455.241792 | U96: 1351.244399 | V96: 1247.247006 | W96: 1143.249613 | X96: 1130.546839 | Y96: 1117.844066 | Z96: 1105.141292 | AA96: 1092.438519 | AB96: 1079.735745 | AC96: 1074.654636 | AD96: 1069.573526 | AE96: 1064.492417 | AF96: 1059.411308 | AG96: 1054.330198 | AH96: 1049.249089 | AI96: 1044.167979 | AJ96: 1039.08687 | AK96: 1034.005761 | AL96: 1028.924651 | AM96: 1022.573265 | AN96: 1016.221878 | AO96: 1009.870491 | AP96: 1003.519104 | AQ96: 997.1677176 | AR96: 990.8163309 | AS96: 984.4649442 | AT96: 978.1135574 | AU96: 971.7621707 | AV96: 965.410784
K97: Res PV - 12.5% - Mid | L97: =$S$40*(L108+L153) -> 3284.981095 | M97: 3096.324736 | N97: 2927.820584 | O97: 2759.316433 | P97: 2590.812281 | Q97: 2422.308129 | R97: 2253.803977 | S97: 2150.150139 | T97: 2046.496302 | U97: 1942.842464 | V97: 1839.188626 | W97: 1735.534788 | X97: 1685.87178 | Y97: 1636.208773 | Z97: 1586.545765 | AA97: 1536.882757 | AB97: 1487.219749 | AC97: 1464.89037 | AD97: 1442.560991 | AE97: 1420.231612 | AF97: 1397.902234 | AG97: 1375.572855 | AH97: 1353.243476 | AI97: 1330.914097 | AJ97: 1308.584718 | AK97: 1286.255339 | AL97: 1263.925961 | AM97: 1256.939435 | AN97: 1249.95291 | AO97: 1242.966384 | AP97: 1235.979859 | AQ97: 1228.993334 | AR97: 1222.006808 | AS97: 1215.020283 | AT97: 1208.033757 | AU97: 1201.047232 | AV97: 1194.060706
K98: Res PV - 12.5% - High | L98: =$S$40*(L109+L154) -> 3284.981095 | M98: 3096.324736 | N98: 3096.324736 | O98: 3096.324736 | P98: 3096.324736 | Q98: 3096.324736 | R98: 3096.324736 | S98: 3096.324736 | T98: 3096.324736 | U98: 3096.324736 | V98: 3096.324736 | W98: 3096.324736 | X98: 3096.324736 | Y98: 3096.324736 | Z98: 3096.324736 | AA98: 3096.324736 | AB98: 3096.324736 | AC98: 3096.324736 | AD98: 3096.324736 | AE98: 3096.324736 | AF98: 3096.324736 | AG98: 3096.324736 | AH98: 3096.324736 | AI98: 3096.324736 | AJ98: 3096.324736 | AK98: 3096.324736 | AL98: 3096.324736 | AM98: 3096.324736 | AN98: 3096.324736 | AO98: 3096.324736 | AP98: 3096.324736 | AQ98: 3096.324736 | AR98: 3096.324736 | AS98: 3096.324736 | AT98: 3096.324736 | AU98: 3096.324736 | AV98: 3096.324736
K99: Res PV - 16.1% - Low | L99: =$S$40*(L110+L155) -> 3284.981095 | M99: 3096.324736 | N99: 2809.707105 | O99: 2523.089473 | P99: 2236.471841 | Q99: 1949.85421 | R99: 1663.236578 | S99: 1559.239185 | T99: 1455.241792 | U99: 1351.244399 | V99: 1247.247006 | W99: 1143.249613 | X99: 1130.546839 | Y99: 1117.844066 | Z99: 1105.141292 | AA99: 1092.438519 | AB99: 1079.735745 | AC99: 1074.654636 | AD99: 1069.573526 | AE99: 1064.492417 | AF99: 1059.411308 | AG99: 1054.330198 | AH99: 1049.249089 | AI99: 1044.167979 | AJ99: 1039.08687 | AK99: 1034.005761 | AL99: 1028.924651 | AM99: 1022.573265 | AN99: 1016.221878 | AO99: 1009.870491 | AP99: 1003.519104 | AQ99: 997.1677176 | AR99: 990.8163309 | AS99: 984.4649442 | AT99: 978.1135574 | AU99: 971.7621707 | AV99: 965.410784
K100: Res PV - 16.1% - Mid | L100: =$S$40*(L111+L156) -> 3284.981095 | M100: 3096.324736 | N100: 2927.820584 | O100: 2759.316433 | P100: 2590.812281 | Q100: 2422.308129 | R100: 2253.803977 | S100: 2150.150139 | T100: 2046.496302 | U100: 1942.842464 | V100: 1839.188626 | W100: 1735.534788 | X100: 1685.87178 | Y100: 1636.208773 | Z100: 1586.545765 | AA100: 1536.882757 | AB100: 1487.219749 | AC100: 1464.89037 | AD100: 1442.560991 | AE100: 1420.231612 | AF100: 1397.902234 | AG100: 1375.572855 | AH100: 1353.243476 | AI100: 1330.914097 | AJ100: 1308.584718 | AK100: 1286.255339 | AL100: 1263.925961 | AM100: 1256.939435 | AN100: 1249.95291 | AO100: 1242.966384 | AP100: 1235.979859 | AQ100: 1228.993334 | AR100: 1222.006808 | AS100: 1215.020283 | AT100: 1208.033757 | AU100: 1201.047232 | AV100: 1194.060706
K101: Res PV - 16.1% - High | L101: =$S$40*(L112+L157) -> 3284.981095 | M101: 3096.324736 | N101: 3096.324736 | O101: 3096.324736 | P101: 3096.324736 | Q101: 3096.324736 | R101: 3096.324736 | S101: 3096.324736 | T101: 3096.324736 | U101: 3096.324736 | V101: 3096.324736 | W101: 3096.324736 | X101: 3096.324736 | Y101: 3096.324736 | Z101: 3096.324736 | AA101: 3096.324736 | AB101: 3096.324736 | AC101: 3096.324736 | AD101: 3096.324736 | AE101: 3096.324736 | AF101: 3096.324736 | AG101: 3096.324736 | AH101: 3096.324736 | AI101: 3096.324736 | AJ101: 3096.324736 | AK101: 3096.324736 | AL101: 3096.324736 | AM101: 3096.324736 | AN101: 3096.324736 | AO101: 3096.324736 | AP101: 3096.324736 | AQ101: 3096.324736 | AR101: 3096.324736 | AS101: 3096.324736 | AT101: 3096.324736 | AU101: 3096.324736 | AV101: 3096.324736
K102: Res PV - 20.7% - Low | L102: =$S$40*(L113+L158) -> 3284.981095 | M102: 3096.324736 | N102: 2809.707105 | O102: 2523.089473 | P102: 2236.471841 | Q102: 1949.85421 | R102: 1663.236578 | S102: 1559.239185 | T102: 1455.241792 | U102: 1351.244399 | V102: 1247.247006 | W102: 1143.249613 | X102: 1130.546839 | Y102: 1117.844066 | Z102: 1105.141292 | AA102: 1092.438519 | AB102: 1079.735745 | AC102: 1074.654636 | AD102: 1069.573526 | AE102: 1064.492417 | AF102: 1059.411308 | AG102: 1054.330198 | AH102: 1049.249089 | AI102: 1044.167979 | AJ102: 1039.08687 | AK102: 1034.005761 | AL102: 1028.924651 | AM102: 1022.573265 | AN102: 1016.221878 | AO102: 1009.870491 | AP102: 1003.519104 | AQ102: 997.1677176 | AR102: 990.8163309 | AS102: =$S$40*(AS113+AS158) -> 984.4649442 | AT102: 978.1135574 | AU102: 971.7621707 | AV102: 965.410784
K103: Res PV - 20.7% - Mid | L103: =$S$40*(L114+L159) -> 3284.981095 | M103: 3096.324736 | N103: 2927.820584 | O103: 2759.316433 | P103: 2590.812281 | Q103: 2422.308129 | R103: 2253.803977 | S103: 2150.150139 | T103: 2046.496302 | U103: 1942.842464 | V103: 1839.188626 | W103: 1735.534788 | X103: 1685.87178 | Y103: 1636.208773 | Z103: 1586.545765 | AA103: 1536.882757 | AB103: 1487.219749 | AC103: 1464.89037 | AD103: 1442.560991 | AE103: 1420.231612 | AF103: 1397.902234 | AG103: 1375.572855 | AH103: 1353.243476 | AI103: 1330.914097 | AJ103: 1308.584718 | AK103: 1286.255339 | AL103: 1263.925961 | AM103: 1256.939435 | AN103: 1249.95291 | AO103: 1242.966384 | AP103: 1235.979859 | AQ103: 1228.993334 | AR103: 1222.006808 | AS103: =$S$40*(AS114+AS159) -> 1215.020283 | AT103: 1208.033757 | AU103: 1201.047232 | AV103: 1194.060706
K104: Res PV - 20.7% - High | L104: =$S$40*(L115+L160) -> 3284.981095 | M104: 3096.324736 | N104: 3096.324736 | O104: 3096.324736 | P104: 3096.324736 | Q104: 3096.324736 | R104: 3096.324736 | S104: 3096.324736 | T104: 3096.324736 | U104: 3096.324736 | V104: 3096.324736 | W104: 3096.324736 | X104: 3096.324736 | Y104: 3096.324736 | Z104: 3096.324736 | AA104: 3096.324736 | AB104: 3096.324736 | AC104: 3096.324736 | AD104: 3096.324736 | AE104: 3096.324736 | AF104: 3096.324736 | AG104: 3096.324736 | AH104: 3096.324736 | AI104: 3096.324736 | AJ104: 3096.324736 | AK104: 3096.324736 | AL104: 3096.324736 | AM104: 3096.324736 | AN104: 3096.324736 | AO104: 3096.324736 | AP104: 3096.324736 | AQ104: 3096.324736 | AR104: 3096.324736 | AS104: 3096.324736 | AT104: 3096.324736 | AU104: 3096.324736 | AV104: 3096.324736
L106: 2014 | M106: 2015 | N106: 2016 | O106: 2017 | P106: 2018 | Q106: 2019 | R106: 2020 | S106: 2021 | T106: 2022 | U106: 2023 | V106: 2024 | W106: 2025 | X106: 2026 | Y106: 2027 | Z106: 2028 | AA106: 2029 | AB106: 2030 | AC106: 2031 | AD106: 2032 | AE106: 2033 | AF106: 2034 | AG106: 2035 | AH106: 2036 | AI106: 2037 | AJ106: 2038 | AK106: 2039 | AL106: 2040 | AM106: 2041 | AN106: 2042 | AO106: 2043 | AP106: 2044 | AQ106: 2045 | AR106: 2046 | AS106: 2047 | AT106: 2048 | AU106: 2049 | AV106: 2050
J107: Overnight Capital Cost ($/kW) | K107: Res PV - 12.5% - Low | L107: 3284.981095 | M107: 3096.324736 | N107: 2809.707105 | O107: 2523.089473 | P107: 2236.471841 | Q107: 1949.85421 | R107: 1663.236578 | S107: 1559.239185 | T107: 1455.241792 | U107: 1351.244399 | V107: 1247.247006 | W107: 1143.249613 | X107: 1130.546839 | Y107: 1117.844066 | Z107: 1105.141292 | AA107: 1092.438519 | AB107: 1079.735745 | AC107: 1074.654636 | AD107: 1069.573526 | AE107: 1064.492417 | AF107: 1059.411308 | AG107: 1054.330198 | AH107: 1049.249089 | AI107: 1044.167979 | AJ107: 1039.08687 | AK107: 1034.005761 | AL107: 1028.924651 | AM107: 1022.573265 | AN107: 1016.221878 | AO107: 1009.870491 | AP107: 1003.519104 | AQ107: 997.1677176 | AR107: 990.8163309 | AS107: 984.4649442 | AT107: 978.1135574 | AU107: 971.7621707 | AV107: 965.410784
K108: Res PV - 12.5% - Mid | L108: 3284.981095 | M108: 3096.324736 | N108: 2927.820584 | O108: 2759.316433 | P108: 2590.812281 | Q108: 2422.308129 | R108: 2253.803977 | S108: 2150.150139 | T108: 2046.496302 | U108: 1942.842464 | V108: 1839.188626 | W108: 1735.534788 | X108: 1685.87178 | Y108: 1636.208773 | Z108: 1586.545765 | AA108: 1536.882757 | AB108: 1487.219749 | AC108: 1464.89037 | AD108: 1442.560991 | AE108: 1420.231612 | AF108: 1397.902234 | AG108: 1375.572855 | AH108: 1353.243476 | AI108: 1330.914097 | AJ108: 1308.584718 | AK108: 1286.255339 | AL108: 1263.925961 | AM108: 1256.939435 | AN108: 1249.95291 | AO108: 1242.966384 | AP108: 1235.979859 | AQ108: 1228.993334 | AR108: 1222.006808 | AS108: 1215.020283 | AT108: 1208.033757 | AU108: 1201.047232 | AV108: 1194.060706
K109: Res PV - 12.5% - High | L109: 3284.981095 | M109: 3096.324736 | N109: 3096.324736 | O109: 3096.324736 | P109: 3096.324736 | Q109: 3096.324736 | R109: 3096.324736 | S109: 3096.324736 | T109: 3096.324736 | U109: 3096.324736 | V109: 3096.324736 | W109: 3096.324736 | X109: 3096.324736 | Y109: 3096.324736 | Z109: 3096.324736 | AA109: 3096.324736 | AB109: 3096.324736 | AC109: 3096.324736 | AD109: 3096.324736 | AE109: 3096.324736 | AF109: 3096.324736 | AG109: 3096.324736 | AH109: 3096.324736 | AI109: 3096.324736 | AJ109: 3096.324736 | AK109: 3096.324736 | AL109: 3096.324736 | AM109: 3096.324736 | AN109: 3096.324736 | AO109: 3096.324736 | AP109: 3096.324736 | AQ109: 3096.324736 | AR109: 3096.324736 | AS109: 3096.324736 | AT109: 3096.324736 | AU109: 3096.324736 | AV109: 3096.324736
K110: Res PV - 16.1% - Low | L110: 3284.981095 | M110: 3096.324736 | N110: 2809.707105 | O110: 2523.089473 | P110: 2236.471841 | Q110: 1949.85421 | R110: 1663.236578 | S110: 1559.239185 | T110: 1455.241792 | U110: 1351.244399 | V110: 1247.247006 | W110: 1143.249613 | X110: 1130.546839 | Y110: 1117.844066 | Z110: 1105.141292 | AA110: 1092.438519 | AB110: 1079.735745 | AC110: 1074.654636 | AD110: 1069.573526 | AE110: 1064.492417 | AF110: 1059.411308 | AG110: 1054.330198 | AH110: 1049.249089 | AI110: 1044.167979 | AJ110: 1039.08687 | AK110: 1034.005761 | AL110: 1028.924651 | AM110: 1022.573265 | AN110: 1016.221878 | AO110: 1009.870491 | AP110: 1003.519104 | AQ110: 997.1677176 | AR110: 990.8163309 | AS110: 984.4649442 | AT110: 978.1135574 | AU110: 971.7621707 | AV110: 965.410784
K111: Res PV - 16.1% - Mid | L111: 3284.981095 | M111: 3096.324736 | N111: 2927.820584 | O111: 2759.316433 | P111: 2590.812281 | Q111: 2422.308129 | R111: 2253.803977 | S111: 2150.150139 | T111: 2046.496302 | U111: 1942.842464 | V111: 1839.188626 | W111: 1735.534788 | X111: 1685.87178 | Y111: 1636.208773 | Z111: 1586.545765 | AA111: 1536.882757 | AB111: 1487.219749 | AC111: 1464.89037 | AD111: 1442.560991 | AE111: 1420.231612 | AF111: 1397.902234 | AG111: 1375.572855 | AH111: 1353.243476 | AI111: 1330.914097 | AJ111: 1308.584718 | AK111: 1286.255339 | AL111: 1263.925961 | AM111: 1256.939435 | AN111: 1249.95291 | AO111: 1242.966384 | AP111: 1235.979859 | AQ111: 1228.993334 | AR111: 1222.006808 | AS111: 1215.020283 | AT111: 1208.033757 | AU111: 1201.047232 | AV111: 1194.060706
K112: Res PV - 16.1% - High | L112: =L109 -> 3284.981095 | M112: 3096.324736 | N112: 3096.324736 | O112: 3096.324736 | P112: 3096.324736 | Q112: 3096.324736 | R112: 3096.324736 | S112: 3096.324736 | T112: 3096.324736 | U112: 3096.324736 | V112: 3096.324736 | W112: 3096.324736 | X112: 3096.324736 | Y112: 3096.324736 | Z112: 3096.324736 | AA112: 3096.324736 | AB112: 3096.324736 | AC112: 3096.324736 | AD112: 3096.324736 | AE112: 3096.324736 | AF112: 3096.324736 | AG112: 3096.324736 | AH112: 3096.324736 | AI112: 3096.324736 | AJ112: 3096.324736 | AK112: 3096.324736 | AL112: 3096.324736 | AM112: 3096.324736 | AN112: 3096.324736 | AO112: 3096.324736 | AP112: 3096.324736 | AQ112: 3096.324736 | AR112: 3096.324736 | AS112: 3096.324736 | AT112: 3096.324736 | AU112: 3096.324736 | AV112: 3096.324736
K113: Res PV - 20.7% - Low | L113: 3284.981095 | M113: 3096.324736 | N113: 2809.707105 | O113: 2523.089473 | P113: 2236.471841 | Q113: 1949.85421 | R113: 1663.236578 | S113: 1559.239185 | T113: 1455.241792 | U113: 1351.244399 | V113: 1247.247006 | W113: 1143.249613 | X113: 1130.546839 | Y113: 1117.844066 | Z113: 1105.141292 | AA113: 1092.438519 | AB113: 1079.735745 | AC113: 1074.654636 | AD113: 1069.573526 | AE113: 1064.492417 | AF113: 1059.411308 | AG113: 1054.330198 | AH113: 1049.249089 | AI113: 1044.167979 | AJ113: 1039.08687 | AK113: 1034.005761 | AL113: 1028.924651 | AM113: 1022.573265 | AN113: 1016.221878 | AO113: 1009.870491 | AP113: 1003.519104 | AQ113: 997.1677176 | AR113: 990.8163309 | AS113: 984.4649442 | AT113: 978.1135574 | AU113: 971.7621707 | AV113: 965.410784
K114: Res PV - 20.7% - Mid | L114: 3284.981095 | M114: 3096.324736 | N114: 2927.820584 | O114: 2759.316433 | P114: 2590.812281 | Q114: 2422.308129 | R114: 2253.803977 | S114: 2150.150139 | T114: 2046.496302 | U114: 1942.842464 | V114: 1839.188626 | W114: 1735.534788 | X114: 1685.87178 | Y114: 1636.208773 | Z114: 1586.545765 | AA114: 1536.882757 | AB114: 1487.219749 | AC114: 1464.89037 | AD114: 1442.560991 | AE114: 1420.231612 | AF114: 1397.902234 | AG114: 1375.572855 | AH114: 1353.243476 | AI114: 1330.914097 | AJ114: 1308.584718 | AK114: 1286.255339 | AL114: 1263.925961 | AM114: 1256.939435 | AN114: 1249.95291 | AO114: 1242.966384 | AP114: 1235.979859 | AQ114: 1228.993334 | AR114: 1222.006808 | AS114: 1215.020283 | AT114: 1208.033757 | AU114: 1201.047232 | AV114: 1194.060706
K115: Res PV - 20.7% - High | L115: 3284.981095 | M115: 3096.324736 | N115: 3096.324736 | O115: 3096.324736 | P115: 3096.324736 | Q115: 3096.324736 | R115: 3096.324736 | S115: 3096.324736 | T115: 3096.324736 | U115: 3096.324736 | V115: 3096.324736 | W115: 3096.324736 | X115: 3096.324736 | Y115: 3096.324736 | Z115: 3096.324736 | AA115: 3096.324736 | AB115: 3096.324736 | AC115: 3096.324736 | AD115: 3096.324736 | AE115: 3096.324736 | AF115: 3096.324736 | AG115: 3096.324736 | AH115: 3096.324736 | AI115: 3096.324736 | AJ115: 3096.324736 | AK115: 3096.324736 | AL115: 3096.324736 | AM115: 3096.324736 | AN115: 3096.324736 | AO115: 3096.324736 | AP115: 3096.324736 | AQ115: 3096.324736 | AR115: 3096.324736 | AS115: 3096.324736 | AT115: 3096.324736 | AU115: 3096.324736 | AV115: 3096.324736
L117: 2014 | M117: 2015 | N117: 2016 | O117: 2017 | P117: 2018 | Q117: 2019 | R117: 2020 | S117: 2021 | T117: 2022 | U117: 2023 | V117: 2024 | W117: 2025 | X117: 2026 | Y117: 2027 | Z117: 2028 | AA117: 2029 | AB117: 2030 | AC117: 2031 | AD117: 2032 | AE117: 2033 | AF117: 2034 | AG117: 2035 | AH117: 2036 | AI117: 2037 | AJ117: 2038 | AK117: 2039 | AL117: 2040 | AM117: 2041 | AN117: 2042 | AO117: 2043 | AP117: 2044 | AQ117: 2045 | AR117: 2046 | AS117: 2047 | AT117: 2048 | AU117: 2049 | AV117: 2050
J118: Fixed Operation and Maintenance Expenses ($/kW-yr) | K118: Res PV - 12.5% - Low | L118: 20 | M118: 18 | N118: 16 | O118: 14 | P118: 12 | Q118: 10 | R118: 10 | S118: 10 | T118: 10 | U118: 10 | V118: 10 | W118: 10 | X118: 10 | Y118: 10 | Z118: 10 | AA118: 10 | AB118: 10 | AC118: 10 | AD118: 10 | AE118: 10 | AF118: 10 | AG118: 10 | AH118: 10 | AI118: 10 | AJ118: 10 | AK118: 10 | AL118: 10 | AM118: 10 | AN118: 10 | AO118: 10 | AP118: 10 | AQ118: 10 | AR118: 10 | AS118: 10 | AT118: 10 | AU118: 10 | AV118: 10
K119: Res PV - 12.5% - Mid | L119: 20 | M119: 18 | N119: 17.2 | O119: 16.4 | P119: 15.6 | Q119: 14.8 | R119: 14 | S119: 13.2 | T119: 12.4 | U119: 11.6 | V119: 10.8 | W119: 10 | X119: 10 | Y119: 10 | Z119: 10 | AA119: 10 | AB119: 10 | AC119: 10 | AD119: 10 | AE119: 10 | AF119: 10 | AG119: 10 | AH119: 10 | AI119: 10 | AJ119: 10 | AK119: 10 | AL119: 10 | AM119: 10 | AN119: 10 | AO119: 10 | AP119: 10 | AQ119: 10 | AR119: 10 | AS119: 10 | AT119: 10 | AU119: 10 | AV119: 10
K120: Res PV - 12.5% - High | L120: 20 | M120: 20 | N120: 20 | O120: 20 | P120: 20 | Q120: 20 | R120: 20 | S120: 20 | T120: 20 | U120: 20 | V120: 20 | W120: 20 | X120: 20 | Y120: 20 | Z120: 20 | AA120: 20 | AB120: 20 | AC120: 20 | AD120: 20 | AE120: 20 | AF120: 20 | AG120: 20 | AH120: 20 | AI120: 20 | AJ120: 20 | AK120: 20 | AL120: 20 | AM120: 20 | AN120: 20 | AO120: 20 | AP120: 20 | AQ120: 20 | AR120: 20 | AS120: 20 | AT120: 20 | AU120: 20 | AV120: 20
K121: Res PV - 16.1% - Low | L121: 20 | M121: 18 | N121: 16 | O121: 14 | P121: 12 | Q121: 10 | R121: 10 | S121: 10 | T121: 10 | U121: 10 | V121: 10 | W121: 10 | X121: 10 | Y121: 10 | Z121: 10 | AA121: 10 | AB121: 10 | AC121: 10 | AD121: 10 | AE121: 10 | AF121: 10 | AG121: 10 | AH121: 10 | AI121: 10 | AJ121: 10 | AK121: 10 | AL121: 10 | AM121: 10 | AN121: 10 | AO121: 10 | AP121: 10 | AQ121: 10 | AR121: 10 | AS121: 10 | AT121: 10 | AU121: 10 | AV121: 10
K122: Res PV - 16.1% - Mid | L122: 20 | M122: 18 | N122: 17.2 | O122: 16.4 | P122: 15.6 | Q122: 14.8 | R122: 14 | S122: 13.2 | T122: 12.4 | U122: 11.6 | V122: 10.8 | W122: 10 | X122: 10 | Y122: 10 | Z122: 10 | AA122: 10 | AB122: 10 | AC122: 10 | AD122: 10 | AE122: 10 | AF122: 10 | AG122: 10 | AH122: 10 | AI122: 10 | AJ122: 10 | AK122: 10 | AL122: 10 | AM122: 10 | AN122: 10 | AO122: 10 | AP122: 10 | AQ122: 10 | AR122: 10 | AS122: 10 | AT122: 10 | AU122: 10 | AV122: 10
K123: Res PV - 16.1% - High | L123: 20 | M123: 20 | N123: 20 | O123: 20 | P123: 20 | Q123: 20 | R123: 20 | S123: 20 | T123: 20 | U123: 20 | V123: 20 | W123: 20 | X123: 20 | Y123: 20 | Z123: 20 | AA123: 20 | AB123: 20 | AC123: 20 | AD123: 20 | AE123: 20 | AF123: 20 | AG123: 20 | AH123: 20 | AI123: 20 | AJ123: 20 | AK123: 20 | AL123: 20 | AM123: 20 | AN123: 20 | AO123: 20 | AP123: 20 | AQ123: 20 | AR123: 20 | AS123: 20 | AT123: 20 | AU123: 20 | AV123: 20
K124: Res PV - 20.7% - Low | L124: 20 | M124: 18 | N124: 16 | O124: 14 | P124: 12 | Q124: 10 | R124: 10 | S124: 10 | T124: 10 | U124: 10 | V124: 10 | W124: 10 | X124: 10 | Y124: 10 | Z124: 10 | AA124: 10 | AB124: 10 | AC124: 10 | AD124: 10 | AE124: 10 | AF124: 10 | AG124: 10 | AH124: 10 | AI124: 10 | AJ124: 10 | AK124: 10 | AL124: 10 | AM124: 10 | AN124: 10 | AO124: 10 | AP124: 10 | AQ124: 10 | AR124: 10 | AS124: 10 | AT124: 10 | AU124: 10 | AV124: 10
K125: Res PV - 20.7% - Mid | L125: 20 | M125: 18 | N125: 17.2 | O125: 16.4 | P125: 15.6 | Q125: 14.8 | R125: 14 | S125: 13.2 | T125: 12.4 | U125: 11.6 | V125: 10.8 | W125: 10 | X125: 10 | Y125: 10 | Z125: 10 | AA125: 10 | AB125: 10 | AC125: 10 | AD125: 10 | AE125: 10 | AF125: 10 | AG125: 10 | AH125: 10 | AI125: 10 | AJ125: 10 | AK125: 10 | AL125: 10 | AM125: 10 | AN125: 10 | AO125: 10 | AP125: 10 | AQ125: 10 | AR125: 10 | AS125: 10 | AT125: 10 | AU125: 10 | AV125: 10
K126: Res PV - 20.7% - High | L126: 20 | M126: 20 | N126: 20 | O126: 20 | P126: 20 | Q126: 20 | R126: 20 | S126: 20 | T126: 20 | U126: 20 | V126: 20 | W126: 20 | X126: 20 | Y126: 20 | Z126: 20 | AA126: 20 | AB126: 20 | AC126: 20 | AD126: 20 | AE126: 20 | AF126: 20 | AG126: 20 | AH126: 20 | AI126: 20 | AJ126: 20 | AK126: 20 | AL126: 20 | AM126: 20 | AN126: 20 | AO126: 20 | AP126: 20 | AQ126: 20 | AR126: 20 | AS126: 20 | AT126: 20 | AU126: 20 | AV126: 20
L128: 2014 | M128: 2015 | N128: 2016 | O128: 2017 | P128: 2018 | Q128: 2019 | R128: 2020 | S128: 2021 | T128: 2022 | U128: 2023 | V128: 2024 | W128: 2025 | X128: 2026 | Y128: 2027 | Z128: 2028 | AA128: 2029 | AB128: 2030 | AC128: 2031 | AD128: 2032 | AE128: 2033 | AF128: 2034 | AG128: 2035 | AH128: 2036 | AI128: 2037 | AJ128: 2038 | AK128: 2039 | AL128: 2040 | AM128: 2041 | AN128: 2042 | AO128: 2043 | AP128: 2044 | AQ128: 2045 | AR128: 2046 | AS128: 2047 | AT128: 2048 | AU128: 2049 | AV128: 2050
J129: Variable Operation and Maintenance Expenses ($/MWh) | K129: Res PV - 12.5% - Low | L129: 0 | M129: 0 | N129: 0 | O129: 0 | P129: 0 | Q129: 0 | R129: 0 | S129: 0 | T129: 0 | U129: 0 | V129: 0 | W129: 0 | X129: 0 | Y129: 0 | Z129: 0 | AA129: 0 | AB129: 0 | AC129: 0 | AD129: 0 | AE129: 0 | AF129: 0 | AG129: 0 | AH129: 0 | AI129: 0 | AJ129: 0 | AK129: 0 | AL129: 0 | AM129: 0 | AN129: 0 | AO129: 0 | AP129: 0 | AQ129: 0 | AR129: 0 | AS129: 0 | AT129: 0 | AU129: 0 | AV129: 0
K130: Res PV - 12.5% - Mid | L130: 0 | M130: 0 | N130: 0 | O130: 0 | P130: 0 | Q130: 0 | R130: 0 | S130: 0 | T130: 0 | U130: 0 | V130: 0 | W130: 0 | X130: 0 | Y130: 0 | Z130: 0 | AA130: 0 | AB130: 0 | AC130: 0 | AD130: 0 | AE130: 0 | AF130: 0 | AG130: 0 | AH130: 0 | AI130: 0 | AJ130: 0 | AK130: 0 | AL130: 0 | AM130: 0 | AN130: 0 | AO130: 0 | AP130: 0 | AQ130: 0 | AR130: 0 | AS130: 0 | AT130: 0 | AU130: 0 | AV130: 0
K131: Res PV - 12.5% - High | L131: 0 | M131: 0 | N131: 0 | O131: 0 | P131: 0 | Q131: 0 | R131: 0 | S131: 0 | T131: 0 | U131: 0 | V131: 0 | W131: 0 | X131: 0 | Y131: 0 | Z131: 0 | AA131: 0 | AB131: 0 | AC131: 0 | AD131: 0 | AE131: 0 | AF131: 0 | AG131: 0 | AH131: 0 | AI131: 0 | AJ131: 0 | AK131: 0 | AL131: 0 | AM131: 0 | AN131: 0 | AO131: 0 | AP131: 0 | AQ131: 0 | AR131: 0 | AS131: 0 | AT131: 0 | AU131: 0 | AV131: 0
K132: Res PV - 16.1% - Low | L132: 0 | M132: 0 | N132: 0 | O132: 0 | P132: 0 | Q132: 0 | R132: 0 | S132: 0 | T132: 0 | U132: 0 | V132: 0 | W132: 0 | X132: 0 | Y132: 0 | Z132: 0 | AA132: 0 | AB132: 0 | AC132: 0 | AD132: 0 | AE132: 0 | AF132: 0 | AG132: 0 | AH132: 0 | AI132: 0 | AJ132: 0 | AK132: 0 | AL132: 0 | AM132: 0 | AN132: 0 | AO132: 0 | AP132: 0 | AQ132: 0 | AR132: 0 | AS132: 0 | AT132: 0 | AU132: 0 | AV132: 0
K133: Res PV - 16.1% - Mid | L133: 0 | M133: 0 | N133: 0 | O133: 0 | P133: 0 | Q133: 0 | R133: 0 | S133: 0 | T133: 0 | U133: 0 | V133: 0 | W133: 0 | X133: 0 | Y133: 0 | Z133: 0 | AA133: 0 | AB133: 0 | AC133: 0 | AD133: 0 | AE133: 0 | AF133: 0 | AG133: 0 | AH133: 0 | AI133: 0 | AJ133: 0 | AK133: 0 | AL133: 0 | AM133: 0 | AN133: 0 | AO133: 0 | AP133: 0 | AQ133: 0 | AR133: 0 | AS133: 0 | AT133: 0 | AU133: 0 | AV133: 0
K134: Res PV - 16.1% - High | L134: 0 | M134: 0 | N134: 0 | O134: 0 | P134: 0 | Q134: 0 | R134: 0 | S134: 0 | T134: 0 | U134: 0 | V134: 0 | W134: 0 | X134: 0 | Y134: 0 | Z134: 0 | AA134: 0 | AB134: 0 | AC134: 0 | AD134: 0 | AE134: 0 | AF134: 0 | AG134: 0 | AH134: 0 | AI134: 0 | AJ134: 0 | AK134: 0 | AL134: 0 | AM134: 0 | AN134: 0 | AO134: 0 | AP134: 0 | AQ134: 0 | AR134: 0 | AS134: 0 | AT134: 0 | AU134: 0 | AV134: 0
K135: Res PV - 20.7% - Low | L135: 0 | M135: 0 | N135: 0 | O135: 0 | P135: 0 | Q135: 0 | R135: 0 | S135: 0 | T135: 0 | U135: 0 | V135: 0 | W135: 0 | X135: 0 | Y135: 0 | Z135: 0 | AA135: 0 | AB135: 0 | AC135: 0 | AD135: 0 | AE135: 0 | AF135: 0 | AG135: 0 | AH135: 0 | AI135: 0 | AJ135: 0 | AK135: 0 | AL135: 0 | AM135: 0 | AN135: 0 | AO135: 0 | AP135: 0 | AQ135: 0 | AR135: 0 | AS135: 0 | AT135: 0 | AU135: 0 | AV135: 0
K136: Res PV - 20.7% - Mid | L136: 0 | M136: 0 | N136: 0 | O136: 0 | P136: 0 | Q136: 0 | R136: 0 | S136: 0 | T136: 0 | U136: 0 | V136: 0 | W136: 0 | X136: 0 | Y136: 0 | Z136: 0 | AA136: 0 | AB136: 0 | AC136: 0 | AD136: 0 | AE136: 0 | AF136: 0 | AG136: 0 | AH136: 0 | AI136: 0 | AJ136: 0 | AK136: 0 | AL136: 0 | AM136: 0 | AN136: 0 | AO136: 0 | AP136: 0 | AQ136: 0 | AR136: 0 | AS136: 0 | AT136: 0 | AU136: 0 | AV136: 0
K137: Res PV - 20.7% - High | L137: 0 | M137: 0 | N137: 0 | O137: 0 | P137: 0 | Q137: 0 | R137: 0 | S137: 0 | T137: 0 | U137: 0 | V137: 0 | W137: 0 | X137: 0 | Y137: 0 | Z137: 0 | AA137: 0 | AB137: 0 | AC137: 0 | AD137: 0 | AE137: 0 | AF137: 0 | AG137: 0 | AH137: 0 | AI137: 0 | AJ137: 0 | AK137: 0 | AL137: 0 | AM137: 0 | AN137: 0 | AO137: 0 | AP137: 0 | AQ137: 0 | AR137: 0 | AS137: 0 | AT137: 0 | AU137: 0 | AV137: 0
L140: 2014 | M140: 2015 | N140: 2016 | O140: 2017 | P140: 2018 | Q140: 2019 | R140: 2020 | S140: 2021 | T140: 2022 | U140: 2023 | V140: 2024 | W140: 2025 | X140: 2026 | Y140: 2027 | Z140: 2028 | AA140: 2029 | AB140: 2030 | AC140: 2031 | AD140: 2032 | AE140: 2033 | AF140: 2034 | AG140: 2035 | AH140: 2036 | AI140: 2037 | AJ140: 2038 | AK140: 2039 | AL140: 2040 | AM140: 2041 | AN140: 2042 | AO140: 2043 | AP140: 2044 | AQ140: 2045 | AR140: 2046 | AS140: 2047 | AT140: 2048 | AU140: 2049 | AV140: 2050
H141: Finance | J141: Weighted Average Cost of Capital (WACC) (Nominal) (%) | K141: Res PV - 12.5% - Low | L141: =$S$37 -> 0.0808 | M141: 0.0808 | N141: 0.0808 | O141: 0.0808 | P141: 0.0808 | Q141: 0.0808 | R141: 0.0808 | S141: 0.0808 | T141: 0.0808 | U141: 0.0808 | V141: 0.0808 | W141: 0.0808 | X141: 0.0808 | Y141: 0.0808 | Z141: 0.0808 | AA141: 0.0808 | AB141: =$S$37 -> 0.0808 | AC141: 0.0808 | AD141: 0.0808 | AE141: 0.0808 | AF141: 0.0808 | AG141: 0.0808 | AH141: 0.0808 | AI141: 0.0808 | AJ141: 0.0808 | AK141: 0.0808 | AL141: 0.0808 | AM141: 0.0808 | AN141: 0.0808 | AO141: 0.0808 | AP141: 0.0808 | AQ141: 0.0808 | AR141: =$S$37 -> 0.0808 | AS141: 0.0808 | AT141: 0.0808 | AU141: 0.0808 | AV141: 0.0808
K142: Res PV - 12.5% - Mid | L142: 0.0808 | M142: 0.0808 | N142: 0.0808 | O142: 0.0808 | P142: 0.0808 | Q142: 0.0808 | R142: 0.0808 | S142: 0.0808 | T142: 0.0808 | U142: 0.0808 | V142: 0.0808 | W142: 0.0808 | X142: 0.0808 | Y142: 0.0808 | Z142: 0.0808 | AA142: 0.0808 | AB142: 0.0808 | AC142: 0.0808 | AD142: 0.0808 | AE142: 0.0808 | AF142: 0.0808 | AG142: 0.0808 | AH142: 0.0808 | AI142: 0.0808 | AJ142: 0.0808 | AK142: 0.0808 | AL142: 0.0808 | AM142: 0.0808 | AN142: 0.0808 | AO142: 0.0808 | AP142: 0.0808 | AQ142: 0.0808 | AR142: 0.0808 | AS142: 0.0808 | AT142: 0.0808 | AU142: 0.0808 | AV142: 0.0808
K143: Res PV - 12.5% - High | L143: 0.0808 | M143: 0.0808 | N143: 0.0808 | O143: 0.0808 | P143: 0.0808 | Q143: 0.0808 | R143: 0.0808 | S143: 0.0808 | T143: 0.0808 | U143: 0.0808 | V143: 0.0808 | W143: 0.0808 | X143: 0.0808 | Y143: 0.0808 | Z143: 0.0808 | AA143: 0.0808 | AB143: 0.0808 | AC143: 0.0808 | AD143: 0.0808 | AE143: 0.0808 | AF143: 0.0808 | AG143: 0.0808 | AH143: 0.0808 | AI143: 0.0808 | AJ143: 0.0808 | AK143: 0.0808 | AL143: 0.0808 | AM143: 0.0808 | AN143: 0.0808 | AO143: 0.0808 | AP143: 0.0808 | AQ143: 0.0808 | AR143: 0.0808 | AS143: 0.0808 | AT143: 0.0808 | AU143: 0.0808 | AV143: 0.0808
K144: Res PV - 16.1% - Low | L144: 0.0808 | M144: 0.0808 | N144: 0.0808 | O144: 0.0808 | P144: 0.0808 | Q144: 0.0808 | R144: 0.0808 | S144: 0.0808 | T144: 0.0808 | U144: 0.0808 | V144: 0.0808 | W144: 0.0808 | X144: 0.0808 | Y144: 0.0808 | Z144: 0.0808 | AA144: 0.0808 | AB144: 0.0808 | AC144: 0.0808 | AD144: 0.0808 | AE144: 0.0808 | AF144: 0.0808 | AG144: 0.0808 | AH144: 0.0808 | AI144: 0.0808 | AJ144: 0.0808 | AK144: 0.0808 | AL144: 0.0808 | AM144: 0.0808 | AN144: 0.0808 | AO144: 0.0808 | AP144: 0.0808 | AQ144: 0.0808 | AR144: 0.0808 | AS144: 0.0808 | AT144: 0.0808 | AU144: 0.0808 | AV144: 0.0808
K145: Res PV - 16.1% - Mid | L145: 0.0808 | M145: 0.0808 | N145: 0.0808 | O145: 0.0808 | P145: 0.0808 | Q145: 0.0808 | R145: 0.0808 | S145: 0.0808 | T145: 0.0808 | U145: 0.0808 | V145: 0.0808 | W145: 0.0808 | X145: 0.0808 | Y145: 0.0808 | Z145: 0.0808 | AA145: 0.0808 | AB145: 0.0808 | AC145: 0.0808 | AD145: 0.0808 | AE145: 0.0808 | AF145: 0.0808 | AG145: 0.0808 | AH145: 0.0808 | AI145: 0.0808 | AJ145: 0.0808 | AK145: 0.0808 | AL145: 0.0808 | AM145: 0.0808 | AN145: 0.0808 | AO145: 0.0808 | AP145: 0.0808 | AQ145: 0.0808 | AR145: 0.0808 | AS145: 0.0808 | AT145: 0.0808 | AU145: 0.0808 | AV145: 0.0808
K146: Res PV - 16.1% - High | L146: 0.0808 | M146: 0.0808 | N146: 0.0808 | O146: 0.0808 | P146: 0.0808 | Q146: 0.0808 | R146: 0.0808 | S146: 0.0808 | T146: 0.0808 | U146: 0.0808 | V146: 0.0808 | W146: 0.0808 | X146: 0.0808 | Y146: 0.0808 | Z146: 0.0808 | AA146: 0.0808 | AB146: 0.0808 | AC146: 0.0808 | AD146: 0.0808 | AE146: 0.0808 | AF146: 0.0808 | AG146: 0.0808 | AH146: 0.0808 | AI146: 0.0808 | AJ146: 0.0808 | AK146: 0.0808 | AL146: 0.0808 | AM146: 0.0808 | AN146: 0.0808 | AO146: 0.0808 | AP146: 0.0808 | AQ146: 0.0808 | AR146: 0.0808 | AS146: 0.0808 | AT146: 0.0808 | AU146: 0.0808 | AV146: 0.0808
K147: Res PV - 20.7% - Low | L147: 0.0808 | M147: 0.0808 | N147: 0.0808 | O147: 0.0808 | P147: 0.0808 | Q147: 0.0808 | R147: 0.0808 | S147: 0.0808 | T147: 0.0808 | U147: 0.0808 | V147: 0.0808 | W147: 0.0808 | X147: 0.0808 | Y147: 0.0808 | Z147: 0.0808 | AA147: 0.0808 | AB147: 0.0808 | AC147: 0.0808 | AD147: 0.0808 | AE147: 0.0808 | AF147: 0.0808 | AG147: 0.0808 | AH147: 0.0808 | AI147: 0.0808 | AJ147: 0.0808 | AK147: 0.0808 | AL147: 0.0808 | AM147: 0.0808 | AN147: 0.0808 | AO147: 0.0808 | AP147: 0.0808 | AQ147: 0.0808 | AR147: 0.0808 | AS147: 0.0808 | AT147: 0.0808 | AU147: 0.0808 | AV147: 0.0808
K148: Res PV - 20.7% - Mid | L148: 0.0808 | M148: 0.0808 | N148: 0.0808 | O148: 0.0808 | P148: 0.0808 | Q148: 0.0808 | R148: 0.0808 | S148: 0.0808 | T148: 0.0808 | U148: 0.0808 | V148: 0.0808 | W148: 0.0808 | X148: 0.0808 | Y148: 0.0808 | Z148: 0.0808 | AA148: 0.0808 | AB148: 0.0808 | AC148: 0.0808 | AD148: 0.0808 | AE148: 0.0808 | AF148: 0.0808 | AG148: 0.0808 | AH148: 0.0808 | AI148: 0.0808 | AJ148: 0.0808 | AK148: 0.0808 | AL148: 0.0808 | AM148: 0.0808 | AN148: 0.0808 | AO148: 0.0808 | AP148: 0.0808 | AQ148: 0.0808 | AR148: 0.0808 | AS148: 0.0808 | AT148: 0.0808 | AU148: 0.0808 | AV148: 0.0808
K149: Res PV - 20.7% - High | L149: 0.0808 | M149: 0.0808 | N149: 0.0808 | O149: 0.0808 | P149: 0.0808 | Q149: 0.0808 | R149: 0.0808 | S149: 0.0808 | T149: 0.0808 | U149: 0.0808 | V149: 0.0808 | W149: 0.0808 | X149: 0.0808 | Y149: 0.0808 | Z149: 0.0808 | AA149: 0.0808 | AB149: 0.0808 | AC149: 0.0808 | AD149: 0.0808 | AE149: 0.0808 | AF149: 0.0808 | AG149: 0.0808 | AH149: 0.0808 | AI149: 0.0808 | AJ149: 0.0808 | AK149: 0.0808 | AL149: 0.0808 | AM149: 0.0808 | AN149: 0.0808 | AO149: 0.0808 | AP149: 0.0808 | AQ149: 0.0808 | AR149: 0.0808 | AS149: 0.0808 | AT149: 0.0808 | AU149: 0.0808 | AV149: 0.0808
L151: 2014 | M151: 2015 | N151: 2016 | O151: 2017 | P151: 2018 | Q151: 2019 | R151: 2020 | S151: 2021 | T151: 2022 | U151: 2023 | V151: 2024 | W151: 2025 | X151: 2026 | Y151: 2027 | Z151: 2028 | AA151: 2029 | AB151: 2030 | AC151: 2031 | AD151: 2032 | AE151: 2033 | AF151: 2034 | AG151: 2035 | AH151: 2036 | AI151: 2037 | AJ151: 2038 | AK151: 2039 | AL151: 2040 | AM151: 2041 | AN151: 2042 | AO151: 2043 | AP151: 2044 | AQ151: 2045 | AR151: 2046 | AS151: 2047 | AT151: 2048 | AU151: 2049 | AV151: 2050
H152: Grid Connection Costs | J152: Grid Connection Costs (GCC) ($/kW) | K152: Res PV - 12.5% - Low | L152: 0 | M152: 0 | N152: 0 | O152: 0 | P152: 0 | Q152: 0 | R152: 0 | S152: 0 | T152: 0 | U152: 0 | V152: 0 | W152: 0 | X152: 0 | Y152: 0 | Z152: 0 | AA152: 0 | AB152: 0 | AC152: 0 | AD152: 0 | AE152: 0 | AF152: 0 | AG152: 0 | AH152: 0 | AI152: 0 | AJ152: 0 | AK152: 0 | AL152: 0 | AM152: 0 | AN152: 0 | AO152: 0 | AP152: 0 | AQ152: 0 | AR152: 0 | AS152: 0 | AT152: 0 | AU152: 0 | AV152: 0
K153: Res PV - 12.5% - Mid | L153: 0 | M153: 0 | N153: 0 | O153: 0 | P153: 0 | Q153: 0 | R153: 0 | S153: 0 | T153: 0 | U153: 0 | V153: 0 | W153: 0 | X153: 0 | Y153: 0 | Z153: 0 | AA153: 0 | AB153: 0 | AC153: 0 | AD153: 0 | AE153: 0 | AF153: 0 | AG153: 0 | AH153: 0 | AI153: 0 | AJ153: 0 | AK153: 0 | AL153: 0 | AM153: 0 | AN153: 0 | AO153: 0 | AP153: 0 | AQ153: 0 | AR153: 0 | AS153: 0 | AT153: 0 | AU153: 0 | AV153: 0
K154: Res PV - 12.5% - High | L154: 0 | M154: 0 | N154: 0 | O154: 0 | P154: 0 | Q154: 0 | R154: 0 | S154: 0 | T154: 0 | U154: 0 | V154: 0 | W154: 0 | X154: 0 | Y154: 0 | Z154: 0 | AA154: 0 | AB154: 0 | AC154: 0 | AD154: 0 | AE154: 0 | AF154: 0 | AG154: 0 | AH154: 0 | AI154: 0 | AJ154: 0 | AK154: 0 | AL154: 0 | AM154: 0 | AN154: 0 | AO154: 0 | AP154: 0 | AQ154: 0 | AR154: 0 | AS154: 0 | AT154: 0 | AU154: 0 | AV154: 0
K155: Res PV - 16.1% - Low | L155: 0 | M155: 0 | N155: 0 | O155: 0 | P155: 0 | Q155: 0 | R155: 0 | S155: 0 | T155: 0 | U155: 0 | V155: 0 | W155: 0 | X155: 0 | Y155: 0 | Z155: 0 | AA155: 0 | AB155: 0 | AC155: 0 | AD155: 0 | AE155: 0 | AF155: 0 | AG155: 0 | AH155: 0 | AI155: 0 | AJ155: 0 | AK155: 0 | AL155: 0 | AM155: 0 | AN155: 0 | AO155: 0 | AP155: 0 | AQ155: 0 | AR155: 0 | AS155: 0 | AT155: 0 | AU155: 0 | AV155: 0
K156: Res PV - 16.1% - Mid | L156: 0 | M156: 0 | N156: 0 | O156: 0 | P156: 0 | Q156: 0 | R156: 0 | S156: 0 | T156: 0 | U156: 0 | V156: 0 | W156: 0 | X156: 0 | Y156: 0 | Z156: 0 | AA156: 0 | AB156: 0 | AC156: 0 | AD156: 0 | AE156: 0 | AF156: 0 | AG156: 0 | AH156: 0 | AI156: 0 | AJ156: 0 | AK156: 0 | AL156: 0 | AM156: 0 | AN156: 0 | AO156: 0 | AP156: 0 | AQ156: 0 | AR156: 0 | AS156: 0 | AT156: 0 | AU156: 0 | AV156: 0
K157: Res PV - 16.1% - High | L157: 0 | M157: 0 | N157: 0 | O157: 0 | P157: 0 | Q157: 0 | R157: 0 | S157: 0 | T157: 0 | U157: 0 | V157: 0 | W157: 0 | X157: 0 | Y157: 0 | Z157: 0 | AA157: 0 | AB157: 0 | AC157: 0 | AD157: 0 | AE157: 0 | AF157: 0 | AG157: 0 | AH157: 0 | AI157: 0 | AJ157: 0 | AK157: 0 | AL157: 0 | AM157: 0 | AN157: 0 | AO157: 0 | AP157: 0 | AQ157: 0 | AR157: 0 | AS157: 0 | AT157: 0 | AU157: 0 | AV157: 0
K158: Res PV - 20.7% - Low | L158: 0 | M158: 0 | N158: 0 | O158: 0 | P158: 0 | Q158: 0 | R158: 0 | S158: 0 | T158: 0 | U158: 0 | V158: 0 | W158: 0 | X158: 0 | Y158: 0 | Z158: 0 | AA158: 0 | AB158: 0 | AC158: 0 | AD158: 0 | AE158: 0 | AF158: 0 | AG158: 0 | AH158: 0 | AI158: 0 | AJ158: 0 | AK158: 0 | AL158: 0 | AM158: 0 | AN158: 0 | AO158: 0 | AP158: 0 | AQ158: 0 | AR158: 0 | AS158: 0 | AT158: 0 | AU158: 0 | AV158: 0
K159: Res PV - 20.7% - Mid | L159: 0 | M159: 0 | N159: 0 | O159: 0 | P159: 0 | Q159: 0 | R159: 0 | S159: 0 | T159: 0 | U159: 0 | V159: 0 | W159: 0 | X159: 0 | Y159: 0 | Z159: 0 | AA159: 0 | AB159: 0 | AC159: 0 | AD159: 0 | AE159: 0 | AF159: 0 | AG159: 0 | AH159: 0 | AI159: 0 | AJ159: 0 | AK159: 0 | AL159: 0 | AM159: 0 | AN159: 0 | AO159: 0 | AP159: 0 | AQ159: 0 | AR159: 0 | AS159: 0 | AT159: 0 | AU159: 0 | AV159: 0
K160: Res PV - 20.7% - High | L160: 0 | M160: 0 | N160: 0 | O160: 0 | P160: 0 | Q160: 0 | R160: 0 | S160: 0 | T160: 0 | U160: 0 | V160: 0 | W160: 0 | X160: 0 | Y160: 0 | Z160: 0 | AA160: 0 | AB160: 0 | AC160: 0 | AD160: 0 | AE160: 0 | AF160: 0 | AG160: 0 | AH160: 0 | AI160: 0 | AJ160: 0 | AK160: 0 | AL160: 0 | AM160: 0 | AN160: 0 | AO160: 0 | AP160: 0 | AQ160: 0 | AR160: 0 | AS160: 0 | AT160: 0 | AU160: 0 | AV160: 0
L162: 2014 | M162: 2015 | N162: 2016 | O162: 2017 | P162: 2018 | Q162: 2019 | R162: 2020 | S162: 2021 | T162: 2022 | U162: 2023 | V162: 2024 | W162: 2025 | X162: 2026 | Y162: 2027 | Z162: 2028 | AA162: 2029 | AB162: 2030 | AC162: 2031 | AD162: 2032 | AE162: 2033 | AF162: 2034 | AG162: 2035 | AH162: 2036 | AI162: 2037 | AJ162: 2038 | AK162: 2039 | AL162: 2040 | AM162: 2041 | AN162: 2042 | AO162: 2043 | AP162: 2044 | AQ162: 2045 | AR162: 2046 | AS162: 2047 | AT162: 2048 | AU162: 2049 | AV162: 2050
H163: LCOE | J163: Levelized Cost of Energy ($/MWh) | K163: Res PV - 12.5% - Low | L163: =(($S$44 * $S$42 * $S$40 * (L107 * 1 + L152) +L118) * 1000 / (L74 * 8760)) + L129 + 0 -> 299.8271669 | M163: 281.8305675 | N163: 255.4375107 | O163: 229.0444539 | P163: 202.651397 | Q163: 176.2583402 | R163: 151.6917674 | S163: 142.777942 | T163: 133.8641166 | U163: 124.9502912 | V163: 116.0364657 | W163: 107.1226403 | X163: 106.0338601 | Y163: 104.9450799 | Z163: 103.8562996 | AA163: 102.7675194 | AB163: 101.6787392 | AC163: 101.2432271 | AD163: 100.807715 | AE163: 100.3722029 | AF163: 99.93669084 | AG163: 99.50117875 | AH163: 99.06566666 | AI163: 98.63015457 | AJ163: 98.19464248 | AK163: 97.75913039 | AL163: 97.3236183 | AM163: 96.77922819 | AN163: 96.23483807 | AO163: 95.69044796 | AP163: 95.14605785 | AQ163: 94.60166774 | AR163: 94.05727762 | AS163: 93.51288751 | AT163: 92.9684974 | AU163: 92.42410729 | AV163: 91.87971717
K164: Res PV - 12.5% - Mid | L164: =(($S$44 * $S$42 * $S$40 * (L108 * 1 + L153) +L119) * 1000 / (L75 * 8760)) + L130 + 0 -> 299.8271669 | M164: 281.8305675 | N164: 266.6571446 | O164: 251.4837218 | P164: 236.3102989 | Q164: 221.1368761 | R164: 205.9634532 | S164: 196.348481 | T164: 186.7335088 | U164: 177.1185366 | V164: 167.5035644 | W164: 157.8885922 | X164: 153.6318761 | Y164: 149.3751599 | Z164: 145.1184438 | AA164: 140.8617276 | AB164: 136.6050115 | AC164: 134.6911156 | AD164: 132.7772197 | AE164: 130.8633238 | AF164: 128.9494279 | AG164: 127.035532 | AH164: 125.1216361 | AI164: 123.2077402 | AJ164: 121.2938443 | AK164: 119.3799484 | AL164: 117.4660525 | AM164: 116.8672233 | AN164: 116.2683942 | AO164: 115.6695651 | AP164: 115.070736 | AQ164: 114.4719068 | AR164: 113.8730777 | AS164: 113.2742486 | AT164: 112.6754195 | AU164: 112.0765903 | AV164: 111.4777612
K165: Res PV - 12.5% - High | L165: =(($S$44 * $S$42 * $S$40 * (L109 * 1 + L154) +L120) * 1000 / (L76 * 8760)) + L131 + 0 -> 299.8271669 | M165: 283.6570515 | N165: 283.6570515 | O165: 283.6570515 | P165: 283.6570515 | Q165: 283.6570515 | R165: 283.6570515 | S165: 283.6570515 | T165: 283.6570515 | U165: 283.6570515 | V165: 283.6570515 | W165: 283.6570515 | X165: 283.6570515 | Y165: 283.6570515 | Z165: 283.6570515 | AA165: 283.6570515 | AB165: 283.6570515 | AC165: 283.6570515 | AD165: 283.6570515 | AE165: 283.6570515 | AF165: 283.6570515 | AG165: 283.6570515 | AH165: 283.6570515 | AI165: 283.6570515 | AJ165: 283.6570515 | AK165: 283.6570515 | AL165: 283.6570515 | AM165: 283.6570515 | AN165: 283.6570515 | AO165: 283.6570515 | AP165: 283.6570515 | AQ165: 283.6570515 | AR165: 283.6570515 | AS165: 283.6570515 | AT165: 283.6570515 | AU165: 283.6570515 | AV165: 283.6570515
K166: Res PV - 16.1% - Low | L166: =(($S$44 * $S$42 * $S$40 * (L110 * 1 + L155) +L121) * 1000 / (L77 * 8760)) + L132 + 0 -> 232.7850675 | M166: 218.8125524 | N166: 198.3210487 | O166: 177.8295449 | P166: 157.3380412 | Q166: 136.8465374 | R166: 117.7731113 | S166: 110.8524394 | T166: 103.9317675 | U166: 97.01109562 | V166: 90.09042371 | W166: 83.1697518 | X166: 82.32442554 | Y166: 81.47909928 | Z166: 80.63377302 | AA166: 79.78844676 | AB166: 78.94312049 | AC166: 78.60498999 | AD166: 78.26685949 | AE166: 77.92872898 | AF166: 77.59059848 | AG166: 77.25246797 | AH166: 76.91433747 | AI166: 76.57620696 | AJ166: 76.23807646 | AK166: 75.89994595 | AL166: 75.56181545 | AM166: 75.13915232 | AN166: 74.71648919 | AO166: 74.29382606 | AP166: 73.87116293 | AQ166: 73.44849979 | AR166: 73.02583666 | AS166: 72.60317353 | AT166: 72.1805104 | AU166: 71.75784727 | AV166: 71.33518414
K167: Res PV - 16.1% - Mid | L167: =(($S$44 * $S$42 * $S$40 * (L111 * 1 + L156) +L122) * 1000 / (L78 * 8760)) + L133 + 0 -> 232.7850675 | M167: 218.8125524 | N167: 207.0319446 | O167: 195.2513368 | P167: 183.470729 | Q167: 171.6901212 | R167: 159.9095134 | S167: 152.4444728 | T167: 144.9794323 | U167: 137.5143918 | V167: 130.0493512 | W167: 122.5843107 | X167: 119.2794069 | Y167: 115.974503 | Z167: 112.6695992 | AA167: 109.3646954 | AB167: 106.0597915 | AC167: 104.5738475 | AD167: 103.0879035 | AE167: 101.6019594 | AF167: 100.1160154 | AG167: 98.6300714 | AH167: 97.14412738 | AI167: 95.65818336 | AJ167: 94.17223933 | AK167: 92.68629531 | AL167: 91.20035129 | AM167: 90.73542184 | AN167: 90.2704924 | AO167: 89.80556295 | AP167: 89.34063351 | AQ167: 88.87570407 | AR167: 88.41077462 | AS167: 87.94584518 | AT167: 87.48091574 | AU167: 87.01598629 | AV167: 86.55105685
K168: Res PV - 16.1% - High | L168: =(($S$44 * $S$42 * $S$40 * (L112 * 1 + L157) +L123) * 1000 / (L79 * 8760)) + L134 + 0 -> 232.7850675 | M168: 220.2306301 | N168: 220.2306301 | O168: 220.2306301 | P168: 220.2306301 | Q168: 220.2306301 | R168: 220.2306301 | S168: 220.2306301 | T168: 220.2306301 | U168: 220.2306301 | V168: 220.2306301 | W168: 220.2306301 | X168: 220.2306301 | Y168: 220.2306301 | Z168: 220.2306301 | AA168: 220.2306301 | AB168: 220.2306301 | AC168: 220.2306301 | AD168: 220.2306301 | AE168: 220.2306301 | AF168: 220.2306301 | AG168: 220.2306301 | AH168: 220.2306301 | AI168: 220.2306301 | AJ168: 220.2306301 | AK168: 220.2306301 | AL168: 220.2306301 | AM168: 220.2306301 | AN168: 220.2306301 | AO168: 220.2306301 | AP168: 220.2306301 | AQ168: 220.2306301 | AR168: 220.2306301 | AS168: 220.2306301 | AT168: 220.2306301 | AU168: 220.2306301 | AV168: 220.2306301
K169: Res PV - 20.7% - Low | L169: =(($S$44 * $S$42 * $S$40 * (L113 * 1 + L158) +L124) * 1000 / (L80 * 8760)) + L135 + 0 -> 181.0550525 | M169: 170.1875408 | N169: 154.2497045 | O169: 138.3118683 | P169: 122.374032 | Q169: 106.4361958 | R169: 91.60130883 | S169: 86.21856401 | T169: 80.83581919 | U169: 75.45307437 | V169: 70.07032955 | W169: 64.68758473 | X169: 64.03010875 | Y169: 63.37263277 | Z169: 62.71515679 | AA169: 62.05768081 | AB169: 61.40020483 | AC169: 61.13721444 | AD169: 60.87422404 | AE169: 60.61123365 | AF169: 60.34824326 | AG169: 60.08525287 | AH169: 59.82226247 | AI169: 59.55927208 | AJ169: 59.29628169 | AK169: 59.0332913 | AL169: 58.7703009 | AM169: 58.44156291 | AN169: 58.11282492 | AO169: 57.78408693 | AP169: 57.45534894 | AQ169: 57.12661095 | AR169: 56.79787296 | AS169: =(($S$44 * $S$42 * $S$40 * (AS113 * 1 + AS158) +AS124) * 1000 / (AS80 * 8760)) + AS135 + 0 -> 56.46913497 | AT169: 56.14039698 | AU169: 55.81165899 | AV169: 55.482921
K170: Res PV - 20.7% - Mid | L170: =(($S$44 * $S$42 * $S$40 * (L114 * 1 + L159) +L125) * 1000 / (L81 * 8760)) + L136 + 0 -> 181.0550525 | M170: 170.1875408 | N170: 161.0248458 | O170: 151.8621508 | P170: 142.6994559 | Q170: 133.5367609 | R170: 124.374066 | S170: 118.5679233 | T170: 112.7617807 | U170: 106.955638 | V170: 101.1494954 | W170: 95.34335278 | X170: 92.77287201 | Y170: 90.20239125 | Z170: 87.63191049 | AA170: 85.06142972 | AB170: 82.49094896 | AC170: 81.33521472 | AD170: 80.17948048 | AE170: 79.02374624 | AF170: 77.868012 | AG170: 76.71227776 | AH170: 75.55654352 | AI170: 74.40080928 | AJ170: 73.24507504 | AK170: 72.0893408 | AL170: 70.93360656 | AM170: 70.57199477 | AN170: 70.21038298 | AO170: 69.84877119 | AP170: 69.4871594 | AQ170: 69.12554761 | AR170: 68.76393582 | AS170: =(($S$44 * $S$42 * $S$40 * (AS114 * 1 + AS159) +AS125) * 1000 / (AS81 * 8760)) + AS136 + 0 -> 68.40232403 | AT170: 68.04071224 | AU170: 67.67910045 | AV170: 67.31748866
K171: Res PV - 20.7% - High | L171: =(($S$44 * $S$42 * $S$40 * (L115 * 1 + L160) +L126) * 1000 / (L82 * 8760)) + L137 + 0 -> 181.0550525 | M171: =(($S$44 * $S$42 * $S$40 * (M115 * 1 + M160) +M126) * 1000 / (M82 * 8760)) + M137 + 0 -> 171.2904901 | N171: 171.2904901 | O171: 171.2904901 | P171: 171.2904901 | Q171: 171.2904901 | R171: 171.2904901 | S171: 171.2904901 | T171: 171.2904901 | U171: 171.2904901 | V171: 171.2904901 | W171: 171.2904901 | X171: 171.2904901 | Y171: 171.2904901 | Z171: 171.2904901 | AA171: 171.2904901 | AB171: 171.2904901 | AC171: 171.2904901 | AD171: 171.2904901 | AE171: 171.2904901 | AF171: 171.2904901 | AG171: 171.2904901 | AH171: 171.2904901 | AI171: 171.2904901 | AJ171: 171.2904901 | AK171: 171.2904901 | AL171: 171.2904901 | AM171: 171.2904901 | AN171: 171.2904901 | AO171: 171.2904901 | AP171: 171.2904901 | AQ171: 171.2904901 | AR171: 171.2904901 | AS171: 171.2904901 | AT171: 171.2904901 | AU171: 171.2904901 | AV171: 171.2904901
E179: X | J179: Graphics
C389: X | G389: Data Sources for Default Inputs
H392: Current Costs:
H393: Available Capacity (GW) | M393: Pieter Gagnon, Robert Margolis, Jennifer Melius, Caleb Phillips, Ryan Elmore. (2016). Rooftop Solar Photovoltaic Technical Potential in the United States: A Detailed Assessment. NREL TP-6A20-65298
H394: Net Capacity Factor (%) | M394: National Renewable Energy Laboratory. PVWATTS v5. Representative of national range of capacity factors.
H395: Overnight Capital Cost ($/kW) | M395: Feldman et al (2015) Photovoltaic System Pricing Trends: 2015 Edition. NREL/PR-6A20-64898
H396: Fixed Operating Expenses ($/kW-yr) | M396: Jones-Albertus, R et al (2015). Technology Advances Needed for Photovoltaics to Achieve Widespread Grid Price Parity. Jones-Albertus, R et al (2015). Technology Advances Needed for Photovoltaics to Achieve Widespread Grid Price Parity. Jones-Albertus, R et al (2015). Technology Advances Needed for Photovoltaics to Achieve Widespread Grid Price Parity.
H397: Variable Operating Expenses ($/MWh) | M397: Jones-Albertus, R et al (2015). Technology Advances Needed for Photovoltaics to Achieve Widespread Grid Price Parity.
H398: Grid Feature Cost ($/kW) | M398: N/A
H399: Spur Line Cost ($/kW) | M399: N/A
H401: Future Projections Costs:
H402: Net Capacity Factor (%) | M402: Jones-Albertus, R et al (2015). Technology Advances Needed for Photovoltaics to Achieve Widespread Grid Price Parity.
H403: Overnight Capital Cost ($/kW) | M403: Feldman et al (2015) Photovoltaic System Pricing Trends: 2015 Edition. NREL/PR-6A20-64898
H404: Fixed Operating Expenses ($/kW-yr) | M404: Jones-Albertus, R et al (2015). Technology Advances Needed for Photovoltaics to Achieve Widespread Grid Price Parity.
H405: Variable Operating Expenses ($/MWh) | M405: Jones-Albertus, R et al (2015). Technology Advances Needed for Photovoltaics to Achieve Widespread Grid Price Parity.
H406: Grid Connection Cost ($/kW) | M406: N/A
H420: X

Sheet Solar - PV Dist. Comm
A1: Solar Distributed Commercial PV Inputs
T3: Inputs
J4: Take me to: | T4: Calculated
B10: X | G10: Current Costs
H12: Techno-Economic Cost and Performance Parameters | J12: Net Capacity Factor (%) | K12: Comm PV - 11.4% | L12: 0.114 | O12: Basis Year: | Q12: 2014
K13: Comm PV - 14.5% | L13: 0.145
K14: Comm PV - 18.7% | L14: 0.187 | O14: Commercial Solar Photovoltaic
O15: Representative Dist. Commercial system is fixed-tilt roof mounted with capacity of 300 kW
J16: Annual Energy Production (kWh/kW) | K16: Comm PV - 11.4% | L16: =L12*8760 -> 998.64 | O16: Overnight Capital Cost, Fixed O&M, and Variable O&M costs represent $/kW DC;
K17: Comm PV - 14.5% | L17: =L13*8760 -> 1270.2 | O17: Capacity factor includes a conversion to AC. Therefore LCOE reflects $/MWh AC.
K18: Comm PV - 18.7% | L18: =L14*8760 -> 1638.12 | O18: Capacity factors chosen here to reflect range of across the continental U.S. using NREL PVWATTS
O19: PV Low, Mid, and High represent projections from 12 price projections from 6 separate institutions. | S19: Available | T19: Available
J20: CAPEX ($/kW) | K20: Comm PV - 11.4% | L20: =$S$40 * (L28 + L46) -> 2699.070473 | S20: Capacity | T20: Generation
K21: Comm PV - 14.5% | L21: =$S$40 * (L29 + L47) -> 2699.070473 | S21: (GW) | T21: (GWh)
K22: Comm PV - 18.7% | L22: =$S$40 * (L30 + L48) -> 2699.070473 | S22: 386 | T22: 506000
O23: Commercial PV - 11.4% | Q23: dSolar minimum CF 11.4%
J24: Construction Financing Cost ($/kW) | K24: Comm PV - 11.4% | L24: =(L28+L46)*($S$40-1) -> 62.07047264 | O24: Commercial PV - 14.5% | Q24: dSolar average CF 14.5%
K25: Comm PV - 14.5% | L25: =(L29+L47)*($S$40-1) -> 62.07047264 | O25: Commercial PV - 18.7% | Q25: dSolar maximum CF 18.7%
K26: Comm PV - 18.7% | L26: =(L30+L48)*($S$40-1) -> 62.07047264
O27: Financial Assumptions:
J28: Overnight Capital Cost ($/kW) | K28: Comm PV - 11.4% | L28: =L110 -> 2637 | O28: Inflation Rate | S28: 0.025
K29: Comm PV - 14.5% | L29: =L111 -> 2637 | O29: Economic Lifetime (Years) | S29: 20
K30: Comm PV - 18.7% | L30: =L112 -> 2637 | O30: InteCommt Rate - Nominal | S30: 0.08
O31: Calculated Interest Rate - Real | S31: =(1+S30)/(1+S28)-1 -> 0.05365853659
J32: Fixed Operation and Maintenance Expenses ($/kW/yr) | K32: Comm PV - 11.4% | L32: 15 | O32: Interest During Construction - Nominal | S32: 0.08
K33: Comm PV - 14.5% | L33: 15 | O33: Customer Equity Discount Rate - Nominal | S33: 0.13
K34: Comm PV - 18.7% | L34: 15 | O34: Calculated Equity Discount Rate - Real | S34: =(1+S33)/(1+S28) - 1 -> 0.1024390244
O35: Debt Fraction | S35: 0.6
J36: Variable Operation and Maintenance Expenses ($/MWh) | K36: Comm PV - 11.4% | L36: 0 | O36: Tax Rate (Federal and State) | S36: 0.4
K37: Comm PV - 14.5% | L37: 0 | O37: WACC - Nominal | S37: =IF(S36>0,S35*S30*(1-S36)+(1-S35)*S33,S35*S30+(1-S35)*S33) -> 0.0808
K38: Comm PV - 18.7% | L38: 0 | O38: WACC - Real | S38: =((1+((1-S35)*((1+S34)*(1+S28)-1)) + (S35*((1+S31)*(1+S28)-1)*(1-S36))) / (1+S28)) - 1 -> 0.05443902439
O39: Depreciation Period | S39: 5
O40: Construction Finance Factor | S40: =SUMPRODUCT(P49:P51,Q49:Q51) -> 1.023538291
H41: Finance | J41: Weighted Average Cost of Capital (WACC) (Nominal) (%) | K41: Comm PV - 11.4% | L41: =$S$37 -> 0.0808 | O41: Present Value of Depreciation | S41: =SUMPRODUCT(O54:T54,O56:T56) -> 0.8097434573
K42: Comm PV - 14.5% | L42: =$S$37 -> 0.0808 | O42: Project Finance Factor | S42: =(1 - S36 * S41) / (1 - S36) -> 1.126837695
K43: Comm PV - 18.7% | L43: =$S$37 -> 0.0808 | O43: Capital Recovery Factor (CRF) - Nominal | S43: =S37 / (1 - (1 / (1 + S37)^S29)) -> 0.1024593157
O44: Capital Recovery Factor (CRF) - Real | S44: =S38 / (1 - (1 / (1 + S38)^S29)) -> 0.08329029943
H46: Grid Connection Costs | J46: Grid Connection Costs (GCC) ($/kW) | K46: Comm PV - 11.4% | L46: =L50+L54 -> 0 | O46: Construction Duration yrs | Q46: 1
K47: Comm PV - 14.5% | L47: =L51+L55 -> 0 | O47: Year | P47: Capital | Q47: Accumulated
K48: Comm PV - 18.7% | L48: =L52+L56 -> 0 | O48: Index | P48: Fraction | Q48: Interest
O49: 0 | P49: 1 | Q49: =1+(1-S36)*((1+S32)^(O49+0.5)-1) -> 1.023538291
J50: Grid Feature Costs ($/kW) | K50: Comm PV - 11.4% | L50: 0 | O50: 1 | P50: 0 | Q50: =1+(1-S36)*((1+S32)^(O50+0.5)-1) -> 1.073421354
K51: Comm PV - 14.5% | L51: 0 | O51: 2 | P51: 0 | Q51: =1+(1-S36)*((1+S32)^(O51+0.5)-1) -> 1.127295062
K52: Comm PV - 18.7% | L52: 0
N53: MACRS yr | O53: 1 | P53: 2 | Q53: 3 | R53: 4 | S53: 5 | T53: 6
J54: Onshore Spur Line Costs ($/kW) | K54: Comm PV - 11.4% | L54: 0 | N54: Depreciation | O54: 0.2 | P54: 0.32 | Q54: 0.192 | R54: 0.1152 | S54: 0.1152 | T54: 0.0576
K55: Comm PV - 14.5% | L55: 0 | N55: Fraction
K56: Comm PV - 18.7% | L56: 0 | N56: Depreciation | O56: =1/((1+$S$38)*(1+$S$28))^O53 -> 0.9252405625 | P56: =1/((1+$S$38)*(1+$S$28))^P53 -> 0.8560700986 | Q56: 0.7920707796 | R56: 0.7328560137 | S56: 0.6780681104 | T56: 0.6273761199
N57: Factor
H59: LCOE | J59: Levelized Cost of Energy ($/MWh) | K59: Comm PV - 11.4% | L59: =(($S$44 * $S$42 * $S$40 * (L28 * 1 + L46) +L32) * 1000 / (L12 * 8760)) + L36 + 0 -> 268.6857245 | O59: Investment Tax Credit (ITC)* | S59: 0
K60: Comm PV - 14.5% | L60: =(($S$44 * $S$42 * $S$40 * (L29 * 1 + L47) +L33) * 1000 / (L13 * 8760)) + L37 + 0 -> 211.2425696 | O60: Production Tax Credit (PTC)* | S60: 0
K61: Comm PV - 18.7% | L61: =(($S$44 * $S$42 * $S$40 * (L30 * 1 + L48) +L34) * 1000 / (L14 * 8760)) + L38 + 0 -> 163.7977144 | O61: * not currently included in LCOE calculation
J63: Overnight Levelized Cost of Energy ($/MWh) | K63: Comm PV - 11.4% | L63: =(((L28*$S$44*(1-$S$36*$S$41))/(8760*L12*(1-$S$36))+L32/(8760*L12))*1000)+L36 -> 262.8521885
K64: Comm PV - 14.5% | L64: =(((L29*$S$44*(1-$S$36*$S$41))/(8760*L13*(1-$S$36))+L33/(8760*L13))*1000)+L37 -> 206.6562034
K65: Comm PV - 18.7% | L65: =(((L30*$S$44*(1-$S$36*$S$41))/(8760*L14*(1-$S$36))+L34/(8760*L14))*1000)+L38 -> 160.2414411
H68: ***Note: For future projections, low, mid, and high refer to the resulting low, mid, and high LCOE projections.
D71: X | G71: Future Projections
L72: Basis Year
L73: 2014 | M73: 2015 | N73: 2016 | O73: 2017 | P73: 2018 | Q73: 2019 | R73: 2020 | S73: 2021 | T73: 2022 | U73: 2023 | V73: 2024 | W73: 2025 | X73: 2026 | Y73: 2027 | Z73: 2028 | AA73: 2029 | AB73: 2030 | AC73: 2031 | AD73: 2032 | AE73: 2033 | AF73: 2034 | AG73: 2035 | AH73: 2036 | AI73: 2037 | AJ73: 2038 | AK73: 2039 | AL73: 2040 | AM73: 2041 | AN73: 2042 | AO73: 2043 | AP73: 2044 | AQ73: 2045 | AR73: 2046 | AS73: 2047 | AT73: 2048 | AU73: 2049 | AV73: 2050
H74: Techno-Economic Cost and Performance Parameters | J74: Net Capacity Factor (%) | K74: Comm PV - 11.4% - Low | L74: =$L$12 -> 0.114 | M74: =$L$12 -> 0.114 | N74: 0.114 | O74: 0.114 | P74: 0.114 | Q74: 0.114 | R74: 0.114 | S74: 0.114 | T74: 0.114 | U74: 0.114 | V74: 0.114 | W74: 0.114 | X74: 0.114 | Y74: 0.114 | Z74: 0.114 | AA74: 0.114 | AB74: 0.114 | AC74: 0.114 | AD74: 0.114 | AE74: 0.114 | AF74: 0.114 | AG74: 0.114 | AH74: 0.114 | AI74: 0.114 | AJ74: 0.114 | AK74: 0.114 | AL74: 0.114 | AM74: 0.114 | AN74: 0.114 | AO74: 0.114 | AP74: 0.114 | AQ74: 0.114 | AR74: 0.114 | AS74: 0.114 | AT74: 0.114 | AU74: 0.114 | AV74: 0.114
K75: Comm PV - 11.4% - Mid | L75: =$L$12 -> 0.114 | M75: 0.114 | N75: 0.114 | O75: 0.114 | P75: 0.114 | Q75: 0.114 | R75: 0.114 | S75: 0.114 | T75: 0.114 | U75: 0.114 | V75: 0.114 | W75: 0.114 | X75: 0.114 | Y75: 0.114 | Z75: 0.114 | AA75: 0.114 | AB75: 0.114 | AC75: 0.114 | AD75: 0.114 | AE75: 0.114 | AF75: 0.114 | AG75: 0.114 | AH75: 0.114 | AI75: 0.114 | AJ75: 0.114 | AK75: 0.114 | AL75: 0.114 | AM75: 0.114 | AN75: 0.114 | AO75: 0.114 | AP75: 0.114 | AQ75: 0.114 | AR75: 0.114 | AS75: 0.114 | AT75: 0.114 | AU75: 0.114 | AV75: 0.114
K76: Comm PV - 11.4% - High | L76: =$L$12 -> 0.114 | M76: 0.114 | N76: =$L$12 -> 0.114 | O76: 0.114 | P76: 0.114 | Q76: 0.114 | R76: 0.114 | S76: 0.114 | T76: 0.114 | U76: 0.114 | V76: 0.114 | W76: 0.114 | X76: 0.114 | Y76: 0.114 | Z76: 0.114 | AA76: 0.114 | AB76: 0.114 | AC76: 0.114 | AD76: 0.114 | AE76: 0.114 | AF76: 0.114 | AG76: 0.114 | AH76: 0.114 | AI76: 0.114 | AJ76: 0.114 | AK76: 0.114 | AL76: 0.114 | AM76: 0.114 | AN76: 0.114 | AO76: 0.114 | AP76: 0.114 | AQ76: 0.114 | AR76: 0.114 | AS76: 0.114 | AT76: 0.114 | AU76: 0.114 | AV76: 0.114
K77: Comm PV - 14.5% - Low | L77: =$L$13 -> 0.145 | M77: =$L$13 -> 0.145 | N77: 0.145 | O77: 0.145 | P77: 0.145 | Q77: 0.145 | R77: 0.145 | S77: 0.145 | T77: 0.145 | U77: 0.145 | V77: 0.145 | W77: 0.145 | X77: 0.145 | Y77: 0.145 | Z77: 0.145 | AA77: 0.145 | AB77: 0.145 | AC77: 0.145 | AD77: 0.145 | AE77: 0.145 | AF77: 0.145 | AG77: 0.145 | AH77: 0.145 | AI77: 0.145 | AJ77: 0.145 | AK77: 0.145 | AL77: 0.145 | AM77: 0.145 | AN77: 0.145 | AO77: 0.145 | AP77: 0.145 | AQ77: 0.145 | AR77: 0.145 | AS77: 0.145 | AT77: 0.145 | AU77: 0.145 | AV77: 0.145
K78: Comm PV - 14.5% - Mid | L78: =$L$13 -> 0.145 | M78: 0.145 | N78: 0.145 | O78: 0.145 | P78: 0.145 | Q78: 0.145 | R78: 0.145 | S78: 0.145 | T78: 0.145 | U78: 0.145 | V78: 0.145 | W78: 0.145 | X78: 0.145 | Y78: 0.145 | Z78: 0.145 | AA78: 0.145 | AB78: 0.145 | AC78: 0.145 | AD78: 0.145 | AE78: 0.145 | AF78: 0.145 | AG78: 0.145 | AH78: 0.145 | AI78: 0.145 | AJ78: 0.145 | AK78: 0.145 | AL78: 0.145 | AM78: 0.145 | AN78: 0.145 | AO78: 0.145 | AP78: 0.145 | AQ78: 0.145 | AR78: 0.145 | AS78: 0.145 | AT78: 0.145 | AU78: 0.145 | AV78: 0.145
K79: Comm PV - 14.5% - High | L79: =$L$13 -> 0.145 | M79: 0.145 | N79: 0.145 | O79: 0.145 | P79: 0.145 | Q79: 0.145 | R79: 0.145 | S79: 0.145 | T79: 0.145 | U79: 0.145 | V79: 0.145 | W79: 0.145 | X79: 0.145 | Y79: 0.145 | Z79: 0.145 | AA79: 0.145 | AB79: 0.145 | AC79: 0.145 | AD79: 0.145 | AE79: 0.145 | AF79: 0.145 | AG79: 0.145 | AH79: 0.145 | AI79: 0.145 | AJ79: 0.145 | AK79: 0.145 | AL79: 0.145 | AM79: 0.145 | AN79: 0.145 | AO79: 0.145 | AP79: 0.145 | AQ79: 0.145 | AR79: 0.145 | AS79: 0.145 | AT79: 0.145 | AU79: 0.145 | AV79: 0.145
K80: Comm PV - 18.7% - Low | L80: =$L$14 -> 0.187 | M80: =$L$14 -> 0.187 | N80: 0.187 | O80: 0.187 | P80: 0.187 | Q80: 0.187 | R80: 0.187 | S80: 0.187 | T80: 0.187 | U80: 0.187 | V80: 0.187 | W80: 0.187 | X80: 0.187 | Y80: 0.187 | Z80: 0.187 | AA80: 0.187 | AB80: 0.187 | AC80: 0.187 | AD80: 0.187 | AE80: 0.187 | AF80: 0.187 | AG80: 0.187 | AH80: 0.187 | AI80: 0.187 | AJ80: 0.187 | AK80: 0.187 | AL80: 0.187 | AM80: 0.187 | AN80: 0.187 | AO80: 0.187 | AP80: 0.187 | AQ80: 0.187 | AR80: 0.187 | AS80: 0.187 | AT80: 0.187 | AU80: 0.187 | AV80: 0.187
K81: Comm PV - 18.7% - Mid | L81: =$L$14 -> 0.187 | M81: 0.187 | N81: 0.187 | O81: 0.187 | P81: 0.187 | Q81: 0.187 | R81: 0.187 | S81: 0.187 | T81: 0.187 | U81: 0.187 | V81: 0.187 | W81: 0.187 | X81: 0.187 | Y81: 0.187 | Z81: 0.187 | AA81: 0.187 | AB81: 0.187 | AC81: 0.187 | AD81: 0.187 | AE81: 0.187 | AF81: 0.187 | AG81: 0.187 | AH81: 0.187 | AI81: 0.187 | AJ81: 0.187 | AK81: 0.187 | AL81: 0.187 | AM81: 0.187 | AN81: 0.187 | AO81: 0.187 | AP81: 0.187 | AQ81: 0.187 | AR81: 0.187 | AS81: 0.187 | AT81: 0.187 | AU81: 0.187 | AV81: 0.187
K82: Comm PV - 18.7% - High | L82: =$L$14 -> 0.187 | M82: 0.187 | N82: 0.187 | O82: 0.187 | P82: 0.187 | Q82: 0.187 | R82: 0.187 | S82: 0.187 | T82: 0.187 | U82: 0.187 | V82: 0.187 | W82: 0.187 | X82: 0.187 | Y82: 0.187 | Z82: 0.187 | AA82: 0.187 | AB82: 0.187 | AC82: 0.187 | AD82: 0.187 | AE82: 0.187 | AF82: 0.187 | AG82: 0.187 | AH82: 0.187 | AI82: 0.187 | AJ82: 0.187 | AK82: 0.187 | AL82: 0.187 | AM82: 0.187 | AN82: 0.187 | AO82: 0.187 | AP82: 0.187 | AQ82: 0.187 | AR82: 0.187 | AS82: 0.187 | AT82: 0.187 | AU82: 0.187 | AV82: 0.187
L84: 2014 | M84: 2015 | N84: 2016 | O84: 2017 | P84: 2018 | Q84: 2019 | R84: 2020 | S84: 2021 | T84: 2022 | U84: 2023 | V84: 2024 | W84: 2025 | X84: 2026 | Y84: 2027 | Z84: 2028 | AA84: 2029 | AB84: 2030 | AC84: 2031 | AD84: 2032 | AE84: 2033 | AF84: 2034 | AG84: 2035 | AH84: 2036 | AI84: 2037 | AJ84: 2038 | AK84: 2039 | AL84: 2040 | AM84: 2041 | AN84: 2042 | AO84: 2043 | AP84: 2044 | AQ84: 2045 | AR84: 2046 | AS84: 2047 | AT84: 2048 | AU84: 2049 | AV84: 2050
J85: Annual Energy Production (kWh/kW) | K85: Comm PV - 11.4% - Low | L85: =L74*8760 -> 998.64 | M85: 998.64 | N85: 998.64 | O85: 998.64 | P85: 998.64 | Q85: 998.64 | R85: 998.64 | S85: 998.64 | T85: 998.64 | U85: 998.64 | V85: 998.64 | W85: 998.64 | X85: 998.64 | Y85: 998.64 | Z85: 998.64 | AA85: 998.64 | AB85: 998.64 | AC85: 998.64 | AD85: 998.64 | AE85: 998.64 | AF85: 998.64 | AG85: 998.64 | AH85: 998.64 | AI85: 998.64 | AJ85: 998.64 | AK85: 998.64 | AL85: 998.64 | AM85: 998.64 | AN85: 998.64 | AO85: 998.64 | AP85: 998.64 | AQ85: 998.64 | AR85: 998.64 | AS85: 998.64 | AT85: 998.64 | AU85: 998.64 | AV85: 998.64
K86: Comm PV - 11.4% - Mid | L86: =L75*8760 -> 998.64 | M86: 998.64 | N86: 998.64 | O86: 998.64 | P86: 998.64 | Q86: 998.64 | R86: 998.64 | S86: 998.64 | T86: 998.64 | U86: 998.64 | V86: 998.64 | W86: 998.64 | X86: 998.64 | Y86: 998.64 | Z86: 998.64 | AA86: 998.64 | AB86: 998.64 | AC86: 998.64 | AD86: 998.64 | AE86: 998.64 | AF86: 998.64 | AG86: 998.64 | AH86: 998.64 | AI86: 998.64 | AJ86: 998.64 | AK86: 998.64 | AL86: 998.64 | AM86: 998.64 | AN86: 998.64 | AO86: 998.64 | AP86: 998.64 | AQ86: 998.64 | AR86: 998.64 | AS86: 998.64 | AT86: 998.64 | AU86: 998.64 | AV86: 998.64
K87: Comm PV - 11.4% - High | L87: =L76*8760 -> 998.64 | M87: 998.64 | N87: 998.64 | O87: 998.64 | P87: 998.64 | Q87: 998.64 | R87: 998.64 | S87: 998.64 | T87: 998.64 | U87: 998.64 | V87: 998.64 | W87: 998.64 | X87: 998.64 | Y87: 998.64 | Z87: 998.64 | AA87: 998.64 | AB87: 998.64 | AC87: 998.64 | AD87: 998.64 | AE87: 998.64 | AF87: 998.64 | AG87: 998.64 | AH87: 998.64 | AI87: 998.64 | AJ87: 998.64 | AK87: 998.64 | AL87: 998.64 | AM87: 998.64 | AN87: 998.64 | AO87: 998.64 | AP87: 998.64 | AQ87: 998.64 | AR87: 998.64 | AS87: 998.64 | AT87: 998.64 | AU87: 998.64 | AV87: 998.64
K88: Comm PV - 14.5% - Low | L88: =L77*8760 -> 1270.2 | M88: 1270.2 | N88: 1270.2 | O88: 1270.2 | P88: 1270.2 | Q88: 1270.2 | R88: 1270.2 | S88: 1270.2 | T88: 1270.2 | U88: 1270.2 | V88: 1270.2 | W88: 1270.2 | X88: 1270.2 | Y88: 1270.2 | Z88: 1270.2 | AA88: 1270.2 | AB88: 1270.2 | AC88: 1270.2 | AD88: 1270.2 | AE88: 1270.2 | AF88: 1270.2 | AG88: 1270.2 | AH88: 1270.2 | AI88: 1270.2 | AJ88: 1270.2 | AK88: 1270.2 | AL88: 1270.2 | AM88: 1270.2 | AN88: 1270.2 | AO88: 1270.2 | AP88: 1270.2 | AQ88: 1270.2 | AR88: 1270.2 | AS88: 1270.2 | AT88: 1270.2 | AU88: 1270.2 | AV88: 1270.2
K89: Comm PV - 14.5% - Mid | L89: =L78*8760 -> 1270.2 | M89: 1270.2 | N89: 1270.2 | O89: 1270.2 | P89: 1270.2 | Q89: 1270.2 | R89: 1270.2 | S89: 1270.2 | T89: 1270.2 | U89: 1270.2 | V89: 1270.2 | W89: 1270.2 | X89: 1270.2 | Y89: 1270.2 | Z89: 1270.2 | AA89: 1270.2 | AB89: 1270.2 | AC89: 1270.2 | AD89: 1270.2 | AE89: 1270.2 | AF89: 1270.2 | AG89: 1270.2 | AH89: 1270.2 | AI89: 1270.2 | AJ89: 1270.2 | AK89: 1270.2 | AL89: 1270.2 | AM89: 1270.2 | AN89: 1270.2 | AO89: 1270.2 | AP89: 1270.2 | AQ89: 1270.2 | AR89: 1270.2 | AS89: 1270.2 | AT89: 1270.2 | AU89: 1270.2 | AV89: 1270.2
K90: Comm PV - 14.5% - High | L90: =L79*8760 -> 1270.2 | M90: 1270.2 | N90: 1270.2 | O90: 1270.2 | P90: 1270.2 | Q90: 1270.2 | R90: 1270.2 | S90: 1270.2 | T90: 1270.2 | U90: 1270.2 | V90: 1270.2 | W90: 1270.2 | X90: 1270.2 | Y90: 1270.2 | Z90: 1270.2 | AA90: 1270.2 | AB90: 1270.2 | AC90: 1270.2 | AD90: 1270.2 | AE90: 1270.2 | AF90: 1270.2 | AG90: 1270.2 | AH90: 1270.2 | AI90: 1270.2 | AJ90: 1270.2 | AK90: 1270.2 | AL90: 1270.2 | AM90: 1270.2 | AN90: 1270.2 | AO90: 1270.2 | AP90: 1270.2 | AQ90: 1270.2 | AR90: 1270.2 | AS90: 1270.2 | AT90: 1270.2 | AU90: 1270.2 | AV90: 1270.2
K91: Comm PV - 18.7% - Low | L91: =L80*8760 -> 1638.12 | M91: 1638.12 | N91: 1638.12 | O91: 1638.12 | P91: 1638.12 | Q91: 1638.12 | R91: 1638.12 | S91: 1638.12 | T91: 1638.12 | U91: 1638.12 | V91: 1638.12 | W91: 1638.12 | X91: 1638.12 | Y91: 1638.12 | Z91: 1638.12 | AA91: 1638.12 | AB91: 1638.12 | AC91: 1638.12 | AD91: 1638.12 | AE91: 1638.12 | AF91: 1638.12 | AG91: 1638.12 | AH91: 1638.12 | AI91: 1638.12 | AJ91: 1638.12 | AK91: 1638.12 | AL91: 1638.12 | AM91: 1638.12 | AN91: 1638.12 | AO91: 1638.12 | AP91: 1638.12 | AQ91: 1638.12 | AR91: 1638.12 | AS91: 1638.12 | AT91: =AT80*8760 -> 1638.12 | AU91: 1638.12 | AV91: 1638.12
K92: Comm PV - 18.7% - Mid | L92: =L81*8760 -> 1638.12 | M92: 1638.12 | N92: 1638.12 | O92: 1638.12 | P92: 1638.12 | Q92: 1638.12 | R92: 1638.12 | S92: 1638.12 | T92: 1638.12 | U92: 1638.12 | V92: 1638.12 | W92: 1638.12 | X92: 1638.12 | Y92: 1638.12 | Z92: 1638.12 | AA92: 1638.12 | AB92: 1638.12 | AC92: 1638.12 | AD92: 1638.12 | AE92: 1638.12 | AF92: 1638.12 | AG92: 1638.12 | AH92: 1638.12 | AI92: 1638.12 | AJ92: 1638.12 | AK92: 1638.12 | AL92: 1638.12 | AM92: 1638.12 | AN92: 1638.12 | AO92: 1638.12 | AP92: 1638.12 | AQ92: 1638.12 | AR92: 1638.12 | AS92: 1638.12 | AT92: =AT81*8760 -> 1638.12 | AU92: 1638.12 | AV92: 1638.12
K93: Comm PV - 18.7% - High | L93: =L82*8760 -> 1638.12 | M93: 1638.12 | N93: 1638.12 | O93: 1638.12 | P93: 1638.12 | Q93: 1638.12 | R93: 1638.12 | S93: 1638.12 | T93: 1638.12 | U93: 1638.12 | V93: 1638.12 | W93: 1638.12 | X93: 1638.12 | Y93: 1638.12 | Z93: 1638.12 | AA93: 1638.12 | AB93: 1638.12 | AC93: 1638.12 | AD93: 1638.12 | AE93: 1638.12 | AF93: 1638.12 | AG93: 1638.12 | AH93: 1638.12 | AI93: 1638.12 | AJ93: 1638.12 | AK93: 1638.12 | AL93: 1638.12 | AM93: 1638.12 | AN93: 1638.12 | AO93: 1638.12 | AP93: 1638.12 | AQ93: 1638.12 | AR93: 1638.12 | AS93: 1638.12 | AT93: 1638.12 | AU93: 1638.12 | AV93: 1638.12
L95: 2014 | M95: 2015 | N95: 2016 | O95: 2017 | P95: 2018 | Q95: 2019 | R95: 2020 | S95: 2021 | T95: 2022 | U95: 2023 | V95: 2024 | W95: 2025 | X95: 2026 | Y95: 2027 | Z95: 2028 | AA95: 2029 | AB95: 2030 | AC95: 2031 | AD95: 2032 | AE95: 2033 | AF95: 2034 | AG95: 2035 | AH95: 2036 | AI95: 2037 | AJ95: 2038 | AK95: 2039 | AL95: 2040 | AM95: 2041 | AN95: 2042 | AO95: 2043 | AP95: 2044 | AQ95: 2045 | AR95: 2046 | AS95: 2047 | AT95: 2048 | AU95: 2049 | AV95: 2050
J96: CAPEX ($/kW) | K96: Comm PV - 11.4% - Low | L96: =$S$40*(L107+L152) -> 2699.070473 | M96: 2249.114594 | N96: 2034.163452 | O96: 1819.21231 | P96: =$S$40*(P107+P152) -> 1604.261168 | Q96: 1389.310026 | R96: 1174.358884 | S96: 1137.114088 | T96: 1099.869292 | U96: 1062.624496 | V96: 1025.3797 | W96: 988.1349037 | X96: 977.7334836 | Y96: 967.3320636 | Z96: 956.9306436 | AA96: 946.5292235 | AB96: 936.1278035 | AC96: 930.9270935 | AD96: 925.7263834 | AE96: 920.5256734 | AF96: 915.3249634 | AG96: 910.1242534 | AH96: 904.9235434 | AI96: 899.7228333 | AJ96: 894.5221233 | AK96: 889.3214133 | AL96: 884.1207033 | AM96: 878.9199933 | AN96: 873.7192832 | AO96: 868.5185732 | AP96: 863.3178632 | AQ96: 858.1171532 | AR96: 852.9164432 | AS96: 847.7157331 | AT96: 842.5150231 | AU96: 837.3143131 | AV96: 832.1136031
K97: Comm PV - 11.4% - Mid | L97: =$S$40*(L108+L153) -> 2699.070473 | M97: =$S$40*(M108+M153) -> 2249.114594 | N97: 2169.131219 | O97: 2089.147843 | P97: 2009.164468 | Q97: 1929.181093 | R97: 1849.197718 | S97: 1764.948629 | T97: 1680.69954 | U97: 1596.450451 | V97: 1512.201362 | W97: 1427.952273 | X97: 1396.414369 | Y97: 1364.876464 | Z97: 1333.33856 | AA97: 1301.800656 | AB97: 1270.262752 | AC97: 1247.900766 | AD97: 1225.53878 | AE97: 1203.176794 | AF97: 1180.814808 | AG97: 1158.452822 | AH97: 1136.090836 | AI97: 1113.728849 | AJ97: 1091.366863 | AK97: 1069.004877 | AL97: 1046.642891 | AM97: 1040.792093 | AN97: 1034.941294 | AO97: 1029.090495 | AP97: 1023.239696 | AQ97: 1017.388898 | AR97: 1011.538099 | AS97: 1005.6873 | AT97: 999.8365012 | AU97: 993.9857024 | AV97: 988.1349037
K98: Comm PV - 11.4% - High | L98: =$S$40*(L109+L154) -> 2699.070473 | M98: 2249.114594 | N98: 2249.114594 | O98: 2249.114594 | P98: 2249.114594 | Q98: 2249.114594 | R98: 2249.114594 | S98: 2249.114594 | T98: 2249.114594 | U98: 2249.114594 | V98: 2249.114594 | W98: 2249.114594 | X98: 2249.114594 | Y98: 2249.114594 | Z98: 2249.114594 | AA98: 2249.114594 | AB98: 2249.114594 | AC98: 2249.114594 | AD98: 2249.114594 | AE98: 2249.114594 | AF98: 2249.114594 | AG98: 2249.114594 | AH98: 2249.114594 | AI98: 2249.114594 | AJ98: 2249.114594 | AK98: 2249.114594 | AL98: 2249.114594 | AM98: 2249.114594 | AN98: 2249.114594 | AO98: 2249.114594 | AP98: 2249.114594 | AQ98: 2249.114594 | AR98: 2249.114594 | AS98: 2249.114594 | AT98: 2249.114594 | AU98: 2249.114594 | AV98: 2249.114594
K99: Comm PV - 14.5% - Low | L99: =$S$40*(L110+L155) -> 2699.070473 | M99: =$S$40*(M110+M155) -> 2249.114594 | N99: 2034.163452 | O99: 1819.21231 | P99: 1604.261168 | Q99: 1389.310026 | R99: 1174.358884 | S99: 1137.114088 | T99: 1099.869292 | U99: 1062.624496 | V99: 1025.3797 | W99: 988.1349037 | X99: 977.7334836 | Y99: 967.3320636 | Z99: 956.9306436 | AA99: 946.5292235 | AB99: 936.1278035 | AC99: 930.9270935 | AD99: 925.7263834 | AE99: 920.5256734 | AF99: 915.3249634 | AG99: 910.1242534 | AH99: 904.9235434 | AI99: 899.7228333 | AJ99: 894.5221233 | AK99: 889.3214133 | AL99: 884.1207033 | AM99: 878.9199933 | AN99: 873.7192832 | AO99: 868.5185732 | AP99: 863.3178632 | AQ99: 858.1171532 | AR99: 852.9164432 | AS99: 847.7157331 | AT99: 842.5150231 | AU99: 837.3143131 | AV99: 832.1136031
K100: Comm PV - 14.5% - Mid | L100: =$S$40*(L111+L156) -> 2699.070473 | M100: 2249.114594 | N100: 2169.131219 | O100: 2089.147843 | P100: 2009.164468 | Q100: 1929.181093 | R100: 1849.197718 | S100: 1764.948629 | T100: 1680.69954 | U100: 1596.450451 | V100: 1512.201362 | W100: 1427.952273 | X100: 1396.414369 | Y100: 1364.876464 | Z100: 1333.33856 | AA100: 1301.800656 | AB100: 1270.262752 | AC100: 1247.900766 | AD100: 1225.53878 | AE100: 1203.176794 | AF100: 1180.814808 | AG100: 1158.452822 | AH100: 1136.090836 | AI100: 1113.728849 | AJ100: 1091.366863 | AK100: 1069.004877 | AL100: 1046.642891 | AM100: 1040.792093 | AN100: 1034.941294 | AO100: 1029.090495 | AP100: 1023.239696 | AQ100: 1017.388898 | AR100: 1011.538099 | AS100: 1005.6873 | AT100: 999.8365012 | AU100: 993.9857024 | AV100: 988.1349037
K101: Comm PV - 14.5% - High | L101: =$S$40*(L112+L157) -> 2699.070473 | M101: 2249.114594 | N101: 2249.114594 | O101: 2249.114594 | P101: 2249.114594 | Q101: 2249.114594 | R101: 2249.114594 | S101: 2249.114594 | T101: 2249.114594 | U101: 2249.114594 | V101: 2249.114594 | W101: 2249.114594 | X101: 2249.114594 | Y101: 2249.114594 | Z101: 2249.114594 | AA101: 2249.114594 | AB101: 2249.114594 | AC101: 2249.114594 | AD101: 2249.114594 | AE101: 2249.114594 | AF101: 2249.114594 | AG101: 2249.114594 | AH101: 2249.114594 | AI101: 2249.114594 | AJ101: 2249.114594 | AK101: 2249.114594 | AL101: 2249.114594 | AM101: 2249.114594 | AN101: 2249.114594 | AO101: 2249.114594 | AP101: 2249.114594 | AQ101: 2249.114594 | AR101: 2249.114594 | AS101: 2249.114594 | AT101: 2249.114594 | AU101: 2249.114594 | AV101: 2249.114594
K102: Comm PV - 18.7% - Low | L102: =$S$40*(L113+L158) -> 2699.070473 | M102: 2249.114594 | N102: 2034.163452 | O102: 1819.21231 | P102: 1604.261168 | Q102: 1389.310026 | R102: 1174.358884 | S102: 1137.114088 | T102: 1099.869292 | U102: 1062.624496 | V102: 1025.3797 | W102: 988.1349037 | X102: 977.7334836 | Y102: 967.3320636 | Z102: 956.9306436 | AA102: 946.5292235 | AB102: 936.1278035 | AC102: 930.9270935 | AD102: 925.7263834 | AE102: 920.5256734 | AF102: 915.3249634 | AG102: 910.1242534 | AH102: 904.9235434 | AI102: 899.7228333 | AJ102: 894.5221233 | AK102: 889.3214133 | AL102: 884.1207033 | AM102: 878.9199933 | AN102: 873.7192832 | AO102: 868.5185732 | AP102: 863.3178632 | AQ102: 858.1171532 | AR102: 852.9164432 | AS102: =$S$40*(AS113+AS158) -> 847.7157331 | AT102: 842.5150231 | AU102: 837.3143131 | AV102: 832.1136031
K103: Comm PV - 18.7% - Mid | L103: =$S$40*(L114+L159) -> 2699.070473 | M103: 2249.114594 | N103: 2169.131219 | O103: 2089.147843 | P103: 2009.164468 | Q103: 1929.181093 | R103: 1849.197718 | S103: 1764.948629 | T103: 1680.69954 | U103: 1596.450451 | V103: 1512.201362 | W103: 1427.952273 | X103: 1396.414369 | Y103: 1364.876464 | Z103: 1333.33856 | AA103: 1301.800656 | AB103: 1270.262752 | AC103: 1247.900766 | AD103: 1225.53878 | AE103: 1203.176794 | AF103: 1180.814808 | AG103: 1158.452822 | AH103: 1136.090836 | AI103: 1113.728849 | AJ103: 1091.366863 | AK103: 1069.004877 | AL103: 1046.642891 | AM103: 1040.792093 | AN103: 1034.941294 | AO103: 1029.090495 | AP103: 1023.239696 | AQ103: 1017.388898 | AR103: 1011.538099 | AS103: =$S$40*(AS114+AS159) -> 1005.6873 | AT103: 999.8365012 | AU103: 993.9857024 | AV103: 988.1349037
K104: Comm PV - 18.7% - High | L104: =$S$40*(L115+L160) -> 2699.070473 | M104: 2249.114594 | N104: 2249.114594 | O104: 2249.114594 | P104: 2249.114594 | Q104: 2249.114594 | R104: 2249.114594 | S104: 2249.114594 | T104: 2249.114594 | U104: 2249.114594 | V104: 2249.114594 | W104: 2249.114594 | X104: 2249.114594 | Y104: 2249.114594 | Z104: 2249.114594 | AA104: 2249.114594 | AB104: 2249.114594 | AC104: 2249.114594 | AD104: 2249.114594 | AE104: 2249.114594 | AF104: 2249.114594 | AG104: 2249.114594 | AH104: 2249.114594 | AI104: 2249.114594 | AJ104: 2249.114594 | AK104: 2249.114594 | AL104: 2249.114594 | AM104: 2249.114594 | AN104: 2249.114594 | AO104: 2249.114594 | AP104: 2249.114594 | AQ104: 2249.114594 | AR104: 2249.114594 | AS104: 2249.114594 | AT104: 2249.114594 | AU104: 2249.114594 | AV104: 2249.114594
L106: 2014 | M106: 2015 | N106: 2016 | O106: 2017 | P106: 2018 | Q106: 2019 | R106: 2020 | S106: 2021 | T106: 2022 | U106: 2023 | V106: 2024 | W106: 2025 | X106: 2026 | Y106: 2027 | Z106: 2028 | AA106: 2029 | AB106: 2030 | AC106: 2031 | AD106: 2032 | AE106: 2033 | AF106: 2034 | AG106: 2035 | AH106: 2036 | AI106: 2037 | AJ106: 2038 | AK106: 2039 | AL106: 2040 | AM106: 2041 | AN106: 2042 | AO106: 2043 | AP106: 2044 | AQ106: 2045 | AR106: 2046 | AS106: 2047 | AT106: 2048 | AU106: 2049 | AV106: 2050
J107: Overnight Capital Cost ($/kW) | K107: Comm PV - 11.4% - Low | L107: 2637 | M107: 2197.391748 | N107: 1987.383834 | O107: 1777.375919 | P107: 1567.368004 | Q107: 1357.360089 | R107: 1147.352175 | S107: 1110.963897 | T107: 1074.575618 | U107: 1038.18734 | V107: 1001.799062 | W107: 965.410784 | X107: 955.2485652 | Y107: 945.0863464 | Z107: 934.9241276 | AA107: 924.7619089 | AB107: 914.5996901 | AC107: 909.5185807 | AD107: 904.4374713 | AE107: 899.3563619 | AF107: 894.2752525 | AG107: 889.1941431 | AH107: 884.1130337 | AI107: 879.0319243 | AJ107: 873.950815 | AK107: 868.8697056 | AL107: 863.7885962 | AM107: 858.7074868 | AN107: 853.6263774 | AO107: 848.545268 | AP107: 843.4641586 | AQ107: 838.3830492 | AR107: 833.3019398 | AS107: 828.2208305 | AT107: 823.1397211 | AU107: 818.0586117 | AV107: 812.9775023
K108: Comm PV - 11.4% - Mid | L108: 2637 | M108: 2197.391748 | N108: 2119.247749 | O108: 2041.10375 | P108: 1962.959751 | Q108: 1884.815752 | R108: 1806.671753 | S108: 1724.360138 | T108: 1642.048524 | U108: 1559.73691 | V108: 1477.425296 | W108: 1395.113681 | X108: 1364.301054 | Y108: 1333.488426 | Z108: 1302.675799 | AA108: 1271.863171 | AB108: 1241.050543 | AC108: 1219.202815 | AD108: 1197.355088 | AE108: 1175.50736 | AF108: 1153.659632 | AG108: 1131.811904 | AH108: 1109.964176 | AI108: 1088.116448 | AJ108: 1066.26872 | AK108: 1044.420992 | AL108: 1022.573265 | AM108: 1016.857017 | AN108: 1011.140768 | AO108: 1005.42452 | AP108: 999.7082723 | AQ108: 993.9920243 | AR108: 988.2757762 | AS108: 982.5595282 | AT108: 976.8432801 | AU108: 971.127032 | AV108: 965.410784
K109: Comm PV - 11.4% - High | L109: 2637 | M109: 2197.391748 | N109: 2197.391748 | O109: 2197.391748 | P109: 2197.391748 | Q109: 2197.391748 | R109: 2197.391748 | S109: 2197.391748 | T109: 2197.391748 | U109: 2197.391748 | V109: 2197.391748 | W109: 2197.391748 | X109: 2197.391748 | Y109: 2197.391748 | Z109: 2197.391748 | AA109: 2197.391748 | AB109: 2197.391748 | AC109: 2197.391748 | AD109: 2197.391748 | AE109: 2197.391748 | AF109: 2197.391748 | AG109: 2197.391748 | AH109: 2197.391748 | AI109: 2197.391748 | AJ109: 2197.391748 | AK109: 2197.391748 | AL109: 2197.391748 | AM109: 2197.391748 | AN109: 2197.391748 | AO109: 2197.391748 | AP109: 2197.391748 | AQ109: 2197.391748 | AR109: 2197.391748 | AS109: 2197.391748 | AT109: 2197.391748 | AU109: 2197.391748 | AV109: 2197.391748
K110: Comm PV - 14.5% - Low | L110: 2637 | M110: 2197.391748 | N110: 1987.383834 | O110: 1777.375919 | P110: 1567.368004 | Q110: 1357.360089 | R110: 1147.352175 | S110: 1110.963897 | T110: 1074.575618 | U110: 1038.18734 | V110: 1001.799062 | W110: 965.410784 | X110: 955.2485652 | Y110: 945.0863464 | Z110: 934.9241276 | AA110: 924.7619089 | AB110: 914.5996901 | AC110: 909.5185807 | AD110: 904.4374713 | AE110: 899.3563619 | AF110: 894.2752525 | AG110: 889.1941431 | AH110: 884.1130337 | AI110: 879.0319243 | AJ110: 873.950815 | AK110: 868.8697056 | AL110: 863.7885962 | AM110: 858.7074868 | AN110: 853.6263774 | AO110: 848.545268 | AP110: 843.4641586 | AQ110: 838.3830492 | AR110: 833.3019398 | AS110: 828.2208305 | AT110: 823.1397211 | AU110: 818.0586117 | AV110: 812.9775023
K111: Comm PV - 14.5% - Mid | L111: 2637 | M111: 2197.391748 | N111: 2119.247749 | O111: 2041.10375 | P111: 1962.959751 | Q111: 1884.815752 | R111: 1806.671753 | S111: 1724.360138 | T111: 1642.048524 | U111: 1559.73691 | V111: 1477.425296 | W111: 1395.113681 | X111: 1364.301054 | Y111: 1333.488426 | Z111: 1302.675799 | AA111: 1271.863171 | AB111: 1241.050543 | AC111: 1219.202815 | AD111: 1197.355088 | AE111: 1175.50736 | AF111: 1153.659632 | AG111: 1131.811904 | AH111: 1109.964176 | AI111: 1088.116448 | AJ111: 1066.26872 | AK111: 1044.420992 | AL111: 1022.573265 | AM111: 1016.857017 | AN111: 1011.140768 | AO111: 1005.42452 | AP111: 999.7082723 | AQ111: 993.9920243 | AR111: 988.2757762 | AS111: 982.5595282 | AT111: 976.8432801 | AU111: 971.127032 | AV111: 965.410784
K112: Comm PV - 14.5% - High | L112: =L109 -> 2637 | M112: 2197.391748 | N112: 2197.391748 | O112: 2197.391748 | P112: 2197.391748 | Q112: 2197.391748 | R112: 2197.391748 | S112: 2197.391748 | T112: 2197.391748 | U112: 2197.391748 | V112: 2197.391748 | W112: 2197.391748 | X112: 2197.391748 | Y112: 2197.391748 | Z112: 2197.391748 | AA112: 2197.391748 | AB112: 2197.391748 | AC112: 2197.391748 | AD112: 2197.391748 | AE112: 2197.391748 | AF112: 2197.391748 | AG112: 2197.391748 | AH112: 2197.391748 | AI112: 2197.391748 | AJ112: 2197.391748 | AK112: 2197.391748 | AL112: 2197.391748 | AM112: 2197.391748 | AN112: 2197.391748 | AO112: 2197.391748 | AP112: 2197.391748 | AQ112: 2197.391748 | AR112: 2197.391748 | AS112: 2197.391748 | AT112: 2197.391748 | AU112: 2197.391748 | AV112: 2197.391748
K113: Comm PV - 18.7% - Low | L113: 2637 | M113: 2197.391748 | N113: 1987.383834 | O113: 1777.375919 | P113: 1567.368004 | Q113: 1357.360089 | R113: 1147.352175 | S113: 1110.963897 | T113: 1074.575618 | U113: 1038.18734 | V113: 1001.799062 | W113: 965.410784 | X113: 955.2485652 | Y113: 945.0863464 | Z113: 934.9241276 | AA113: 924.7619089 | AB113: 914.5996901 | AC113: 909.5185807 | AD113: 904.4374713 | AE113: 899.3563619 | AF113: 894.2752525 | AG113: 889.1941431 | AH113: 884.1130337 | AI113: 879.0319243 | AJ113: 873.950815 | AK113: 868.8697056 | AL113: 863.7885962 | AM113: 858.7074868 | AN113: 853.6263774 | AO113: 848.545268 | AP113: 843.4641586 | AQ113: 838.3830492 | AR113: 833.3019398 | AS113: 828.2208305 | AT113: 823.1397211 | AU113: 818.0586117 | AV113: 812.9775023
K114: Comm PV - 18.7% - Mid | L114: 2637 | M114: 2197.391748 | N114: 2119.247749 | O114: 2041.10375 | P114: 1962.959751 | Q114: 1884.815752 | R114: 1806.671753 | S114: 1724.360138 | T114: 1642.048524 | U114: 1559.73691 | V114: 1477.425296 | W114: 1395.113681 | X114: 1364.301054 | Y114: 1333.488426 | Z114: 1302.675799 | AA114: 1271.863171 | AB114: 1241.050543 | AC114: 1219.202815 | AD114: 1197.355088 | AE114: 1175.50736 | AF114: 1153.659632 | AG114: 1131.811904 | AH114: 1109.964176 | AI114: 1088.116448 | AJ114: 1066.26872 | AK114: 1044.420992 | AL114: 1022.573265 | AM114: 1016.857017 | AN114: 1011.140768 | AO114: 1005.42452 | AP114: 999.7082723 | AQ114: 993.9920243 | AR114: 988.2757762 | AS114: 982.5595282 | AT114: 976.8432801 | AU114: 971.127032 | AV114: 965.410784
K115: Comm PV - 18.7% - High | L115: =L112 -> 2637 | M115: 2197.391748 | N115: 2197.391748 | O115: 2197.391748 | P115: 2197.391748 | Q115: 2197.391748 | R115: 2197.391748 | S115: 2197.391748 | T115: 2197.391748 | U115: 2197.391748 | V115: 2197.391748 | W115: 2197.391748 | X115: 2197.391748 | Y115: 2197.391748 | Z115: 2197.391748 | AA115: 2197.391748 | AB115: 2197.391748 | AC115: 2197.391748 | AD115: 2197.391748 | AE115: 2197.391748 | AF115: 2197.391748 | AG115: 2197.391748 | AH115: 2197.391748 | AI115: 2197.391748 | AJ115: 2197.391748 | AK115: 2197.391748 | AL115: 2197.391748 | AM115: 2197.391748 | AN115: 2197.391748 | AO115: 2197.391748 | AP115: 2197.391748 | AQ115: 2197.391748 | AR115: 2197.391748 | AS115: 2197.391748 | AT115: 2197.391748 | AU115: 2197.391748 | AV115: 2197.391748
L117: 2014 | M117: 2015 | N117: 2016 | O117: 2017 | P117: 2018 | Q117: 2019 | R117: 2020 | S117: 2021 | T117: 2022 | U117: 2023 | V117: 2024 | W117: 2025 | X117: 2026 | Y117: 2027 | Z117: 2028 | AA117: 2029 | AB117: 2030 | AC117: 2031 | AD117: 2032 | AE117: 2033 | AF117: 2034 | AG117: 2035 | AH117: 2036 | AI117: 2037 | AJ117: 2038 | AK117: 2039 | AL117: 2040 | AM117: 2041 | AN117: 2042 | AO117: 2043 | AP117: 2044 | AQ117: 2045 | AR117: 2046 | AS117: 2047 | AT117: 2048 | AU117: 2049 | AV117: 2050
J118: Fixed Operation and Maintenance Expenses ($/kW-yr) | K118: Comm PV - 11.4% - Low | L118: 15 | M118: 13.5 | N118: 12 | O118: 10.5 | P118: 9 | Q118: 7.5 | R118: 7.5 | S118: 7.5 | T118: 7.5 | U118: 7.5 | V118: 7.5 | W118: 7.5 | X118: 7.5 | Y118: 7.5 | Z118: 7.5 | AA118: 7.5 | AB118: 7.5 | AC118: 7.5 | AD118: 7.5 | AE118: 7.5 | AF118: 7.5 | AG118: 7.5 | AH118: 7.5 | AI118: 7.5 | AJ118: 7.5 | AK118: 7.5 | AL118: 7.5 | AM118: 7.5 | AN118: 7.5 | AO118: 7.5 | AP118: 7.5 | AQ118: 7.5 | AR118: 7.5 | AS118: 7.5 | AT118: 7.5 | AU118: 7.5 | AV118: 7.5
K119: Comm PV - 11.4% - Mid | L119: 15 | M119: 13.5 | N119: 12.9 | O119: 12.3 | P119: 11.7 | Q119: 11.1 | R119: 10.5 | S119: 9.9 | T119: 9.3 | U119: 8.7 | V119: 8.1 | W119: 7.5 | X119: 7.5 | Y119: 7.5 | Z119: 7.5 | AA119: 7.5 | AB119: 7.5 | AC119: 7.5 | AD119: 7.5 | AE119: 7.5 | AF119: 7.5 | AG119: 7.5 | AH119: 7.5 | AI119: 7.5 | AJ119: 7.5 | AK119: 7.5 | AL119: 7.5 | AM119: 7.5 | AN119: 7.5 | AO119: 7.5 | AP119: 7.5 | AQ119: 7.5 | AR119: 7.5 | AS119: 7.5 | AT119: 7.5 | AU119: 7.5 | AV119: 7.5
K120: Comm PV - 11.4% - High | L120: 15 | M120: 15 | N120: 15 | O120: 15 | P120: 15 | Q120: 15 | R120: 15 | S120: 15 | T120: 15 | U120: 15 | V120: 15 | W120: 15 | X120: 15 | Y120: 15 | Z120: 15 | AA120: 15 | AB120: 15 | AC120: 15 | AD120: 15 | AE120: 15 | AF120: 15 | AG120: 15 | AH120: 15 | AI120: 15 | AJ120: 15 | AK120: 15 | AL120: 15 | AM120: 15 | AN120: 15 | AO120: 15 | AP120: 15 | AQ120: 15 | AR120: 15 | AS120: 15 | AT120: 15 | AU120: 15 | AV120: 15
K121: Comm PV - 14.5% - Low | L121: 15 | M121: 13.5 | N121: 12 | O121: 10.5 | P121: 9 | Q121: 7.5 | R121: 7.5 | S121: 7.5 | T121: 7.5 | U121: 7.5 | V121: 7.5 | W121: 7.5 | X121: 7.5 | Y121: 7.5 | Z121: 7.5 | AA121: 7.5 | AB121: 7.5 | AC121: 7.5 | AD121: 7.5 | AE121: 7.5 | AF121: 7.5 | AG121: 7.5 | AH121: 7.5 | AI121: 7.5 | AJ121: 7.5 | AK121: 7.5 | AL121: 7.5 | AM121: 7.5 | AN121: 7.5 | AO121: 7.5 | AP121: 7.5 | AQ121: 7.5 | AR121: 7.5 | AS121: 7.5 | AT121: 7.5 | AU121: 7.5 | AV121: 7.5
K122: Comm PV - 14.5% - Mid | L122: 15 | M122: 13.5 | N122: 12.9 | O122: 12.3 | P122: 11.7 | Q122: 11.1 | R122: 10.5 | S122: 9.9 | T122: 9.3 | U122: 8.7 | V122: 8.1 | W122: 7.5 | X122: 7.5 | Y122: 7.5 | Z122: 7.5 | AA122: 7.5 | AB122: 7.5 | AC122: 7.5 | AD122: 7.5 | AE122: 7.5 | AF122: 7.5 | AG122: 7.5 | AH122: 7.5 | AI122: 7.5 | AJ122: 7.5 | AK122: 7.5 | AL122: 7.5 | AM122: 7.5 | AN122: 7.5 | AO122: 7.5 | AP122: 7.5 | AQ122: 7.5 | AR122: 7.5 | AS122: 7.5 | AT122: 7.5 | AU122: 7.5 | AV122: 7.5
K123: Comm PV - 14.5% - High | L123: 15 | M123: 15 | N123: 15 | O123: 15 | P123: 15 | Q123: 15 | R123: 15 | S123: 15 | T123: 15 | U123: 15 | V123: 15 | W123: 15 | X123: 15 | Y123: 15 | Z123: 15 | AA123: 15 | AB123: 15 | AC123: 15 | AD123: 15 | AE123: 15 | AF123: 15 | AG123: 15 | AH123: 15 | AI123: 15 | AJ123: 15 | AK123: 15 | AL123: 15 | AM123: 15 | AN123: 15 | AO123: 15 | AP123: 15 | AQ123: 15 | AR123: 15 | AS123: 15 | AT123: 15 | AU123: 15 | AV123: 15
K124: Comm PV - 18.7% - Low | L124: 15 | M124: 13.5 | N124: 12 | O124: 10.5 | P124: 9 | Q124: 7.5 | R124: 7.5 | S124: 7.5 | T124: 7.5 | U124: 7.5 | V124: 7.5 | W124: 7.5 | X124: 7.5 | Y124: 7.5 | Z124: 7.5 | AA124: 7.5 | AB124: 7.5 | AC124: 7.5 | AD124: 7.5 | AE124: 7.5 | AF124: 7.5 | AG124: 7.5 | AH124: 7.5 | AI124: 7.5 | AJ124: 7.5 | AK124: 7.5 | AL124: 7.5 | AM124: 7.5 | AN124: 7.5 | AO124: 7.5 | AP124: 7.5 | AQ124: 7.5 | AR124: 7.5 | AS124: 7.5 | AT124: 7.5 | AU124: 7.5 | AV124: 7.5
K125: Comm PV - 18.7% - Mid | L125: 15 | M125: 13.5 | N125: 12.9 | O125: 12.3 | P125: 11.7 | Q125: 11.1 | R125: 10.5 | S125: 9.9 | T125: 9.3 | U125: 8.7 | V125: 8.1 | W125: 7.5 | X125: 7.5 | Y125: 7.5 | Z125: 7.5 | AA125: 7.5 | AB125: 7.5 | AC125: 7.5 | AD125: 7.5 | AE125: 7.5 | AF125: 7.5 | AG125: 7.5 | AH125: 7.5 | AI125: 7.5 | AJ125: 7.5 | AK125: 7.5 | AL125: 7.5 | AM125: 7.5 | AN125: 7.5 | AO125: 7.5 | AP125: 7.5 | AQ125: 7.5 | AR125: 7.5 | AS125: 7.5 | AT125: 7.5 | AU125: 7.5 | AV125: 7.5
K126: Comm PV - 18.7% - High | L126: 15 | M126: 15 | N126: 15 | O126: 15 | P126: 15 | Q126: 15 | R126: 15 | S126: 15 | T126: 15 | U126: 15 | V126: 15 | W126: 15 | X126: 15 | Y126: 15 | Z126: 15 | AA126: 15 | AB126: 15 | AC126: 15 | AD126: 15 | AE126: 15 | AF126: 15 | AG126: 15 | AH126: 15 | AI126: 15 | AJ126: 15 | AK126: 15 | AL126: 15 | AM126: 15 | AN126: 15 | AO126: 15 | AP126: 15 | AQ126: 15 | AR126: 15 | AS126: 15 | AT126: 15 | AU126: 15 | AV126: 15
L128: 2014 | M128: 2015 | N128: 2016 | O128: 2017 | P128: 2018 | Q128: 2019 | R128: 2020 | S128: 2021 | T128: 2022 | U128: 2023 | V128: 2024 | W128: 2025 | X128: 2026 | Y128: 2027 | Z128: 2028 | AA128: 2029 | AB128: 2030 | AC128: 2031 | AD128: 2032 | AE128: 2033 | AF128: 2034 | AG128: 2035 | AH128: 2036 | AI128: 2037 | AJ128: 2038 | AK128: 2039 | AL128: 2040 | AM128: 2041 | AN128: 2042 | AO128: 2043 | AP128: 2044 | AQ128: 2045 | AR128: 2046 | AS128: 2047 | AT128: 2048 | AU128: 2049 | AV128: 2050
J129: Variable Operation and Maintenance Expenses ($/MWh) | K129: Comm PV - 11.4% - Low | L129: 0 | M129: 0 | N129: 0 | O129: 0 | P129: 0 | Q129: 0 | R129: 0 | S129: 0 | T129: 0 | U129: 0 | V129: 0 | W129: 0 | X129: 0 | Y129: 0 | Z129: 0 | AA129: 0 | AB129: 0 | AC129: 0 | AD129: 0 | AE129: 0 | AF129: 0 | AG129: 0 | AH129: 0 | AI129: 0 | AJ129: 0 | AK129: 0 | AL129: 0 | AM129: 0 | AN129: 0 | AO129: 0 | AP129: 0 | AQ129: 0 | AR129: 0 | AS129: 0 | AT129: 0 | AU129: 0 | AV129: 0
K130: Comm PV - 11.4% - Mid | L130: 0 | M130: 0 | N130: 0 | O130: 0 | P130: 0 | Q130: 0 | R130: 0 | S130: 0 | T130: 0 | U130: 0 | V130: 0 | W130: 0 | X130: 0 | Y130: 0 | Z130: 0 | AA130: 0 | AB130: 0 | AC130: 0 | AD130: 0 | AE130: 0 | AF130: 0 | AG130: 0 | AH130: 0 | AI130: 0 | AJ130: 0 | AK130: 0 | AL130: 0 | AM130: 0 | AN130: 0 | AO130: 0 | AP130: 0 | AQ130: 0 | AR130: 0 | AS130: 0 | AT130: 0 | AU130: 0 | AV130: 0
K131: Comm PV - 11.4% - High | L131: 0 | M131: 0 | N131: 0 | O131: 0 | P131: 0 | Q131: 0 | R131: 0 | S131: 0 | T131: 0 | U131: 0 | V131: 0 | W131: 0 | X131: 0 | Y131: 0 | Z131: 0 | AA131: 0 | AB131: 0 | AC131: 0 | AD131: 0 | AE131: 0 | AF131: 0 | AG131: 0 | AH131: 0 | AI131: 0 | AJ131: 0 | AK131: 0 | AL131: 0 | AM131: 0 | AN131: 0 | AO131: 0 | AP131: 0 | AQ131: 0 | AR131: 0 | AS131: 0 | AT131: 0 | AU131: 0 | AV131: 0
K132: Comm PV - 14.5% - Low | L132: 0 | M132: 0 | N132: 0 | O132: 0 | P132: 0 | Q132: 0 | R132: 0 | S132: 0 | T132: 0 | U132: 0 | V132: 0 | W132: 0 | X132: 0 | Y132: 0 | Z132: 0 | AA132: 0 | AB132: 0 | AC132: 0 | AD132: 0 | AE132: 0 | AF132: 0 | AG132: 0 | AH132: 0 | AI132: 0 | AJ132: 0 | AK132: 0 | AL132: 0 | AM132: 0 | AN132: 0 | AO132: 0 | AP132: 0 | AQ132: 0 | AR132: 0 | AS132: 0 | AT132: 0 | AU132: 0 | AV132: 0
K133: Comm PV - 14.5% - Mid | L133: 0 | M133: 0 | N133: 0 | O133: 0 | P133: 0 | Q133: 0 | R133: 0 | S133: 0 | T133: 0 | U133: 0 | V133: 0 | W133: 0 | X133: 0 | Y133: 0 | Z133: 0 | AA133: 0 | AB133: 0 | AC133: 0 | AD133: 0 | AE133: 0 | AF133: 0 | AG133: 0 | AH133: 0 | AI133: 0 | AJ133: 0 | AK133: 0 | AL133: 0 | AM133: 0 | AN133: 0 | AO133: 0 | AP133: 0 | AQ133: 0 | AR133: 0 | AS133: 0 | AT133: 0 | AU133: 0 | AV133: 0
K134: Comm PV - 14.5% - High | L134: 0 | M134: 0 | N134: 0 | O134: 0 | P134: 0 | Q134: 0 | R134: 0 | S134: 0 | T134: 0 | U134: 0 | V134: 0 | W134: 0 | X134: 0 | Y134: 0 | Z134: 0 | AA134: 0 | AB134: 0 | AC134: 0 | AD134: 0 | AE134: 0 | AF134: 0 | AG134: 0 | AH134: 0 | AI134: 0 | AJ134: 0 | AK134: 0 | AL134: 0 | AM134: 0 | AN134: 0 | AO134: 0 | AP134: 0 | AQ134: 0 | AR134: 0 | AS134: 0 | AT134: 0 | AU134: 0 | AV134: 0
K135: Comm PV - 18.7% - Low | L135: 0 | M135: 0 | N135: 0 | O135: 0 | P135: 0 | Q135: 0 | R135: 0 | S135: 0 | T135: 0 | U135: 0 | V135: 0 | W135: 0 | X135: 0 | Y135: 0 | Z135: 0 | AA135: 0 | AB135: 0 | AC135: 0 | AD135: 0 | AE135: 0 | AF135: 0 | AG135: 0 | AH135: 0 | AI135: 0 | AJ135: 0 | AK135: 0 | AL135: 0 | AM135: 0 | AN135: 0 | AO135: 0 | AP135: 0 | AQ135: 0 | AR135: 0 | AS135: 0 | AT135: 0 | AU135: 0 | AV135: 0
K136: Comm PV - 18.7% - Mid | L136: 0 | M136: 0 | N136: 0 | O136: 0 | P136: 0 | Q136: 0 | R136: 0 | S136: 0 | T136: 0 | U136: 0 | V136: 0 | W136: 0 | X136: 0 | Y136: 0 | Z136: 0 | AA136: 0 | AB136: 0 | AC136: 0 | AD136: 0 | AE136: 0 | AF136: 0 | AG136: 0 | AH136: 0 | AI136: 0 | AJ136: 0 | AK136: 0 | AL136: 0 | AM136: 0 | AN136: 0 | AO136: 0 | AP136: 0 | AQ136: 0 | AR136: 0 | AS136: 0 | AT136: 0 | AU136: 0 | AV136: 0
K137: Comm PV - 18.7% - High | L137: 0 | M137: 0 | N137: 0 | O137: 0 | P137: 0 | Q137: 0 | R137: 0 | S137: 0 | T137: 0 | U137: 0 | V137: 0 | W137: 0 | X137: 0 | Y137: 0 | Z137: 0 | AA137: 0 | AB137: 0 | AC137: 0 | AD137: 0 | AE137: 0 | AF137: 0 | AG137: 0 | AH137: 0 | AI137: 0 | AJ137: 0 | AK137: 0 | AL137: 0 | AM137: 0 | AN137: 0 | AO137: 0 | AP137: 0 | AQ137: 0 | AR137: 0 | AS137: 0 | AT137: 0 | AU137: 0 | AV137: 0
L140: 2014 | M140: 2015 | N140: 2016 | O140: 2017 | P140: 2018 | Q140: 2019 | R140: 2020 | S140: 2021 | T140: 2022 | U140: 2023 | V140: 2024 | W140: 2025 | X140: 2026 | Y140: 2027 | Z140: 2028 | AA140: 2029 | AB140: 2030 | AC140: 2031 | AD140: 2032 | AE140: 2033 | AF140: 2034 | AG140: 2035 | AH140: 2036 | AI140: 2037 | AJ140: 2038 | AK140: 2039 | AL140: 2040 | AM140: 2041 | AN140: 2042 | AO140: 2043 | AP140: 2044 | AQ140: 2045 | AR140: 2046 | AS140: 2047 | AT140: 2048 | AU140: 2049 | AV140: 2050
H141: Finance | J141: Weighted Average Cost of Capital (WACC) (Nominal) (%) | K141: Comm PV - 11.4% - Low | L141: =$S$37 -> 0.0808 | M141: 0.0808 | N141: 0.0808 | O141: 0.0808 | P141: 0.0808 | Q141: 0.0808 | R141: 0.0808 | S141: 0.0808 | T141: 0.0808 | U141: 0.0808 | V141: 0.0808 | W141: 0.0808 | X141: 0.0808 | Y141: 0.0808 | Z141: 0.0808 | AA141: 0.0808 | AB141: =$S$37 -> 0.0808 | AC141: 0.0808 | AD141: 0.0808 | AE141: 0.0808 | AF141: 0.0808 | AG141: 0.0808 | AH141: 0.0808 | AI141: 0.0808 | AJ141: 0.0808 | AK141: 0.0808 | AL141: 0.0808 | AM141: 0.0808 | AN141: 0.0808 | AO141: 0.0808 | AP141: 0.0808 | AQ141: 0.0808 | AR141: =$S$37 -> 0.0808 | AS141: 0.0808 | AT141: 0.0808 | AU141: 0.0808 | AV141: 0.0808
K142: Comm PV - 11.4% - Mid | L142: 0.0808 | M142: 0.0808 | N142: 0.0808 | O142: 0.0808 | P142: 0.0808 | Q142: 0.0808 | R142: 0.0808 | S142: 0.0808 | T142: 0.0808 | U142: 0.0808 | V142: 0.0808 | W142: 0.0808 | X142: 0.0808 | Y142: 0.0808 | Z142: 0.0808 | AA142: 0.0808 | AB142: 0.0808 | AC142: 0.0808 | AD142: 0.0808 | AE142: 0.0808 | AF142: 0.0808 | AG142: 0.0808 | AH142: 0.0808 | AI142: 0.0808 | AJ142: 0.0808 | AK142: 0.0808 | AL142: 0.0808 | AM142: 0.0808 | AN142: 0.0808 | AO142: 0.0808 | AP142: 0.0808 | AQ142: 0.0808 | AR142: 0.0808 | AS142: 0.0808 | AT142: 0.0808 | AU142: 0.0808 | AV142: 0.0808
K143: Comm PV - 11.4% - High | L143: 0.0808 | M143: 0.0808 | N143: 0.0808 | O143: 0.0808 | P143: 0.0808 | Q143: 0.0808 | R143: 0.0808 | S143: 0.0808 | T143: 0.0808 | U143: 0.0808 | V143: 0.0808 | W143: 0.0808 | X143: 0.0808 | Y143: 0.0808 | Z143: 0.0808 | AA143: 0.0808 | AB143: 0.0808 | AC143: 0.0808 | AD143: 0.0808 | AE143: 0.0808 | AF143: 0.0808 | AG143: 0.0808 | AH143: 0.0808 | AI143: 0.0808 | AJ143: 0.0808 | AK143: 0.0808 | AL143: 0.0808 | AM143: 0.0808 | AN143: 0.0808 | AO143: 0.0808 | AP143: 0.0808 | AQ143: 0.0808 | AR143: 0.0808 | AS143: 0.0808 | AT143: 0.0808 | AU143: 0.0808 | AV143: 0.0808
K144: Comm PV - 14.5% - Low | L144: 0.0808 | M144: 0.0808 | N144: 0.0808 | O144: 0.0808 | P144: 0.0808 | Q144: 0.0808 | R144: 0.0808 | S144: 0.0808 | T144: 0.0808 | U144: 0.0808 | V144: 0.0808 | W144: 0.0808 | X144: 0.0808 | Y144: 0.0808 | Z144: 0.0808 | AA144: 0.0808 | AB144: 0.0808 | AC144: 0.0808 | AD144: 0.0808 | AE144: 0.0808 | AF144: 0.0808 | AG144: 0.0808 | AH144: 0.0808 | AI144: 0.0808 | AJ144: 0.0808 | AK144: 0.0808 | AL144: 0.0808 | AM144: 0.0808 | AN144: 0.0808 | AO144: 0.0808 | AP144: 0.0808 | AQ144: 0.0808 | AR144: 0.0808 | AS144: 0.0808 | AT144: 0.0808 | AU144: 0.0808 | AV144: 0.0808
K145: Comm PV - 14.5% - Mid | L145: 0.0808 | M145: 0.0808 | N145: 0.0808 | O145: 0.0808 | P145: 0.0808 | Q145: 0.0808 | R145: 0.0808 | S145: 0.0808 | T145: 0.0808 | U145: 0.0808 | V145: 0.0808 | W145: 0.0808 | X145: 0.0808 | Y145: 0.0808 | Z145: 0.0808 | AA145: 0.0808 | AB145: 0.0808 | AC145: 0.0808 | AD145: 0.0808 | AE145: 0.0808 | AF145: 0.0808 | AG145: 0.0808 | AH145: 0.0808 | AI145: 0.0808 | AJ145: 0.0808 | AK145: 0.0808 | AL145: 0.0808 | AM145: 0.0808 | AN145: 0.0808 | AO145: 0.0808 | AP145: 0.0808 | AQ145: 0.0808 | AR145: 0.0808 | AS145: 0.0808 | AT145: 0.0808 | AU145: 0.0808 | AV145: 0.0808
K146: Comm PV - 14.5% - High | L146: 0.0808 | M146: 0.0808 | N146: 0.0808 | O146: 0.0808 | P146: 0.0808 | Q146: 0.0808 | R146: 0.0808 | S146: 0.0808 | T146: 0.0808 | U146: 0.0808 | V146: 0.0808 | W146: 0.0808 | X146: 0.0808 | Y146: 0.0808 | Z146: 0.0808 | AA146: 0.0808 | AB146: 0.0808 | AC146: 0.0808 | AD146: 0.0808 | AE146: 0.0808 | AF146: 0.0808 | AG146: 0.0808 | AH146: 0.0808 | AI146: 0.0808 | AJ146: 0.0808 | AK146: 0.0808 | AL146: 0.0808 | AM146: 0.0808 | AN146: 0.0808 | AO146: 0.0808 | AP146: 0.0808 | AQ146: 0.0808 | AR146: 0.0808 | AS146: 0.0808 | AT146: 0.0808 | AU146: 0.0808 | AV146: 0.0808
K147: Comm PV - 18.7% - Low | L147: 0.0808 | M147: 0.0808 | N147: 0.0808 | O147: 0.0808 | P147: 0.0808 | Q147: 0.0808 | R147: 0.0808 | S147: 0.0808 | T147: 0.0808 | U147: 0.0808 | V147: 0.0808 | W147: 0.0808 | X147: 0.0808 | Y147: 0.0808 | Z147: 0.0808 | AA147: 0.0808 | AB147: 0.0808 | AC147: 0.0808 | AD147: 0.0808 | AE147: 0.0808 | AF147: 0.0808 | AG147: 0.0808 | AH147: 0.0808 | AI147: 0.0808 | AJ147: 0.0808 | AK147: 0.0808 | AL147: 0.0808 | AM147: 0.0808 | AN147: 0.0808 | AO147: 0.0808 | AP147: 0.0808 | AQ147: 0.0808 | AR147: 0.0808 | AS147: 0.0808 | AT147: 0.0808 | AU147: 0.0808 | AV147: 0.0808
K148: Comm PV - 18.7% - Mid | L148: 0.0808 | M148: 0.0808 | N148: 0.0808 | O148: 0.0808 | P148: 0.0808 | Q148: 0.0808 | R148: 0.0808 | S148: 0.0808 | T148: 0.0808 | U148: 0.0808 | V148: 0.0808 | W148: 0.0808 | X148: 0.0808 | Y148: 0.0808 | Z148: 0.0808 | AA148: 0.0808 | AB148: 0.0808 | AC148: 0.0808 | AD148: 0.0808 | AE148: 0.0808 | AF148: 0.0808 | AG148: 0.0808 | AH148: 0.0808 | AI148: 0.0808 | AJ148: 0.0808 | AK148: 0.0808 | AL148: 0.0808 | AM148: 0.0808 | AN148: 0.0808 | AO148: 0.0808 | AP148: 0.0808 | AQ148: 0.0808 | AR148: 0.0808 | AS148: 0.0808 | AT148: 0.0808 | AU148: 0.0808 | AV148: 0.0808
K149: Comm PV - 18.7% - High | L149: 0.0808 | M149: 0.0808 | N149: 0.0808 | O149: 0.0808 | P149: 0.0808 | Q149: 0.0808 | R149: 0.0808 | S149: 0.0808 | T149: 0.0808 | U149: 0.0808 | V149: 0.0808 | W149: 0.0808 | X149: 0.0808 | Y149: 0.0808 | Z149: 0.0808 | AA149: 0.0808 | AB149: 0.0808 | AC149: 0.0808 | AD149: 0.0808 | AE149: 0.0808 | AF149: 0.0808 | AG149: 0.0808 | AH149: 0.0808 | AI149: 0.0808 | AJ149: 0.0808 | AK149: 0.0808 | AL149: 0.0808 | AM149: 0.0808 | AN149: 0.0808 | AO149: 0.0808 | AP149: 0.0808 | AQ149: 0.0808 | AR149: 0.0808 | AS149: 0.0808 | AT149: 0.0808 | AU149: 0.0808 | AV149: 0.0808
L151: 2014 | M151: 2015 | N151: 2016 | O151: 2017 | P151: 2018 | Q151: 2019 | R151: 2020 | S151: 2021 | T151: 2022 | U151: 2023 | V151: 2024 | W151: 2025 | X151: 2026 | Y151: 2027 | Z151: 2028 | AA151: 2029 | AB151: 2030 | AC151: 2031 | AD151: 2032 | AE151: 2033 | AF151: 2034 | AG151: 2035 | AH151: 2036 | AI151: 2037 | AJ151: 2038 | AK151: 2039 | AL151: 2040 | AM151: 2041 | AN151: 2042 | AO151: 2043 | AP151: 2044 | AQ151: 2045 | AR151: 2046 | AS151: 2047 | AT151: 2048 | AU151: 2049 | AV151: 2050
H152: Grid Connection Costs | J152: Grid Connection Costs (GCC) ($/kW) | K152: Comm PV - 11.4% - Low | L152: 0 | M152: 0 | N152: 0 | O152: 0 | P152: 0 | Q152: 0 | R152: 0 | S152: 0 | T152: 0 | U152: 0 | V152: 0 | W152: 0 | X152: 0 | Y152: 0 | Z152: 0 | AA152: 0 | AB152: 0 | AC152: 0 | AD152: 0 | AE152: 0 | AF152: 0 | AG152: 0 | AH152: 0 | AI152: 0 | AJ152: 0 | AK152: 0 | AL152: 0 | AM152: 0 | AN152: 0 | AO152: 0 | AP152: 0 | AQ152: 0 | AR152: 0 | AS152: 0 | AT152: 0 | AU152: 0 | AV152: 0
K153: Comm PV - 11.4% - Mid | L153: 0 | M153: 0 | N153: 0 | O153: 0 | P153: 0 | Q153: 0 | R153: 0 | S153: 0 | T153: 0 | U153: 0 | V153: 0 | W153: 0 | X153: 0 | Y153: 0 | Z153: 0 | AA153: 0 | AB153: 0 | AC153: 0 | AD153: 0 | AE153: 0 | AF153: 0 | AG153: 0 | AH153: 0 | AI153: 0 | AJ153: 0 | AK153: 0 | AL153: 0 | AM153: 0 | AN153: 0 | AO153: 0 | AP153: 0 | AQ153: 0 | AR153: 0 | AS153: 0 | AT153: 0 | AU153: 0 | AV153: 0
K154: Comm PV - 11.4% - High | L154: 0 | M154: 0 | N154: 0 | O154: 0 | P154: 0 | Q154: 0 | R154: 0 | S154: 0 | T154: 0 | U154: 0 | V154: 0 | W154: 0 | X154: 0 | Y154: 0 | Z154: 0 | AA154: 0 | AB154: 0 | AC154: 0 | AD154: 0 | AE154: 0 | AF154: 0 | AG154: 0 | AH154: 0 | AI154: 0 | AJ154: 0 | AK154: 0 | AL154: 0 | AM154: 0 | AN154: 0 | AO154: 0 | AP154: 0 | AQ154: 0 | AR154: 0 | AS154: 0 | AT154: 0 | AU154: 0 | AV154: 0
K155: Comm PV - 14.5% - Low | L155: 0 | M155: 0 | N155: 0 | O155: 0 | P155: 0 | Q155: 0 | R155: 0 | S155: 0 | T155: 0 | U155: 0 | V155: 0 | W155: 0 | X155: 0 | Y155: 0 | Z155: 0 | AA155: 0 | AB155: 0 | AC155: 0 | AD155: 0 | AE155: 0 | AF155: 0 | AG155: 0 | AH155: 0 | AI155: 0 | AJ155: 0 | AK155: 0 | AL155: 0 | AM155: 0 | AN155: 0 | AO155: 0 | AP155: 0 | AQ155: 0 | AR155: 0 | AS155: 0 | AT155: 0 | AU155: 0 | AV155: 0
K156: Comm PV - 14.5% - Mid | L156: 0 | M156: 0 | N156: 0 | O156: 0 | P156: 0 | Q156: 0 | R156: 0 | S156: 0 | T156: 0 | U156: 0 | V156: 0 | W156: 0 | X156: 0 | Y156: 0 | Z156: 0 | AA156: 0 | AB156: 0 | AC156: 0 | AD156: 0 | AE156: 0 | AF156: 0 | AG156: 0 | AH156: 0 | AI156: 0 | AJ156: 0 | AK156: 0 | AL156: 0 | AM156: 0 | AN156: 0 | AO156: 0 | AP156: 0 | AQ156: 0 | AR156: 0 | AS156: 0 | AT156: 0 | AU156: 0 | AV156: 0
K157: Comm PV - 14.5% - High | L157: 0 | M157: 0 | N157: 0 | O157: 0 | P157: 0 | Q157: 0 | R157: 0 | S157: 0 | T157: 0 | U157: 0 | V157: 0 | W157: 0 | X157: 0 | Y157: 0 | Z157: 0 | AA157: 0 | AB157: 0 | AC157: 0 | AD157: 0 | AE157: 0 | AF157: 0 | AG157: 0 | AH157: 0 | AI157: 0 | AJ157: 0 | AK157: 0 | AL157: 0 | AM157: 0 | AN157: 0 | AO157: 0 | AP157: 0 | AQ157: 0 | AR157: 0 | AS157: 0 | AT157: 0 | AU157: 0 | AV157: 0
K158: Comm PV - 18.7% - Low | L158: 0 | M158: 0 | N158: 0 | O158: 0 | P158: 0 | Q158: 0 | R158: 0 | S158: 0 | T158: 0 | U158: 0 | V158: 0 | W158: 0 | X158: 0 | Y158: 0 | Z158: 0 | AA158: 0 | AB158: 0 | AC158: 0 | AD158: 0 | AE158: 0 | AF158: 0 | AG158: 0 | AH158: 0 | AI158: 0 | AJ158: 0 | AK158: 0 | AL158: 0 | AM158: 0 | AN158: 0 | AO158: 0 | AP158: 0 | AQ158: 0 | AR158: 0 | AS158: 0 | AT158: 0 | AU158: 0 | AV158: 0
K159: Comm PV - 18.7% - Mid | L159: 0 | M159: 0 | N159: 0 | O159: 0 | P159: 0 | Q159: 0 | R159: 0 | S159: 0 | T159: 0 | U159: 0 | V159: 0 | W159: 0 | X159: 0 | Y159: 0 | Z159: 0 | AA159: 0 | AB159: 0 | AC159: 0 | AD159: 0 | AE159: 0 | AF159: 0 | AG159: 0 | AH159: 0 | AI159: 0 | AJ159: 0 | AK159: 0 | AL159: 0 | AM159: 0 | AN159: 0 | AO159: 0 | AP159: 0 | AQ159: 0 | AR159: 0 | AS159: 0 | AT159: 0 | AU159: 0 | AV159: 0
K160: Comm PV - 18.7% - High | L160: 0 | M160: 0 | N160: 0 | O160: 0 | P160: 0 | Q160: 0 | R160: 0 | S160: 0 | T160: 0 | U160: 0 | V160: 0 | W160: 0 | X160: 0 | Y160: 0 | Z160: 0 | AA160: 0 | AB160: 0 | AC160: 0 | AD160: 0 | AE160: 0 | AF160: 0 | AG160: 0 | AH160: 0 | AI160: 0 | AJ160: 0 | AK160: 0 | AL160: 0 | AM160: 0 | AN160: 0 | AO160: 0 | AP160: 0 | AQ160: 0 | AR160: 0 | AS160: 0 | AT160: 0 | AU160: 0 | AV160: 0
L162: 2014 | M162: 2015 | N162: 2016 | O162: 2017 | P162: 2018 | Q162: 2019 | R162: 2020 | S162: 2021 | T162: 2022 | U162: 2023 | V162: 2024 | W162: 2025 | X162: 2026 | Y162: 2027 | Z162: 2028 | AA162: 2029 | AB162: 2030 | AC162: 2031 | AD162: 2032 | AE162: 2033 | AF162: 2034 | AG162: 2035 | AH162: 2036 | AI162: 2037 | AJ162: 2038 | AK162: 2039 | AL162: 2040 | AM162: 2041 | AN162: 2042 | AO162: 2043 | AP162: 2044 | AQ162: 2045 | AR162: 2046 | AS162: 2047 | AT162: 2048 | AU162: 2049 | AV162: 2050
H163: LCOE | J163: Levelized Cost of Energy ($/MWh) | K163: Comm PV - 11.4% - Low | L163: =(($S$44 * $S$42 * $S$40 * (L107 * 1 + L152) +L118) * 1000 / (L74 * 8760)) + L129 + 0 -> 268.6857245 | M163: 224.895719 | N163: 203.192038 | O163: 181.488357 | P163: 159.784676 | Q163: 138.080995 | R163: 117.8793568 | S163: 114.3789991 | T163: 110.8786413 | U163: 107.3782836 | V163: 103.8779258 | W163: 100.3775681 | X163: 99.40001698 | Y163: 98.42246588 | Z163: 97.44491479 | AA163: 96.46736369 | AB163: 95.48981259 | AC163: 95.00103705 | AD163: 94.5122615 | AE163: 94.02348595 | AF163: 93.5347104 | AG163: 93.04593485 | AH163: 92.5571593 | AI163: 92.06838376 | AJ163: 91.57960821 | AK163: 91.09083266 | AL163: 90.60205711 | AM163: 90.11328156 | AN163: 89.62450601 | AO163: 89.13573047 | AP163: 88.64695492 | AQ163: 88.15817937 | AR163: 87.66940382 | AS163: 87.18062827 | AT163: 86.69185272 | AU163: 86.20307718 | AV163: 85.71430163
